Workbook

Sheet Input-Output
E2: Florida Soil Treatment Unit Model (STUMOD-FL-HPS)
E3: Original development by Dr. Mengistu Geza in collaboration with Kathryn Lowe and Dr. John McCray
E4: Subsequent improvements by Dr. Mengistu Geza and Cliff Tonsberg in collaboration with Kathryn Lowe and Dr. John McCray
E5: Colorado School of Mines, Email: mgezanis@mines.edu
E7: Macros must be "Enabled" for STUMOD-FL-HPS to work correctly.
E8: Excel solver is required (if not installed, go to File > options > addins > solver add-in to add solver).
E10: Do not delete, or modify any of the worksheets.
E11: For more information: place cursor on the input box, see notes on individual pages, and refer to the "STUMOD-FL-HPS User's Guide".
E12: RiskSim 2.43 add-in required to run uncertainty download RiskSim at http://www.decisiontoolworks.com/index.htm
E13: STUMOD-FL-HPS has options for:
E14: a.) | F14: Vadose (unsaturated) zone analyses
E15: b.) | F15: Saturated zone analyses
E16: c.) | F16: Combined vadose and saturated zone analyses
E17: d.) | F17: Multiple spatial inputs (I)
E18: e.) | F18: Multiple spatial inputs (II)
E19: f.) | F19: Sensitivity analysis
E20: g.) | F20: Uncertainty analsis (vadose zone "CFD I" -or- saturated zone "CFD II")
E22: To begin:
E23: 1.) | F23: Click on "START STUMOD-FL-HPS" button to display the user input form. A graphical user interface (GUI) for STUMOD-FL-HPS is displayed.
E24: 2.) | F24: Select the "Vadose zone inputs" tab. Choose input values for the soil type, hydraulic loading rate, effluent concentration, etc.
F25: Note: The user input form is populated with representative default values as reported in the literature. Default inputs can be changed if better data is available.
E26: 3.) | F26: Click on "Run STUMOD-FL-HPS" after all values have been entered. This will run the vadose zone module.
F27: Outputs: Graphical displays of concentration and fraction remaining can be viewed on the "Vadose zone outputs" tab.
F28: Tabular outputs in "VZ_N_out" worksheet. Refer to columns "AJ" to "AO" for final outputs on NH4-N, NO3-N, Total N, C/Co (fraction remaining) and mass flux.
E29: 4.) | F29: Select the "Saturated zone inputs" tab. Similar to the vadose zone module, populate the OWS dimensions, aquifer properties, etc.
F30: The user input form is populated with representative default values as reported in the literature. Default inputs can be changed if better data is available.
E31: 5.) | F31: Click on "Run Contaminant Transport Model" after all values have been entered. This will run the saturated zone module.
F32: Outputs: Tabular oututs and Graphical displays of plume concentrations can be viewed on the "Saturated zone outputs" tab.
E33: 6.) | F33: Select STUMOD-HPS tab to run the saturated zone module (STUMOD-FL-HPS) followed by the saturated zones module (HPS).
F34: The outputs for saturated and unsaturated zone are displayed on the same page.
E35: 7.) | F35: Select Multiple-Sites I & II tabs to caclulate mass loading and concentration from multiple sites at a user specified location downgradient of soil treatment units.
E36: 8.) | F36: Select the "Sensit" tab if additional analysis on parameter sensitivity is desired.
E37: 9.) | F37: Select the "CFD I" -or- "CFD II" tab if additional model output uncertainty analysis is desired.
E40: At anytime, the user can return to the GUI to change inputs, conduct additional model runs, or evaluation different scenarios (multiple sites, sensitivity, or uncertainty).
E42: See "STUMOD-FL-HPS User's Guide" for model assumptions, determination of default parameters, and an example illustrating how to use STUMOD-FL-HPS.

Sheet InputSummary
A5: Parameter | B5: Symbol | C5: Defaults | D5: Current | E5: units | G5: Parameter | H5: current value | I5: Default value
A6: Soil type | C6: =SoilsData_I!C3 -> sandmorepermeable | D6: =VZ_N_Out!A6 -> sandmorepermeable | G6: NumTrench | H6: 4 | I6: 4
A7: ='Parameter Definitions'!C9 -> Hydraulic loading rate | B7: HLR | C7: 2 | D7: =VZ_N_Out!A7 -> 2 | G7: TrenchSpace | H7: 65 | I7: 65
A8: ='Parameter Definitions'!C10 -> Parameter a in Gradner's analytical equation for pressure distribution (also referred to as aG) | B8: aG | C8: 0.06 | D8: =VZ_N_Out!A8 -> 0.06 | G8: OWTS_width1 | H8: 2000 | I8: 2000
A9: ='Parameter Definitions'!C11 -> Parameter a in the soil water retention function (also referred to as aVG) | B9: aVG | C9: 0.024 | D9: =VZ_N_Out!A9 -> 0.024 | G9: OWTS_length1 | H9: 1000 | I9: 1000
A10: ='Parameter Definitions'!C12 -> Saturated hydraulic conductivity (also referred to as Ksat) | B10: Ks | C10: 670.8 | D10: =VZ_N_Out!A10 -> 670.8 | G10: HPS_HLR1 | H10: 1 | I10: 2
G11: Lat_OWTS1 | H11: 27.757807 | I11: 27.757807
A12: ='Parameter Definitions'!C13 -> Residual soil moisture (also referred to as qr) | B12: qr | C12: 0.013 | D12: =VZ_N_Out!A12 -> 0.013 | G12: Long_OWTS1 | H12: -82.228011 | I12: -82.228011
A13: ='Parameter Definitions'!C14 -> Saturated soil moisture (also referred to as qs) | B13: qs | C13: 0.3874 | D13: =VZ_N_Out!A13 -> 0.3874
A14: ='Parameter Definitions'!C15 -> Parameter n in the soil water retention function | B14: n | C14: 2.52 | D14: =VZ_N_Out!A14 -> 2.52 | G14: HPS_retardation1 | H14: 1 | I14: 1
A15: ='Parameter Definitions'!C16 -> Parameter m in the soil water retention function | B15: m | C15: 0.6031746032 | D15: =VZ_N_Out!A15 -> 0.6031746032 | G15: HPS_decay1 | H15: 0.002 | I15: 0.002
A16: ='Parameter Definitions'!C17 -> Tortusity parameter | B16: l | C16: 0.5 | D16: =VZ_N_Out!A16 -> 0.5 | G16: HPS_concentration1 | H16: 41.05 | I16: 33.96066626
A18: ='Parameter Definitions'!C21 -> Effluent ammonium-nitrogen concentration | B18: Co NH4 | C18: 60 | D18: =VZ_N_Out!A19 -> 60 | G18: HPS_porosity1.Value | H18: 0.3874 | I18: 0.3874
A19: ='Parameter Definitions'!C22 -> Effluent nitrate-nitrogen concentration | B19: Co NO3 | C19: 0.001 | D19: =VZ_N_Out!A20 -> 0.01 | G19: HPS_xdis1 | H19: 1000 | I19: 1000
A20: Empirical exponent for nitrification | B20: e2 | C20: 1 | D20: =VZ_N_Out!A21 -> 1 | G20: HPS_ydis1 | H20: 100 | I20: 100
A21: Empirical exponent for nitrification | B21: e3 | C21: 1 | D21: =VZ_N_Out!A22 -> 1 | G21: HPS_zdis1 | H21: 10 | I21: 10
A22: ='Parameter Definitions'!C24 -> Maximum nitrification rate | B22: kr max | C22: 2.5 | D22: =VZ_N_Out!A23 -> 56 | G22: HPS_ksat1 | H22: 670.8 | I22: 670.8
A23: ='Parameter Definitions'!C25 -> Half-saturation constant for ammonium-nitrogen | B23: Km,nit | C23: 5 | D23: =VZ_N_Out!A24 -> 5 | G23: AquiferThickness1 | H23: 10000 | I23: 10000
A24: Empirical coefficient for temperature function for nitrification (also referred to as bnit) | B24: bnit | C24: 0.186 | D24: =VZ_N_Out!A25 -> 0.186
A25: ='Parameter Definitions'!C29 -> Value of the soil water response function at saturation | B25: fs | C25: 0 | D25: =VZ_N_Out!A26 -> 0 | G25: HPS_gradient1 | H25: 0.005 | I25: 0.005
A26: ='Parameter Definitions'!C30 -> Value of the soil water response function at wilting point | B26: fwp | C26: 0 | D26: =VZ_N_Out!A27 -> 0 | G26: Lat11 | H26: 27.757807 | I26: 27.757807
A27: ='Parameter Definitions'!C31 -> Relative saturation at wilting point | B27: swp | C27: 0 | D27: =VZ_N_Out!A28 -> 0 | G27: Lat21 | H27: 27.75752583 | I27: 27.75752583
A28: ='Parameter Definitions'!C32 -> Relative saturation for biological process (lower limit) | B28: sl | C28: 0.5 | D28: =VZ_N_Out!A29 -> 0.5 | G28: Lat31 | H28: 27.757513 | I28: 27.757513
A29: ='Parameter Definitions'!C33 -> Relative saturation for biological process (upper limit) | B29: sh | C29: 0.85 | D29: =VZ_N_Out!A30 -> 0.85 | G29: Long11 | H29: -82.228011 | I29: -82.228011
A30: ='Parameter Definitions'!C41 -> Empirical exponent for denitrification | B30: ednt | C30: 1.5 | D30: =VZ_N_Out!A31 -> 1 | G30: Long21 | H30: -82.22783861 | I30: -82.22783861
A31: Maximum denitrification rate | B31: Vmax | C31: 2.58 | D31: =VZ_N_Out!A32 -> 3.32 | G31: Long31 | H31: -82.22808 | I31: -82.22808
A32: Half-saturation constant for nitrate-nitrogen | B32: Km,dnt | C32: 5 | D32: =VZ_N_Out!A33 -> 5 | G32: Head11 | H32: 116.54 | I32: 116.54
A33: An empirical coefficient for temperature function (also referred to as bdnt) | B33: bdnt | C33: 0.186 | D33: =VZ_N_Out!A34 -> 0.186 | G33: Head21 | H33: 100.21 | I33: 100.21
A34: ='Parameter Definitions'!C43 -> A threshold relative saturation (dimensionless) | B34: sdn | C34: 0 | D34: =VZ_N_Out!A35 -> 0 | G34: Head31 | H34: 115.17 | I34: 115.17
A36: Soil temperature | B36: T | C36: 22 | D36: =VZ_N_Out!A37 -> 22 | G36: HPS_lat_tarDis1 | H36: 27.757036 | I36: 27.757036
A37: ='Parameter Definitions'!C45 -> Adsorption Isotherm | B37: kd | C37: 0.35 | D37: =VZ_N_Out!A38 -> 0.35 | G37: HPS_long_tarDis1 | H37: -82.228215 | I37: -82.228215
G38: HPS_tarDis1 | H38: 90 | I38: 90
A39: Optimum soil temperature for nitrification (also referred to as Topt-nit(oC)) | B39: Topt-nit | C39: 25 | D39: =VZ_N_Out!A40 -> 25 | G39: HPS_conc_x1 | H39: 50 | I39: 50
A40: Optimum soil temperature for denitrifcation (also referred to as Topt-dnt(oC)) | B40: Topt-dnt | C40: 25 | D40: =VZ_N_Out!A41 -> 25 | G40: HPS_conc_y1 | H40: 0 | I40: 0
A41: Treatment depth | B41: Soil depth | C41: 60 | D41: =VZ_N_Out!A42 -> 60 | G41: HPS_conc_z1 | H41: 0 | I41: 0
A42: Elemental depth | B42: Dz | C42: 0.9666666667 | D42: =VZ_N_Out!A43 -> 0.9666666667 | G42: HPS_conc_lat1 | H42: 27.757036 | I42: 27.757036
A43: Rate adjustment coefficient for denitrification (0 to 1)- calculated value | B43: ftdnt | C43: 0.9670742525 | D43: =VZ_N_Out!A44 -> 0.9670742525 | G43: HPS_conc_long1 | H43: -82.228215 | I43: -82.228215
A44: Rate adjustment coefficient for nitrification (0 to 1) - calculated value | B44: ftnit | C44: 0.9670742525 | D44: =VZ_N_Out!A45 -> 0.9670742525 | G44: HPS_conc_z21 | H44: 0 | I44: 0
A45: Bulk density | B45: rho | C45: 1.51 | D45: =VZ_N_Out!A46 -> 1.51 | G45: HPS_conc_y21 | H45: 0 | I45: 0
A46: Retardation factor for ammonium-nitrogen when Kd=0, R=1, otherwise R>1 | B46: R'(NH4) | C46: 1 | D46: =VZ_N_Out!A47 -> 1 | G46: HPS_yz_x1 | H46: 90 | I46: 90
A47: Retardation factor for nitrate-nitrogen when Kd=0, R=1, otherwise R>2 | B47: R (NO3) | C47: 1 | D47: =VZ_N_Out!A48 -> 1 | G47: HPS_xy_x1 | H47: 90 | I47: 90
A48: Minimum NH4 concentration | B48: MinCNH4 | C48: 0.001 | D48: =VZ_N_Out!A49 -> 0.001 | G48: HPS_xy_z1 | H48: 0 | I48: 0
A49: Minimum NO3 concentration | B49: MinCNO3 | C49: 0.001 | D49: =VZ_N_Out!A50 -> 0 | G49: HPS_Center_x | H49: 1000 | I49: 1000
A50: Maximum daily temperature (Used in Hargreaves equation for ET) | B50: Tmax | C50: 30 | D50: =VZ_N_Out!A51 -> 30 | G50: HPS_xz_x1 | H50: 0 | I50: 0
A51: Maximum daily temperature (Used in Hargreaves equation for ET) | B51: Tmin | C51: 20 | D51: =VZ_N_Out!A52 -> 20
A52: Average daily temperature (Used in Hargreaves equation for ET) | B52: Tavg | C52: 25 | D52: =VZ_N_Out!A53 -> 25
A53: Latitude (La) | B53: La | C53: 28.16862668 | D53: =VZ_N_Out!A54 -> 28.16862668
A54: ET parameter calculated from La, M=14.9423 – 0.0098La – 0.00175(La)2 | B54: M | C54: 13.27787228 | D54: =VZ_N_Out!A55 -> 13.27787228
A55: ET parameter calculated from La, C1=-0.5801 + 0.1834 La – 0.00066La | B55: C1 | C55: 4.062334924 | D55: =VZ_N_Out!A56 -> 4.062334924
A56: ET parameter calculated from La, C2 = 3.1365 – 0.00489 La + 0.00061(La)2 | B56: C2 | C56: 3.047157179 | D56: =VZ_N_Out!A57 -> 3.047157179
A57: ET parameter calculated from La, C3 = 0.597 – 5.36 – 10-6(La)2 | B57: C3 | C57: 0.4771986224 | D57: =VZ_N_Out!A58 -> 0.4771986224
A58: ET parameter calculated from La, C4 = 2.9588 – 0.00909 La + 0.00024(La)2 | B58: C4 | C58: 2.89318035 | D58: =VZ_N_Out!A59 -> 2.89318035
A59: Order of the month, January =1 | B59: J | C59: 6 | D59: =VZ_N_Out!A60 -> 6
A60: Suction when ET = half the potential evapotranspiration | B60: h50 | C60: -800 | D60: =VZ_N_Out!A61 -> -800
A61: A calibration parameter influencing the degree of dependence of ET on soil moisture | B61: p1 | C61: 3 | D61: =VZ_N_Out!A62 -> 3
A62: Root depth from the land surface | B62: root depth | C62: 30 | D62: =VZ_N_Out!A63 -> 30
A64: Plants ability to take water against gradient, 0 = non-compensated, 1 = fully compensated | B64: wc | C64: 1 | D64: =VZ_N_Out!A65 -> 1
A65: Potential nutrient demand (kg/ha/yr) | B65: Rp | C65: 0 | D65: =VZ_N_Out!A66 -> 0
A66: Maximum allowed solution concentration in ET | B66: Cmax | C66: 60 | D66: =VZ_N_Out!A67 -> 60
A67: Minimum nutrient concentration required for active uptake to take effect | B67: Cmin | C67: 0 | D67: =VZ_N_Out!A68 -> 0
A68: Km is the Michaelis–Menten constant [ML−3] | B68: Km | C68: 0.5 | D68: =VZ_N_Out!A69 -> 0.5
A69: critical nutrient stress index | B69: pc | C69: 1 | D69: =VZ_N_Out!A70 -> 1
A70: Ra is the daily extraterrestrial radiation in equivalent mm of water evaporation for a day (mm/day) | B70: Ra | C70: 17.78385447 | D70: =VZ_N_Out!A71 -> 17.78385447
A71: Potential evapotranspiration (PET) (cm/day) | B71: PET | C71: 0.5536018093 | D71: =VZ_N_Out!A72 -> 0.5536018093
A72: The combined stress factor ( 0 to 1) from moisture stress and root distribution | B72: w | C72: 0.7087900873 | D72: =VZ_N_Out!A73 -> 0.7210583252
B73: w' | C73: 0.7087900873 | D73: =VZ_N_Out!A74 -> 0.7210583252
A74: Actual ET (cm/day) | B74: ET | C74: 0.3923875748 | D74: =VZ_N_Out!A75 -> 0.3991792935
A75: Passive root nutrient uptake rates [ML−2T−1] | B75: Pa | C75: 0 | D75: =VZ_N_Out!A76 -> 0
A76: The potential active uptake | B76: Ap | C76: 0 | D76: =VZ_N_Out!A77 -> 0
A77: a nutrient stress index | B77: p | C77: 0.9349022488 | D77: =VZ_N_Out!A78 -> 0.934736
A78: Active root nutrient uptake rates [ML−2T−1] | B78: Aa | C78: 0 | D78: =VZ_N_Out!A79 -> 0
B79: p' | C79: 0.9349022488 | D79: =VZ_N_Out!A80 -> 0.934736
A80: the total compensated active root nutrient uptake rate | B80: Aac | C80: 0 | D80: =VZ_N_Out!A81 -> 0
A81: Total uptake (activa and passive) | B81: Total | C81: 0 | D81: =VZ_N_Out!A82 -> 0
B83: Cabon function
A84: Concentration of carbon in STE | B84: Co STE | C84: =SoilsData_I!AW3 -> 25 | D84: =VZ_N_Out!CL7 -> 25
A86: Sorption rate for carbon | B86: Kd | C86: =SoilsData_I!AY3 -> 0 | D86: =VZ_N_Out!CL9 -> 0
A87: Biodegradation rate for fast degrading fraction of carbon | B87: Kb1 | C87: =SoilsData_I!AZ3 -> 0.5 | D87: =VZ_N_Out!CL10 -> 0.5
A88: Biodegradation rate for moderately degrading fraction of carbon | B88: Kb2 | C88: =SoilsData_I!BA3 -> 0.3 | D88: =VZ_N_Out!CL11 -> 0.3
A89: Biodegradation rate for slow degradting fraction of carbon | B89: Kb3 | C89: =VZ_N_Out!A36 -> 0.25 | D89: =VZ_N_Out!A36 -> 0.25
A90: Upper limit of slow degrading BDOC (mg/L) = (1-fdf) * Co | B90: Cfdf | C90: =(1-C92)*C84 -> 18.75 | D90: =VZ_N_Out!CL12 -> 18.75
A91: Slow degrading concentration (mg/L) = (sdf* Co) | B91: csdf | C91: =C93*C84 -> 8.75 | D91: =VZ_N_Out!CL13 -> 8.75
A92: Fraction of fast biodegradable portion of carbon | B92: fdf | C92: =SoilsData_I!BB3 -> 0.25 | D92: =VZ_N_Out!CL14 -> 0.25
A93: Refractroy fraction | B93: sdf | C93: =SoilsData_I!BC3 -> 0.35 | D93: =VZ_N_Out!CL15 -> 0.35
A94: Calibration parameter for response function for moderately degrading zone | B94: a1 | C94: =SoilsData_I!BD3 -> 0.1 | D94: =VZ_N_Out!CL16 -> 0.1
A95: Calibration parameter for response function for fast degrading zone | B95: a2 | C95: =SoilsData_I!BE3 -> 0.1 | D95: =VZ_N_Out!CL17 -> 0.1
A96: Calibration parameter for response function for soil carbon | B96: Co Soil | C96: =SoilsData_I!AX3 -> 2 | D96: =VZ_N_Out!CL8 -> 2

Sheet VZ_N_Out
A1: kb | B1: Thickness | C1: Select Method | G1: No. of Layers | J1: Yae | M1: BC | N1: User Input WTD;TD=WTD | O1: =IF($N$1="Deep WT",1,IF($N$1="Calculated WTD;TD=WTD",3,IF($N$1="User Input WTD;TD=WTD",5))) -> 5 | P1: WTD | Q1: =IF(OR($O$1=1,$O$1=5),1,2) -> 1 | R1: Select Method | S1: Temperature | T1: 30 | U1: User Input | V1: =IF($U$1="User Input",1,IF($U$1="Calculated",2,3)) -> 1 | X1: No | Y1: No | Z1: =IF($Y$1="Yes",1,IF($Y$1="No",2)) -> 2 | AB1: Hydraulic | AO1: =SUM(AT7:AT2000) -> 0.9429876333 | AU1: =(B4/A42)*A63 -> 30 | BI1: January | BJ1: February | BK1: March | BL1: April | BM1: May | BN1: June | BO1: July | BP1: August | BQ1: September | BR1: October | BS1: November | BT1: December | BX1: January | BY1: February | BZ1: March | CA1: April | CB1: May | CC1: June | CD1: July | CE1: August | CF1: September | CG1: October | CH1: November | CI1: December | CM1: January | CN1: February | CO1: March | CP1: April | CQ1: May | CR1: June | CS1: July | CT1: August | CU1: September | CV1: October | CW1: November | CX1: December
A2: 0.5 | B2: 2 | C2: User Input WTD;TD=WTD | E2: Layer 1 | F2: =A6 -> sandmorepermeable | G2: 1 | H2: 1 | J2: =IF(H2=1,A87,IF(H2=2,C87,IF(H2=3,D87))) -> -14.3 | L2: =B2 -> 2 | N2: =IF($O$1=1,"Deep","shallow") -> shallow | P2: 60 | R2: User Input | S2: Tmin | T2: 20 | X2: Yes | AB2: Default values | AS2: DT | AT2: 60 | AU2: f1 | AV2: =((A63-B2)/(AU1-1))*((AU1+6)/A63) -> 1.15862069 | AW2: f2 | AX2: =(B2/4)*(AU1+6)/A63 -> 0.6 | AY2: =A63/((B4*A63/A42)+4) -> 0.8823529412 | BA2: =AX30-AY30 -> 0 | BC2: =A75/(A63*A13) -> 0.03434686745 | BE2: =SUM(BE7:BE2507) -> 0.03238867125 | BH2: Depth WT | BI2: 1 | BJ2: 2 | BK2: 3 | BL2: 4 | BM2: 5 | BN2: 6 | BO2: 7 | BP2: 8 | BQ2: 9 | BR2: 10 | BS2: 11 | BT2: 12 | BW2: Tmax | BX2: 1 | BY2: 2 | BZ2: 3 | CA2: 4 | CB2: 5 | CC2: 6 | CD2: 7 | CE2: 8 | CF2: 9 | CG2: 10 | CH2: 11 | CI2: 12 | CJ2: yes | CK2: yes | CL2: Tmin | CM2: 1 | CN2: 2 | CO2: 3 | CP2: 4 | CQ2: 5 | CR2: 6 | CS2: 7 | CT2: 8 | CU2: 9 | CV2: 10 | CW2: 11 | CX2: 12 | CZ2: 104 | DA2: 105 | DB2: 106 | DC2: 107 | DD2: 108 | DE2: 109 | DF2: 110 | DG2: 111 | DH2: 112 | DI2: 113 | DJ2: 114 | DK2: 115 | DL2: 116 | DM2: 117 | DN2: 118 | DO2: 119 | DP2: 120
A3: SingleSite | B3: 0.5 | C3: Calculated WTD;TD=WTD | E3: Layer 2 | F3: sandlesspermeable | G3: 2 | H3: 70 | I3: =IF(H2=1,$A$42+1,H3) -> 61 | J3: =IF(AND(H2=2,I3>$A$42),1,2) -> 2 | P3: =E2000 -> 1924.7 | R3: Calculated | V3: =SUM(V7:V2000) -> 1818.033114 | AB3: User Input | AQ3: =IF(AND($A$63>=E81,$N$2="Deep"),AVERAGE(F82,F81),IF(AND($A$63>=E81,$N$2="Shallow"),AVERAGE(BC82,BC81),0)) -> 0 | AR3: =SUM(AR7:AR2000) -> 25.15630096 | AS3: 18.94 | AT3: 0.9429876333 | AU3: 0.7210583252 | AV3: 41.0216327 | AW3: 0.934736 | AX3: =IF(0.5*$A$63>E82,AT3*10*$A$82/(0.5*$A$13*$A$63)+((E82-E81)*2*$AX$7/$A$63),AT3*10*$A$82/(0.5*$A$13*$A$63)) -> 0 | AY3: =IF(AE82-AX3>0,AX3/2,AE82/2) -> 0 | AZ3: =SUM(AZ7:AZ81) -> 0 | BD3: =SUM(BG7:BG46) -> 84.63163698 | BE3: =MIN(BF8:BF81) -> -0.0009959843344 | BF3: =-(J2) -> 14.3 | BH3: =INDIRECT("'Climate-inputs'!k"&($A$60+11)) -> 312.5321491 | BI3: ='Climate-inputs'!K12 -> 327.3890211 | BJ3: ='Climate-inputs'!K13 -> 324.1601677 | BK3: ='Climate-inputs'!K14 -> 321.3031965 | BL3: ='Climate-inputs'!K15 -> 319.6239721 | BM3: ='Climate-inputs'!K16 -> 321.5778688 | BN3: ='Climate-inputs'!K17 -> 312.5321491 | BO3: ='Climate-inputs'!K18 -> 303.8009296 | BP3: ='Climate-inputs'!K19 -> 295.9420604 | BQ3: ='Climate-inputs'!K20 -> 289.5595781 | BR3: ='Climate-inputs'!K21 -> 290.0797948 | BS3: ='Climate-inputs'!K22 -> 291.7154738 | BT3: ='Climate-inputs'!K23 -> 290.6753801 | BW3: =INDIRECT("'Climate-inputs'!l"&($A$60+11)) -> 33.22083333 | BX3: ='Climate-inputs'!L12 -> 22.96261023 | BY3: ='Climate-inputs'!L13 -> 24.44831349 | BZ3: ='Climate-inputs'!L14 -> 26.11873823 | CA3: ='Climate-inputs'!L15 -> 28.45010684 | CB3: ='Climate-inputs'!L16 -> 31.49471326 | CC3: ='Climate-inputs'!L17 -> 33.22083333 | CD3: ='Climate-inputs'!L18 -> 33.09498208 | CE3: ='Climate-inputs'!L19 -> 33.32043011 | CF3: ='Climate-inputs'!L20 -> 32.91731481 | CG3: ='Climate-inputs'!L21 -> 30.29130824 | CH3: ='Climate-inputs'!L22 -> 25.06898148 | CI3: ='Climate-inputs'!L23 -> 23.52513661 | CJ3: No | CK3: =IF($CK$2="yes",1,2) -> 1 | CL3: =INDIRECT("'Climate-inputs'!m"&($A$60+11)) -> 21.07907407 | CM3: ='Climate-inputs'!M12 -> 8.497178131 | CN3: ='Climate-inputs'!M13 -> 9.281349206 | CO3: ='Climate-inputs'!M14 -> 11.83107345 | CP3: ='Climate-inputs'!M15 -> 13.1715812 | CQ3: ='Climate-inputs'!M16 -> 18.11263441 | CR3: ='Climate-inputs'!M17 -> 21.07907407 | CS3: ='Climate-inputs'!M18 -> 21.92419355 | CT3: ='Climate-inputs'!M19 -> 22.69928315 | CU3: ='Climate-inputs'!M20 -> 22.02055556 | CV3: ='Climate-inputs'!M21 -> 17.85770609 | CW3: ='Climate-inputs'!M22 -> 11.80990741 | CX3: ='Climate-inputs'!M23 -> 10.93278689 | CZ3: Average | DA3: =IF($A$60=1,DC3,IF($A$60=2,DD3,IF($A$60=3,DE3,IF($A$60=4,DF3,IF($A$60=5,DG3,IF($A$60=6,DH3,DB3)))))) -> 0.86106 | DB3: =IF($A$60=7,DI3,IF($A$60=8,DJ3,IF($A$60=9,DK3,IF($A$60=10,DL3,IF($A$60=11,DM3,IF($A$60=12,DN3,"")))))) ->  | DC3: =2.54*AVERAGE('Climate-inputs'!B3:B33) -> 0.2908709677 | DD3: =2.54*AVERAGE('Climate-inputs'!B34:B61) -> 0.2485571429 | DE3: =2.54*AVERAGE('Climate-inputs'!B62:B92) -> 0.2794 | DF3: =2.54*AVERAGE('Climate-inputs'!B93:B122) -> 0.00254 | DG3: =2.54*AVERAGE('Climate-inputs'!B123:B153) -> 0.2638322581 | DH3: =2.54*AVERAGE('Climate-inputs'!B154:B183) -> 0.86106 | DI3: =2.54*AVERAGE('Climate-inputs'!B184:B191) -> 0.19685 | DJ3: =2.54*AVERAGE('Climate-inputs'!B215:B246) -> 0.37544375 | DK3: =2.54*AVERAGE('Climate-inputs'!B247:B275) -> 0.1016 | DL3: =2.54*AVERAGE('Climate-inputs'!B276:B306) -> 0.09340645161 | DM3: =2.54*AVERAGE('Climate-inputs'!B307:B336) -> 0.1083733333 | DN3: =2.54*AVERAGE('Climate-inputs'!B337:B367) -> 0.1007806452
B4: 60 | C4: Deep WT | E4: Layer 3 | G4: 3 | H4: 133.3333333 | I4: =IF(H2=3,H4,$A$42+1) -> 61 | J4: =IF(AND(H2=3,I4>$A$42),1,2) -> 2 | V4: =IF(ISNUMBER(V3),1,2) -> 1 | X4: =SUM(V7:V107) -> -87.75518707 | AR4: alpha | AS4: 0 | AT4: dy/yt | AU4: w | AV4: =MIN(A66,$AV$3*$A$75) -> 0 | AW4: p | AX4: Demand | AY4: supply | AZ4: supply | CZ4: WET | DA4: =IF($A$60=1,DC4,IF($A$60=2,DD4,IF($A$60=3,DE4,IF($A$60=4,DF4,IF($A$60=5,DG4,IF($A$60=6,DH4,DB4)))))) -> 6.0452 | DB4: =IF($A$60=7,DI4,IF($A$60=8,DJ4,IF($A$60=9,DK4,IF($A$60=10,DL4,IF($A$60=11,DM4,IF($A$60=12,DN4,"")))))) ->  | DC4: =2.54*MAX('Climate-inputs'!B3:B33) -> 3.2004 | DD4: =2.54*MAX('Climate-inputs'!B34:B61) -> 3.0734 | DE4: =2.54*MAX('Climate-inputs'!B62:B92) -> 2.2352 | DF4: =2.54*MAX('Climate-inputs'!B93:B122) -> 0.0762 | DG4: =2.54*MAX('Climate-inputs'!B123:B153) -> 3.7084 | DH4: =2.54*MAX('Climate-inputs'!B154:B183) -> 6.0452 | DI4: =2.54*MAX('Climate-inputs'!B184:B191) -> 0.7366 | DJ4: =2.54*MAX('Climate-inputs'!B215:B246) -> 4.6228 | DK4: =2.54*MAX('Climate-inputs'!B247:B275) -> 0.7366 | DL4: =2.54*MAX('Climate-inputs'!B276:B306) -> 0.9398 | DM4: =2.54*MAX('Climate-inputs'!B307:B336) -> 2.8702 | DN4: =2.54*MAX('Climate-inputs'!B337:B367) -> 3.0226 | DR4: 0 | DT4: 0 | DY4: 0 | EA4: 0 | EF4: 0 | EH4: 0
C5: =1-(1/D14) -> 0.6031746032 | E5: 5 | F5: 6 | G5: 7 | H5: 8 | I5: 9 | J5: 10 | K5: 11 | L5: 12 | M5: 13 | N5: 14 | O5: 15 | P5: 16 | Q5: 17 | R5: 18 | S5: 19 | T5: 20 | U5: 21 | V5: 22 | W5: 23 | X5: 24 | Y5: 25 | Z5: 26 | AB5: 28 | AC5: 29 | AD5: 30 | AE5: 31 | AF5: 32 | AG5: 33 | AH5: 34 | AI5: 35 | AJ5: 36 | AK5: 37 | AL5: 38 | AM5: 39 | AN5: 40 | AO5: 41 | AP5: 42 | AQ5: 43 | AR5: 44 | AS5: 45 | AT5: 46 | AU5: 47 | AV5: 48 | AW5: 49 | AX5: 50 | AY5: 51 | AZ5: 52 | BA5: 53 | BB5: 54 | BC5: 55 | BD5: 56 | BE5: 57 | BF5: 58 | BG5: 59 | BH5: 60 | BI5: 61 | BJ5: 62 | BK5: 63 | BL5: 64 | BM5: 65 | BN5: 66 | BO5: 67 | BP5: 68 | BQ5: 69 | BR5: 70 | BS5: 71 | BT5: 72 | BU5: 73 | BV5: 74 | BW5: 75 | BX5: 76 | BY5: 77 | BZ5: 78 | CA5: 79 | CB5: 80 | CC5: 81 | CD5: 82 | CE5: 83 | CF5: 84 | CG5: 85 | CH5: 86 | CI5: 87 | CJ5: 88 | CK5: 89 | CL5: 90 | CM5: 91 | CN5: 92 | CO5: 93 | CP5: 94 | CQ5: 95 | CR5: 96 | CS5: 97 | CT5: 98 | CU5: 99 | CV5: 100 | CW5: 101 | CX5: 102 | CY5: 103 | CZ5: DRY | DA5: =IF($A$60=1,DC5,IF($A$60=2,DD5,IF($A$60=3,DE5,IF($A$60=4,DF5,IF($A$60=5,DG5,IF($A$60=6,DH5,DB5)))))) -> 0 | DB5: =IF($A$60=7,DI5,IF($A$60=8,DJ5,IF($A$60=9,DK5,IF($A$60=10,DL5,IF($A$60=11,DM5,IF($A$60=12,DN5,"")))))) ->  | DC5: =2.54*MIN('Climate-inputs'!B3:B33) -> 0 | DD5: =2.54*MIN('Climate-inputs'!B34:B61) -> 0 | DE5: =2.54*MIN('Climate-inputs'!B62:B92) -> 0 | DF5: =2.54*MIN('Climate-inputs'!B93:B122) -> 0 | DG5: =2.54*MIN('Climate-inputs'!B123:B153) -> 0 | DH5: =2.54*MIN('Climate-inputs'!B154:B183) -> 0 | DI5: =2.54*MIN('Climate-inputs'!B184:B191) -> 0 | DJ5: =2.54*MIN('Climate-inputs'!B215:B246) -> 0 | DK5: =2.54*MIN('Climate-inputs'!B247:B275) -> 0 | DL5: =2.54*MIN('Climate-inputs'!B276:B306) -> 0 | DM5: =2.54*MIN('Climate-inputs'!B307:B336) -> 0 | DN5: =2.54*MIN('Climate-inputs'!B337:B367) -> 0
A6: sandmorepermeable | B6: Params | C6: Layer 2 | D6: Layer 3 | E6: z (cm) | F6: h | G6: theta | H6: Se | I6: k(h) | J6: Vz | K6: WFP | L6: fz | M6: fsw,dnt | N6: fsw,nit | O6: fe,nit | P6: fe,dnt | Q6: kd (NH4) | R6: R (NH4) | S6: kr(nit) | T6: V(dnt) | U6: T(d) | X6: Co (NH4) | Z6: C (NH4) | AC6: C'o(NO3) | AD6: Co(NO3) | AE6: C(NO3) | AF6: Total N | AG6: C/Co | AH6: MassFlux | AJ6: z (cm) | AK6: C (NH4) | AL6: C(NO3) | AM6: Total N | AN6: C/Co | AO6: MassFux | AP6: z | AR6: alpha | AS6: Z (m) | AT6: dy/yt | AU6: w | AV6: Pa | AW6: p | AY6: NO3 | AZ6: NH4 | BB6: z' | BC6: h' | BG6: k | BH6: gr | BK6: zones | BL6: Tavg | BW6: NO3 | BX6: NH4 | CK6: BDOC | CM6: Z | CN6: R | CO6: CSTE | CP6: Cremoved | CQ6: C/Co | CR6: Csoil | CS6: expsoil | CT6: expSTE | CV6: Z | CW6: fc | CY6: fsw | CZ6: ft | DA6: kb1 | DB6: kb2 | DC6: kb3
A7: 2 | B7: HLR | E7: 0 | F7: =IF(E7<=$I$3,(1/$A$8)*LN(EXP($A$8*(F8-$B$3))+($A$7/$A$2)*(1-EXP(-$A$8*$B$3)))*$A$18,IF(AND(E7>$I$3,E7<$I$4),(1/$C$8)*LN(EXP($C$8*(F8-$B$3))+($A$7/$A$2)*(1-EXP(-$C$8*$B$3)))*$C$18,(1/$D$8)*LN(EXP($D$8*(F8-$B$3))+($A$7/$A$2)*(1-EXP(-$D$8*$B$3)))*$D$18)) -> -9.651041824 | G7: =IF(E7<=$I$3,IF($O$1=1,IF(F7>0,$A$13,IF($A$7=0,$A$12,$A$12-BE7+(($A$13-$A$12)/(1+(ABS($A$9*F7))^$A$14)^$A$15))),IF(BC7>0,$A$13,IF($A$7=0,$A$12,$A$12-BE7+(($A$13-$A$12)/(1+(ABS($A$9*BC7))^$A$14)^$A$15)))),IF(AND(E7>$I$3,E7<$I$4),IF($O$1=1,IF(F7>0,$C$13,IF($A$7=0,$C$12,$C$12-BE7+(($C$13-$C$12)/(1+(ABS($C$9*F7))^$C$14)^$C$15))),IF(BC7>0,$C$13,IF($A$7=0,$C$12,$C$12-BE7+(($C$13-$C$12)/(1+(ABS($C$9*BC7))^$C$14)^$C$15)))),IF($O$1=1,IF(F7>0,$D$13,IF($A$7=0,$D$12,$D$12-BE7+(($D$13-$D$12)/(1+(ABS($D$9*F7))^$D$14)^$D$15))),IF(BC7>0,$D$13,IF($A$7=0,$D$12,$D$12-BE7+(($D$13-$D$12)/(1+(ABS($D$9*BC7))^$D$14)^$D$15)))))) -> 0.3764471811 | H7: =IF(E7<=$I$3,(G7-$A$12)/($A$13-$A$12),IF(AND(E7>$I$3,E7<$I$4),(G7-$C$12)/($C$13-$C$12),(G7-$D$12)/($D$13-$D$12))) -> 0.9707456761 | I7: =IF(Q1=2,IF(E7<=$I$3,$A$2*EXP($A$8*F7),IF(AND(E7>$I$3,E7<$I$4),$A$2*EXP($A$8*F7),$A$2*EXP($A$8*F7))),IF(E7<=$I$3,$A$2*EXP($A$8*BC7),IF(AND(E7>$I$3,E7<$I$4),$A$2*EXP($A$8*BC7),$A$2*EXP($A$8*BC7)))) -> 0.2411024379 | J7: =IF(E7<=$I$3,$A$7 /$A$13,IF(AND(E7>$I$3,E7<$I$4),$A$7 /$A$13,$A$7 /$A$13)) -> 5.162622612 | K7: =IF(E7<=$I$3,MAX(G7/$A$13,$A$28),IF(AND(E7>$I$3,E7<$I$4),MAX(G7/$C$13,$C$28),MAX(G7/$D$13,$D$28))) -> 0.9717273648 | L7: =IF($CK$3=2,1,MAX(EXP(-CS7),EXP(-CT7))) -> 0.9960079893 | M7: =IF(E7<=$I$3,IF(K7<$A$35,0,((K7-$A$35)/(1-$A$35))^$A$31),IF(AND(E7>$I$3,E7<$I$4),IF(K7<$C$35,0,((K7-$C$35)/(1-$C$35))^$C$31),IF(K7<$D$35,0,((K7-$D$35)/(1-$D$35))^$D$31))) -> 0.9717273648 | N7: =IF(E7<=$I$3,IF(AND($A$28<=K7,K7<$A$29),$A$27+(1-$A$27)*((K7-$A$28)/($A$29-$A$28))^$A$22,IF(AND($A$29<=K7,K7<=$A$30),1,IF(AND($A$30<K7,K7<=1),$A$26+(1-$A$26)*((1-K7)/(1-$A$30))^$A$21))),IF(AND(E7>$I$3,E7<$I$4),IF(AND($C$28<=K7,K7<$C$29),$C$27+(1-$C$27)*((K7-$C$28)/($C$29-$C$28))^$C$22,IF(AND($CB$29<=K7,K7<=$C$30),1,IF(AND($C$30<K7,K7<=1),$C$26+(1-$C$26)*((1-K7)/(1-$C$30))^$C$21))),IF(AND($D$28<=K7,K7<$D$29),$D$27+(1-$D$27)*((K7-$D$28)/($D$29-$D$28))^$D$22,IF(AND($DB$29<=K7,K7<=$D$30),1,IF(AND($D$30<K7,K7<=1),$D$26+(1-$D$26)*((1-K7)/(1-$D$30))^$D$21))))) -> 0.1884842346 | O7: =$A$45*N7 -> 0.1822782503 | P7: =$A$44*M7*L7 -> 0.9359810928 | Q7: =IF(E7<=$I$3,$A$38,IF(AND(E7>$I$3,E7<$I$4),$C$38,$D$38)) -> 0.35 | R7: =1+(($A$46*Q7*$A$39*$A$19^($A$39-1))/G7) -> 1.010613288 | S7: =IF(E7<=$I$3,$A$23*O7,IF(AND(E7>$I$3,E7<$I$4),$C$23*O7,$D$23*O7)) -> 10.20758202 | T7: =IF(E7<=$I$3,$A$32*P7,IF(AND(E7>$I$3,E7<$I$4),$C$32*P7,$C$32*P7)) -> 3.107457228 | U7: =$B$3/J7 -> 0.09685 | V7: 0 | X7: 60 | Z7: 60 | AB7: 0 | AC7: =IF(X7-Z7<0,0,X7-Z7) -> 0 | AD7: =AC7+$A$20 -> 0.01 | AE7: 0.01 | AF7: =AE7+Z7+EW7 -> 60.01 | AG7: =AF7/($A$19+$A$20+0) -> 1 | AH7: =(AF7*$A$7)/100 -> 1.2002 | AI7: =AJ7 -> 0 | AJ7: 0 | AK7: 60 | AL7: 0.01 | AM7: 60.01 | AN7: 1 | AO7: 1.2002 | AP7: 0 | AQ7: =A87 -> -14.3 | AR7: =IF($A$63>E7, (1+(AQ7/$A$61))^-$A$62,0) -> 0.9482364743 | AS7: =AJ7/100 -> 0 | AT7: =IF(AND(($A$63-AP7)/$A$63>0,AP7<5),$AX$2*$AY$2*($A$63-AP7)/($A$63*(0.5*$A$63+0.5)),IF(AND(($A$63-AP7)/$A$63>0,AP7>=5),$AV$2*$AY$2*($A$63-AP7)/($A$63*(0.5*$A$63+0.5)),0)) -> 0.03415559772 | AU7: =AR7*AT7 -> 0.03238758356 | AV7: =IF(A63<A86, (A63/A86)*AU7*MIN(AF7,$A$67),AU7*MIN(AF7,$A$67)) -> 1.943255014 | AW7: =AT7*(AF7-$A$68)/($A$69+AF7-$A$68) -> 0.03387336671 | AX7: =$A$82/$A$75 -> 0 | AY7: 0 | AZ7: 0 | BA7: =$E$2507-E7 -> 0 | BB7: =$P$2 -> 60 | BC7: =IF(E7<=$I$3,(1/$A$8)*LN(EXP($A$8*(BC8-$B$3))+($A$7/$A$2)*(1-EXP(-$A$8*$B$3)))*$A$18,IF(AND(E7>$I$3,E7<$I$4),(1/$C$8)*LN(EXP($C$8*(BC8-$B$3))+($A$7/$A$2)*(1-EXP(-$C$8*$B$3)))*$C$18,(1/$D$8)*LN(EXP($D$8*(BC8-$B$3))+($A$7/$A$2)*(1-EXP(-$D$8*$B$3)))*$D$18)) -> -12.1564367 | BD7: =AK7-AZ7 -> 60 | BE7: =IF(E7<$A$63,1*AT7*$A$75/($A$13*$A$63),0) -> 0.001173137788 | BF7: =AK7-AZ7 -> 60 | BG7: =$A$2*EXP($A$8*F7) -> 0.2802117561 | BH7: =1+((F7-F8)/$B$3) -> 7.897257751 | BI7: =BG7*BH7 -> 2.212904462 | BJ7: =E7 -> 0 | BK7: Biomat | BL7: =('Climate-inputs'!C3+'Climate-inputs'!D3)/2 -> 16.225 | BW7: =IF(E7<$A$86,0,AY7) -> 0 | BX7: =IF(E7<$A$86,0,AZ7) -> 0 | BZ7: =IF(OR(AND(E7<$A$86,BW7=0),E7=0),"-",BW7) -> - | CA7: =IF(OR(AND(E7<$A$86,BX7=0),E7=0),"-",BX7) -> - | CC7: 0 | CD7: 0 | CF7: 0 | CG7: 0 | CJ7: 25 | CK7: Co | CL7: 25 | CM7: =AJ7 -> 0 | CN7: =1+($CL$9*$A$46/G7) -> 1 | CO7: =$CL$7 -> 25 | CP7: 0 | CQ7: 1 | CR7: =1.8+24.8*EXP(-0.084*E7) -> 26.6 | CS7: =$CL$8/CR7 -> 0.07518796992 | CT7: =IF(E7<0,0,IF(CO7>$CL$13,$CL$16/CO7,$CL$17/CO7)) -> 0.004 | CV7: =E7 -> 0 | CW7: =L7 -> 0.9960079893 | CY7: =((K7-$A$35)/(1-$A$35))^$CL$19 -> 0.9717273648 | CZ7: =CY7*$A$44 -> 0.939732515 | DA7: =$CL$10*CZ7 -> 0.4698662575 | DB7: =$CL$11*CZ7 -> 0.2819197545 | DC7: =$A$36*CZ7 -> 0.2349331287 | DP7: 0 | DQ7: 1 | DR7: 25 | DS7: 0 | DT7: 1 | DW7: 0 | DX7: 0.9960079893 | DZ7: 0.9717273648 | EA7: 0.939732515
A8: 0.06 | B8: aG | C8: 0.1 | D8: 0.1 | E8: =$B$3+E7 -> 0.5 | F8: =IF(E8<=$I$3,(1/$A$8)*LN(EXP($A$8*(F9-$B$3))+($A$7/$A$2)*(1-EXP(-$A$8*$B$3)))*$A$18,IF(AND(E8>$I$3,E8<$I$4),(1/$C$8)*LN(EXP($C$8*(F9-$B$3))+($A$7/$A$2)*(1-EXP(-$C$8*$B$3)))*$C$18,(1/$D$8)*LN(EXP($D$8*(F9-$B$3))+($A$7/$A$2)*(1-EXP(-$D$8*$B$3)))*$D$18)) -> -13.0996707 | G8: =IF(E8<=$I$3,IF($O$1=1,IF(F8>0,$A$13,IF($A$7=0,$A$12,$A$12-BE8+(($A$13-$A$12)/(1+(ABS($A$9*F8))^$A$14)^$A$15))),IF(BC8>0,$A$13,IF($A$7=0,$A$12,$A$12-BE8+(($A$13-$A$12)/(1+(ABS($A$9*BC8))^$A$14)^$A$15)))),IF(AND(E8>$I$3,E8<$I$4),IF($O$1=1,IF(F8>0,$C$13,IF($A$7=0,$C$12,$C$12-BE8+(($C$13-$C$12)/(1+(ABS($C$9*F8))^$C$14)^$C$15))),IF(BC8>0,$C$13,IF($A$7=0,$C$12,$C$12-BE8+(($C$13-$C$12)/(1+(ABS($C$9*BC8))^$C$14)^$C$15)))),IF($O$1=1,IF(F8>0,$D$13,IF($A$7=0,$D$12,$D$12-BE8+(($D$13-$D$12)/(1+(ABS($D$9*F8))^$D$14)^$D$15))),IF(BC8>0,$D$13,IF($A$7=0,$D$12,$D$12-BE8+(($D$13-$D$12)/(1+(ABS($D$9*BC8))^$D$14)^$D$15)))))) -> 0.366384678 | H8: =IF(E8<=$I$3,(G8-$A$12)/($A$13-$A$12),IF(AND(E8>$I$3,E8<$I$4),(G8-$C$12)/($C$13-$C$12),(G8-$D$12)/($D$13-$D$12))) -> 0.9438693323 | I8: =IF(Q2=2,IF(E8<=$I$3,$A$2*EXP($A$8*F8),IF(AND(E8>$I$3,E8<$I$4),$A$2*EXP($A$8*F8),$A$2*EXP($A$8*F8))),IF(E8<=$I$3,$A$2*EXP($A$8*BC8),IF(AND(E8>$I$3,E8<$I$4),$A$2*EXP($A$8*BC8),$A$2*EXP($A$8*BC8)))) -> 0.1875360323 | J8: =IF(E8<=$I$3,$A$7 /$A$13,IF(AND(E8>$I$3,E8<$I$4),$A$7 /$A$13,$A$7 /$A$13)) -> 5.162622612 | K8: =IF(E8<=$I$3,MAX(G8/$A$13,$A$28),IF(AND(E8>$I$3,E8<$I$4),MAX(G8/$C$13,$C$28),MAX(G8/$D$13,$D$28))) -> 0.9457529117 | L8: =IF($CK$3=2,1,MAX(EXP(-CS8),EXP(-CT8))) -> 0.9958225186 | M8: =IF(E8<=$I$3,IF(K8<$A$35,0,((K8-$A$35)/(1-$A$35))^$A$31),IF(AND(E8>$I$3,E8<$I$4),IF(K8<$C$35,0,((K8-$C$35)/(1-$C$35))^$C$31),IF(K8<$D$35,0,((K8-$D$35)/(1-$D$35))^$D$31))) -> 0.9457529117 | N8: =IF(E8<=$I$3,IF(AND($A$28<=K8,K8<$A$29),$A$27+(1-$A$27)*((K8-$A$28)/($A$29-$A$28))^$A$22,IF(AND($A$29<=K8,K8<=$A$30),1,IF(AND($A$30<K8,K8<=1),$A$26+(1-$A$26)*((1-K8)/(1-$A$30))^$A$21))),IF(AND(E8>$I$3,E8<$I$4),IF(AND($C$28<=K8,K8<$C$29),$C$27+(1-$C$27)*((K8-$C$28)/($C$29-$C$28))^$C$22,IF(AND($CB$29<=K8,K8<=$C$30),1,IF(AND($C$30<K8,K8<=1),$C$26+(1-$C$26)*((1-K8)/(1-$C$30))^$C$21))),IF(AND($D$28<=K8,K8<$D$29),$D$27+(1-$D$27)*((K8-$D$28)/($D$29-$D$28))^$D$22,IF(AND($DB$29<=K8,K8<=$D$30),1,IF(AND($D$30<K8,K8<=1),$D$26+(1-$D$26)*((1-K8)/(1-$D$30))^$D$21))))) -> 0.3616472551 | O8: =$A$45*N8 -> 0.3497397489 | P8: =$A$44*M8*L8 -> 0.9107925102 | Q8: =IF(E8<=$I$3,$A$38,IF(AND(E8>$I$3,E8<$I$4),$C$38,$D$38)) -> 0.35 | R8: =1+(($A$46*Q8*$A$39*X7^($A$39-1))/G8) -> 1.010904774 | S8: =IF(E8<=$I$3,$A$23*O8,IF(AND(E8>$I$3,E8<$I$4),$C$23*O8,$D$23*O8)) -> 19.58542594 | T8: =IF(E8<=$I$3,$A$32*P8,IF(AND(E8>$I$3,E8<$I$4),$C$32*P8,$C$32*P8)) -> 3.023831134 | U8: =$B$3/J8 -> 0.09685 | V8: =IF(OR($A$7<0.2,$A$19<0.5,Z7<$A$49),(X8*EXP(-U8*S8*R8)-Z8-CG8),Z8+$A$24*LN(Z8+$A$49)-((X8+($A$24*LN(X8+$A$49))-(R8*S8*U8)-(CG8)))) -> 1.155557769e-06 | X8: =IF(Z7<$A$49,$A$49,Z7) -> 60 | Z8: 58.23201204 | AB8: =IF(OR($A$7<0.2,AE7<$A$50),(AD8*EXP(-U8*T8*$A$48)-AE8-CF8),AE8+$A$33*LN(AE8+$A$50)-((AD8+($A$33*LN(AD8+$A$50))-($A$48*T8*U8)-(CF8)))) -> -4.985830001e-06 | AC8: =IF(X8-Z8<0,0,X8-Z8) -> 1.767987963 | AD8: =AE7+AC8 -> 1.777987963 | AE8: 1.702385183 | AF8: =AE8+Z8+EW8 -> 59.93439722 | AG8: =AF8/($A$19+$A$20+0) -> 0.9987401636 | AH8: =(AF8*$A$7)/100 -> 1.198687944 | AI8: =AJ8 -> 0.5 | AJ8: 0.5 | AK8: 58.23201204 | AL8: 1.702385183 | AM8: 59.93439722 | AN8: 0.9987401636 | AO8: 1.198687944 | AP8: =E8 -> 0.5 | AQ8: =IF($A$63>=E7,AVERAGE(F8,F7),0) -> -11.37535626 | AR8: =IF($A$63>E8, (1+(AQ8/$A$61))^-$A$62,0) -> 0.9585273792 | AS8: =AJ8/100 -> 0.005 | AT8: =IF(AND(($A$63-AP8)/$A$63>0,AP8<5),$AX$2*$AY$2*($A$63-AP8)/($A$63*(0.5*$A$63+0.5)),IF(AND(($A$63-AP8)/$A$63>0,AP8>=5),$AV$2*$AY$2*($A$63-AP8)/($A$63*(0.5*$A$63+0.5)),0)) -> 0.03358633776 | AU8: =AR8*AT8 -> 0.03219342431 | AV8: =AU8*MIN(AF8,$A$67) -> 1.92949348 | AW8: =AT8*(AF8-$A$68)/($A$69+AF8-$A$68) -> 0.03330846341 | AX8: =AT8*$AX$7 -> 0 | AY8: =IF(AND(AE8-AX8>0,Z8>AX8/2),AX8/2,IF(AND(AE8-AX8>0,Z8<=AX8/2),AX8-Z8,IF(AE8<=AX8,AE8))) -> 0 | AZ8: =IF(OR(Z8=0,AX8=0,AX8<AY8),0,AX8-AY8) -> 0 | BA8: =$E$2507-E8 -> -0.5 | BB8: =BB7-$B$3 -> 59.5 | BC8: =IF(E8<=$I$3,(1/$A$8)*LN(EXP($A$8*(BC9-$B$3))+($A$7/$A$2)*(1-EXP(-$A$8*$B$3)))*$A$18,IF(AND(E8>$I$3,E8<$I$4),(1/$C$8)*LN(EXP($C$8*(BC9-$B$3))+($A$7/$A$2)*(1-EXP(-$C$8*$B$3)))*$C$18,(1/$D$8)*LN(EXP($D$8*(BC9-$B$3))+($A$7/$A$2)*(1-EXP(-$D$8*$B$3)))*$D$18)) -> -16.34395165 | BD8: =AK8-AZ8 -> 58.23201204 | BE8: =IF(E8<$A$63,1*AT8*$A$75/($A$13*$A$63),0) -> 0.001153585491 | BF8: =AK8-AZ8 -> 58.23201204 | BG8: =$A$2*EXP($A$8*F8) -> 0.2278364066 | BH8: =1+((F8-F9)/$B$3) -> 10.01143416 | BI8: =BG8*BH8 -> 2.280969184 | BJ8: =E8 -> 0.5 | BK8: Biomat | BL8: =('Climate-inputs'!C4+'Climate-inputs'!D4)/2 -> 5.177777778 | BW8: =IF(E8<$A$86,0,AY8) -> 0 | BX8: =IF(E8<$A$86,0,AZ8) -> 0 | BZ8: =IF(OR(AND(E8<$A$86,BW8=0),E8=0),"-",BW8) -> 0 | CA8: =IF(OR(AND(E8<$A$86,BX8=0),E8=0),"-",BX8) -> 0 | CC8: 0 | CD8: 0 | CF8: 0 | CG8: 0 | CJ8: 5 | CK8: ao | CL8: 2 | CM8: =AJ8 -> 0.5 | CN8: 1 | CO8: =IF(CO7>=$CL$12,MAX(CO7*EXP(-DA7*CN8*U8),$CL$13),IF(AND(CO7>$CL$13,CO7<$CL$12),MAX(CO7*EXP(-DB7*CN8*U8),$CL$13),CO7*EXP(-DC7*CN8*U8))) -> 23.88783367 | CP8: =CO8 - CO9 -> 1.03490841 | CQ8: =IF($CL$7>0,CO8/$CL$7,0) -> 0.9555133468 | CR8: =1.8+24.8*EXP(-0.084*E8) -> 25.57997056 | CS8: =$CL$8/CR8 -> 0.07818617287 | CT8: =IF(E8<0,0,IF(CO8>$CL$13,$CL$16/CO8,$CL$17/CO8)) -> 0.004186231426 | CV8: =E8 -> 0.5 | CW8: =L8 -> 0.9958225186 | CY8: =((K8-$A$35)/(1-$A$35))^$CL$19 -> 0.9457529117 | CZ8: =CY8*$A$44 -> 0.9146132902 | DA8: =$CL$10*CZ8 -> 0.4573066451 | DB8: =$CL$11*CZ8 -> 0.2743839871 | DC8: =$A$36*CZ8 -> 0.2286533225 | DP8: 0.5 | DQ8: 1 | DR8: 23.88783367 | DS8: 1.03490841 | DT8: 0.9555133468 | DW8: 0.5 | DX8: 0.9958225186 | DZ8: 0.9457529117 | EA8: 0.9146132902
A9: 0.024 | B9: aVG | C9: 0.015 | D9: 0.024 | E9: =$B$3+E8 -> 1 | F9: -17.60538778 | G9: =IF(E9<=$I$3,IF($O$1=1,IF(F9>0,$A$13,IF($A$7=0,$A$12,$A$12-BE9+(($A$13-$A$12)/(1+(ABS($A$9*F9))^$A$14)^$A$15))),IF(BC9>0,$A$13,IF($A$7=0,$A$12,$A$12-BE9+(($A$13-$A$12)/(1+(ABS($A$9*BC9))^$A$14)^$A$15)))),IF(AND(E9>$I$3,E9<$I$4),IF($O$1=1,IF(F9>0,$C$13,IF($A$7=0,$C$12,$C$12-BE9+(($C$13-$C$12)/(1+(ABS($C$9*F9))^$C$14)^$C$15))),IF(BC9>0,$C$13,IF($A$7=0,$C$12,$C$12-BE9+(($C$13-$C$12)/(1+(ABS($C$9*BC9))^$C$14)^$C$15)))),IF($O$1=1,IF(F9>0,$D$13,IF($A$7=0,$D$12,$D$12-BE9+(($D$13-$D$12)/(1+(ABS($D$9*F9))^$D$14)^$D$15))),IF(BC9>0,$D$13,IF($A$7=0,$D$12,$D$12-BE9+(($D$13-$D$12)/(1+(ABS($D$9*BC9))^$D$14)^$D$15)))))) -> 0.3466781785 | H9: =IF(E9<=$I$3,(G9-$A$12)/($A$13-$A$12),IF(AND(E9>$I$3,E9<$I$4),(G9-$C$12)/($C$13-$C$12),(G9-$D$12)/($D$13-$D$12))) -> 0.8912344511 | I9: 0.1323382869 | J9: =IF(E9<=$I$3,$A$7 /$A$13,IF(AND(E9>$I$3,E9<$I$4),$A$7 /$A$13,$A$7 /$A$13)) -> 5.162622612 | K9: =IF(E9<=$I$3,MAX(G9/$A$13,$A$28),IF(AND(E9>$I$3,E9<$I$4),MAX(G9/$C$13,$C$28),MAX(G9/$D$13,$D$28))) -> 0.8948843017 | L9: =IF($CK$3=2,1,MAX(EXP(-CS9),EXP(-CT9))) -> 0.9956337525 | M9: =IF(E9<=$I$3,IF(K9<$A$35,0,((K9-$A$35)/(1-$A$35))^$A$31),IF(AND(E9>$I$3,E9<$I$4),IF(K9<$C$35,0,((K9-$C$35)/(1-$C$35))^$C$31),IF(K9<$D$35,0,((K9-$D$35)/(1-$D$35))^$D$31))) -> 0.8948843017 | N9: =IF(E9<=$I$3,IF(AND($A$28<=K9,K9<$A$29),$A$27+(1-$A$27)*((K9-$A$28)/($A$29-$A$28))^$A$22,IF(AND($A$29<=K9,K9<=$A$30),1,IF(AND($A$30<K9,K9<=1),$A$26+(1-$A$26)*((1-K9)/(1-$A$30))^$A$21))),IF(AND(E9>$I$3,E9<$I$4),IF(AND($C$28<=K9,K9<$C$29),$C$27+(1-$C$27)*((K9-$C$28)/($C$29-$C$28))^$C$22,IF(AND($CB$29<=K9,K9<=$C$30),1,IF(AND($C$30<K9,K9<=1),$C$26+(1-$C$26)*((1-K9)/(1-$C$30))^$C$21))),IF(AND($D$28<=K9,K9<$D$29),$D$27+(1-$D$27)*((K9-$D$28)/($D$29-$D$28))^$D$22,IF(AND($DB$29<=K9,K9<=$D$30),1,IF(AND($D$30<K9,K9<=1),$D$26+(1-$D$26)*((1-K9)/(1-$D$30))^$D$21))))) -> 0.7007713217 | O9: =$A$45*N9 -> 0.6776979021 | P9: =$A$44*M9*L9 -> 0.8616409312 | Q9: =IF(E9<=$I$3,$A$38,IF(AND(E9>$I$3,E9<$I$4),$C$38,$D$38)) -> 0.35 | R9: =1+(($A$46*Q9*$A$39*X8^($A$39-1))/G9) -> 1.011524643 | S9: =IF(E9<=$I$3,$A$23*O9,IF(AND(E9>$I$3,E9<$I$4),$C$23*O9,$D$23*O9)) -> 37.95108252 | T9: =IF(E9<=$I$3,$A$32*P9,IF(AND(E9>$I$3,E9<$I$4),$C$32*P9,$C$32*P9)) -> 2.860647891 | U9: 0.09685 | V9: =IF(OR($A$7<0.2,$A$19<0.5,Z8<$A$49),(X9*EXP(-U9*S9*R9)-Z9-CG9),Z9+$A$24*LN(Z9+$A$49)-((X9+($A$24*LN(X9+$A$49))-(R9*S9*U9)-(CG9)))) -> 0.0001008579214 | X9: =IF(Z8<$A$49,$A$49,Z8) -> 58.23201204 | Z9: 54.81641352 | AB9: =IF(OR($A$7<0.2,AE8<$A$50),(AD9*EXP(-U9*T9*$A$48)-AE9-CF9),AE9+$A$33*LN(AE9+$A$50)-((AD9+($A$33*LN(AD9+$A$50))-($A$48*T9*U9)-(CF9)))) -> -7.03190845e-05 | AC9: =IF(X9-Z9<0,0,X9-Z9) -> 3.415598515 | AD9: =AE8+AC9 -> 5.117983698 | AE9: 4.978759039 | AF9: 59.79517256 | AG9: 0.9964201393 | AH9: 1.195903451 | AI9: 1 | AJ9: 1 | AK9: 54.81641352 | AL9: 4.978759039 | AM9: 59.79517256 | AN9: 0.9964201393 | AO9: 1.195903451 | AP9: =E9 -> 1 | AQ9: =IF($A$63>=E8,AVERAGE(F9,F8),0) -> -15.35252924 | AR9: =IF($A$63>E9, (1+(AQ9/$A$61))^-$A$62,0) -> 0.9445690098 | AS9: =AJ9/100 -> 0.01 | AT9: 0.0330170778 | AU9: 0.03118690848 | AV9: =AU9*MIN(AF9,$A$67) -> 1.864826574 | AW9: 0.03274328243 | AX9: =AT9*$AX$7 -> 0 | AY9: =IF(AND(AE9-AX9>0,Z9>AX9/2),AX9/2,IF(AND(AE9-AX9>0,Z9<=AX9/2),AX9-Z9,IF(AE9<=AX9,AE9))) -> 0 | AZ9: =IF(OR(Z9=0,AX9=0,AX9<AY9),0,AX9-AY9) -> 0 | BA9: -1 | BB9: =BB8-$B$3 -> 59 | BC9: =IF(E9<=$I$3,(1/$A$8)*LN(EXP($A$8*(BC10-$B$3))+($A$7/$A$2)*(1-EXP(-$A$8*$B$3)))*$A$18,IF(AND(E9>$I$3,E9<$I$4),(1/$C$8)*LN(EXP($C$8*(BC10-$B$3))+($A$7/$A$2)*(1-EXP(-$C$8*$B$3)))*$C$18,(1/$D$8)*LN(EXP($D$8*(BC10-$B$3))+($A$7/$A$2)*(1-EXP(-$D$8*$B$3)))*$D$18)) -> -22.15411124 | BD9: 54.81641352 | BE9: 0.001134033195 | BF9: =AK9-AZ9 -> 54.81641352 | BG9: 0.1738659903 | BH9: 13.84891608 | BI9: 2.407855509 | BJ9: 1 | BK9: Biomat | BL9: =('Climate-inputs'!C5+'Climate-inputs'!D5)/2 -> 4.913888889 | BW9: 0 | BX9: 0 | BZ9: 0 | CA9: 0 | CC9: 0 | CD9: 0 | CF9: 0 | CG9: 0 | CJ9: 0 | CK9: Kd | CL9: 0 | CM9: 1 | CN9: 1 | CO9: =IF(CO8>=$CL$12,MAX(CO8*EXP(-DA8*CN9*U9),$CL$13),IF(AND(CO8>$CL$13,CO8<$CL$12),MAX(CO8*EXP(-DB8*CN9*U9),$CL$13),CO8*EXP(-DC8*CN9*U9))) -> 22.85292526 | CP9: =CO9 - CO10 -> 0.9379284844 | CQ9: =IF($CL$7>0,CO9/$CL$7,0) -> 0.9141170104 | CR9: =1.8+24.8*EXP(-0.084*E9) -> 24.60189515 | CS9: =$CL$8/CR9 -> 0.08129455018 | CT9: =IF(E9<0,0,IF(CO9>$CL$13,$CL$16/CO9,$CL$17/CO9)) -> 0.004375807424 | CV9: 1 | CW9: 0.9956337525 | CY9: 0.8948843017 | CZ9: 0.8654195672 | DA9: 0.4327097836 | DB9: 0.2596258702 | DC9: 0.2163548918 | DP9: 1 | DQ9: 1 | DR9: 22.85292526 | DS9: 0.9379284844 | DT9: 0.9141170104 | DW9: 1 | DX9: 0.9956337525 | DZ9: 0.8948843017 | EA9: 0.8654195672
A10: 670.8 | B10: Ks | C10: 14.75 | D10: 670.8 | E10: 1.5 | F10: -24.02984582 | G10: 0.3056677857 | H10: 0.7816981456 | I10: 0.07545951985 | J10: 5.162622612 | K10: 0.7890237112 | L10: 0.9954473097 | M10: 0.7890237112 | N10: 1 | O10: 0.9670742525 | P10: 0.7595706104 | Q10: 0.35 | R10: 1.013387389 | S10: 54.15615814 | T10: 2.521774427 | U10: 0.09685 | V10: =IF(OR($A$7<0.2,$A$19<0.5,Z9<$A$49),(X10*EXP(-U10*S10*R10)-Z10-CG10),Z10+$A$24*LN(Z10+$A$49)-((X10+($A$24*LN(X10+$A$49))-(R10*S10*U10)-(CG10)))) -> 0.0002195832982 | X10: =IF(Z9<$A$49,$A$49,Z9) -> 54.81641352 | Z10: 49.96474337 | AB10: =IF(OR($A$7<0.2,AE9<$A$50),(AD10*EXP(-U10*T10*$A$48)-AE10-CF10),AE10+$A$33*LN(AE10+$A$50)-((AD10+($A$33*LN(AD10+$A$50))-($A$48*T10*U10)-(CF10)))) -> -1.091234048e-05 | AC10: 4.851670155 | AD10: =AE9+AC10 -> 9.830429194 | AE10: 9.668982167 | AF10: 59.63372553 | AG10: 0.9937298039 | AH10: 1.192674511 | AI10: 1.5 | AJ10: 1.5 | AK10: 49.96474337 | AL10: 9.668982167 | AM10: 59.63372553 | AN10: 0.9937298039 | AO10: 1.192674511 | AP10: 1.5 | AQ10: -20.8176168 | AR10: 0.9258272392 | AS10: 0.015 | AT10: 0.03244781784 | AU10: 0.03004107361 | AV10: 1.791461138 | AW10: 0.03217802067 | AX10: 0 | AY10: 0 | AZ10: 0 | BA10: -1.5 | BB10: =BB9-$B$3 -> 58.5 | BC10: =IF(E10<=$I$3,(1/$A$8)*LN(EXP($A$8*(BC11-$B$3))+($A$7/$A$2)*(1-EXP(-$A$8*$B$3)))*$A$18,IF(AND(E10>$I$3,E10<$I$4),(1/$C$8)*LN(EXP($C$8*(BC11-$B$3))+($A$7/$A$2)*(1-EXP(-$C$8*$B$3)))*$C$18,(1/$D$8)*LN(EXP($D$8*(BC11-$B$3))+($A$7/$A$2)*(1-EXP(-$D$8*$B$3)))*$D$18)) -> -31.51686245 | BD10: 49.96474337 | BE10: 0.001114480898 | BF10: 49.96474337 | BG10: 0.1182519301 | BH10: 23.09530523 | BI10: 2.731064419 | BJ10: 1.5 | BK10: Biomat | BL10: =('Climate-inputs'!C6+'Climate-inputs'!D6)/2 -> 11.31111111 | BW10: 0 | BX10: 0 | BZ10: 0 | CA10: 0 | CC10: 0 | CD10: 0 | CF10: 0 | CG10: 0 | CJ10: 0.5 | CK10: Kb1 | CL10: 0.5 | CM10: 1.5 | CN10: 1 | CO10: 21.91499677 | CP10: 0.7949904982 | CQ10: 0.876599871 | CR10: 23.6640482 | CS10: 0.0845163931 | CT10: 0.004563085317 | CV10: 1.5 | CW10: 0.9954473097 | CY10: 0.7890237112 | CZ10: 0.7630445158 | DA10: 0.3815222579 | DB10: 0.2289133547 | DC10: 0.1907611289 | DP10: 1.5 | DQ10: 1 | DR10: 21.91499677 | DS10: 0.7949904982 | DT10: 0.876599871 | DW10: 1.5 | DX10: 0.9954473097 | DZ10: 0.7890237112 | EA10: 0.7630445158
E11: 2 | F11: -35.07749844 | G11: 0.199132417 | H11: 0.4971485498 | I11: 0.01684853645 | J11: 5.162622612 | K11: 0.5140227595 | L11: 0.9952763446 | M11: 0.5140227595 | N11: 1 | O11: 0.9670742525 | P11: 0.4947500555 | Q11: 0.35 | R11: 1.021567734 | S11: 54.15615814 | T11: 1.642570184 | U11: 0.09685 | V11: 2.871696267e-07 | X11: 49.96474337 | Z11: 45.11689039 | AB11: -0.0002202683428 | AC11: 4.847852975 | AD11: 14.51683514 | AE11: 14.39846799 | AF11: 59.51535839 | AG11: 0.9917573469 | AH11: 1.190307168 | AI11: 2 | AJ11: 2 | AK11: 45.11689039 | AL11: 14.39846799 | AM11: 59.51535839 | AN11: 0.9917573469 | AO11: 1.190307168 | AP11: 2 | AQ11: -29.55367213 | AR11: 0.8968844422 | AS11: 0.02 | AT11: 0.03187855787 | AU11: 0.0285913826 | AV11: 1.701626382 | AW11: 0.03161297121 | AX11: 0 | AY11: 0 | AZ11: 0 | BA11: -2 | BB11: =BB10-$B$3 -> 58 | BC11: =IF(E10<=$I$3,IF(BB11>0,(1/$A$8)*LN(EXP($A$8*(BC12-$A$43))+($A$7/$A$10)*(1-EXP(-$A$8*$A$43)))*$A$18,0),IF(AND(E10>$I$3,E10<$I$4),IF(BB11>0,(1/$C$8)*LN(EXP($C$8*(BC12-$A$43))+($A$7/$C$10)*(1-EXP(-$C$8*$A$43)))*$C$18,0),IF(BB11>0,(1/$D$8)*LN(EXP($D$8*(BC12-$A$43))+($A$7/$D$10)*(1-EXP(-$D$8*$A$43)))*$D$18,0))) -> -56.50573838 | BD11: 45.11689039 | BE11: 0.001094928602 | BF11: 45.11689039 | BG11: 0.06094416957 | BH11: 116.7594916 | BI11: 7.115810252 | BJ11: 2 | BK11: Biomat | BL11: =('Climate-inputs'!C7+'Climate-inputs'!D7)/2 -> 15.75 | BW11: 0 | BX11: 0 | BZ11: 0 | CA11: 0 | CC11: 0 | CD11: 0 | CF11: 0 | CG11: 0 | CJ11: 0.3 | CK11: Kb2 | CL11: 0.3 | CM11: 2 | CN11: 1 | CO11: 21.12000628 | CP11: 0.9603862266 | CQ11: =IF($CL$7>0,CO11/$CL$7,0) -> 0.8448002511 | CR11: 22.7647751 | CS11: 0.08785503003 | CT11: 0.004734847078 | CV11: 2 | CW11: 0.9952763446 | CY11: 0.5140227595 | CZ11: 0.4970981759 | DA11: 0.248549088 | DB11: 0.1491294528 | DC11: 0.124274544 | DP11: 2 | DQ11: 1 | DR11: 21.12000628 | DS11: 0.9603862266 | DT11: 0.8448002511 | DW11: 2 | DX11: 0.9952763446 | DZ11: 0.5140227595 | EA11: 0.4970981759
A12: 0.013 | B12: qr | C12: 0.098 | D12: 0.013 | E12: =E11+ $A$43 -> 2.966666667 | F12: =IF(E12<=$I$3,(1/$A$8)*LN(EXP($A$8*(F13-$A$43))+($A$7/$A$10)*(1-EXP(-$A$8*$A$43)))*$A$18,IF(AND(E12>$I$3,E12<$I$4),(1/$C$8)*LN(EXP($C$8*(F13-$A$43))+($A$7/$C$10)*(1-EXP(-$C$8*$A$43)))*$C$18,(1/$D$8)*LN(EXP($D$8*(F13-$A$43))+($A$7/$D$10)*(1-EXP(-$D$8*$A$43)))*$D$18)) -> -92.95724422 | G12: 0.202238463 | H12: 0.5054446127 | I12: =IF(Q1=2,IF(E12<=$I$3,$A$43*EXP($A$8*F12),IF(AND(E7>$I$3,E7<$I$4),$A$43*EXP($A$8*F12),$A$43*EXP($A$8*F12))),IF(E12<=$I$3,$A$43*EXP($A$8*BC12),IF(AND(E7>$I$3,E7<$I$4),$A$43*EXP($A$8*BC12),$A$43*EXP($A$8*BC12)))) -> 0.03434687725 | J12: 5.162622612 | K12: 0.5220404311 | L12: 0.9950518716 | M12: 0.5220404311 | N12: 1 | O12: 0.9670742525 | P12: 0.5023537878 | Q12: 0.35 | R12: 1.022870745 | S12: 54.15615814 | T12: 1.667814576 | U12: =$A$43/J12 -> 0.1872433333 | V12: 9.224465956e-07 | X12: 45.11689039 | Z12: 35.8887318 | AB12: -2.707113481e-06 | AC12: 9.228158588 | AD12: 23.62662658 | AE12: 23.36912894 | AF12: 59.25786075 | AG12: 0.9874664347 | AH12: 1.185157215 | AI12: 2.966666667 | AJ12: 2.966666667 | AK12: 35.8887318 | AL12: 23.36912894 | AM12: 59.25786075 | AN12: 0.9874664347 | AO12: 1.185157215 | AP12: 2.966666667 | AQ12: -64.01737133 | AR12: 0.7937843613 | AS12: 0.02966666667 | AT12: 0.03077798861 | AU12: 0.02443108603 | AV12: 1.447733894 | AW12: 0.0305204661 | AX12: 0 | AY12: 0 | AZ12: 0 | BA12: -2.966666667 | BB12: =IF(BB11-$A$43>0,BB11-$A$43,0) -> 57.03333333 | BC12: -55.62237704 | BD12: 35.8887318 | BE12: 0.001057127495 | BF12: 35.8887318 | BG12: 0.001891127941 | BH12: 0.5812328774 | BI12: 0.001099185735 | BJ12: 2.966666667 | BK12: =IF(AND(E12>$P$2,$N$2="Shallow"),"Saturated zone",IF(AND($N$2="Shallow",$B$2<E12,E12<$P$2+$J$2),"vadose zone",IF(AND($N$2="Shallow",$B$2<E12,E12>$P$2+$J$2),"capillary zone",IF($N$2="Deep","vadose zone")))) -> vadose zone | BL12: =('Climate-inputs'!C8+'Climate-inputs'!D8)/2 -> 19.48888889 | BW12: 0 | BX12: 0 | BZ12: 0 | CA12: 0 | CC12: 0 | CD12: 0 | CF12: 0 | CG12: 0 | CJ12: 0.25 | CK12: Cfdf | CL12: =(1-CL14)*CL7 -> 18.75 | CM12: 2.966666667 | CN12: =1+($CL$9*$A$46/G12) -> 1 | CO12: 20.15962005 | CP12: =CO12 - CO13 -> 0.9306783597 | CQ12: 0.806384802 | CR12: 21.12971701 | CS12: 0.09465342101 | CT12: 0.004960410948 | CV12: 2.966666667 | CW12: 0.9950518716 | CY12: 0.5220404311 | CZ12: 0.5048518596 | DA12: 0.2524259298 | DB12: 0.1514555579 | DC12: 0.1262129649 | DP12: 2.966666667 | DQ12: 1 | DR12: 20.15962005 | DS12: 0.9306783597 | DT12: 0.806384802 | DW12: 2.966666667 | DX12: 0.9950518716 | DZ12: 0.5220404311 | EA12: 0.5048518596
A13: 0.3874 | B13: qs | C13: 0.459 | D13: 0.3874 | E13: =E12+ $A$43 -> 3.933333333 | F13: =IF(E13<=$I$3,(1/$A$8)*LN(EXP($A$8*(F14-$A$43))+($A$7/$A$10)*(1-EXP(-$A$8*$A$43)))*$A$18,IF(AND(E13>$I$3,E13<$I$4),(1/$C$8)*LN(EXP($C$8*(F14-$A$43))+($A$7/$C$10)*(1-EXP(-$C$8*$A$43)))*$C$18,(1/$D$8)*LN(EXP($D$8*(F14-$A$43))+($A$7/$D$10)*(1-EXP(-$D$8*$A$43)))*$D$18)) -> -92.74786066 | G13: 0.2054191625 | H13: 0.5139400708 | I13: =IF(Q2=2,IF(E13<=$I$3,$A$43*EXP($A$8*F13),IF(AND(E8>$I$3,E8<$I$4),$A$43*EXP($A$8*F13),$A$43*EXP($A$8*F13))),IF(E13<=$I$3,$A$43*EXP($A$8*BC13),IF(AND(E8>$I$3,E8<$I$4),$A$43*EXP($A$8*BC13),$A$43*EXP($A$8*BC13)))) -> 0.03622579445 | J13: 5.162622612 | K13: 0.5302508067 | L13: 0.9948130049 | M13: 0.5302508067 | N13: 1 | O13: 0.9670742525 | P13: 0.5101320535 | Q13: 0.35 | R13: 1.024432207 | S13: 54.15615814 | T13: 1.693638418 | U13: =$A$43/J13 -> 0.1872433333 | V13: 7.078772606e-05 | X13: 35.8887318 | Z13: 26.93551358 | AB13: -0.0001200835806 | AC13: 8.95321822 | AD13: 32.32234716 | AE13: 32.04776207 | AF13: 58.98327565 | AG13: 0.9828907791 | AH13: 1.179665513 | AI13: 3.933333333 | AJ13: 3.933333333 | AK13: 26.93551358 | AL13: 32.04776207 | AM13: 58.98327565 | AN13: 0.9828907791 | AO13: 1.179665513 | AP13: 3.933333333 | AQ13: -92.85255244 | AR13: 0.7193342308 | AS13: 0.03933333333 | AT13: 0.02967741935 | AU13: 0.02134798362 | AV13: 1.259174003 | AW13: 0.02942795916 | AX13: 0 | AY13: 0 | AZ13: 0 | BA13: -3.933333333 | BB13: 56.06666667 | BC13: -54.73470514 | BD13: 26.93551358 | BE13: 0.001019326389 | BF13: 26.93551358 | BG13: 0.001915036072 | BH13: =1+((F13-F14)/$B$3) -> 0.5618938418 | BI13: 0.001076046975 | BJ13: 3.933333333 | BK13: =IF(AND(E13>$P$2,$N$2="Shallow"),"Saturated zone",IF(AND($N$2="Shallow",$B$2<E13,E13<$P$2+$J$2),"vadose zone",IF(AND($N$2="Shallow",$B$2<E13,E13>$P$2+$J$2),"capillary zone",IF($N$2="Deep","vadose zone")))) -> vadose zone | BL13: =('Climate-inputs'!C9+'Climate-inputs'!D9)/2 -> 19.93055556 | BW13: 0 | BX13: 0 | BZ13: 0 | CA13: 0 | CC13: 0 | CD13: 0 | CF13: 0 | CG13: 0 | CJ13: 0.35 | CK13: cfr | CL13: =CL15*CL7 -> 8.75 | CM13: 3.933333333 | CN13: 1 | CO13: 19.22894169 | CP13: 0.9013422249 | CQ13: 0.7691576676 | CR13: 19.62217829 | CS13: 0.101925483 | CT13: 0.005200494214 | CV13: 3.933333333 | CW13: 0.9948130049 | CY13: 0.5302508067 | CZ13: 0.5127919025 | DA13: 0.2563959513 | DB13: 0.1538375708 | DC13: 0.1281979756 | DP13: 3.933333333 | DQ13: 1 | DR13: 19.22894169 | DS13: 0.9013422249 | DT13: 0.7691576676 | DW13: 3.933333333 | DX13: 0.9948130049 | DZ13: 0.5302508067 | EA13: 0.5127919025
A14: 2.52 | B14: n | C14: 1.26 | D14: 2.52 | E14: 4.9 | F14: -92.52880758 | G14: 0.2086749227 | H14: 0.5226360115 | I14: 0.03821691118 | J14: 5.162622612 | K14: 0.5386549373 | L14: 0.9945586064 | M14: 0.5386549373 | N14: 1 | O14: 0.9670742525 | P14: 0.5180847937 | Q14: 0.35 | R14: 1.02888273 | S14: 54.15615814 | T14: 1.720041515 | U14: 0.1872433333 | V14: 0.0003420411719 | X14: 26.93551358 | Z14: 18.40627745 | AB14: -0.0003950796212 | AC14: 8.529236131 | AD14: 40.5769982 | AE14: 40.29002412 | AF14: 58.69630158 | AG14: 0.9781086748 | AH14: 1.173926032 | AI14: 4.9 | AJ14: 4.9 | AK14: 18.40627745 | AL14: 40.29002412 | AM14: 58.69630158 | AN14: 0.9781086748 | AO14: 1.173926032 | AP14: 4.9 | AQ14: -92.63833412 | AR14: 0.7198522398 | AS14: 0.049 | AT14: 0.02857685009 | AU14: 0.02057110955 | AV14: 1.20744805 | AW14: 0.02833547648 | AX14: 0 | AY14: 0 | AZ14: 0 | BA14: -4.9 | BB14: 55.1 | BC14: -53.84292681 | BD14: 18.40627745 | BE14: 0.0009815252823 | BF14: 18.40627745 | BG14: 0.001940371877 | BH14: 0.5419318528 | BI14: 0.001051549326 | BJ14: 4.9 | BK14: vadose zone | BL14: =('Climate-inputs'!C10+'Climate-inputs'!D10)/2 -> 20.71944444 | BW14: 0 | BX14: 0 | BZ14: 0 | CA14: 0 | CC14: 0 | CD14: 0 | CF14: 0 | CG14: 0 | CJ14: 0.1 | CK14: fdf | CL14: 0.25 | CM14: 4.9 | CN14: 1 | CO14: 18.32759947 | CP14: 0.5285244556 | CQ14: 0.7331039786 | CR14: 18.23221362 | CS14: 0.1096959504 | CT14: 0.005456251932 | CV14: 4.9 | CW14: 0.9945586064 | CY14: 0.5386549373 | CZ14: 0.5209193208 | DA14: 0.2604596604 | DB14: 0.1562757962 | DC14: 0.1302298302 | DP14: 4.9 | DQ14: 1 | DR14: 18.32759947 | DS14: 0.5285244556 | DT14: 0.7331039786 | DW14: 4.9 | DX14: 0.9945586064 | DZ14: 0.5386549373 | EA14: 0.5209193208
A15: 0.6031746032 | B15: m | C15: 0.2063492063 | D15: 0.6031746032 | E15: 5.866666667 | F15: -92.29977351 | G15: 0.2111273764 | H15: 0.5291863686 | I15: 0.04032692744 | J15: 5.162622612 | K15: 0.5449854837 | L15: 0.9943974835 | M15: 0.5449854837 | N15: 1 | O15: 0.9670742525 | P15: 0.524088671 | Q15: 0.35 | R15: 1.035914533 | S15: 54.15615814 | T15: 1.739974388 | U15: 0.1872433333 | V15: -9.276504535e-06 | X15: 18.40627745 | Z15: 10.64126529 | AB15: -8.300016106e-07 | AC15: 7.765012167 | AD15: 48.05503629 | AE15: 47.76002646 | AF15: 58.40129174 | AG15: 0.9731926636 | AH15: 1.168025835 | AI15: 5.866666667 | AJ15: 5.866666667 | AK15: 10.64126529 | AL15: 47.76002646 | AM15: 58.40129174 | AN15: 0.9731926636 | AO15: 1.168025835 | AP15: 5.866666667 | AQ15: -92.41429054 | AR15: 0.7203945398 | AS15: 0.05866666667 | AT15: 0.05305764575 | AU15: 0.03822243829 | AV15: 2.23223977 | AW15: 0.05260725116 | AX15: 0 | AY15: 0 | AZ15: 0 | BA15: -5.866666667 | BB15: 54.13333333 | BC15: -52.94723845 | BD15: 10.64126529 | BE15: 0.001822363926 | BF15: 10.64126529 | BG15: 0.001967220609 | BH15: 0.5213515068 | BI15: 0.001025613429 | BJ15: 5.866666667 | BK15: vadose zone | BL15: =('Climate-inputs'!C11+'Climate-inputs'!D11)/2 -> 18.525 | BW15: 0 | BX15: 0 | BZ15: 0 | CA15: 0 | CC15: 0 | CD15: 0 | CF15: 0 | CG15: 0 | CJ15: 0.1 | CK15: sdf | CL15: 0.35 | CM15: 5.866666667 | CN15: 1 | CO15: 17.79907501 | CP15: 0.5192265786 | CQ15: 0.7119630004 | CR15: 16.9506533 | CS15: 0.1179895526 | CT15: =IF(E15<0,0,IF(CO15>$CL$13,$CL$16/CO15,$CL$17/CO15)) -> 0.005618269486 | CV15: 5.866666667 | CW15: 0.9943974835 | CY15: 0.5449854837 | CZ15: 0.5270414293 | DA15: 0.2635207147 | DB15: 0.1581124288 | DC15: 0.1317603573 | DP15: 5.866666667 | DQ15: 1 | DR15: 17.79907501 | DS15: 0.5192265786 | DT15: 0.7119630004 | DW15: 5.866666667 | DX15: 0.9943974835 | DZ15: 0.5449854837 | EA15: 0.5270414293
A16: 0.5 | B16: l | C16: 0.5 | D16: 0.5 | E16: 6.833333333 | F16: -92.06044926 | G16: 0.2145691178 | H16: 0.5383790539 | I16: 0.04256294331 | J16: 5.162622612 | K16: 0.5538696897 | L16: 0.9942296251 | M16: 0.5538696897 | N16: 1 | O16: 0.9670742525 | P16: 0.5325423122 | Q16: 0.35 | R16: 1.047922007 | S16: 54.15615814 | T16: 1.768040477 | U16: 0.1872433333 | V16: -3.717042742e-05 | X16: 10.64126529 | Z16: 4.41401353 | AB16: -4.746650262e-06 | AC16: 6.227251757 | AD16: 53.98727821 | AE16: 53.68435384 | AF16: 58.09836737 | AG16: 0.9681447654 | AH16: 1.161967347 | AI16: 6.833333333 | AJ16: 6.833333333 | AK16: 4.41401353 | AL16: 53.68435384 | AM16: 58.09836737 | AN16: 0.9681447654 | AO16: 1.161967347 | AP16: 6.833333333 | AQ16: -92.18011138 | AR16: 0.7209619555 | AS16: 0.06833333333 | AT16: 0.05093240856 | AU16: 0.03672032887 | AV16: 2.133391157 | AW16: 0.05049781959 | AX16: 0 | AY16: 0 | AZ16: 0 | BA16: -6.833333333 | BB16: 53.16666667 | BC16: -52.0478288 | BD16: 4.41401353 | BE16: 0.001749368686 | BF16: 4.41401353 | BG16: 0.001995672613 | BH16: 0.5001598307 | BI16: 0.0009981552762 | BJ16: 6.833333333 | BK16: vadose zone | BL16: =('Climate-inputs'!C12+'Climate-inputs'!D12)/2 -> 20.78333333 | BW16: 0 | BX16: 0 | BZ16: 0 | CA16: 0 | CC16: 0 | CD16: 0 | CF16: 0 | CG16: 0 | CK16: a1 | CL16: 0.1 | CM16: 6.833333333 | CN16: 1 | CO16: 17.27984843 | CP16: 0.5121743171 | CQ16: 0.6911939373 | CR16: 15.76904281 | CS16: 0.1268307801 | CT16: 0.005787087798 | CV16: 6.833333333 | CW16: 0.9942296251 | CY16: 0.5538696897 | CZ16: 0.5356331161 | DA16: 0.2678165581 | DB16: 0.1606899348 | DC16: 0.133908279 | DP16: 6.833333333 | DQ16: 1 | DR16: 17.27984843 | DS16: 0.5121743171 | DT16: 0.6911939373 | DW16: 6.833333333 | DX16: 0.9942296251 | DZ16: 0.5538696897 | EA16: 0.5356331161
E17: 7.8 | F17: -91.81052917 | G17: 0.2180862623 | H17: 0.5477731364 | I17: 0.04493248286 | J17: 5.162622612 | K17: 0.5629485345 | L17: 0.9940538921 | M17: 0.5629485345 | N17: 1 | O17: 0.9670742525 | P17: 0.5411758946 | Q17: 0.35 | R17: 1.073089007 | S17: 54.15615814 | T17: 1.79670397 | U17: 0.1872433333 | V17: -0.0002605851475 | X17: 4.41401353 | Z17: 0.9920663897 | AB17: -8.430055715e-06 | AC17: 3.42194714 | AD17: 57.10630098 | AE17: 56.79702433 | AF17: 57.78909072 | AG17: 0.9629910136 | AH17: 1.155781814 | AI17: 7.8 | AJ17: 7.8 | AK17: 0.9920663897 | AL17: 56.79702433 | AM17: 57.78909072 | AN17: 0.9629910136 | AO17: 1.155781814 | AP17: 7.8 | AQ17: -91.93548922 | AR17: 0.7215553112 | AS17: 0.078 | AT17: 0.04880717137 | AU17: 0.03521707372 | AV17: 2.035162668 | AW17: 0.04838850665 | AX17: 0 | AY17: 0 | AZ17: 0 | BA17: -7.8 | BB17: 52.2 | BC17: -51.14487908 | BD17: 0.9920663897 | BE17: 0.001676373445 | BF17: 0.9920663897 | BG17: 0.002025823628 | BH17: 0.4783663902 | BI17: 0.0009690859364 | BJ17: 7.8 | BK17: vadose zone | BL17: =('Climate-inputs'!C13+'Climate-inputs'!D13)/2 -> 19.55555556 | BW17: 0 | BX17: 0 | BZ17: 0 | CA17: 0 | CC17: 0 | CD17: 0 | CF17: 0 | CG17: 0 | CK17: a2 | CL17: 0.1 | CM17: 7.8 | CN17: 1 | CO17: 16.76767411 | CP17: 0.50501611 | CQ17: 0.6707069646 | CR17: 14.67958698 | CS17: 0.1362436152 | CT17: 0.005963856365 | CV17: 7.8 | CW17: 0.9940538921 | CY17: 0.5629485345 | CZ17: 0.5444130332 | DA17: 0.2722065166 | DB17: 0.16332391 | DC17: 0.1361032583 | DP17: 7.8 | DQ17: 1 | DR17: 16.76767411 | DS17: 0.50501611 | DT17: 0.6707069646 | DW17: 7.8 | DX17: 0.9940538921 | DZ17: 0.5629485345 | EA17: 0.5444130332
A18: 1 | B18: cf | C18: 1 | D18: 1 | E18: 8.766666667 | F18: -91.54971237 | G18: 0.2216785676 | H18: 0.5573679691 | I18: 0.04744351946 | J18: 5.162622612 | K18: 0.572221393 | L18: 0.9938698104 | M18: 0.572221393 | N18: 1 | O18: 0.9670742525 | P18: 0.549988248 | Q18: 0.35 | R18: 1.145373201 | S18: 54.15615814 | T18: 1.825960984 | U18: 0.1872433333 | V18: 0.0002213924902 | X18: 0.9920663897 | Z18: 0.1149729172 | AB18: -9.219402372e-06 | AC18: 0.8770934725 | AD18: 57.67411781 | AE18: 57.35955492 | AF18: 57.47452784 | AG18: 0.9577491725 | AH18: 1.149490557 | AI18: 8.766666667 | AJ18: 8.766666667 | AK18: 0.1149729172 | AL18: 57.35955492 | AM18: 57.47452784 | AN18: 0.9577491725 | AO18: 1.149490557 | AP18: 8.766666667 | AQ18: -91.68012077 | AR18: 0.7221754278 | AS18: 0.08766666667 | AT18: 0.04668193418 | AU18: 0.03371254578 | AV18: 1.937612651 | AW18: 0.04627932689 | AX18: 0 | AY18: 0 | AZ18: 0 | BA18: -8.766666667 | BB18: 51.23333333 | BC18: -50.23856313 | BD18: 0.1149729172 | BE18: 0.001603378205 | BF18: 0.1149729172 | BG18: 0.002057775112 | BH18: 0.4559833807 | BI18: 0.0009383112521 | BJ18: 8.766666667 | BK18: vadose zone | BL18: =('Climate-inputs'!C14+'Climate-inputs'!D14)/2 -> 21.05 | BW18: 0 | BX18: 0 | BZ18: 0 | CA18: 0 | CC18: 0 | CD18: 0 | CF18: 0 | CG18: 0 | CK18: Kb3 | CL18: 0.25 | CM18: 8.766666667 | CN18: 1 | CO18: 16.262658 | CP18: 0.4977491325 | CQ18: 0.6505063202 | CR18: 13.6750986 | CS18: 0.1462512307 | CT18: 0.006149056321 | CV18: 8.766666667 | CW18: 0.9938698104 | CY18: 0.572221393 | CZ18: 0.5533805759 | DA18: 0.2766902879 | DB18: 0.1660141728 | DC18: 0.138345144 | DP18: 8.766666667 | DQ18: 1 | DR18: 16.262658 | DS18: 0.4977491325 | DT18: 0.6505063202 | DW18: 8.766666667 | DX18: 0.9938698104 | DZ18: 0.572221393 | EA18: 0.5533805759
A19: 60 | B19: Co NH4 | E19: 9.733333333 | F19: -91.27770406 | G19: 0.2253455782 | H19: 0.5671623349 | I19: 0.05010450259 | J19: 5.162622612 | K19: 0.5816870888 | L19: 0.9936768737 | M19: 0.5816870888 | N19: 1 | O19: 0.9670742525 | P19: 0.5589776292 | Q19: 0.35 | R19: 1.472055821 | S19: 54.15615814 | T19: 1.855805729 | U19: 0.1872433333 | V19: 5.167642496e-05 | X19: 0.1149729172 | Z19: 0.004988990436 | AB19: -8.920849993e-06 | AC19: 0.1099839267 | AD19: 57.46953885 | AE19: 57.14992733 | AF19: 57.15491632 | AG19: 0.9524232014 | AH19: 1.143098326 | AI19: 9.733333333 | AJ19: 9.733333333 | AK19: 0.004988990436 | AL19: 57.14992733 | AM19: 57.15491632 | AN19: 0.9524232014 | AO19: 1.143098326 | AP19: 9.733333333 | AQ19: -91.41370822 | AR19: 0.7228231207 | AS19: 0.09733333333 | AT19: 0.04455669698 | AU19: 0.03220661076 | AV19: 1.840766143 | AW19: 0.04417028851 | AX19: 0 | AY19: 0 | AZ19: 0 | BA19: -9.733333333 | BB19: 50.26666667 | BC19: -49.32904752 | BD19: 0.004988990436 | BE19: 0.001530382965 | BF19: 0.004988990436 | BG19: 0.002091634578 | BH19: 0.4330257001 | BI19: 0.0009057315272 | BJ19: 9.733333333 | BK19: vadose zone | BL19: =('Climate-inputs'!C15+'Climate-inputs'!D15)/2 -> 20.75277778 | BW19: 0 | BX19: 0 | BZ19: 0 | CA19: 0 | CC19: 0 | CD19: 0 | CF19: 0 | CG19: 0 | CK19: exp | CL19: 1 | CM19: 9.733333333 | CN19: 1 | CO19: 15.76490887 | CP19: 0.4903709174 | CQ19: 0.6305963549 | CR19: =1.8+24.8*EXP(-0.084*E19) -> 12.74895101 | CS19: 0.1568756519 | CT19: 0.006343201906 | CV19: 9.733333333 | CW19: 0.9936768737 | CY19: 0.5816870888 | CZ19: 0.5625346066 | DA19: 0.2812673033 | DB19: 0.168760382 | DC19: 0.1406336516 | DP19: 9.733333333 | DQ19: 1 | DR19: 15.76490887 | DS19: 0.4903709174 | DT19: 0.6305963549 | DW19: 9.733333333 | DX19: 0.9936768737 | DZ19: 0.5816870888 | EA19: 0.5625346066
A20: 0.01 | B20: Co NO3 | E20: 10.7 | F20: -90.99421691 | G20: 0.2290866016 | H20: 0.5771543846 | I20: 0.05292438632 | J20: 5.162622612 | K20: 0.5913438348 | L20: 0.993474541 | M20: 0.5913438348 | N20: 1 | O20: 0.9670742525 | P20: 0.5681416606 | Q20: 0.35 | R20: 3.603747447 | S20: 54.15615814 | T20: 1.886230313 | U20: 0.1872433333 | V20: 6.94595208e-06 | X20: 0.004988990436 | Z20: -0.0009959843344 | AB20: -8.47568667e-06 | AC20: 0.005984974771 | AD20: 57.1559123 | AE20: 56.83029063 | AF20: 56.82929464 | AG20: 0.9469970779 | AH20: 1.136585893 | AI20: 10.7 | AJ20: 10.7 | AK20: -0.0009959843344 | AL20: 56.83029063 | AM20: 56.82929464 | AN20: 0.9469970779 | AO20: 1.136585893 | AP20: 10.7 | AQ20: -91.13596049 | AR20: 0.7234991962 | AS20: 0.107 | AT20: 0.04243145979 | AU20: 0.03069912705 | AV20: 1.744609737 | AW20: 0.04206139192 | AX20: 0 | AY20: 0.0009959843344 | AZ20: 0 | BA20: -10.7 | BB20: 49.3 | BC20: -48.41649176 | BD20: -0.0009959843344 | BE20: 0.001457387725 | BF20: -0.0009959843344 | BG20: 0.002127515961 | BH20: 0.4095110006 | BI20: 0.0008712411901 | BJ20: 10.7 | BK20: vadose zone | BL20: =('Climate-inputs'!C16+'Climate-inputs'!D16)/2 -> 12.81944444 | BW20: 0.0009959843344 | BX20: 0 | BZ20: 0.0009959843344 | CA20: 0 | CC20: 0.0009959843344 | CD20: 0 | CF20: 0.0009959843344 | CG20: 0 | CM20: 10.7 | CN20: 1 | CO20: 15.27453795 | CP20: 0.4828793838 | CQ20: 0.6109815182 | CR20: 11.89503434 | CS20: 0.1681373877 | CT20: 0.006546842877 | CV20: 10.7 | CW20: 0.993474541 | CY20: 0.5913438348 | CZ20: 0.571873397 | DA20: 0.2859366985 | DB20: 0.1715620191 | DC20: 0.1429683492 | DP20: 10.7 | DQ20: 1 | DR20: 15.27453795 | DS20: 0.4828793838 | DT20: 0.6109815182 | DW20: 10.7 | DX20: 0.993474541 | DZ20: 0.5913438348 | EA20: 0.571873397
A21: 1 | B21: e2 | C21: 1 | D21: 1 | E21: 11.66666667 | F21: -90.69897241 | G21: 0.2329006843 | H21: 0.5873415712 | I21: 0.05591265939 | J21: 5.162622612 | K21: 0.6011891695 | L21: 0.9932622341 | M21: 0.6011891695 | N21: 1 | O21: 0.9670742525 | P21: 0.5774772663 | Q21: 0.35 | R21: 32.51331464 | S21: 54.15615814 | T21: 1.917224524 | U21: 0.1872433333 | V21: 6.520178804e-147 | X21: 0.001 | Z21: 0 | AB21: -8.030358956e-06 | AC21: 0.001 | AD21: 56.83129063 | AE21: 56.50140306 | AF21: 56.50140306 | AG21: 0.9415331288 | AH21: 1.130028061 | AI21: 11.66666667 | AJ21: 11.66666667 | AK21: 0 | AL21: 56.50140306 | AM21: 56.50140306 | AN21: 0.9415331288 | AO21: 1.130028061 | AP21: 11.66666667 | AQ21: -90.84659466 | AR21: 0.7242044488 | AS21: 0.1166666667 | AT21: 0.0403062226 | AU21: 0.02918994572 | AV21: 1.649272888 | AW21: 0.03995266795 | AX21: 0 | AY21: 0 | AZ21: 0 | BA21: -11.66666667 | BB21: 48.33333333 | BC21: -47.50104846 | BD21: 0 | BE21: 0.001384392485 | BF21: 0 | BG21: 0.002165540002 | BH21: 0.3854597175 | BI21: 0.0008347284374 | BJ21: 11.66666667 | BK21: vadose zone | BL21: =('Climate-inputs'!C17+'Climate-inputs'!D17)/2 -> 10.75277778 | BW21: 0 | BX21: 0 | BZ21: 0 | CA21: 0 | CC21: 0 | CD21: 0 | CF21: 0 | CG21: 0 | CM21: 11.66666667 | CN21: 1 | CO21: 14.79165857 | CP21: 0.4752728653 | CQ21: 0.5916663428 | CR21: 11.10771525 | CS21: 0.1800550297 | CT21: 0.006760567081 | CV21: 11.66666667 | CW21: 0.9932622341 | CY21: 0.6011891695 | CZ21: 0.5813945667 | DA21: 0.2906972834 | DB21: 0.17441837 | DC21: 0.1453486417 | DP21: 11.66666667 | DQ21: 1 | DR21: 14.79165857 | DS21: 0.4752728653 | DT21: 0.5916663428 | DW21: 11.66666667 | DX21: 0.9932622341 | DZ21: 0.6011891695 | EA21: 0.5813945667
A22: 1 | B22: e3 | C22: 1 | D22: 1 | E22: 12.63333333 | F22: -90.39170227 | G22: 0.2367865857 | H22: 0.5977205815 | I22: 0.05907937718 | J22: 5.162622612 | K22: 0.6112198908 | L22: 0.9930393352 | M22: 0.6112198908 | N22: 1 | O22: 0.9670742525 | P22: 0.5869806048 | Q22: 0.35 | R22: 113.1289853 | S22: 54.15615814 | T22: 1.948775608 | U22: 0.1872433333 | V22: 0 | X22: 0.001 | Z22: 0 | AB22: -7.591139962e-06 | AC22: 0.001 | AD22: 56.50240306 | AE22: 56.1672471 | AF22: 56.1672471 | AG22: 0.9359647909 | AH22: 1.123344942 | AI22: 12.63333333 | AJ22: 12.63333333 | AK22: 0 | AL22: 56.1672471 | AM22: 56.1672471 | AN22: 0.9359647909 | AO22: 1.123344942 | AP22: 12.63333333 | AQ22: -90.54533734 | AR22: 0.724939658 | AS22: 0.1263333333 | AT22: 0.03818098541 | AU22: 0.0276789105 | AV22: 1.554648206 | AW22: 0.03784409781 | AX22: 0 | AY22: 0 | AZ22: 0 | BA22: -12.63333333 | BB22: 47.36666667 | BC22: -46.58286353 | BD22: 0 | BE22: 0.001311397245 | BF22: 0 | BG22: 0.002205834648 | BH22: 0.3608950722 | BI22: 0.0007960748545 | BJ22: 12.63333333 | BK22: vadose zone | BL22: =('Climate-inputs'!C18+'Climate-inputs'!D18)/2 -> 15.975 | BW22: 0 | BX22: 0 | BZ22: 0 | CA22: 0 | CC22: 0 | CD22: 0 | CF22: 0 | CG22: 0 | CM22: 12.63333333 | CN22: 1 | CO22: 14.31638571 | CP22: 0.4675501414 | CQ22: 0.5726554282 | CR22: 10.38179976 | CS22: 0.1926448253 | CT22: 0.006985003203 | CV22: 12.63333333 | CW22: 0.9930393352 | CY22: 0.6112198908 | CZ22: 0.5910950191 | DA22: 0.2955475095 | DB22: 0.1773285057 | DC22: 0.1477737548 | DP22: 12.63333333 | DQ22: 1 | DR22: 14.31638571 | DS22: 0.4675501414 | DT22: 0.5726554282 | DW22: 12.63333333 | DX22: 0.9930393352 | DZ22: 0.6112198908 | EA22: 0.5910950191
A23: 56 | B23: kr max | C23: 2.5 | D23: 3.25 | E23: 13.6 | F23: -90.07214981 | G23: 0.2407427516 | H23: 0.6082872638 | I23: 0.06243519551 | J23: 5.162622612 | K23: 0.6214319865 | L23: 0.9928051838 | M23: 0.6214319865 | N23: 1 | O23: 0.9670742525 | P23: 0.5966469989 | Q23: 0.35 | R23: 111.2863509 | S23: 54.15615814 | T23: 1.980868036 | U23: 0.1872433333 | V23: 0 | X23: 0.001 | Z23: 0 | AB23: -7.158580331e-06 | AC23: 0.001 | AD23: 56.1682471 | AE23: 55.82773927 | AF23: 55.82773927 | AG23: 0.93030727 | AH23: 1.116554785 | AI23: 13.6 | AJ23: 13.6 | AK23: 0 | AL23: 55.82773927 | AM23: 55.82773927 | AN23: 0.93030727 | AO23: 1.116554785 | AP23: 13.6 | AQ23: -90.23192604 | AR23: 0.7257055852 | AS23: 0.136 | AT23: 0.03605574822 | AU23: 0.02616585786 | AV23: 1.46078069 | AW23: 0.035735695 | AX23: 0 | AY23: 0 | AZ23: 0 | BA23: -13.6 | BB23: 46.4 | BC23: -45.66207634 | BD23: 0 | BE23: 0.001238402005 | BF23: 0 | BG23: 0.002248535488 | BH23: 0.3358430483 | BI23: 0.0007551550125 | BJ23: 13.6 | BK23: vadose zone | BL23: =('Climate-inputs'!C19+'Climate-inputs'!D19)/2 -> 20.375 | BW23: 0 | BX23: 0 | BZ23: 0 | CA23: 0 | CC23: 0 | CD23: 0 | CF23: 0 | CG23: 0 | CM23: 13.6 | CN23: 1 | CO23: 13.84883556 | CP23: 0.4597104689 | CQ23: 0.5539534226 | CR23: 9.712498937 | CS23: 0.2059202284 | CT23: =IF(E23<0,0,IF(CO23>$CL$13,$CL$16/CO23,$CL$17/CO23)) -> 0.007220823696 | CV23: 13.6 | CW23: 0.9928051838 | CY23: 0.6214319865 | CZ23: 0.6009708739 | DA23: 0.3004854369 | DB23: 0.1802912622 | DC23: 0.1502427185 | DP23: 13.6 | DQ23: 1 | DR23: 13.84883556 | DS23: 0.4597104689 | DT23: 0.5539534226 | DW23: 13.6 | DX23: 0.9928051838 | DZ23: 0.6214319865 | EA23: 0.6009708739
A24: 5 | B24: Km,nit | C24: 5 | D24: 5 | E24: 14.56666667 | F24: -89.74007133 | G24: 0.2447672859 | H24: 0.6190365542 | I24: 0.06599140651 | J24: 5.162622612 | K24: 0.6318205625 | L24: 0.9925590739 | M24: 0.6318205625 | N24: 1 | O24: 0.9670742525 | P24: 0.6064708629 | Q24: 0.35 | R24: 109.4729909 | S24: 54.15615814 | T24: 2.013483265 | U24: 0.1872433333 | V24: 0 | X24: 0.001 | Z24: 0 | AB24: -6.733252732e-06 | AC24: 0.001 | AD24: 55.82873927 | AE24: 55.48279981 | AF24: 55.48279981 | AG24: 0.924559237 | AH24: 1.109655996 | AI24: 14.56666667 | AJ24: 14.56666667 | AK24: 0 | AL24: 55.48279981 | AM24: 55.48279981 | AN24: 0.924559237 | AO24: 1.109655996 | AP24: 14.56666667 | AQ24: -89.90611057 | AR24: 0.7265029705 | AS24: 0.1456666667 | AT24: 0.03393051103 | AU24: 0.02465061705 | AV24: 1.367685251 | AW24: 0.03362746696 | AX24: 0 | AY24: 0 | AZ24: 0 | BA24: -14.56666667 | BB24: 45.43333333 | BC24: -44.73881997 | BD24: 0 | BE24: 0.001165406765 | BF24: 0 | BG24: 0.002293786209 | BH24: 0.3103323394 | BI24: 0.0007118360403 | BJ24: 14.56666667 | BK24: vadose zone | BL24: =('Climate-inputs'!C20+'Climate-inputs'!D20)/2 -> 17.61111111 | BW24: 0 | BX24: 0 | BZ24: 0 | CA24: 0 | CC24: 0 | CD24: 0 | CF24: 0 | CG24: 0 | CM24: 14.56666667 | CN24: 1 | CO24: 13.38912509 | CP24: 0.4517536148 | CQ24: 0.5355650038 | CR24: 9.095397378 | CS24: 0.219891437 | CT24: 0.007468747905 | CV24: 14.56666667 | CW24: 0.9925590739 | CY24: 0.6318205625 | CZ24: 0.6110173982 | DA24: 0.3055086991 | DB24: 0.1833052195 | DC24: 0.1527543495 | DP24: 14.56666667 | DQ24: 1 | DR24: 13.38912509 | DS24: 0.4517536148 | DT24: 0.5355650038 | DW24: 14.56666667 | DX24: 0.9925590739 | DZ24: 0.6318205625 | EA24: 0.6110173982
A25: 0.186 | B25: bnit | E25: 15.53333333 | F25: -89.3952375 | G25: 0.2488579226 | H25: 0.6299624001 | I25: 0.06975997664 | J25: 5.162622612 | K25: 0.6423797692 | L25: 0.9923002507 | M25: 0.6423797692 | N25: 1 | O25: 0.9670742525 | P25: 0.6164456281 | Q25: 0.35 | R25: 107.6899511 | S25: 54.15615814 | T25: 2.046599485 | U25: 0.1872433333 | V25: 0 | X25: 0.001 | Z25: 0 | AB25: -6.315750753e-06 | AC25: 0.001 | AD25: 55.48379981 | AE25: 55.13235322 | AF25: 55.13235322 | AG25: 0.9187194338 | AH25: 1.102647064 | AI25: 15.53333333 | AJ25: 15.53333333 | AK25: 0 | AL25: 55.13235322 | AM25: 55.13235322 | AN25: 0.9187194338 | AO25: 1.102647064 | AP25: 15.53333333 | AQ25: -89.56765441 | AR25: 0.7273325295 | AS25: 0.1553333333 | AT25: 0.03180527383 | AU25: 0.02313301027 | AV25: 1.275377293 | AW25: 0.03151942152 | AX25: 0 | AY25: 0 | AZ25: 0 | BA25: -15.53333333 | BB25: 44.46666667 | BC25: -43.81322138 | BD25: 0 | BE25: 0.001092411525 | BF25: 0 | BG25: 0.002341739077 | BH25: 0.2843942674 | BI25: 0.0006659771691 | BJ25: 15.53333333 | BK25: vadose zone | BL25: =('Climate-inputs'!C21+'Climate-inputs'!D21)/2 -> 21.38055556 | BW25: 0 | BX25: 0 | BZ25: 0 | CA25: 0 | CC25: 0 | CD25: 0 | CF25: 0 | CG25: 0 | CM25: 15.53333333 | CN25: 1 | CO25: 12.93737148 | CP25: 0.4436798903 | CQ25: 0.5174948592 | CR25: 8.526424019 | CS25: 0.2345649238 | CT25: 0.007729545384 | CV25: 15.53333333 | CW25: 0.9923002507 | CY25: 0.6423797692 | CZ25: 0.6212289351 | DA25: 0.3106144676 | DB25: 0.1863686805 | DC25: 0.1553072338 | DP25: 15.53333333 | DQ25: 1 | DR25: 12.93737148 | DS25: 0.4436798903 | DT25: 0.5174948592 | DW25: 15.53333333 | DX25: 0.9923002507 | DZ25: 0.6423797692 | EA25: 0.6212289351
A26: 0 | B26: fs | C26: 0 | D26: 0 | E26: 16.5 | F26: -89.03743463 | G26: 0.2530119965 | H26: 0.641057683 | I26: 0.07375358692 | J26: 5.162622612 | K26: 0.6531027272 | L26: 0.9920279076 | M26: 0.6531027272 | N26: 1 | O26: 0.9670742525 | P26: 0.6265636675 | Q26: 0.35 | R26: 105.9382636 | S26: 54.15615814 | T26: 2.080191376 | U26: 0.1872433333 | V26: 0 | X26: 0.001 | Z26: 0 | AB26: -5.906687363e-06 | AC26: 0.001 | AD26: 55.13335322 | AE26: 54.77632889 | AF26: 54.77632889 | AG26: 0.9127866837 | AH26: 1.095526578 | AI26: 16.5 | AJ26: 16.5 | AK26: 0 | AL26: 54.77632889 | AM26: 54.77632889 | AN26: 0.9127866837 | AO26: 1.095526578 | AP26: 16.5 | AQ26: -89.21633607 | AR26: 0.7281949503 | AS26: 0.165 | AT26: 0.02968003664 | AU26: 0.02161285281 | AV26: 1.183872734 | AW26: 0.02941156696 | AX26: 0 | AY26: 0 | AZ26: 0 | BA26: -16.5 | BB26: 43.5 | BC26: -42.88540162 | BD26: 0 | BE26: 0.001019416284 | BF26: 0 | BG26: =$A$2*EXP($A$8*F26) -> 0.002392555449 | BH26: 0.258062671 | BI26: 0.0006174292498 | BJ26: 16.5 | BK26: vadose zone | BL26: =('Climate-inputs'!C22+'Climate-inputs'!D22)/2 -> 10.62777778 | BW26: 0 | BX26: 0 | BZ26: 0 | CA26: 0 | CC26: 0 | CD26: 0 | CF26: 0 | CG26: 0 | CM26: 16.5 | CN26: 1 | CO26: 12.49369159 | CP26: 0.4354901851 | CQ26: 0.4997476636 | CR26: 8.001825308 | CS26: 0.2499429721 | CT26: 0.008004039421 | CV26: 16.5 | CW26: 0.9920279076 | CY26: 0.6531027272 | CZ26: 0.6315988318 | DA26: 0.3157994159 | DB26: 0.1894796495 | DC26: 0.1578997079 | DP26: 16.5 | DQ26: 1 | DR26: 12.49369159 | DS26: 0.4354901851 | DT26: 0.4997476636 | DW26: 16.5 | DX26: 0.9920279076 | DZ26: 0.6531027272 | EA26: 0.6315988318
A27: 0 | B27: fwp | C27: 0 | D27: 0 | E27: 17.46666667 | F27: -88.66646597 | G27: 0.2572264147 | H27: 0.6523141418 | I27: 0.07798567562 | J27: 5.162622612 | K27: 0.6639814524 | L27: 0.9917411822 | M27: 0.6639814524 | N27: 1 | O27: 0.9670742525 | P27: 0.63681622 | Q27: 0.35 | R27: 104.2189467 | S27: 54.15615814 | T27: 2.11422985 | U27: 0.1872433333 | V27: 0 | X27: 0.001 | Z27: 0 | AB27: -5.506692787e-06 | AC27: 0.001 | AD27: 54.77732889 | AE27: 54.41466177 | AF27: 54.41466177 | AG27: 0.9067599029 | AH27: 1.088293235 | AI27: 17.46666667 | AJ27: 17.46666667 | AK27: 0 | AL27: 54.41466177 | AM27: 54.41466177 | AN27: 0.9067599029 | AO27: 1.088293235 | AP27: 17.46666667 | AQ27: -88.8519503 | AR27: 0.7290908903 | AS27: 0.1746666667 | AT27: 0.02755479945 | AU27: 0.02008995326 | AV27: 1.093188012 | AW27: 0.027303912 | AX27: 0 | AY27: 0 | AZ27: 0 | BA27: -17.46666667 | BB27: 42.53333333 | BC27: -41.95547606 | BD27: 0 | BE27: 0.0009464210443 | BF27: 0 | BG27: 0.002446406322 | BH27: 0.2313737642 | BI27: 0.0005660342394 | BJ27: 17.46666667 | BK27: vadose zone | BL27: =('Climate-inputs'!C23+'Climate-inputs'!D23)/2 -> 13.66388889 | BW27: 0 | BX27: 0 | BZ27: 0 | CA27: 0 | CC27: 0 | CD27: 0 | CF27: 0 | CG27: 0 | CM27: 17.46666667 | CN27: 1 | CO27: 12.0582014 | CP27: 0.4271860009 | CQ27: 0.4823280562 | CR27: 7.518140432 | CS27: 0.2660232298 | CT27: 0.008293110775 | CV27: 17.46666667 | CW27: 0.9917411822 | CY27: 0.6639814524 | CZ27: 0.6421193668 | DA27: 0.3210596834 | DB27: 0.19263581 | DC27: 0.1605298417 | DP27: 17.46666667 | DQ27: 1 | DR27: 12.0582014 | DS27: 0.4271860009 | DT27: 0.4823280562 | DW27: 17.46666667 | DX27: 0.9917411822 | DZ27: 0.6639814524 | EA27: 0.6421193668
A28: 0 | B28: swp | C28: 0 | D28: 0 | E28: 18.43333333 | F28: -88.28215285 | G28: 0.2614976274 | H28: 0.6637222953 | I28: 0.08247048348 | J28: 5.162622612 | K28: 0.6750067821 | L28: 0.9914391529 | M28: 0.6750067821 | N28: 1 | O28: 0.9670742525 | P28: 0.6471933151 | Q28: 0.35 | R28: 102.5330038 | S28: 54.15615814 | T28: 2.148681806 | U28: 0.1872433333 | V28: 0 | X28: 0.001 | Z28: 0 | AB28: -5.116412098e-06 | AC28: 0.001 | AD28: 54.41566177 | AE28: 54.04729307 | AF28: 54.04729307 | AG28: 0.9006381115 | AH28: 1.080945861 | AI28: 18.43333333 | AJ28: 18.43333333 | AK28: 0 | AL28: 54.04729307 | AM28: 54.04729307 | AN28: 0.9006381115 | AO28: 1.080945861 | AP28: 18.43333333 | AQ28: -88.47430941 | AR28: 0.7300209732 | AS28: 0.1843333333 | AT28: 0.02542956226 | AU28: 0.01856411379 | AV28: 1.003340098 | AW28: 0.02519646579 | AX28: 0 | AY28: 0 | AZ28: 0 | BA28: -18.43333333 | BB28: 41.56666667 | BC28: -41.02355457 | BD28: 0 | BE28: 0.0008734258042 | BF28: 0 | BG28: =$A$10*EXP($A$8*F28) -> 3.358659241 | BH28: 0.2043659661 | BI28: 0.6863956404 | BJ28: 18.43333333 | BK28: vadose zone | BL28: =('Climate-inputs'!C24+'Climate-inputs'!D24)/2 -> 20.05 | BW28: 0 | BX28: 0 | BZ28: 0 | CA28: 0 | CC28: 0 | CD28: 0 | CF28: 0 | CG28: 0 | CM28: 18.43333333 | CN28: 1 | CO28: 11.6310154 | CP28: 0.4187694865 | CQ28: 0.4652406162 | CR28: 7.072178492 | CS28: 0.2827982923 | CT28: 0.008597701622 | CV28: 18.43333333 | CW28: 0.9914391529 | CY28: 0.6750067821 | CZ28: 0.6527816792 | DA28: 0.3263908396 | DB28: 0.1958345038 | DC28: 0.1631954198 | DP28: 18.43333333 | DQ28: 1 | DR28: 11.6310154 | DS28: 0.4187694865 | DT28: 0.4652406162 | DW28: 18.43333333 | DX28: 0.9914391529 | DZ28: 0.6750067821 | EA28: 0.6527816792
A29: 0.5 | B29: sl | C29: 0.5 | D29: 0.5 | E29: 19.4 | F29: -87.88433583 | G29: 0.2658216007 | H29: 0.6752713693 | I29: 0.08722310162 | J29: 5.162622612 | K29: 0.6861683032 | L29: 0.991120835 | M29: 0.6861683032 | N29: 1 | O29: 0.9670742525 | P29: 0.6576837008 | Q29: 0.35 | R29: 100.8814224 | S29: 54.15615814 | T29: 2.183509887 | U29: 0.1872433333 | V29: 0 | X29: 0.001 | Z29: 0 | AB29: -4.736502163e-06 | AC29: 0.001 | AD29: 54.04829307 | AE29: 53.67417099 | AF29: 53.67417099 | AG29: 0.8944204463 | AH29: 1.07348342 | AI29: 19.4 | AJ29: 19.4 | AK29: 0 | AL29: 53.67417099 | AM29: 53.67417099 | AN29: 0.8944204463 | AO29: 1.07348342 | AP29: 19.4 | AQ29: -88.08324434 | AR29: 0.7309857862 | AS29: 0.194 | AT29: 0.02330432507 | AU29: 0.01703513038 | AV29: 0.9143465009 | AW29: 0.02308923802 | AX29: 0 | AY29: 0 | AZ29: 0 | BA29: -19.4 | BB29: 40.6 | BC29: -40.08974174 | BD29: 0 | BE29: 0.000800430564 | BF29: 0 | BG29: =$A$10*EXP($A$8*F29) -> 3.439791572 | BH29: 0.1770797021 | BI29: 0.6091172667 | BJ29: 19.4 | BK29: vadose zone | BL29: =('Climate-inputs'!C25+'Climate-inputs'!D25)/2 -> 21.19166667 | BW29: 0 | BX29: 0 | BZ29: 0 | CA29: 0 | CC29: 0 | CD29: 0 | CF29: 0 | CG29: 0 | CM29: 19.4 | CN29: 1 | CO29: 11.21224592 | CP29: 0.41024347 | CQ29: 0.4484898367 | CR29: 6.660997448 | CS29: 0.3002553319 | CT29: 0.008918819721 | CV29: 19.4 | CW29: 0.991120835 | CY29: 0.6861683032 | CZ29: 0.6635756989 | DA29: 0.3317878495 | DB29: 0.1990727097 | DC29: 0.1658939247 | DP29: 19.4 | DQ29: 1 | DR29: 11.21224592 | DS29: 0.41024347 | DT29: 0.4484898367 | DW29: 19.4 | DX29: 0.991120835 | DZ29: 0.6861683032 | EA29: 0.6635756989
A30: 0.85 | B30: sh | C30: 0.85 | D30: 0.85 | E30: 20.36666667 | F30: -87.47287568 | G30: 0.27019379 | H30: 0.6869492253 | I30: 0.09225952233 | J30: 5.162622612 | K30: 0.6974542849 | L30: 0.9907851763 | M30: 0.6974542849 | N30: 1 | O30: 0.9670742525 | P30: 0.668274774 | Q30: 0.35 | R30: 99.26517325 | S30: 54.15615814 | T30: 2.21867225 | U30: 0.1872433333 | V30: 0 | X30: 0.001 | Z30: 0 | AB30: -4.367628037e-06 | AC30: 0.001 | AD30: 53.67517099 | AE30: 53.29525149 | AF30: 53.29525149 | AG30: 0.8881061738 | AH30: 1.06590503 | AI30: 20.36666667 | AJ30: 20.36666667 | AK30: 0 | AL30: 53.29525149 | AM30: 53.29525149 | AN30: 0.8881061738 | AO30: 1.06590503 | AP30: 20.36666667 | AQ30: -87.67860576 | AR30: 0.7319858776 | AS30: 0.2036666667 | AT30: 0.02117908788 | AU30: 0.01550279323 | AV30: 0.8262252638 | AW30: 0.02098223883 | AX30: 0 | AY30: 0 | AZ30: 0 | BA30: -20.36666667 | BB30: 39.63333333 | BC30: -39.15413711 | BD30: 0 | BE30: 0.0007274353239 | BF30: 0 | BG30: 3.525768719 | BH30: 0.1495571798 | BI30: 0.5273040261 | BJ30: 20.36666667 | BK30: vadose zone | BL30: =('Climate-inputs'!C26+'Climate-inputs'!D26)/2 -> 17.51388889 | BW30: 0 | BX30: 0 | BZ30: 0 | CA30: 0 | CC30: 0 | CD30: 0 | CF30: 0 | CG30: 0 | CM30: 20.36666667 | CN30: 1 | CO30: 10.80200245 | CP30: 0.4016114909 | CQ30: 0.4320800979 | CR30: 6.281884715 | CS30: 0.3183757886 | CT30: 0.009257542802 | CV30: 20.36666667 | CW30: 0.9907851763 | CY30: 0.6974542849 | CZ30: 0.6744900812 | DA30: 0.3372450406 | DB30: 0.2023470244 | DC30: 0.1686225203 | DP30: 20.36666667 | DQ30: 1 | DR30: 10.80200245 | DS30: 0.4016114909 | DT30: 0.4320800979 | DW30: 20.36666667 | DX30: 0.9907851763 | DZ30: 0.6974542849 | EA30: 0.6744900812
A31: 1 | B31: ednt | C31: 2.5 | D31: 1.5 | E31: 21.33333333 | F31: -87.04765427 | G31: 0.2746091158 | H31: 0.6987422966 | I31: 0.09759669288 | J31: 5.162622612 | K31: 0.7088516155 | L31: 0.9904310534 | M31: 0.7088516155 | N31: 1 | O31: 0.9670742525 | P31: 0.678952517 | Q31: 0.35 | R31: 97.68520836 | S31: 54.15615814 | T31: 2.254122357 | U31: 0.1872433333 | V31: 0 | X31: 0.001 | Z31: 0 | AB31: -4.010458767e-06 | AC31: 0.001 | AD31: 53.29625149 | AE31: 52.91049914 | AF31: 52.91049914 | AG31: 0.8816947033 | AH31: 1.058209983 | AI31: 21.33333333 | AJ31: 21.33333333 | AK31: 0 | AL31: 52.91049914 | AM31: 52.91049914 | AN31: 0.8816947033 | AO31: 1.058209983 | AP31: 21.33333333 | AQ31: -87.26026498 | AR31: 0.7330217539 | AS31: 0.2133333333 | AT31: 0.01905385068 | AU31: 0.01396688705 | AV31: 0.7389949651 | AW31: 0.01887547891 | AX31: 0 | AY31: 0 | AZ31: 0 | BA31: -21.33333333 | BB31: 38.66666667 | BC31: -38.21683531 | BD31: 0 | BE31: 0.0006544400838 | BF31: 0 | BG31: 3.616879992 | BH31: 0.1218421403 | BI31: 0.4406883995 | BJ31: 21.33333333 | BK31: vadose zone | BL31: =('Climate-inputs'!C27+'Climate-inputs'!D27)/2 -> 13.51388889 | BW31: 0 | BX31: 0 | BZ31: 0 | CA31: 0 | CC31: 0 | CD31: 0 | CF31: 0 | CG31: 0 | CM31: 21.33333333 | CN31: 1 | CO31: 10.40039096 | CP31: 0.3928778292 | CQ31: 0.4160156383 | CR31: 5.932339259 | CS31: 0.3371351355 | CT31: 0.009615023168 | CV31: 21.33333333 | CW31: 0.9904310534 | CY31: 0.7088516155 | CZ31: 0.6855121462 | DA31: 0.3427560731 | DB31: 0.2056536439 | DC31: 0.1713780365 | DP31: 21.33333333 | DQ31: 1 | DR31: 10.40039096 | DS31: 0.3928778292 | DT31: 0.4160156383 | DW31: 21.33333333 | DX31: 0.9904310534 | DZ31: 0.7088516155 | EA31: 0.6855121462
A32: 3.32 | B32: Vmax | C32: 0.06 | D32: 2.58 | E32: 22.3 | F32: -86.60857534 | G32: 0.2790619426 | H32: 0.7106355305 | I32: 0.1032525725 | J32: 5.162622612 | K32: 0.7203457476 | L32: 0.9900572666 | M32: 0.7203457476 | N32: 1 | O32: 0.9670742525 | P32: 0.6897014407 | Q32: 0.35 | R32: 96.14245952 | S32: 54.15615814 | T32: 2.289808783 | U32: 0.1872433333 | V32: 0 | X32: 0.001 | Z32: 0 | AB32: -3.665662433e-06 | AC32: 0.001 | AD32: 52.91149914 | AE32: 52.51988792 | AF32: 52.51988792 | AG32: 0.8751856011 | AH32: 1.050397758 | AI32: 22.3 | AJ32: 22.3 | AK32: 0 | AL32: 52.51988792 | AM32: 52.51988792 | AN32: 0.8751856011 | AO32: 1.050397758 | AP32: 22.3 | AQ32: -86.82811481 | AR32: 0.7340938777 | AS32: 0.223 | AT32: 0.01692861349 | AU32: 0.01242719152 | AV32: 0.652674706 | AW32: 0.0167689695 | AX32: 0 | AY32: 0 | AZ32: 0 | BA32: -22.3 | BB32: 37.7 | BC32: -37.27792633 | BD32: 0 | BE32: 0.0005814448437 | BF32: 0 | BG32: 3.713431973 | BH32: 0.09397958956 | BI32: 0.3489868127 | BJ32: 22.3 | BK32: vadose zone | BL32: =('Climate-inputs'!C28+'Climate-inputs'!D28)/2 -> 14.93888889 | BW32: 0 | BX32: 0 | BZ32: 0 | CA32: 0 | CC32: 0 | CD32: 0 | CF32: 0 | CG32: 0 | CM32: 22.3 | CN32: 1 | CO32: 10.00751313 | CP32: 0.384047532 | CQ32: 0.4003005251 | CR32: 5.610055108 | CS32: 0.3565027368 | CT32: 0.009992492513 | CV32: 22.3 | CW32: 0.9900572666 | CY32: 0.7203457476 | CZ32: 0.6966278254 | DA32: 0.3483139127 | DB32: 0.2089883476 | DC32: 0.1741569564 | DP32: 22.3 | DQ32: 1 | DR32: 10.00751313 | DS32: 0.384047532 | DT32: 0.4003005251 | DW32: 22.3 | DX32: 0.9900572666 | DZ32: 0.7203457476 | EA32: 0.6966278254
A33: 5 | B33: Km,dnt | C33: 5 | D33: 5 | E33: 23.26666667 | F33: -86.15556514 | G33: 0.2835460608 | H33: 0.7226123418 | I33: 0.109246193 | J33: 5.162622612 | K33: 0.7319206524 | L33: 0.9896625357 | M33: 0.7319206524 | N33: 1 | O33: 0.9670742525 | P33: 0.7005045372 | Q33: 0.35 | R33: 94.63783616 | S33: 54.15615814 | T33: 2.325675063 | U33: 0.1872433333 | V33: 0 | X33: 0.001 | Z33: 0 | AB33: -3.333900523e-06 | AC33: 0.001 | AD33: 52.52088792 | AE33: 52.1234021 | AF33: 52.1234021 | AG33: 0.8685786052 | AH33: 1.042468042 | AI33: 23.26666667 | AJ33: 23.26666667 | AK33: 0 | AL33: 52.1234021 | AM33: 52.1234021 | AN33: 0.8685786052 | AO33: 1.042468042 | AP33: 23.26666667 | AQ33: -86.38207024 | AR33: 0.7352026662 | AS33: 0.2326666667 | AT33: 0.0148033763 | AU33: 0.01088348172 | AV33: 0.5672840941 | AW33: 0.01466272237 | AX33: 0 | AY33: 0 | AZ33: 0 | BA33: -23.26666667 | BB33: 36.73333333 | BC33: -36.33749567 | BD33: 0 | BE33: 0.0005084496036 | BF33: 0 | BG33: 3.815749556 | BH33: 0.06601551114 | BI33: 0.2518986574 | BJ33: 23.26666667 | BK33: vadose zone | BL33: =('Climate-inputs'!C29+'Climate-inputs'!D29)/2 -> 14.825 | BW33: 0 | BX33: 0 | BZ33: 0 | CA33: 0 | CC33: 0 | CD33: 0 | CF33: 0 | CG33: 0 | CM33: 23.26666667 | CN33: 1 | CO33: 9.623465595 | CP33: 0.375126436 | CQ33: 0.3849386238 | CR33: 5.312906133 | CS33: 0.3764418098 | CT33: 0.01039126695 | CV33: 23.26666667 | CW33: 0.9896625357 | CY33: 0.7319206524 | CZ33: 0.7078216179 | DA33: 0.3539108089 | DB33: 0.2123464854 | DC33: 0.1769554045 | DP33: 23.26666667 | DQ33: 1 | DR33: 9.623465595 | DS33: 0.375126436 | DT33: 0.3849386238 | DW33: 23.26666667 | DX33: 0.9896625357 | DZ33: 0.7319206524 | EA33: 0.7078216179
A34: 0.186 | B34: bdnt | E34: 24.23333333 | F34: -85.6885729 | G34: 0.2880546735 | H34: 0.7346545766 | I34: 0.1155977226 | J34: 5.162622612 | K34: 0.7435587854 | L34: 0.9892454954 | M34: 0.7435587854 | N34: 1 | O34: 0.9670742525 | P34: 0.7113432445 | Q34: 0.35 | R34: 93.17222293 | S34: 54.15615814 | T34: 2.361659572 | U34: 0.1872433333 | V34: 0 | X34: 0.001 | Z34: 0 | AB34: -3.015821491e-06 | AC34: 0.001 | AD34: 52.1244021 | AE34: 51.72103709 | AF34: 51.72103709 | AG34: 0.8618736392 | AH34: 1.034420742 | AI34: 24.23333333 | AJ34: 24.23333333 | AK34: 0 | AL34: 51.72103709 | AM34: 51.72103709 | AN34: 0.8618736392 | AO34: 1.034420742 | AP34: 24.23333333 | AQ34: -85.92206902 | AR34: 0.7363484885 | AS34: 0.2423333333 | AT34: 0.01267813911 | AU34: 0.009335528569 | AV34: 0.4828432194 | AW34: 0.01255674992 | AX34: 0 | AY34: 0 | AZ34: 0 | BA34: -24.23333333 | BB34: 35.76666667 | BC34: -35.39562454 | BD34: 0 | BE34: 0.0004354543635 | BF34: 0 | BG34: 3.924177033 | BH34: 0.03799656636 | BI34: 0.1491052531 | BJ34: 24.23333333 | BK34: vadose zone | BL34: =('Climate-inputs'!C30+'Climate-inputs'!D30)/2 -> 12.225 | BW34: 0 | BX34: 0 | BZ34: 0 | CA34: 0 | CC34: 0 | CD34: 0 | CF34: 0 | CG34: 0 | CM34: 24.23333333 | CN34: 1 | CO34: 9.248339159 | CP34: 0.3661211855 | CQ34: 0.3699335664 | CR34: 5.038932024 | CS34: 0.396909502 | CT34: 0.01081275224 | CV34: 24.23333333 | CW34: 0.9892454954 | CY34: 0.7435587854 | CZ34: 0.7190765566 | DA34: 0.3595382783 | DB34: 0.215722967 | DC34: 0.1797691392 | DP34: 24.23333333 | DQ34: 1 | DR34: 9.248339159 | DS34: 0.3661211855 | DT34: 0.3699335664 | DW34: 24.23333333 | DX34: 0.9892454954 | DZ34: 0.7435587854 | EA34: 0.7190765566
A35: 0 | B35: sdn | C35: 0 | D35: 0 | E35: 25.2 | F35: -85.20757118 | G35: 0.2925803892 | H35: 0.7467424926 | I35: 0.1223285336 | J35: 5.162622612 | K35: 0.7552410667 | L35: 0.9888046899 | M35: 0.7552410667 | N35: 1 | O35: 0.9670742525 | P35: 0.7221974245 | Q35: 0.35 | R35: 91.74647706 | S35: 54.15615814 | T35: 2.39769545 | U35: 0.1872433333 | V35: 0 | X35: 0.001 | Z35: 0 | AB35: -2.712053629e-06 | AC35: 0.001 | AD35: 51.72203709 | AE35: 51.31280038 | AF35: 51.31280038 | AG35: 0.8550708279 | AH35: 1.026256008 | AI35: 25.2 | AJ35: 25.2 | AK35: 0 | AL35: 51.31280038 | AM35: 51.31280038 | AN35: 0.8550708279 | AO35: 1.026256008 | AP35: 25.2 | AQ35: -85.44807204 | AR35: 0.7375316651 | AS35: 0.252 | AT35: 0.01055290192 | AU35: 0.007783099323 | AV35: 0.3993726219 | AW35: 0.01045106509 | AX35: 0 | AY35: 0 | AZ35: 0 | BA35: -25.2 | BB35: 34.8 | BC35: -34.45239005 | BD35: 0 | BE35: 0.0003624591233 | BF35: 0 | BG35: 4.039079257 | BH35: 0.009969784251 | BI35: 0.04026874876 | BJ35: 25.2 | BK35: vadose zone | BL35: =('Climate-inputs'!C31+'Climate-inputs'!D31)/2 -> 13.41111111 | BW35: 0 | BX35: 0 | BZ35: 0 | CA35: 0 | CC35: 0 | CD35: 0 | CF35: 0 | CG35: 0 | CM35: 25.2 | CN35: 1 | CO35: 8.882217974 | CP35: 0.1322179736 | CQ35: 0.3552887189 | CR35: 4.786325355 | CS35: 0.4178570933 | CT35: 0.01125844922 | CV35: 25.2 | CW35: 0.9888046899 | CY35: 0.7552410667 | CZ35: 0.7303741901 | DA35: 0.365187095 | DB35: 0.219112257 | DC35: 0.1825935475 | DP35: 25.2 | DQ35: 1 | DR35: 8.882217974 | DS35: 0.1322179736 | DT35: 0.3552887189 | DW35: 25.2 | DX35: 0.9888046899 | DZ35: 0.7552410667 | EA35: 0.7303741901
A36: 0.25 | B36: Kb3 | C36: 0 | D36: 0 | E36: 26.16666667 | F36: -84.71255607 | G36: 0.2971152205 | H36: 0.7588547555 | I36: 0.1294612751 | J36: 5.162622612 | K36: 0.7669468778 | L36: 0.9886364866 | M36: 0.7669468778 | N36: 1 | O36: 0.9670742525 | P36: 0.7332663223 | Q36: 0.35 | R36: 90.36142531 | S36: 54.15615814 | T36: 2.43444419 | U36: 0.1872433333 | V36: 0 | X36: 0.001 | Z36: 0 | AB36: -2.423112619e-06 | AC36: 0.001 | AD36: 51.31380038 | AE36: 50.89858732 | AF36: 50.89858732 | AG36: 0.8481684272 | AH36: 1.017971746 | AI36: 26.16666667 | AJ36: 26.16666667 | AK36: 0 | AL36: 50.89858732 | AM36: 50.89858732 | AN36: 0.8481684272 | AO36: 1.017971746 | AP36: 26.16666667 | AQ36: -84.96006362 | AR36: 0.7387524666 | AS36: 0.2616666667 | AT36: 0.008427664726 | AU36: 0.006225958103 | AV36: 0.3168924721 | AW36: 0.008345681298 | AX36: 0 | AY36: 0 | AZ36: 0 | BA36: -26.16666667 | BB36: 33.83333333 | BC36: -33.50786542 | BD36: 0 | BE36: 0.0002894638832 | BF36: 0 | BG36: 4.160842866 | BH36: -0.01801775356 | BI36: -0.07496904134 | BJ36: 26.16666667 | BK36: vadose zone | BL36: =('Climate-inputs'!C32+'Climate-inputs'!D32)/2 -> 20.13888889 | BW36: 0 | BX36: 0 | BZ36: 0 | CA36: 0 | CC36: 0 | CD36: 0 | CF36: 0 | CG36: 0 | CM36: 26.16666667 | CN36: 1 | CO36: 8.75 | CP36: 0.2985809763 | CQ36: 0.35 | CR36: 4.553419664 | CS36: 0.4392303253 | CT36: 0.01142857143 | CV36: 26.16666667 | CW36: 0.9886364866 | CY36: 0.7669468778 | CZ36: 0.7416945786 | DA36: 0.3708472893 | DB36: 0.2225083736 | DC36: 0.1854236446 | DP36: 26.16666667 | DQ36: 1 | DR36: 8.75 | DS36: 0.2985809763 | DT36: 0.35 | DW36: 26.16666667 | DX36: 0.9886364866 | DZ36: 0.7669468778 | EA36: 0.7416945786
A37: 22 | B37: T | E37: 27.13333333 | F37: -84.20354719 | G37: 0.3016505898 | H37: 0.7709684556 | I37: 0.1370199481 | J37: 5.162622612 | K37: 0.7786540779 | L37: 0.9882373943 | M37: 0.7786540779 | N37: 1 | O37: 0.9670742525 | P37: 0.7441588764 | Q37: 0.35 | R37: 89.01786067 | S37: 54.15615814 | T37: 2.47060747 | U37: 0.1872433333 | V37: 0 | X37: 0.001 | Z37: 0 | AB37: -2.149631158e-06 | AC37: 0.001 | AD37: 50.89958732 | AE37: 50.47851542 | AF37: 50.47851542 | AG37: 0.8411683957 | AH37: 1.009570308 | AI37: 27.13333333 | AJ37: 27.13333333 | AK37: 0 | AL37: 50.47851542 | AM37: 50.47851542 | AN37: 0.8411683957 | AO37: 1.009570308 | AP37: 27.13333333 | AQ37: -84.45805163 | AR37: 0.7400111124 | AS37: 0.2713333333 | AT37: 0.006302427534 | AU37: 0.00466386641 | AV37: 0.2354250525 | AW37: 0.006240612988 | AX37: 0 | AY37: 0 | AZ37: 0 | BA37: -27.13333333 | BB37: 32.86666667 | BC37: -32.56212009 | BD37: 0 | BE37: 0.0002164686431 | BF37: 0 | BG37: 4.289877588 | BH37: -0.04591922867 | BI37: -0.1969878699 | BJ37: 27.13333333 | BK37: vadose zone | BL37: =('Climate-inputs'!C33+'Climate-inputs'!D33)/2 -> 19.68333333 | BW37: 0 | BX37: 0 | BZ37: 0 | CA37: 0 | CC37: 0 | CD37: 0 | CF37: 0 | CG37: 0 | CM37: 27.13333333 | CN37: 1 | CO37: 8.451419024 | CP37: 0.2927174286 | CQ37: 0.3380567609 | CR37: 4.338678457 | CS37: 0.4609698598 | CT37: 0.0118323325 | CV37: 27.13333333 | CW37: 0.9882373943 | CY37: 0.7786540779 | CZ37: 0.7530163104 | DA37: 0.3765081552 | DB37: 0.2259048931 | DC37: 0.1882540776 | DP37: 27.13333333 | DQ37: 1 | DR37: 8.451419024 | DS37: 0.2927174286 | DT37: 0.3380567609 | DW37: 27.13333333 | DX37: 0.9882373943 | DZ37: 0.7786540779 | EA37: 0.7530163104
A38: 0.35 | B38: kd | C38: 1.46 | D38: 0.35 | E38: 28.1 | F38: -83.68058758 | G38: 0.3061773449 | H38: 0.7830591478 | I38: 0.1450299873 | J38: 5.162622612 | K38: 0.7903390422 | L38: 0.987817957 | M38: 0.7903390422 | N38: 1 | O38: 0.9670742525 | P38: 0.7550056015 | Q38: 0.35 | R38: 87.7165387 | S38: 54.15615814 | T38: 2.506618597 | U38: 0.1872433333 | V38: 0 | X38: 0.001 | Z38: 0 | AB38: -1.892128438e-06 | AC38: 0.001 | AD38: 50.47951542 | AE38: 50.05262886 | AF38: 50.05262886 | AG38: 0.8340714691 | AH38: 1.001052577 | AI38: 28.1 | AJ38: 28.1 | AK38: 0 | AL38: 50.05262886 | AM38: 50.05262886 | AN38: 0.8340714691 | AO38: 1.001052577 | AP38: 28.1 | AQ38: -83.94206739 | AR38: 0.7413077709 | AS38: 0.281 | AT38: 0.004177190342 | AU38: 0.003096583661 | AV38: 0.1549921527 | AW38: 0.004135875079 | AX38: 0 | AY38: 0 | AZ38: 0 | BA38: -28.1 | BB38: 31.9 | BC38: -31.61521995 | BD38: 0 | BE38: 0.000143473403 | BF38: 0 | BG38: 4.426617619 | BH38: -0.07368839804 | BI38: -0.326190361 | BJ38: 28.1 | BK38: vadose zone | BL38: =('Climate-inputs'!C34+'Climate-inputs'!D34)/2 -> 17.00833333 | BW38: 0 | BX38: 0 | BZ38: 0 | CA38: 0 | CC38: 0 | CD38: 0 | CF38: 0 | CG38: 0 | CM38: 28.1 | CN38: 1 | CO38: 8.158701595 | CP38: 0.286744228 | CQ38: 0.3263480638 | CR38: 4.140685074 | CS38: 0.4830118602 | CT38: 0.01225685225 | CV38: 28.1 | CW38: 0.987817957 | CY38: 0.7903390422 | CZ38: 0.7643165384 | DA38: 0.3821582692 | DB38: 0.2292949615 | DC38: 0.1910791346 | DP38: 28.1 | DQ38: 1 | DR38: 8.158701595 | DS38: 0.286744228 | DT38: 0.3263480638 | DW38: 28.1 | DX38: 0.987817957 | DZ38: 0.7903390422 | EA38: 0.7643165384
A39: 0.2 | B39: fr | C39: 0.2 | D39: 0.2 | E39: 29.06666667 | F39: -83.14374338 | G39: 0.3106857829 | H39: 0.795100916 | I39: 0.153518346 | J39: 5.162622612 | K39: 0.8019767242 | L39: 0.9873770258 | M39: 0.8019767242 | N39: 1 | O39: 0.9670742525 | P39: 0.7657810278 | Q39: 0.35 | R39: 86.45817362 | S39: 54.15615814 | T39: 2.542393012 | U39: 0.1872433333 | V39: 0 | X39: 0.001 | Z39: 0 | AB39: -1.651066995e-06 | AC39: 0.001 | AD39: 50.05362886 | AE39: 49.62098678 | AF39: 49.62098678 | AG39: 0.8268786332 | AH39: 0.9924197356 | AI39: 29.06666667 | AJ39: 29.06666667 | AK39: 0 | AL39: 49.62098678 | AM39: 49.62098678 | AN39: 0.8268786332 | AO39: 0.9924197356 | AP39: 29.06666667 | AQ39: -83.41216548 | AR39: 0.7426425592 | AS39: 0.2906666667 | AT39: 0.002051953151 | AU39: 0.001523867739 | AV39: 0.07561582094 | AW39: 0.002031483151 | AX39: 0 | AY39: 0 | AZ39: 0 | BA39: -29.06666667 | BB39: 30.93333333 | BC39: -30.66722749 | BD39: 0 | BE39: 7.047816287e-05 | BF39: 0 | BG39: 4.571523079 | BH39: -0.101279898 | BI39: -0.463003391 | BJ39: 29.06666667 | BK39: vadose zone | BL39: =('Climate-inputs'!C35+'Climate-inputs'!D35)/2 -> 17.30277778 | BW39: 0 | BX39: 0 | BZ39: 0 | CA39: 0 | CC39: 0 | CD39: 0 | CF39: 0 | CG39: 0 | CM39: 29.06666667 | CN39: 1 | CO39: 7.871957367 | CP39: 0.2806667614 | CQ39: 0.3148782947 | CR39: 3.958133339 | CS39: 0.5052886875 | CT39: 0.01270332083 | CV39: 29.06666667 | CW39: 0.9873770258 | CY39: 0.8019767242 | CZ39: 0.7755710411 | DA39: 0.3877855205 | DB39: 0.2326713123 | DC39: 0.1938927603 | DP39: 29.06666667 | DQ39: 1 | DR39: 7.871957367 | DS39: 0.2806667614 | DT39: 0.3148782947 | DW39: 29.06666667 | DX39: 0.9873770258 | DZ39: 0.8019767242 | EA39: 0.7755710411
A40: 25 | B40: Topt-nit | E40: 30.03333333 | F40: -82.59310343 | G40: 0.3151631677 | H40: 0.8070597428 | I40: 0.1625135869 | J40: 5.162622612 | K40: 0.8135342481 | L40: 0.9869133935 | M40: 0.8135342481 | N40: 1 | O40: 0.9670742525 | P40: 0.776452163 | Q40: 0.35 | R40: 85.24410687 | S40: 54.15615814 | T40: 2.577821181 | U40: 0.1872433333 | V40: 0 | X40: 0.001 | Z40: 0 | AB40: -1.426843255e-06 | AC40: 0.001 | AD40: 49.62198678 | AE40: 49.18366757 | AF40: 49.18366757 | AG40: 0.8195911943 | AH40: 0.9836733514 | AI40: 30.03333333 | AJ40: 30.03333333 | AK40: 0 | AL40: 49.18366757 | AM40: 49.18366757 | AN40: 0.8195911943 | AO40: 0.9836733514 | AP40: 30.03333333 | AQ40: -82.86842341 | AR40: 0 | AS40: 0.3003333333 | AT40: 0 | AU40: 0 | AV40: 0 | AW40: 0 | AX40: 0 | AY40: 0 | AZ40: 0 | BA40: -30.03333333 | BB40: 29.96666667 | BC40: -29.71820195 | BD40: 0 | BE40: 0 | BF40: 0 | BG40: 4.725081569 | BH40: -0.1286495357 | BI40: -0.6078795498 | BJ40: 30.03333333 | BK40: vadose zone | BL40: =('Climate-inputs'!C36+'Climate-inputs'!D36)/2 -> 20.075 | BW40: 0 | BX40: 0 | BZ40: 0 | CA40: 0 | CC40: 0 | CD40: 0 | CF40: 0 | CG40: 0 | CM40: 30.03333333 | CN40: 1 | CO40: 7.591290606 | CP40: 0.2744890498 | CQ40: 0.3036516242 | CR40: 3.789818947 | CS40: 0.5277296958 | CT40: 0.01317299063 | CV40: 30.03333333 | CW40: 0.9869133935 | CY40: 0.8135342481 | CZ40: 0.7867480248 | DA40: 0.3933740124 | DB40: 0.2360244075 | DC40: 0.1966870062 | DP40: 30.03333333 | DQ40: 1 | DR40: 7.591290606 | DS40: 0.2744890498 | DT40: 0.3036516242 | DW40: 30.03333333 | DX40: 0.9869133935 | DZ40: 0.8135342481 | EA40: 0.7867480248
A41: 25 | B41: Topt-dnt | E41: 31 | F41: -82.02877866 | G41: 0.3195308488 | H41: 0.8187255576 | I41: 0.1720459786 | J41: 5.162622612 | K41: 0.8248085926 | L41: 0.9864257978 | M41: 0.8248085926 | N41: 1 | O41: 0.9670742525 | P41: 0.7868236751 | Q41: 0.35 | R41: 84.09257051 | S41: 54.15615814 | T41: 2.612254601 | U41: 0.1872433333 | V41: 0 | X41: 0.001 | Z41: 0 | AB41: -1.21981536e-06 | AC41: 0.001 | AD41: 49.18466757 | AE41: 48.7408603 | AF41: 48.7408603 | AG41: 0.8122123029 | AH41: 0.9748172059 | AI41: 31 | AJ41: 31 | AK41: 0 | AL41: 48.7408603 | AM41: 48.7408603 | AN41: 0.8122123029 | AO41: 0.9748172059 | AP41: 31 | AQ41: 0 | AR41: 0 | AS41: 0.31 | AT41: 0 | AU41: 0 | AV41: 0 | AW41: 0 | AX41: 0 | AY41: 0 | AZ41: 0 | BA41: -31 | BB41: 29 | BC41: -28.76819948 | BD41: 0 | BE41: 0 | BF41: 0 | BG41: 4.887809803 | BH41: -0.1557545647 | BI41: -0.7612986881 | BJ41: 31 | BK41: vadose zone | BL41: =('Climate-inputs'!C37+'Climate-inputs'!D37)/2 -> 21.93611111 | BW41: 0 | BX41: 0 | BZ41: 0 | CA41: 0 | CC41: 0 | CD41: 0 | CF41: 0 | CG41: 0 | CM41: 31 | CN41: 1 | CO41: 7.316801556 | CP41: 0.2681623949 | CQ41: 0.2926720622 | CR41: 3.634631517 | CS41: 0.5502621079 | CT41: 0.013667174 | CV41: 31 | CW41: 0.9864257978 | CY41: 0.8248085926 | CZ41: 0.7976511532 | DA41: 0.3988255766 | DB41: 0.2392953459 | DC41: 0.1994127883 | DP41: 31 | DQ41: 1 | DR41: 7.316801556 | DS41: 0.2681623949 | DT41: 0.2926720622 | DW41: 31 | DX41: 0.9864257978 | DZ41: 0.8248085926 | EA41: 0.7976511532
A42: 60 | B42: Soil depth | E42: 31.96666667 | F42: -81.45090138 | G42: 0.3238482022 | H42: 0.8302569502 | I42: 0.1821475971 | J42: 5.162622612 | K42: 0.8359530257 | L42: 0.9859130275 | M42: 0.8359530257 | N42: 1 | O42: 0.9670742525 | P42: 0.7970403353 | Q42: 0.35 | R42: 82.98482933 | S42: 54.15615814 | T42: 2.646173913 | U42: 0.1872433333 | V42: 0 | X42: 0.001 | Z42: 0 | AB42: -1.030192891e-06 | AC42: 0.001 | AD42: 48.7418603 | AE42: 48.29267269 | AF42: 48.29267269 | AG42: 0.8047437542 | AH42: 0.9658534538 | AI42: 31.96666667 | AJ42: 31.96666667 | AK42: 0 | AL42: 48.29267269 | AM42: 48.29267269 | AN42: 0.8047437542 | AO42: 0.9658534538 | AP42: 31.96666667 | AQ42: 0 | AR42: 0 | AS42: 0.3196666667 | AT42: 0 | AU42: 0 | AV42: 0 | AW42: 0 | AX42: 0 | AY42: 0 | AZ42: 0 | BA42: -31.96666667 | BB42: 28.03333333 | BC42: -27.81727327 | BD42: 0 | BE42: 0 | BF42: 0 | BG42: 5.060255353 | BH42: -0.1825539404 | BI42: -0.9237695544 | BJ42: 31.96666667 | BK42: vadose zone | BL42: =('Climate-inputs'!C38+'Climate-inputs'!D38)/2 -> 21.80833333 | BW42: 0 | BX42: 0 | BZ42: 0 | CA42: 0 | CC42: 0 | CD42: 0 | CF42: 0 | CG42: 0 | CM42: 31.96666667 | CN42: 1 | CO42: 7.048639161 | CP42: 0.2617590524 | CQ42: 0.2819455664 | CR42: 3.491547268 | CS42: 0.5728119503 | CT42: 0.01418713566 | CV42: 31.96666667 | CW42: 0.9859130275 | CY42: 0.8359530257 | CZ42: 0.8084286475 | DA42: 0.4042143237 | DB42: 0.2425285942 | DC42: 0.2021071619 | DP42: 31.96666667 | DQ42: 1 | DR42: 7.048639161 | DS42: 0.2617590524 | DT42: 0.2819455664 | DW42: 31.96666667 | DX42: 0.9859130275 | DZ42: 0.8359530257 | EA42: 0.8084286475
A43: 0.9666666667 | B43: Dz | E43: 32.93333333 | F43: -80.85962441 | G43: 0.3281037824 | H43: 0.8416233504 | I43: 0.1928524336 | J43: 5.162622612 | K43: 0.8469380031 | L43: 0.9853737081 | M43: 0.8469380031 | N43: 1 | O43: 0.9670742525 | P43: 0.8070722436 | Q43: 0.35 | R43: 81.92146755 | S43: 54.15615814 | T43: 2.679479849 | U43: 0.1872433333 | V43: 0 | X43: 0.001 | Z43: 0 | AB43: -8.58081421e-07 | AC43: 0.001 | AD43: 48.29367269 | AE43: 47.8392298 | AF43: 47.8392298 | AG43: 0.7971876321 | AH43: 0.9567845961 | AI43: 32.93333333 | AJ43: 32.93333333 | AK43: 0 | AL43: 47.8392298 | AM43: 47.8392298 | AN43: 0.7971876321 | AO43: 0.9567845961 | AP43: 32.93333333 | AQ43: 0 | AR43: 0 | AS43: 0.3293333333 | AT43: 0 | AU43: 0 | AV43: 0 | AW43: 0 | AX43: 0 | AY43: 0 | AZ43: 0 | BA43: -32.93333333 | BB43: 27.06666667 | BC43: -26.86547372 | BD43: 0 | BE43: 0 | BF43: 0 | BG43: 5.242998488 | BH43: -0.209008553 | BI43: -1.095831527 | BJ43: 32.93333333 | BK43: vadose zone | BL43: =('Climate-inputs'!C39+'Climate-inputs'!D39)/2 -> 20.63055556 | BW43: 0 | BX43: 0 | BZ43: 0 | CA43: 0 | CC43: 0 | CD43: 0 | CF43: 0 | CG43: 0 | CM43: 32.93333333 | CN43: 1 | CO43: 6.786880109 | CP43: 0.2552872099 | CQ43: 0.2714752043 | CR43: 3.359622264 | CS43: 0.5953050204 | CT43: 0.01473431067 | CV43: 32.93333333 | CW43: 0.9853737081 | CY43: 0.8469380031 | CZ43: 0.8190519363 | DA43: 0.4095259681 | DB43: 0.2457155809 | DC43: 0.2047629841 | DP43: 32.93333333 | DQ43: 1 | DR43: 6.786880109 | DS43: 0.2552872099 | DT43: 0.2714752043 | DW43: 32.93333333 | DX43: 0.9853737081 | DZ43: 0.8469380031 | EA43: 0.8190519363
A44: 0.9670742525 | B44: ftdnt | E44: 33.9 | F44: -80.25512013 | G44: 0.3322858826 | H44: 0.8527934899 | I44: 0.2041965095 | J44: 5.162622612 | K44: 0.8577333057 | L44: 0.9848064043 | M44: 0.8577333057 | N44: 0.9484446285 | O44: 0.9172163802 | P44: 0.8168888325 | Q44: 0.35 | R44: 80.90300211 | S44: 51.36411729 | T44: 2.712070924 | U44: 0.1872433333 | V44: 0 | X44: 0.001 | Z44: 0 | AB44: -7.03469837e-07 | AC44: 0.001 | AD44: 47.8402298 | AE44: 47.38067431 | AF44: 47.38067431 | AG44: 0.7895463142 | AH44: 0.9476134863 | AI44: 33.9 | AJ44: 33.9 | AK44: 0 | AL44: 47.38067431 | AM44: 47.38067431 | AN44: 0.7895463142 | AO44: 0.9476134863 | AP44: 33.9 | AQ44: 0 | AR44: 0 | AS44: 0.339 | AT44: 0 | AU44: 0 | AV44: 0 | AW44: 0 | AX44: 0 | AY44: 0 | AZ44: 0 | BA44: -33.9 | BB44: 26.1 | BC44: -25.91284859 | BD44: 0 | BE44: 0 | BF44: 0 | BG44: 5.436654129 | BH44: -0.2350814343 | BI44: -1.278056451 | BJ44: 33.9 | BK44: vadose zone | BL44: =('Climate-inputs'!C40+'Climate-inputs'!D40)/2 -> 23.48888889 | BW44: 0 | BX44: 0 | BZ44: 0 | CA44: 0 | CC44: 0 | CD44: 0 | CF44: 0 | CG44: 0 | CM44: 33.9 | CN44: 1 | CO44: 6.531592899 | CP44: 0.2487557933 | CQ44: 0.2612637159 | CR44: 3.237986186 | CS44: 0.6176678605 | CT44: 0.01531020098 | CV44: 33.9 | CW44: 0.9848064043 | CY44: 0.8577333057 | CZ44: 0.8294917955 | DA44: 0.4147458977 | DB44: 0.2488475386 | DC44: 0.2073729489 | DP44: 33.9 | DQ44: 1 | DR44: 6.531592899 | DS44: 0.2487557933 | DT44: 0.2612637159 | DW44: 33.9 | DX44: 0.9848064043 | DZ44: 0.8577333057 | EA44: 0.8294917955
A45: 0.9670742525 | B45: ftnit | E45: 34.86666667 | F45: -79.63757942 | G45: 0.3363826283 | H45: 0.8637356524 | I45: 0.2162179967 | J45: 5.162622612 | K45: 0.8683082815 | L45: 0.9842096198 | M45: 0.8683082815 | N45: 0.8779447899 | O45: 0.8490378015 | P45: 0.8264591066 | Q45: 0.35 | R45: 79.92987732 | S45: 47.54611688 | T45: 2.743844234 | U45: 0.1872433333 | V45: 0 | X45: 0.001 | Z45: 0 | AB45: -5.662176363e-07 | AC45: 0.001 | AD45: 47.38167431 | AE45: 46.91716671 | AF45: 46.91716671 | AG45: 0.7818224747 | AH45: 0.9383433341 | AI45: 34.86666667 | AJ45: 34.86666667 | AK45: 0 | AL45: 46.91716671 | AM45: 46.91716671 | AN45: 0.7818224747 | AO45: 0.9383433341 | AP45: 34.86666667 | AQ45: 0 | AR45: 0 | AS45: 0.3486666667 | AT45: 0 | AU45: 0 | AV45: 0 | AW45: 0 | AX45: 0 | AY45: 0 | AZ45: 0 | BA45: -34.86666667 | BB45: 25.13333333 | BC45: -24.95944308 | BD45: 0 | BE45: 0 | BF45: 0 | BG45: 5.641873916 | BH45: -0.2607379383 | BI45: -1.471050573 | BJ45: 34.86666667 | BK45: vadose zone | BL45: =('Climate-inputs'!C41+'Climate-inputs'!D41)/2 -> 20.79166667 | BW45: 0 | BX45: 0 | BZ45: 0 | CA45: 0 | CC45: 0 | CD45: 0 | CF45: 0 | CG45: 0 | CM45: 34.86666667 | CN45: 1 | CO45: 6.282837105 | CP45: 0.242174431 | CQ45: 0.2513134842 | CR45: 3.125836596 | CS45: 0.6398287111 | CT45: 0.01591637636 | CV45: 34.86666667 | CW45: 0.9842096198 | CY45: 0.8683082815 | CZ45: 0.8397185823 | DA45: 0.4198592912 | DB45: 0.2519155747 | DC45: 0.2099296456 | DP45: 34.86666667 | DQ45: 1 | DR45: 6.282837105 | DS45: 0.242174431 | DT45: 0.2513134842 | DW45: 34.86666667 | DX45: 0.9842096198 | DZ45: 0.8683082815 | EA45: 0.8397185823
A46: 1.51 | B46: rho | C46: 1.5 | D46: 1.5 | E46: 35.83333333 | F46: -79.00721045 | G46: 0.3403820823 | H46: 0.8744179548 | I46: 0.228957347 | J46: 5.162622612 | K46: 0.8786321174 | L46: 0.9835817972 | M46: 0.8786321174 | N46: 0.8091192172 | O46: 0.7824783621 | P46: 0.8357519103 | Q46: 0.35 | R46: 79.00245948 | S46: 43.81878828 | T46: 2.774696342 | U46: 0.1872433333 | V46: 3.100347905e-285 | X46: 0.001 | Z46: 0 | AB46: -4.46042506e-07 | AC46: 0.001 | AD46: 46.91816671 | AE46: 46.44888529 | AF46: 46.44888529 | AG46: 0.7740190849 | AH46: 0.9289777057 | AI46: 35.83333333 | AJ46: 35.83333333 | AK46: 0 | AL46: 46.44888529 | AM46: 46.44888529 | AN46: 0.7740190849 | AO46: 0.9289777057 | AP46: 35.83333333 | AQ46: 0 | AR46: 0 | AS46: 0.3583333333 | AT46: 0 | AU46: 0 | AV46: 0 | AW46: 0 | AX46: 0 | AY46: 0 | AZ46: 0 | BA46: -35.83333333 | BB46: 24.16666667 | BC46: -24.00529998 | BD46: 0 | BE46: 0 | BF46: 0 | BG46: 5.859348401 | BH46: -0.2859458917 | BI46: -1.675456603 | BJ46: 35.83333333 | BK46: vadose zone | BL46: =('Climate-inputs'!C42+'Climate-inputs'!D42)/2 -> 17.2 | BW46: 0 | BX46: 0 | BZ46: 0 | CA46: 0 | CC46: 0 | CD46: 0 | CF46: 0 | CG46: 0 | CM46: 35.83333333 | CN46: 1 | CO46: 6.040662674 | CP46: 0.2355534055 | CQ46: 0.241626507 | CR46: 3.022433633 | CS46: 0.6617184172 | CT46: 0.01655447513 | CV46: 35.83333333 | CW46: 0.9835817972 | CY46: 0.8786321174 | CZ46: 0.8497024982 | DA46: 0.4248512491 | DB46: 0.2549107495 | DC46: 0.2124256246 | DP46: 35.83333333 | DQ46: 1 | DR46: 6.040662674 | DS46: 0.2355534055 | DT46: 0.241626507 | DW46: 35.83333333 | DX46: 0.9835817972 | DZ46: 0.8786321174 | EA46: 0.8497024982
A47: 1 | B47: R'(NH4) | E47: 36.8 | F47: -78.3642375 | G47: 0.3442723612 | H47: 0.8848086569 | I47: 0.2424574276 | J47: 5.162622612 | K47: 0.8886741382 | L47: 0.9829213182 | M47: 0.8886741382 | N47: 0.7421724118 | O47: 0.7177358304 | P47: 0.8447362218 | Q47: 0.35 | R47: 78.12103142 | S47: 40.1932065 | T47: 2.804524256 | U47: 0.1872433333 | V47: 4.617877495e-259 | X47: 0.001 | Z47: 0 | AB47: -3.425086135e-07 | AC47: 0.001 | AD47: 46.44988529 | AE47: 45.97602602 | AF47: 45.97602602 | AG47: 0.7661394104 | AH47: 0.9195205203 | AI47: 36.8 | AJ47: 36.8 | AK47: 0 | AL47: 45.97602602 | AM47: 45.97602602 | AN47: 0.7661394104 | AO47: 0.9195205203 | AP47: 36.8 | AQ47: 0 | AR47: 0 | AS47: 0.368 | AT47: 0 | AU47: 0 | AV47: 0 | AW47: 0 | AX47: 0 | AY47: 0 | AZ47: 0 | BA47: -36.8 | BB47: 23.2 | BC47: -23.05045981 | BD47: 0 | BE47: 0 | BF47: 0 | BG47: 6.089809374 | BH47: -0.310675716 | BI47: -1.891955888 | BJ47: 36.8 | BK47: vadose zone | BL47: =('Climate-inputs'!C43+'Climate-inputs'!D43)/2 -> 15.73333333 | BW47: 0 | BX47: 0 | BZ47: 0 | CA47: 0 | CC47: 0 | CD47: 0 | CF47: 0 | CG47: 0 | CM47: 36.8 | CN47: 1 | CO47: 5.805109269 | CP47: 0.2289035946 | CQ47: 0.2322043708 | CR47: 2.927095143 | CS47: 0.6832712646 | CT47: 0.0172262046 | CV47: 36.8 | CW47: 0.9829213182 | CY47: 0.8886741382 | CZ47: 0.859413878 | DA47: 0.429706939 | DB47: 0.2578241634 | DC47: 0.2148534695 | DP47: 36.8 | DQ47: 1 | DR47: 5.805109269 | DS47: 0.2289035946 | DT47: 0.2322043708 | DW47: 36.8 | DX47: 0.9829213182 | DZ47: 0.8886741382 | EA47: 0.859413878
A48: 1 | B48: R (NO3) | E48: 37.76666667 | F48: -77.70889964 | G48: 0.3480417597 | H48: 0.8948764949 | I48: 0.2567636654 | J48: 5.162622612 | K48: 0.8984041293 | L48: 0.982226504 | M48: 0.8984041293 | N48: 0.6773058045 | O48: 0.6550050046 | P48: 0.8533814708 | Q48: 0.35 | R48: 77.2857871 | S48: 36.68028026 | T48: 2.833226483 | U48: 0.1872433333 | V48: 2.967469852e-234 | X48: 0.001 | Z48: 0 | AB48: -2.550155642e-07 | AC48: 0.001 | AD48: 45.97702602 | AE48: 45.49880218 | AF48: 45.49880218 | AG48: 0.7581870051 | AH48: 0.9099760435 | AI48: 37.76666667 | AJ48: 37.76666667 | AK48: 0 | AL48: 45.49880218 | AM48: 45.49880218 | AN48: 0.7581870051 | AO48: 0.9099760435 | AP48: 37.76666667 | AQ48: 0 | AR48: 0 | AS48: 0.3776666667 | AT48: 0 | AU48: 0 | AV48: 0 | AW48: 0 | AX48: 0 | AY48: 0 | AZ48: 0 | BA48: -37.76666667 | BB48: 22.23333333 | BC48: -22.09496092 | BD48: 0 | BE48: 0 | BF48: 0 | BG48: 6.334032324 | BH48: -0.3349005186 | BI48: -2.12127071 | BJ48: 37.76666667 | BK48: vadose zone | BL48: =('Climate-inputs'!C44+'Climate-inputs'!D44)/2 -> 14.39444444 | BW48: 0 | BX48: 0 | BZ48: 0 | CA48: 0 | CC48: 0 | CD48: 0 | CF48: 0 | CG48: 0 | CM48: 37.76666667 | CN48: 1 | CO48: 5.576205674 | CP48: 0.2222363999 | CQ48: 0.223048227 | CR48: 2.839192172 | CS48: 0.7044257236 | CT48: 0.01793334139 | CV48: 37.76666667 | CW48: 0.982226504 | CY48: 0.8984041293 | CZ48: 0.8688235018 | DA48: 0.4344117509 | DB48: 0.2606470506 | DC48: 0.2172058755 | DP48: 37.76666667 | DQ48: 1 | DR48: 5.576205674 | DS48: 0.2222363999 | DT48: 0.223048227 | DW48: 37.76666667 | DX48: 0.982226504 | DZ48: 0.8984041293 | EA48: 0.8688235018
A49: 0.001 | B49: MinCNH4 | E49: 38.73333333 | F49: -77.04144939 | G49: 0.3516788838 | H49: 0.9045910359 | I49: 0.2719242002 | J49: 5.162622612 | K49: 0.9077926789 | L49: 0.9814956165 | M49: 0.9077926789 | N49: 0.6147154737 | O49: 0.5944755072 | P49: 0.861657874 | Q49: 0.35 | R49: 76.49682623 | S49: 33.2906284 | T49: 2.860704142 | U49: 0.1872433333 | V49: 8.155505187e-211 | X49: 0.001 | Z49: 0 | AB49: -0.0009231689766 | AC49: 0.001 | AD49: 45.49980218 | AE49: 45.01661311 | AF49: 45.01661311 | AG49: 0.7501518599 | AH49: 0.9003322622 | AI49: 38.73333333 | AJ49: 38.73333333 | AK49: 0 | AL49: 45.01661311 | AM49: 45.01661311 | AN49: 0.7501518599 | AO49: 0.9003322622 | AP49: 38.73333333 | AQ49: 0 | AR49: 0 | AS49: 0.3873333333 | AT49: 0 | AU49: 0 | AV49: 0 | AW49: 0 | AX49: 0 | AY49: 0 | AZ49: 0 | BA49: -38.73333333 | BB49: 21.26666667 | BC49: -21.13883959 | BD49: 0 | BE49: 0 | BF49: 0 | BG49: 6.592839045 | BH49: -0.3585961551 | BI49: -2.364166733 | BJ49: 38.73333333 | BK49: vadose zone | BL49: =('Climate-inputs'!C45+'Climate-inputs'!D45)/2 -> 18.04444444 | BW49: 0 | BX49: 0 | BZ49: 0 | CA49: 0 | CC49: 0 | CD49: 0 | CF49: 0 | CG49: 0 | CM49: 38.73333333 | CN49: 1 | CO49: 5.353969274 | CP49: 0.2155636646 | CQ49: 0.214158771 | CR49: 2.758144817 | CS49: 0.725125087 | CT49: 0.01867773139 | CV49: 38.73333333 | CW49: 0.9814956165 | CY49: 0.9077926789 | CZ49: 0.8779029264 | DA49: 0.4389514632 | DB49: 0.2633708779 | DC49: 0.2194757316 | DP49: 38.73333333 | DQ49: 1 | DR49: 5.353969274 | DS49: 0.2155636646 | DT49: 0.214158771 | DW49: 38.73333333 | DX49: 0.9814956165 | DZ49: 0.9077926789 | EA49: 0.8779029264
A50: 0 | B50: MinCNO3 | E50: 39.7 | F50: -76.36215131 | G50: 0.3551727885 | H50: 0.9139230462 | I50: 0.2879900462 | J50: 5.162622612 | K50: 0.9168115346 | L50: 0.9807268587 | M50: 0.9168115346 | N50: 0.5545897697 | O50: 0.536329487 | P50: 0.8695367839 | Q50: 0.35 | R50: 75.75414908 | S50: 30.03445127 | T50: 2.886862122 | U50: 0.1872433333 | V50: 9.567510323e-189 | X50: 0.001 | Z50: 0 | AB50: -0.0007125234241 | AC50: 0.001 | AD50: 45.01761311 | AE50: 44.53072678 | AF50: 44.53072678 | AG50: 0.7420551038 | AH50: 0.8906145355 | AI50: 39.7 | AJ50: 39.7 | AK50: 0 | AL50: 44.53072678 | AM50: 44.53072678 | AN50: 0.7420551038 | AO50: 0.8906145355 | AP50: 39.7 | AQ50: 0 | AR50: 0 | AS50: 0.397 | AT50: 0 | AU50: 0 | AV50: 0 | AW50: 0 | AX50: 0 | AY50: 0 | AZ50: 0 | BA50: -39.7 | BB50: 20.3 | BC50: -20.18213016 | BD50: 0 | BE50: 0 | BF50: 0 | BG50: 6.867100409 | BH50: -0.3817412624 | BI50: -2.621455579 | BJ50: 39.7 | BK50: vadose zone | BL50: =('Climate-inputs'!C46+'Climate-inputs'!D46)/2 -> 17.35555556 | BW50: 0 | BX50: 0 | BZ50: 0 | CA50: 0 | CC50: 0 | CD50: 0 | CF50: 0 | CG50: 0 | CM50: 39.7 | CN50: 1 | CO50: 5.13840561 | CP50: 0.2088975819 | CQ50: 0.2055362244 | CR50: 2.683418404 | CS50: 0.7453179858 | CT50: 0.01946128967 | CV50: 39.7 | CW50: 0.9807268587 | CY50: 0.9168115346 | CZ50: 0.8866248295 | DA50: 0.4433124147 | DB50: 0.2659874488 | DC50: 0.2216562074 | DP50: 39.7 | DQ50: 1 | DR50: 5.13840561 | DS50: 0.2088975819 | DT50: 0.2055362244 | DW50: 39.7 | DX50: 0.9807268587 | DZ50: 0.9168115346 | EA50: 0.8866248295
A51: 30 | B51: Tmax | E51: 40.66666667 | F51: -75.67128068 | G51: 0.3585131189 | H51: 0.9228448689 | I51: 0.3050152641 | J51: 5.162622612 | K51: 0.9254339673 | L51: 0.9799183765 | M51: 0.9254339673 | N51: 0.4971068849 | O51: 0.4807392692 | P51: 0.8769910449 | Q51: 0.35 | R51: 75.05765139 | S51: 26.92139907 | T51: 2.911610269 | U51: 0.1872433333 | V51: 4.816226012e-168 | X51: 0.001 | Z51: 0 | AB51: -0.0005526103925 | AC51: 0.001 | AD51: 44.53172678 | AE51: 44.04135827 | AF51: 44.04135827 | AG51: 0.7339003211 | AH51: 0.8808271654 | AI51: 40.66666667 | AJ51: 40.66666667 | AK51: 0 | AL51: 44.04135827 | AM51: 44.04135827 | AN51: 0.7339003211 | AO51: 0.8808271654 | AP51: 40.66666667 | AQ51: 0 | AR51: 0 | AS51: 0.4066666667 | AT51: 0 | AU51: 0 | AV51: 0 | AW51: 0 | AX51: 0 | AY51: 0 | AZ51: 0 | BA51: -40.66666667 | BB51: 19.33333333 | BC51: -19.22486509 | BD51: 0 | BE51: 0 | BF51: 0 | BG51: 7.157739289 | BH51: -0.404317264 | BI51: -2.893997566 | BJ51: 40.66666667 | BK51: vadose zone | BL51: =('Climate-inputs'!C47+'Climate-inputs'!D47)/2 -> 12.46666667 | BW51: 0 | BX51: 0 | BZ51: 0 | CA51: 0 | CC51: 0 | CD51: 0 | CF51: 0 | CG51: 0 | CM51: 40.66666667 | CN51: 1 | CO51: 4.929508028 | CP51: 0.2022505933 | CQ51: 0.1971803211 | CR51: 2.614519959 | CS51: 0.7649587808 | CT51: 0.02028600003 | CV51: 40.66666667 | CW51: 0.9799183765 | CY51: 0.9254339673 | CZ51: 0.8949633621 | DA51: 0.4474816811 | DB51: 0.2684890086 | DC51: 0.2237408405 | DP51: 40.66666667 | DQ51: 1 | DR51: 4.929508028 | DS51: 0.2022505933 | DT51: 0.1971803211 | DW51: 40.66666667 | DX51: 0.9799183765 | DZ51: 0.9254339673 | EA51: 0.8949633621
A52: 20 | B52: Tmin | E52: 41.63333333 | F52: -74.96912204 | G52: 0.3616902523 | H52: 0.9313308021 | I52: 0.3230571429 | J52: 5.162622612 | K52: 0.9336351376 | L52: 0.9790682601 | M52: 0.9336351376 | N52: 0.442432416 | O52: 0.427864998 | P52: 0.8839953499 | Q52: 0.35 | R52: 74.40711952 | S52: 23.96043989 | T52: 2.934864562 | U52: 0.1872433333 | V52: 1.053701692e-148 | X52: 0.001 | Z52: 0 | AB52: -0.0005311941447 | AC52: 0.001 | AD52: 44.04235827 | AE52: 43.5486581 | AF52: 43.5486581 | AG52: 0.72569002 | AH52: 0.870973162 | AI52: 41.63333333 | AJ52: 41.63333333 | AK52: 0 | AL52: 43.5486581 | AM52: 43.5486581 | AN52: 0.72569002 | AO52: 0.870973162 | AP52: 41.63333333 | AQ52: 0 | AR52: 0 | AS52: 0.4163333333 | AT52: 0 | AU52: 0 | AV52: 0 | AW52: 0 | AX52: 0 | AY52: 0 | AZ52: 0 | BA52: -41.63333333 | BB52: 18.36666667 | BC52: -18.26707511 | BD52: 0 | BE52: 0 | BF52: 0 | BG52: 7.465733669 | BH52: -0.4263083504 | BI52: -3.182704605 | BJ52: 41.63333333 | BK52: vadose zone | BL52: =('Climate-inputs'!C48+'Climate-inputs'!D48)/2 -> 16.67222222 | BW52: 0 | BX52: 0 | BZ52: 0 | CA52: 0 | CC52: 0 | CD52: 0 | CF52: 0 | CG52: 0 | CM52: 41.63333333 | CN52: 1 | CO52: 4.727257435 | CP52: 0.195635281 | CQ52: 0.1890902974 | CR52: 2.550994954 | CS52: 0.784007823 | CT52: 0.02115391459 | CV52: 41.63333333 | CW52: 0.9790682601 | CY52: 0.9336351376 | CZ52: 0.9028945028 | DA52: 0.4514472514 | DB52: 0.2708683508 | DC52: 0.2257236257 | DP52: 41.63333333 | DQ52: 1 | DR52: 4.727257435 | DS52: 0.195635281 | DT52: 0.1890902974 | DW52: 41.63333333 | DX52: 0.9790682601 | DZ52: 0.9336351376 | EA52: 0.9028945028
A53: 25 | B53: Tavg | E53: 42.6 | F53: -74.25596787 | G53: 0.3646954372 | H53: 0.9393574713 | I53: 0.3421763924 | J53: 5.162622612 | K53: 0.9413924554 | L53: 0.9781745454 | M53: 0.9413924554 | N53: 0.3907169637 | O53: 0.3778523156 | P53: 0.8905265897 | Q53: 0.35 | R53: 73.80222583 | S53: 21.15972967 | T53: 2.956548278 | U53: 0.1872433333 | V53: 1.022792139e-130 | X53: 0.001 | Z53: 0 | AB53: -0.0005098396767 | AC53: 0.001 | AD53: 43.5496581 | AE53: 43.05291398 | AF53: 43.05291398 | AG53: 0.7174289949 | AH53: 0.8610582796 | AI53: 42.6 | AJ53: 42.6 | AK53: 0 | AL53: 43.05291398 | AM53: 43.05291398 | AN53: 0.7174289949 | AO53: 0.8610582796 | AP53: 42.6 | AQ53: 0 | AR53: 0 | AS53: 0.426 | AT53: 0 | AU53: 0 | AV53: 0 | AW53: 0 | AX53: 0 | AY53: 0 | AZ53: 0 | BA53: -42.6 | BB53: 17.4 | BC53: -17.30878927 | BD53: 0 | BE53: 0 | BF53: 0 | BG53: 7.792119931 | BH53: -0.4477014341 | BI53: -3.488543268 | BJ53: 42.6 | BK53: vadose zone | BL53: =('Climate-inputs'!C49+'Climate-inputs'!D49)/2 -> 19.15 | BW53: 0 | BX53: 0 | BZ53: 0 | CA53: 0 | CC53: 0 | CD53: 0 | CF53: 0 | CG53: 0 | CM53: 42.6 | CN53: 1 | CO53: 4.531622154 | CP53: 0.1890642539 | CQ53: 0.1812648861 | CR53: 2.49242431 | CS53: 0.8024315893 | CT53: 0.02206715313 | CV53: 42.6 | CW53: 0.9781745454 | CY53: 0.9413924554 | CZ53: 0.9103964052 | DA53: 0.4551982026 | DB53: 0.2731189216 | DC53: 0.2275991013 | DP53: 42.6 | DQ53: 1 | DR53: 4.531622154 | DS53: 0.1890642539 | DT53: 0.1812648861 | DW53: 42.6 | DX53: 0.9781745454 | DZ53: 0.9413924554 | EA53: 0.9103964052
A54: 28.16862668 | B54: La | E54: 43.56666667 | F54: -73.53211715 | G54: 0.3675209281 | H54: 0.9469041882 | I54: 0.3624373477 | J54: 5.162622612 | K54: 0.9486859269 | L54: 0.9772352161 | M54: 0.9486859269 | N54: 0.3420938207 | O54: 0.330830126 | P54: 0.8965641887 | Q54: 0.35 | R54: 73.24252431 | S54: 18.52648706 | T54: 2.976593106 | U54: 0.1872433333 | V54: 4.533394266e-114 | X54: 0.001 | Z54: 0 | AB54: -0.0004885777499 | AC54: 0.001 | AD54: 43.05391398 | AE54: 42.55442472 | AF54: 42.55442472 | AG54: 0.7091222249 | AH54: 0.8510884943 | AI54: 43.56666667 | AJ54: 43.56666667 | AK54: 0 | AL54: 42.55442472 | AM54: 42.55442472 | AN54: 0.7091222249 | AO54: 0.8510884943 | AP54: 43.56666667 | AQ54: 0 | AR54: 0 | AS54: 0.4356666667 | AT54: 0 | AU54: 0 | AV54: 0 | AW54: 0 | AX54: 0 | AY54: 0 | AZ54: 0 | BA54: -43.56666667 | BB54: 16.43333333 | BC54: -16.35003503 | BD54: 0 | BE54: 0 | BF54: 0 | BG54: 8.137996348 | BH54: -0.4684860838 | BI54: -3.812538039 | BJ54: 43.56666667 | BK54: vadose zone | BL54: =('Climate-inputs'!C50+'Climate-inputs'!D50)/2 -> 21.66111111 | BW54: 0 | BX54: 0 | BZ54: 0 | CA54: 0 | CC54: 0 | CD54: 0 | CF54: 0 | CG54: 0 | CM54: 43.56666667 | CN54: 1 | CO54: 4.3425579 | CP54: 0.1825500312 | CQ54: 0.173702316 | CR54: 2.438421633 | CS54: 0.820202697 | CT54: 0.02302790252 | CV54: 43.56666667 | CW54: 0.9772352161 | CY54: 0.9486859269 | CZ54: 0.9174497336 | DA54: 0.4587248668 | DB54: 0.2752349201 | DC54: 0.2293624334 | DP54: 43.56666667 | DQ54: 1 | DR54: 4.3425579 | DS54: 0.1825500312 | DT54: 0.173702316 | DW54: 43.56666667 | DX54: 0.9772352161 | DZ54: 0.9486859269 | EA54: 0.9174497336
A55: 13.27787228 | B55: M | E55: 44.53333333 | F55: -72.79787411 | G55: 0.3701601116 | H55: 0.9539532895 | I55: 0.383908186 | J55: 5.162622612 | K55: 0.9554984811 | L55: 0.9762482054 | M55: 0.9554984811 | N55: 0.2966767925 | O55: 0.2869084874 | P55: 0.9020904191 | Q55: 0.35 | R55: 72.72744645 | S55: 16.06687529 | T55: 2.994940192 | U55: 0.1872433333 | V55: 9.523927622e-99 | X55: 0.001 | Z55: 0 | AB55: -0.0004674399671 | AC55: 0.001 | AD55: 42.55542472 | AE55: 42.05349847 | AF55: 42.05349847 | AG55: 0.7007748454 | AH55: 0.8410699695 | AI55: 44.53333333 | AJ55: 44.53333333 | AK55: 0 | AL55: 42.05349847 | AM55: 42.05349847 | AN55: 0.7007748454 | AO55: 0.8410699695 | AP55: 44.53333333 | AQ55: 0 | AR55: 0 | AS55: 0.4453333333 | AT55: 0 | AU55: 0 | AV55: 0 | AW55: 0 | AX55: 0 | AY55: 0 | AZ55: 0 | BA55: -44.53333333 | BB55: 15.46666667 | BC55: -15.39083837 | BD55: 0 | BE55: 0 | BF55: 0 | BG55: 8.504526774 | BH55: -0.488654439 | BI55: -4.155774759 | BJ55: 44.53333333 | BK55: vadose zone | BL55: =('Climate-inputs'!C51+'Climate-inputs'!D51)/2 -> 22.28611111 | BW55: 0 | BX55: 0 | BZ55: 0 | CA55: 0 | CC55: 0 | CD55: 0 | CF55: 0 | CG55: 0 | CM55: 44.53333333 | CN55: 1 | CO55: 4.160007868 | CP55: 0.1761049249 | CQ55: 0.1664003147 | CR55: 2.388630665 | CS55: 0.8372998093 | CT55: 0.02403841607 | CV55: 44.53333333 | CW55: 0.9762482054 | CY55: 0.9554984811 | CZ55: 0.9240379794 | DA55: 0.4620189897 | DB55: 0.2772113938 | DC55: 0.2310094949 | DP55: 44.53333333 | DQ55: 1 | DR55: 4.160007868 | DS55: 0.1761049249 | DT55: 0.1664003147 | DW55: 44.53333333 | DX55: 0.9762482054 | DZ55: 0.9554984811 | EA55: 0.9240379794
A56: 4.062334924 | B56: C1 | E56: 45.5 | F56: -72.05354689 | G56: 0.3726076233 | H56: 0.960490447 | I56: 0.4066611552 | J56: 5.162622612 | K56: 0.9618162709 | L56: 0.9752113979 | M56: 0.9618162709 | N56: 0.254558194 | O56: 0.2461766751 | P56: 0.9070906888 | Q56: 0.35 | R56: 72.25629729 | S56: 13.78589381 | T56: 3.011541087 | U56: 0.1872433333 | V56: 9.930293798e-85 | X56: 0.001 | Z56: 0 | AB56: -0.0004464586033 | AC56: 0.001 | AD56: 42.05449847 | AE56: 41.55045095 | AF56: 41.55045095 | AG56: 0.6923921172 | AH56: 0.831009019 | AI56: 45.5 | AJ56: 45.5 | AK56: 0 | AL56: 41.55045095 | AM56: 41.55045095 | AN56: 0.6923921172 | AO56: 0.831009019 | AP56: 45.5 | AQ56: 0 | AR56: 0 | AS56: 0.455 | AT56: 0 | AU56: 0 | AV56: 0 | AW56: 0 | AX56: 0 | AY56: 0 | AZ56: 0 | BA56: -45.5 | BB56: 14.5 | BC56: -14.43122385 | BD56: 0 | BE56: 0 | BF56: 0 | BG56: 8.892944562 | BH56: -0.5082011074 | BI56: -4.519404274 | BJ56: 45.5 | BK56: vadose zone | BL56: =('Climate-inputs'!C52+'Climate-inputs'!D52)/2 -> 16.04444444 | BW56: 0 | BX56: 0 | BZ56: 0 | CA56: 0 | CC56: 0 | CD56: 0 | CF56: 0 | CG56: 0 | CM56: 45.5 | CN56: 1 | CO56: 3.983902944 | CP56: 0.1697409239 | CQ56: 0.1593561177 | CR56: 2.34272293 | CS56: 0.853707442 | CT56: 0.02510101311 | CV56: 45.5 | CW56: 0.9752113979 | CY56: 0.9618162709 | CZ56: 0.9301477513 | DA56: 0.4650738756 | DB56: 0.2790443254 | DC56: 0.2325369378 | DP56: 45.5 | DQ56: 1 | DR56: 3.983902944 | DS56: 0.1697409239 | DT56: 0.1593561177 | DW56: 45.5 | DX56: 0.9752113979 | DZ56: 0.9618162709 | EA56: 0.9301477513
A57: 3.047157179 | B57: C2 | E57: 46.46666667 | F57: -71.29944634 | G57: 0.3748594518 | H57: 0.9665049461 | I57: 0.4307728179 | J57: 5.162622612 | K57: 0.9676289412 | L57: 0.974122631 | M57: 0.9676289412 | N57: 0.2158070587 | O57: 0.20870145 | P57: 0.9115537944 | Q57: 0.35 | R57: 71.82825163 | S57: 11.6872812 | T57: 3.026358598 | U57: 0.1872433333 | V57: 5.429811216e-72 | X57: 0.001 | Z57: 0 | AB57: -0.0004256664217 | AC57: 0.001 | AD57: 41.55145095 | AE57: 41.04560339 | AF57: 41.04560339 | AG57: 0.6839793932 | AH57: 0.8209120677 | AI57: 46.46666667 | AJ57: 46.46666667 | AK57: 0 | AL57: 41.04560339 | AM57: 41.04560339 | AN57: 0.6839793932 | AO57: 0.8209120677 | AP57: 46.46666667 | AQ57: 0 | AR57: 0 | AS57: 0.4646666667 | AT57: 0 | AU57: 0 | AV57: 0 | AW57: 0 | AX57: 0 | AY57: 0 | AZ57: 0 | BA57: -46.46666667 | BB57: 13.53333333 | BC57: -13.47121468 | BD57: 0 | BE57: 0 | BF57: 0 | BG57: 9.304556717 | BH57: -0.5271230487 | BI57: -4.904646303 | BJ57: 46.46666667 | BK57: capillary zone | BL57: =('Climate-inputs'!C53+'Climate-inputs'!D53)/2 -> 14.30833333 | BW57: 0 | BX57: 0 | BZ57: 0 | CA57: 0 | CC57: 0 | CD57: 0 | CF57: 0 | CG57: 0 | CM57: 46.46666667 | CN57: 1 | CO57: 3.81416202 | CP57: 0.1634695833 | CQ57: 0.1525664808 | CR57: 2.300395573 | CS57: 0.869415688 | CT57: 0.0262180787 | CV57: 46.46666667 | CW57: 0.974122631 | CY57: 0.9676289412 | CZ57: 0.935769035 | DA57: 0.4678845175 | DB57: 0.2807307105 | DC57: 0.2339422588 | DP57: 46.46666667 | DQ57: 1 | DR57: 3.81416202 | DS57: 0.1634695833 | DT57: 0.1525664808 | DW57: 46.46666667 | DX57: 0.974122631 | DZ57: 0.9676289412 | EA57: 0.935769035
A58: 0.4771986224 | B58: C3 | E58: 47.43333333 | F58: -70.53588481 | G58: 0.3769130285 | H58: 0.9719899267 | I58: 0.4563243085 | J58: 5.162622612 | K58: 0.972929862 | L58: 0.9729796967 | M58: 0.972929862 | N58: 0.1804675866 | O58: 0.1745255564 | P58: 0.9154721394 | Q58: 0.35 | R58: 71.44235028 | S58: 9.773431157 | T58: 3.039367503 | U58: 0.1872433333 | V58: 1.660547147e-60 | X58: 0.001 | Z58: 0 | AB58: -0.0004050964794 | AC58: 0.001 | AD58: 41.04660339 | AE58: 40.53928047 | AF58: 40.53928047 | AG58: 0.6755420842 | AH58: 0.8107856095 | AI58: 47.43333333 | AJ58: 47.43333333 | AK58: 0 | AL58: 40.53928047 | AM58: 40.53928047 | AN58: 0.6755420842 | AO58: 0.8107856095 | AP58: 47.43333333 | AQ58: 0 | AR58: 0 | AS58: 0.4743333333 | AT58: 0 | AU58: 0 | AV58: 0 | AW58: 0 | AX58: 0 | AY58: 0 | AZ58: 0 | BA58: -47.43333333 | BB58: 12.56666667 | BC58: -12.5108328 | BD58: 0 | BE58: 0 | BF58: 0 | BG58: 9.74074829 | BH58: -0.5454194459 | BI58: -5.312793535 | BJ58: 47.43333333 | BK58: capillary zone | BL58: =('Climate-inputs'!C54+'Climate-inputs'!D54)/2 -> 20.8 | BW58: 0 | BX58: 0 | BZ58: 0 | CA58: 0 | CC58: 0 | CD58: 0 | CF58: 0 | CG58: 0 | CM58: 47.43333333 | CN58: 1 | CO58: 3.650692436 | CP58: 0.1573019191 | CQ58: 0.1460276975 | CR58: 2.261369358 | CS58: 0.8844198729 | CT58: 0.02739206376 | CV58: 47.43333333 | CW58: 0.9729796967 | CY58: 0.972929862 | CZ58: 0.9408954191 | DA58: 0.4704477095 | DB58: 0.2822686257 | DC58: 0.2352238548 | DP58: 47.43333333 | DQ58: 1 | DR58: 3.650692436 | DS58: 0.1573019191 | DT58: 0.1460276975 | DW58: 47.43333333 | DX58: 0.9729796967 | DZ58: 0.972929862 | EA58: 0.9408954191
A59: 2.89318035 | B59: C4 | D59: 1 | E59: 48.4 | F59: -69.76317509 | G59: 0.3787673037 | H59: 0.9769425847 | I59: 0.4834016062 | J59: 5.162622612 | K59: 0.9777163235 | L59: 0.971780342 | M59: 0.9777163235 | N59: 0.1485578434 | O59: 0.1436664654 | P59: 0.9188419109 | Q59: 0.35 | R59: 71.09749606 | S59: 8.045322061 | T59: 3.050555144 | U59: 0.1872433333 | V59: 3.058396466e-50 | X59: 0.001 | Z59: 0 | AB59: -0.000384781923 | AC59: 0.001 | AD59: 40.54028047 | AE59: 40.03180816 | AF59: 40.03180816 | AG59: 0.6670856218 | AH59: 0.8006361633 | AI59: 48.4 | AJ59: 48.4 | AK59: 0 | AL59: 40.03180816 | AM59: 40.03180816 | AN59: 0.6670856218 | AO59: 0.8006361633 | AP59: 48.4 | AQ59: 0 | AR59: 0 | AS59: 0.484 | AT59: 0 | AU59: 0 | AV59: 0 | AW59: 0 | AX59: 0 | AY59: 0 | AZ59: 0 | BA59: -48.4 | BB59: 11.6 | BC59: -11.55009894 | BD59: 0 | BE59: 0 | BF59: 0 | BG59: 10.20298704 | BH59: -0.5630915678 | BI59: -5.745215969 | BJ59: 48.4 | BK59: capillary zone | BL59: =('Climate-inputs'!C55+'Climate-inputs'!D55)/2 -> 23.81944444 | BW59: 0 | BX59: 0 | BZ59: 0 | CA59: 0 | CC59: 0 | CD59: 0 | CF59: 0 | CG59: 0 | CM59: 48.4 | CN59: 1 | CO59: 3.493390517 | CP59: 0.151248313 | CQ59: 0.1397356207 | CR59: 2.225386825 | CS59: 0.8987201583 | CT59: 0.02862548562 | CV59: 48.4 | CW59: 0.971780342 | CY59: 0.9777163235 | CZ59: 0.9455242827 | DA59: 0.4727621414 | DB59: 0.2836572848 | DC59: 0.2363810707 | DP59: 48.4 | DQ59: 1 | DR59: 3.493390517 | DS59: 0.151248313 | DT59: 0.1397356207 | DW59: 48.4 | DX59: 0.971780342 | DZ59: 0.9777163235 | EA59: 0.9455242827
A60: 6 | B60: J | D60: 2 | E60: 49.36666667 | F60: -68.98162931 | G60: 0.3804228071 | H60: 0.9813643353 | I60: 0.5120958246 | J60: 5.162622612 | K60: 0.9819896931 | L60: 0.9705222706 | M60: 0.9819896931 | N60: 0.1200687125 | O60: 0.1161153604 | P60: 0.9216632179 | Q60: 0.35 | R60: 70.79244957 | S60: 6.50246018 | T60: 3.059921883 | U60: 0.1872433333 | V60: 3.689276297e-41 | X60: 0.001 | Z60: 0 | AB60: -0.0003647557789 | AC60: 0.001 | AD60: 40.03280816 | AE60: 39.52351144 | AF60: 39.52351144 | AG60: 0.6586154214 | AH60: 0.7904702288 | AI60: 49.36666667 | AJ60: 49.36666667 | AK60: 0 | AL60: 39.52351144 | AM60: 39.52351144 | AN60: 0.6586154214 | AO60: 0.7904702288 | AP60: 49.36666667 | AQ60: 0 | AR60: 0 | AS60: 0.4936666667 | AT60: 0 | AU60: 0 | AV60: 0 | AW60: 0 | AX60: 0 | AY60: 0 | AZ60: 0 | BA60: -49.36666667 | BB60: 10.63333333 | BC60: -10.58903271 | BD60: 0 | BE60: 0 | BF60: 0 | BG60: 10.69282838 | BH60: -0.5801426246 | BI60: -6.203365519 | BJ60: 49.36666667 | BK60: capillary zone | BL60: =('Climate-inputs'!C56+'Climate-inputs'!D56)/2 -> 23.06666667 | BW60: 0 | BX60: 0 | BZ60: 0 | CA60: 0 | CC60: 0 | CD60: 0 | CF60: 0 | CG60: 0 | CM60: 49.36666667 | CN60: 1 | CO60: 3.342142204 | CP60: 0.1453184286 | CQ60: 0.1336856882 | CR60: 2.192210597 | CS60: 0.9123211077 | CT60: 0.02992092912 | CV60: 49.36666667 | CW60: 0.9705222706 | CY60: 0.9819896931 | CZ60: 0.9496569485 | DA60: 0.4748284742 | DB60: 0.2848970845 | DC60: 0.2374142371 | DP60: 49.36666667 | DQ60: 1 | DR60: 3.342142204 | DS60: 0.1453184286 | DT60: 0.1336856882 | DW60: 49.36666667 | DX60: 0.9705222706 | DZ60: 0.9819896931 | EA60: 0.9496569485
A61: -800 | B61: h50 | D61: 3 | E61: 50.33333333 | F61: -68.19155799 | G61: 0.3818816957 | H61: 0.9852609393 | I61: 0.5425035181 | J61: 5.162622612 | K61: 0.9857555386 | L61: 0.9692031416 | M61: 0.9857555386 | N61: 0.09496307583 | O61: 0.09183634557 | P61: 0.9239401925 | Q61: 0.35 | R61: 70.52582405 | S61: 5.142835352 | T61: 3.067481439 | U61: 0.1872433333 | V61: 3.202366326e-33 | X61: 0.001 | Z61: 0 | AB61: -0.0003450507385 | AC61: 0.001 | AD61: 39.52451144 | AE61: 39.01471202 | AF61: 39.01471202 | AG61: 0.6501368442 | AH61: 0.7802942404 | AI61: =AJ61 -> 50.33333333 | AJ61: 50.33333333 | AK61: 0 | AL61: 39.01471202 | AM61: 39.01471202 | AN61: 0.6501368442 | AO61: 0.7802942404 | AP61: 50.33333333 | AQ61: 0 | AR61: 0 | AS61: 0.5033333333 | AT61: 0 | AU61: 0 | AV61: 0 | AW61: 0 | AX61: 0 | AY61: 0 | AZ61: 0 | BA61: -50.33333333 | BB61: 9.666666667 | BC61: -9.627652614 | BD61: 0 | BE61: 0 | BF61: 0 | BG61: 11.21192059 | BH61: -0.5965776191 | BI61: -6.688780889 | BJ61: 50.33333333 | BK61: capillary zone | BL61: =('Climate-inputs'!C57+'Climate-inputs'!D57)/2 -> 20.275 | BW61: 0 | BX61: 0 | BZ61: 0 | CA61: 0 | CC61: 0 | CD61: 0 | CF61: 0 | CG61: 0 | CM61: 50.33333333 | CN61: 1 | CO61: 3.196823776 | CP61: 0.1395211403 | CQ61: 0.127872951 | CR61: 2.161621806 | CS61: 0.9252312287 | CT61: 0.03128104863 | CV61: 50.33333333 | CW61: 0.9692031416 | CY61: 0.9857555386 | CZ61: 0.9532988007 | DA61: 0.4766494003 | DB61: 0.2859896402 | DC61: 0.2383247002 | DP61: 50.33333333 | DQ61: 1 | DR61: 3.196823776 | DS61: 0.1395211403 | DT61: 0.127872951 | DW61: 50.33333333 | DX61: 0.9692031416 | DZ61: 0.9857555386 | EA61: 0.9532988007
A62: 3 | B62: p1 | D62: 4 | E62: 51.3 | F62: -67.39326918 | G62: 0.3831477902 | H62: 0.9886426021 | I62: 0.574727007 | J62: 5.162622612 | K62: 0.9890237228 | L62: 0.9678205696 | M62: 0.9890237228 | N62: 0.07317518113 | O62: 0.07076583359 | P62: 0.9256810595 | Q62: 0.35 | R62: 70.29607911 | S62: 3.962886681 | T62: 3.073261118 | U62: 0.1872433333 | V62: 2.22125306e-26 | X62: 0.001 | Z62: 0 | AB62: -0.0003256989442 | AC62: 0.001 | AD62: 39.01571202 | AE62: 38.50572606 | AF62: 38.50572606 | AG62: 0.6416551584 | AH62: 0.7701145211 | AI62: 51.3 | AJ62: 51.3 | AK62: 0 | AL62: 38.50572606 | AM62: 38.50572606 | AN62: 0.6416551584 | AO62: 0.7701145211 | AP62: 51.3 | AQ62: 0 | AR62: 0 | AS62: 0.513 | AT62: 0 | AU62: 0 | AV62: 0 | AW62: 0 | AX62: 0 | AY62: 0 | AZ62: 0 | BA62: -51.3 | BB62: 8.7 | BC62: -8.665976162 | BD62: 0 | BE62: 0 | BF62: 0 | BG62: 11.76201038 | BH62: -0.612403195 | BI62: -7.203092739 | BJ62: 51.3 | BK62: capillary zone | BL62: =('Climate-inputs'!C58+'Climate-inputs'!D58)/2 -> 21.425 | BW62: 0 | BX62: 0 | BZ62: 0 | CA62: 0 | CC62: 0 | CD62: 0 | CF62: 0 | CG62: 0 | CM62: 51.3 | CN62: 1 | CO62: 3.057302635 | CP62: 0.1338644774 | CQ62: 0.1222921054 | CR62: 2.133418658 | CS62: 0.9374625052 | CT62: 0.0327085709 | CV62: 51.3 | CW62: 0.9678205696 | CY62: 0.9890237228 | CZ62: 0.9564593775 | DA62: 0.4782296887 | DB62: 0.2869378132 | DC62: 0.2391148444 | DP62: 51.3 | DQ62: 1 | DR62: 3.057302635 | DS62: 0.1338644774 | DT62: 0.1222921054 | DW62: 51.3 | DX62: 0.9678205696 | DZ62: 0.9890237228 | EA62: 0.9564593775
A63: 30 | B63: root depth | D63: 5 | E63: 52.26666667 | F63: -66.58706759 | G63: 0.3842266061 | H63: 0.9915240548 | I63: 0.6088747213 | J63: 5.162622612 | K63: 0.9918084825 | L63: 0.9663721224 | M63: 0.9918084825 | N63: 0.05461011658 | O63: 0.05281203767 | P63: 0.9268981858 | Q63: 0.35 | R63: 70.10151238 | S63: 2.95747411 | T63: 3.077301977 | U63: 0.1872433333 | V63: 1.382675797e-20 | X63: 0.001 | Z63: 0 | AB63: -0.0003067317756 | AC63: 0.001 | AD63: 38.50672606 | AE63: 37.99686182 | AF63: 37.99686182 | AG63: 0.6331755011 | AH63: 0.7599372365 | AI63: 52.26666667 | AJ63: 52.26666667 | AK63: 0 | AL63: 37.99686182 | AM63: 37.99686182 | AN63: 0.6331755011 | AO63: 0.7599372365 | AP63: 52.26666667 | AQ63: 0 | AR63: 0 | AS63: 0.5226666667 | AT63: 0 | AU63: 0 | AV63: 0 | AW63: 0 | AX63: 0 | AY63: 0 | AZ63: 0 | BA63: -52.26666667 | BB63: 7.733333333 | BC63: -7.704019882 | BD63: 0 | BE63: 0 | BF63: 0 | BG63: 12.34494879 | BH63: -0.627627485 | BI63: -7.748029164 | BJ63: 52.26666667 | BK63: capillary zone | BL63: =('Climate-inputs'!C59+'Climate-inputs'!D59)/2 -> 22.51944444 | BW63: 0 | BX63: 0 | BZ63: 0 | CA63: 0 | CC63: 0 | CD63: 0 | CF63: 0 | CG63: 0 | CM63: 52.26666667 | CN63: 1 | CO63: 2.923438158 | CP63: 0.1283555839 | CQ63: 0.1169375263 | CR63: 2.107415094 | CS63: 0.9490299304 | CT63: 0.03420629909 | CV63: 52.26666667 | CW63: 0.9663721224 | CY63: 0.9918084825 | CZ63: 0.9591524469 | DA63: 0.4795762234 | DB63: 0.2877457341 | DC63: 0.2397881117 | DP63: 52.26666667 | DQ63: 1 | DR63: 2.923438158 | DS63: 0.1283555839 | DT63: 0.1169375263 | DW63: 52.26666667 | DX63: 0.9663721224 | DZ63: 0.9918084825 | EA63: 0.9591524469
A64: 1 | B64: B | D64: 6 | E64: 53.23333333 | F64: -65.77325384 | G64: 0.3851253844 | H64: 0.9939246379 | I64: 0.6450615663 | J64: 5.162622612 | K64: 0.9941285092 | L64: 0.9648553181 | M64: 0.9941285092 | N64: 0.0391432723 | O64: 0.0378544508 | P64: 0.9276081253 | Q64: 0.35 | R64: 69.94024817 | S64: 2.119849245 | T64: 3.079658976 | U64: 0.1872433333 | V64: 8.779229524e-16 | X64: 0.001 | Z64: 0 | AB64: -0.0002881796416 | AC64: 0.001 | AD64: 37.99786182 | AE64: 37.4884174 | AF64: 37.4884174 | AG64: 0.6247028396 | AH64: 0.7497683481 | AI64: 53.23333333 | AJ64: 53.23333333 | AK64: 0 | AL64: 37.4884174 | AM64: 37.4884174 | AN64: 0.6247028396 | AO64: 0.7497683481 | AP64: 53.23333333 | AQ64: 0 | AR64: 0 | AS64: 0.5323333333 | AT64: 0 | AU64: 0 | AV64: 0 | AW64: 0 | AX64: 0 | AY64: 0 | AZ64: 0 | BA64: -53.23333333 | BB64: 6.766666667 | BC64: -6.741799392 | BD64: 0 | BE64: 0 | BF64: 0 | BG64: 12.96269737 | BH64: -0.6422599606 | BI64: -8.325421499 | BJ64: 53.23333333 | BK64: capillary zone | BL64: =('Climate-inputs'!C60+'Climate-inputs'!D60)/2 -> 11.99444444 | BW64: 0 | BX64: 0 | BZ64: 0 | CA64: 0 | CC64: 0 | CD64: 0 | CF64: 0 | CG64: 0 | CM64: 53.23333333 | CN64: 1 | CO64: 2.795082574 | CP64: 0.1230006971 | CQ64: 0.111803303 | CR64: 2.083439567 | CS64: 0.9599510501 | CT64: 0.03577711833 | CV64: 53.23333333 | CW64: 0.9648553181 | CY64: 0.9941285092 | CZ64: 0.9613960849 | DA64: 0.4806980425 | DB64: 0.2884188255 | DC64: 0.2403490212 | DP64: 53.23333333 | DQ64: 1 | DR64: 2.795082574 | DS64: 0.1230006971 | DT64: 0.111803303 | DW64: 53.23333333 | DX64: 0.9648553181 | DZ64: 0.9941285092 | EA64: 0.9613960849
A65: 1 | B65: wc | D65: 7 | E65: 54.2 | F65: -64.95212386 | G65: 0.3858531352 | H65: 0.9958684167 | I65: 0.6834093085 | J65: 5.162622612 | K65: 0.9960070605 | L65: 0.9632676205 | M65: 0.9960070605 | N65: 0.02661959697 | O65: 0.02574312684 | P65: 0.9278316859 | Q65: 0.35 | R65: 69.81022119 | S65: 1.441615103 | T65: 3.080401197 | U65: 0.1872433333 | V65: -2.965051159e-15 | X65: 0.001 | Z65: 6.551204024e-12 | AB65: -0.0002700717771 | AC65: 0.0009999999934 | AD65: 37.4894174 | AE65: 36.98067835 | AF65: 36.98067835 | AG65: 0.6162419322 | AH65: 0.739613567 | AI65: 54.2 | AJ65: 54.2 | AK65: 6.551204024e-12 | AL65: 36.98067835 | AM65: 36.98067835 | AN65: 0.6162419322 | AO65: 0.739613567 | AP65: 54.2 | AQ65: 0 | AR65: 0 | AS65: 0.542 | AT65: 0 | AU65: 0 | AV65: 0 | AW65: 0 | AX65: 0 | AY65: 0 | AZ65: 0 | BA65: -54.2 | BB65: 5.8 | BC65: -5.779329448 | BD65: 6.551204024e-12 | BE65: 0 | BF65: 6.551204024e-12 | BG65: 13.61733479 | BH65: -0.6563112833 | BI65: -8.937210472 | BJ65: 54.2 | BK65: capillary zone | BL65: =('Climate-inputs'!C61+'Climate-inputs'!D61)/2 -> 9.175 | BW65: 0 | BX65: 0 | BZ65: 0 | CA65: 0 | CC65: 0 | CD65: 0 | CF65: 0 | CG65: 0 | CM65: 54.2 | CN65: 1 | CO65: 2.672081877 | CP65: 0.1178051435 | CQ65: 0.1068832751 | CR65: 2.061333908 | CS65: 0.9702455249 | CT65: 0.03742400293 | CV65: 54.2 | CW65: 0.9632676205 | CY65: 0.9960070605 | CZ65: 0.9632127835 | DA65: 0.4816063917 | DB65: 0.288963835 | DC65: 0.2408031959 | DP65: 54.2 | DQ65: 1 | DR65: 2.672081877 | DS65: 0.1178051435 | DT65: 0.1068832751 | DW65: 54.2 | DX65: 0.9632676205 | DZ65: 0.9960070605 | EA65: 0.9632127835
A66: 0 | B66: Rp | D66: 8 | E66: 55.16666667 | F66: -64.12396822 | G66: 0.3864207105 | H66: 0.9973843762 | I66: 0.724046986 | J66: 5.162622612 | K66: 0.9974721488 | L66: 0.9616064326 | M66: 0.9974721488 | N66: 0.01685234116 | O66: 0.01629746523 | P66: 0.9275940599 | Q66: 0.35 | R66: 69.70915265 | S66: 0.912658053 | T66: 3.079612279 | U66: 0.1872433333 | V66: 1.888681755e-15 | X66: 0.001 | Z66: 6.705803912e-09 | AB66: -0.000252436049 | AC66: 0.0009999932942 | AD66: 36.98167834 | AE66: 36.47391531 | AF66: 36.47391531 | AG66: 0.607797289 | AH66: 0.7294783063 | AI66: 55.16666667 | AJ66: 55.16666667 | AK66: 6.705803912e-09 | AL66: 36.47391531 | AM66: 36.47391531 | AN66: 0.607797289 | AO66: 0.7294783063 | AP66: 55.16666667 | AQ66: 0 | AR66: 0 | AS66: 0.5516666667 | AT66: 0 | AU66: 0 | AV66: 0 | AW66: 0 | AX66: 0 | AY66: 0 | AZ66: 0 | BA66: -55.16666667 | BB66: 4.833333333 | BC66: -4.816623988 | BD66: 6.705803912e-09 | BE66: 0 | BF66: 6.705803912e-09 | BG66: 14.31106389 | BH66: -0.6697931611 | BI66: -9.585452721 | BJ66: 55.16666667 | BK66: capillary zone | BL66: =('Climate-inputs'!C62+'Climate-inputs'!D62)/2 -> 13.02222222 | BW66: 0 | BX66: 0 | BZ66: 0 | CA66: 0 | CC66: 0 | CD66: 0 | CF66: 0 | CG66: 0 | CM66: 55.16666667 | CN66: 1 | CO66: 2.554276733 | CP66: 0.1127733563 | CQ66: 0.1021710693 | CR66: 2.040952286 | CS66: 0.9799347164 | CT66: 0.03915002579 | CV66: 55.16666667 | CW66: 0.9616064326 | CY66: 0.9974721488 | CZ66: 0.9646296327 | DA66: 0.4823148164 | DB66: 0.2893888898 | DC66: 0.2411574082 | DP66: 55.16666667 | DQ66: 1 | DR66: 2.554276733 | DS66: 0.1127733563 | DT66: 0.1021710693 | DW66: 55.16666667 | DX66: 0.9616064326 | DZ66: 0.9974721488 | EA66: 0.9646296327
A67: 60 | B67: Cmax | D67: 9 | E67: 56.13333333 | F67: -63.28907164 | G67: 0.3868409381 | H67: 0.9985067791 | I67: 0.7671113422 | J67: 5.162622612 | K67: 0.9985568871 | L67: 0.9598690879 | M67: 0.9985568871 | N67: 0.009620752378 | O67: 0.009303981915 | P67: 0.92692509 | Q67: 0.35 | R67: 69.63451348 | S67: 0.5210229872 | T67: 3.077391299 | U67: 0.1872433333 | V67: 8.845117623e-15 | X67: 0.001 | Z67: 1.121139718e-06 | AB67: -0.000235298733 | AC67: 0.0009988788603 | AD67: 36.47491419 | AE67: 35.96838044 | AF67: 35.96838156 | AG67: 0.5993731304 | AH67: 0.7193676311 | AI67: 56.13333333 | AJ67: 56.13333333 | AK67: 1.121139718e-06 | AL67: 35.96838044 | AM67: 35.96838156 | AN67: 0.5993731304 | AO67: 0.7193676311 | AP67: 56.13333333 | AQ67: 0 | AR67: 0 | AS67: 0.5613333333 | AT67: 0 | AU67: 0 | AV67: 0 | AW67: 0 | AX67: 0 | AY67: 0 | AZ67: 0 | BA67: -56.13333333 | BB67: 3.866666667 | BC67: -3.853696177 | BD67: 1.121139718e-06 | BE67: 0 | BF67: 1.121139718e-06 | BG67: 15.04621902 | BH67: -0.6827182095 | BI67: -10.27232771 | BJ67: 56.13333333 | BK67: capillary zone | BL67: =('Climate-inputs'!C63+'Climate-inputs'!D63)/2 -> 17.41388889 | BW67: 0 | BX67: 0 | BZ67: 0 | CA67: 0 | CC67: 0 | CD67: 0 | CF67: 0 | CG67: 0 | CM67: 56.13333333 | CN67: 1 | CO67: 2.441503377 | CP67: 0.1079089181 | CQ67: 0.09766013508 | CR67: 2.022160242 | CS67: 0.9890413027 | CT67: 0.04095837054 | CV67: 56.13333333 | CW67: 0.9598690879 | CY67: 0.9985568871 | CZ67: 0.9656786552 | DA67: 0.4828393276 | DB67: 0.2897035966 | DC67: 0.2414196638 | DP67: 56.13333333 | DQ67: 1 | DR67: 2.441503377 | DS67: 0.1079089181 | DT67: 0.09766013508 | DW67: 56.13333333 | DX67: 0.9598690879 | DZ67: 0.9985568871 | EA67: 0.9656786552
A68: 0 | B68: Cmin | D68: 10 | E68: 57.1 | F68: -62.44771254 | G68: 0.3871288765 | H68: 0.9992758454 | I68: 0.8127472863 | J68: 5.162622612 | K68: 0.9993001459 | L68: 0.9580528388 | M68: 0.9993001459 | N68: 0.004665693959 | O68: 0.004512072498 | P68: 0.9258598124 | Q68: 0.35 | R68: 69.58346455 | S68: 0.2526760599 | T68: 3.073854577 | U68: 0.1872433333 | V68: 9.307299668e-15 | X68: 0.001 | Z68: 3.717471499e-05 | AB68: -0.0002186832785 | AC68: 0.000962825285 | AD68: 35.96934326 | AE68: 35.46427197 | AF68: 35.46430914 | AG68: 0.5909733235 | AH68: 0.7092861828 | AI68: 57.1 | AJ68: 57.1 | AK68: 3.717471499e-05 | AL68: 35.46427197 | AM68: 35.46430914 | AN68: 0.5909733235 | AO68: 0.7092861828 | AP68: 57.1 | AQ68: 0 | AR68: 0 | AS68: 0.571 | AT68: 0 | AU68: 0 | AV68: 0 | AW68: 0 | AX68: 0 | AY68: 0 | AZ68: 0 | BA68: -57.1 | BB68: 2.9 | BC68: =IF(E67<=$I$3,IF(BB68>0,(1/$A$8)*LN(EXP($A$8*(BC69-$A$43))+($A$7/$A$10)*(1-EXP(-$A$8*$A$43)))*$A$18,0),IF(AND(E67>$I$3,E67<$I$4),IF(BB68>0,(1/$C$8)*LN(EXP($C$8*(BC69-$A$43))+($A$7/$C$10)*(1-EXP(-$C$8*$A$43)))*$C$18,0),IF(BB68>0,(1/$D$8)*LN(EXP($D$8*(BC69-$A$43))+($A$7/$D$10)*(1-EXP(-$D$8*$A$43)))*$D$18,0))) -> -2.890558451 | BD68: 3.717471499e-05 | BE68: 0 | BF68: 3.717471499e-05 | BG68: 15.82527393 | BH68: -0.6950998184 | BI68: -11.00014503 | BJ68: 57.1 | BK68: capillary zone | BL68: =('Climate-inputs'!C64+'Climate-inputs'!D64)/2 -> 18.68055556 | BW68: 0 | BX68: 0 | BZ68: 0 | CA68: 0 | CC68: 0 | CD68: 0 | CF68: 0 | CG68: 0 | CM68: 57.1 | CN68: 1 | CO68: 2.333594459 | CP68: 0.1032146352 | CQ68: 0.09334377836 | CR68: 2.004833803 | CS68: 0.9975889259 | CT68: 0.04285234721 | CV68: 57.1 | CW68: 0.9580528388 | CY68: 0.9993001459 | CZ68: 0.9663974416 | DA68: 0.4831987208 | DB68: 0.2899192325 | DC68: 0.2415993604 | DP68: 57.1 | DQ68: 1 | DR68: 2.333594459 | DS68: 0.1032146352 | DT68: 0.09334377836 | DW68: 57.1 | DX68: 0.9580528388 | DZ68: 0.9993001459 | EA68: 0.9663974416
A69: 0.5 | B69: Km | D69: 11 | E69: 58.06666667 | F69: -61.60016263 | G69: 0.3873023238 | H69: 0.9997391126 | I69: 0.8611083806 | J69: 5.162622612 | K69: 0.9997478672 | L69: 0.9561548398 | M69: 0.9997478672 | N69: 0.001680885218 | O69: 0.001625540815 | P69: 0.9244395867 | Q69: 0.35 | R69: 69.55275053 | S69: 0.09103028567 | T69: 3.069139428 | U69: 0.1872433333 | V69: -1.056750173e-14 | X69: 0.001 | Z69: 0.0003055891567 | AB69: -0.0002026051601 | AC69: 0.0006944108433 | AD69: 35.46496638 | AE69: 34.96156765 | AF69: 34.96187324 | AG69: 0.5826007872 | AH69: 0.6992374649 | AI69: 58.06666667 | AJ69: 58.06666667 | AK69: 0.0003055891567 | AL69: 34.96156765 | AM69: 34.96187324 | AN69: 0.5826007872 | AO69: 0.6992374649 | AP69: 58.06666667 | AQ69: 0 | AR69: 0 | AS69: 0.5806666667 | AT69: 0 | AU69: 0 | AV69: 0 | AW69: 0 | AX69: 0 | AY69: 0 | AZ69: 0 | BA69: -58.06666667 | BB69: 1.933333333 | BC69: -1.927222554 | BD69: 0.0003055891567 | BE69: 0 | BF69: 0.0003055891567 | BG69: 16.6508501 | BH69: -0.7069520263 | BI69: -11.77135222 | BJ69: 58.06666667 | BK69: capillary zone | BL69: =('Climate-inputs'!C65+'Climate-inputs'!D65)/2 -> 20.02222222 | BW69: 0 | BX69: 0 | BZ69: 0 | CA69: 0 | CC69: 0 | CD69: 0 | CF69: 0 | CG69: 0 | CM69: 58.06666667 | CN69: 1 | CO69: 2.230379824 | CP69: 0.0986926686 | CQ69: 0.08921519295 | CR69: 1.988858665 | CS69: 1.005601874 | CT69: 0.04483541275 | CV69: 58.06666667 | CW69: 0.9561548398 | CY69: 0.9997478672 | CZ69: 0.9668304214 | DA69: 0.4834152107 | DB69: 0.2900491264 | DC69: 0.2417076054 | DP69: 58.06666667 | DQ69: 1 | DR69: 2.230379824 | DS69: 0.0986926686 | DT69: 0.08921519295 | DW69: 58.06666667 | DX69: 0.9561548398 | DZ69: 0.9997478672 | EA69: 0.9668304214
A70: 1 | B70: pc | D70: 12 | E70: 59.03333333 | F70: -60.74668661 | G70: 0.387382962 | H70: 0.9999544926 | I70: 0.9123573574 | J70: 5.162622612 | K70: 0.9999560197 | L70: 0.9541721254 | M70: 0.9999560197 | N70: 0.0002932021034 | O70: 0.0002835482049 | P70: 0.9227147119 | Q70: 0.35 | R70: 69.53848048 | S70: 0.01587869948 | T70: 3.063412844 | U70: 0.1872433333 | V70: -1.127570259e-15 | X70: 0.001 | Z70: 0.0008132225542 | AB70: -0.0001870785169 | AC70: 0.0001867774458 | AD70: 34.96175443 | AE70: 34.46021067 | AF70: 34.46102389 | AG70: 0.574254689 | AH70: 0.6892204778 | AI70: 59.03333333 | AJ70: 59.03333333 | AK70: 0.0008132225542 | AL70: 34.46021067 | AM70: 34.46102389 | AN70: 0.574254689 | AO70: 0.6892204778 | AP70: 59.03333333 | AQ70: 0 | AR70: 0 | AS70: 0.5903333333 | AT70: 0 | AU70: 0 | AV70: 0 | AW70: 0 | AX70: 0 | AY70: 0 | AZ70: 0 | BA70: -59.03333333 | BB70: 0.9666666667 | BC70: -0.9636995786 | BD70: 0.0008132225542 | BE70: 0 | BF70: 0.0008132225542 | BG70: 17.52572555 | BH70: -0.7182894012 | BI70: -12.58854291 | BJ70: 59.03333333 | BK70: capillary zone | BL70: =('Climate-inputs'!C66+'Climate-inputs'!D66)/2 -> 22.08888889 | BW70: 0 | BX70: 0 | BZ70: 0 | CA70: 0 | CC70: 0 | CD70: 0 | CF70: 0 | CG70: 0 | CM70: 59.03333333 | CN70: 1 | CO70: 2.131687155 | CP70: 0.09434478843 | CQ70: 0.08526748621 | CR70: 1.97412944 | CS70: 1.013104794 | CT70: 0.04691119884 | CV70: 59.03333333 | CW70: 0.9541721254 | CY70: 0.9999560197 | CZ70: 0.9670317203 | DA70: 0.4835158601 | DB70: 0.2901095161 | DC70: 0.2417579301 | DP70: 59.03333333 | DQ70: 1 | DR70: 2.131687155 | DS70: 0.09434478843 | DT70: 0.08526748621 | DW70: 59.03333333 | DX70: 0.9541721254 | DZ70: 0.9999560197 | EA70: 0.9670317203
A71: 17.78385447 | B71: Ra | D71: 13 | E71: 60 | F71: -59.88754191 | G71: 0.3874 | H71: 1 | I71: 0.9666666667 | J71: 5.162622612 | K71: 1 | L71: 0.9521015764 | M71: 1 | N71: 0 | O71: 0 | P71: 0.9207529203 | Q71: 0.35 | R71: 69.53546614 | S71: 0 | T71: 3.056899695 | U71: 0.1872433333 | V71: 9.436028348e-15 | X71: 0.001 | Z71: 0.001 | AB71: -0.0001721326066 | AC71: 9.436028348e-15 | AD71: 34.46021067 | AE71: 33.96066626 | AF71: 33.96166626 | AG71: 0.5659334488 | AH71: 0.6792333253 | AI71: 60 | AJ71: 60 | AK71: 0.001 | AL71: 33.96066626 | AM71: 33.96166626 | AN71: 0.5659334488 | AO71: 0.6792333253 | AP71: 60 | AQ71: 0 | AR71: 0 | AS71: 0.6 | AT71: 0 | AU71: 0 | AV71: 0 | AW71: 0 | AX71: 0 | AY71: 0 | AZ71: 0 | BA71: -60 | BB71: 0 | BC71: 0 | BD71: 0.001 | BE71: 0 | BF71: 0.001 | BG71: 18.45284419 | BH71: -0.729126929 | BI71: -13.45446561 | BJ71: 60 | BK71: capillary zone | BL71: =('Climate-inputs'!C67+'Climate-inputs'!D67)/2 -> 19.44444444 | BW71: 0 | BX71: 0 | BZ71: 0 | CA71: 0 | CC71: 0 | CD71: 0 | CF71: 0 | CG71: 0 | CM71: 60 | CN71: =1+($CL$9*$A$46/G71) -> 1 | CO71: 2.037342367 | CP71: 0.09017312795 | CQ71: 0.08149369467 | CR71: 1.960548958 | CS71: 1.020122447 | CT71: 0.049083552 | CV71: 60 | CW71: 0.9521015764 | CY71: 1 | CZ71: 0.9670742525 | DA71: 0.4835371263 | DB71: 0.2901222758 | DC71: 0.2417685631 | DP71: 60 | DQ71: 1 | DR71: 2.037342367 | DS71: 0.09017312795 | DT71: 0.08149369467 | DW71: 60 | DX71: 0.9521015764 | DZ71: 1 | EA71: 0.9670742525
A72: 0.5536018093 | B72: PET cm/day | D72: 14 | E72: 60.96666667 | F72: -59.02297845 | G72: 0.3874 | H72: 1 | I72: 0.9666666667 | J72: 5.162622612 | K72: 1 | L72: 0.9499398575 | M72: 1 | N72: 0 | O72: 0 | P72: 0.9186623777 | Q72: 0.35 | R72: 69.53546614 | S72: 0 | T72: 3.049959094 | U72: 0.1872433333 | V72: -123.999 | X72: 0.001 | Z72: 124 | AB72: -62.42852212 | AC72: 0 | AD72: 33.96066626 | AE72: 0.1 | AF72: =AE72+Z72+EW72 -> 124.1 | AG72: =AF72/($A$19+$A$20+0) -> 2.067988669 | AH72: =(AF72*$A$7)/100 -> 2.482 | AI72: =AJ72 -> 0 | AP72: 60.96666667 | AQ72: 0 | AR72: 0 | AS72: 0 | AT72: =IF(AND(($A$63-AP72)/$A$63>0,AP72<5),$AX$2*$AY$2*($A$63-AP72)/($A$63*(0.5*$A$63+0.5)),IF(AND(($A$63-AP72)/$A$63>0,AP72>=5),$AV$2*$AY$2*($A$63-AP72)/($A$63*(0.5*$A$63+0.5)),0)) -> 0 | AU72: =AR72*AT72 -> 0 | AV72: 0 | AW72: =AT72*(AF72-$A$68)/($A$69+AF72-$A$68) -> 0 | AX72: 0 | AY72: 0 | AZ72: 0 | BA72: =$E$2507-E72 -> -60.96666667 | BB72: 0 | BC72: 0 | BD72: =AK72-AZ72 -> 0 | BE72: =IF(E72<$A$63,1*AT72*$A$75/($A$13*$A$63),0) -> 0 | BF72: 0 | BG72: 19.43532571 | BH72: =1+((F72-F73)/$B$3) -> -0.7394799107 | BI72: =BG72*BH72 -> -14.37203292 | BJ72: =E72 -> 60.96666667 | BK72: Saturated zone | BL72: =('Climate-inputs'!C68+'Climate-inputs'!D68)/2 -> 18.36944444 | BW72: =IF(E72<$A$86,0,AY72) -> 0 | BX72: =IF(E72<$A$86,0,AZ72) -> 0 | BZ72: =IF(OR(AND(E72<$A$86,BW72=0),E72=0),"-",BW72) -> 0 | CA72: =IF(OR(AND(E72<$A$86,BX72=0),E72=0),"-",BX72) -> 0 | CC72: 0 | CD72: 0 | CF72: 0 | CG72: 0 | CM72: =AJ72 -> 0 | CN72: 1 | CO72: 1.947169239 | CP72: 0.0861820496 | CQ72: 0.07788676955 | CR72: =1.8+24.8*EXP(-0.084*E72) -> 1.948027628 | CS72: =$CL$8/CR72 -> 1.026679484 | CT72: =IF(E72<0,0,IF(CO72>$CL$13,$CL$16/CO72,$CL$17/CO72)) -> 0.05135660425 | CV72: =E72 -> 60.96666667 | CW72: =L72 -> 0.9499398575 | CY72: =((K72-$A$35)/(1-$A$35))^$CL$19 -> 1 | CZ72: =CY72*$A$44 -> 0.9670742525 | DA72: =$CL$10*CZ72 -> 0.4835371263 | DB72: =$CL$11*CZ72 -> 0.2901222758 | DC72: =$A$36*CZ72 -> 0.2417685631
A73: 0.7210583252 | B73: w | D73: 15 | E73: 61.93333333 | F73: -58.15323849 | G73: =IF(E73<=$I$3,IF($O$1=1,IF(F73>0,$A$13,IF($A$7=0,$A$12,$A$12-BE73+(($A$13-$A$12)/(1+(ABS($A$9*F73))^$A$14)^$A$15))),IF(BC73>0,$A$13,IF($A$7=0,$A$12,$A$12-BE73+(($A$13-$A$12)/(1+(ABS($A$9*BC73))^$A$14)^$A$15)))),IF(AND(E73>$I$3,E73<$I$4),IF($O$1=1,IF(F73>0,$C$13,IF($A$7=0,$C$12,$C$12-BE73+(($C$13-$C$12)/(1+(ABS($C$9*F73))^$C$14)^$C$15))),IF(BC73>0,$C$13,IF($A$7=0,$C$12,$C$12-BE73+(($C$13-$C$12)/(1+(ABS($C$9*BC73))^$C$14)^$C$15)))),IF($O$1=1,IF(F73>0,$D$13,IF($A$7=0,$D$12,$D$12-BE73+(($D$13-$D$12)/(1+(ABS($D$9*F73))^$D$14)^$D$15))),IF(BC73>0,$D$13,IF($A$7=0,$D$12,$D$12-BE73+(($D$13-$D$12)/(1+(ABS($D$9*BC73))^$D$14)^$D$15)))))) -> 0.3874 | H73: =IF(E73<=$I$3,(G73-$A$12)/($A$13-$A$12),IF(AND(E73>$I$3,E73<$I$4),(G73-$C$12)/($C$13-$C$12),(G73-$D$12)/($D$13-$D$12))) -> 1 | I73: 0.9666666667 | J73: =IF(E73<=$I$3,$A$7 /$A$13,IF(AND(E73>$I$3,E73<$I$4),$A$7 /$A$13,$A$7 /$A$13)) -> 5.162622612 | K73: =IF(E73<=$I$3,MAX(G73/$A$13,$A$28),IF(AND(E73>$I$3,E73<$I$4),MAX(G73/$C$13,$C$28),MAX(G73/$D$13,$D$28))) -> 1 | L73: =IF($CK$3=2,1,MAX(EXP(-CS73),EXP(-CT73))) -> 0.9476832839 | M73: =IF(E73<=$I$3,IF(K73<$A$35,0,((K73-$A$35)/(1-$A$35))^$A$31),IF(AND(E73>$I$3,E73<$I$4),IF(K73<$C$35,0,((K73-$C$35)/(1-$C$35))^$C$31),IF(K73<$D$35,0,((K73-$D$35)/(1-$D$35))^$D$31))) -> 1 | N73: =IF(E73<=$I$3,IF(AND($A$28<=K73,K73<$A$29),$A$27+(1-$A$27)*((K73-$A$28)/($A$29-$A$28))^$A$22,IF(AND($A$29<=K73,K73<=$A$30),1,IF(AND($A$30<K73,K73<=1),$A$26+(1-$A$26)*((1-K73)/(1-$A$30))^$A$21))),IF(AND(E73>$I$3,E73<$I$4),IF(AND($C$28<=K73,K73<$C$29),$C$27+(1-$C$27)*((K73-$C$28)/($C$29-$C$28))^$C$22,IF(AND($CB$29<=K73,K73<=$C$30),1,IF(AND($C$30<K73,K73<=1),$C$26+(1-$C$26)*((1-K73)/(1-$C$30))^$C$21))),IF(AND($D$28<=K73,K73<$D$29),$D$27+(1-$D$27)*((K73-$D$28)/($D$29-$D$28))^$D$22,IF(AND($DB$29<=K73,K73<=$D$30),1,IF(AND($D$30<K73,K73<=1),$D$26+(1-$D$26)*((1-K73)/(1-$D$30))^$D$21))))) -> 0 | O73: =$A$45*N73 -> 0 | P73: =$A$44*M73*L73 -> 0.9164801034 | Q73: =IF(E73<=$I$3,$A$38,IF(AND(E73>$I$3,E73<$I$4),$C$38,$D$38)) -> 0.35 | R73: =1+(($A$46*Q73*$A$39*X72^($A$39-1))/G73) -> 69.53546614 | S73: =IF(E73<=$I$3,$A$23*O73,IF(AND(E73>$I$3,E73<$I$4),$C$23*O73,$D$23*O73)) -> 0 | T73: =IF(E73<=$I$3,$A$32*P73,IF(AND(E73>$I$3,E73<$I$4),$C$32*P73,$C$32*P73)) -> 0.05498880621 | U73: 0.1872433333 | V73: 1.040160536 | X73: 124 | Z73: 125 | AB73: 0.01029628737 | AC73: =IF(X73-Z73<0,0,X73-Z73) -> 0 | AD73: 0.1 | AE73: 0.1 | AF73: 125.1 | AG73: 2.084652558 | AH73: 2.502 | AI73: 0 | AP73: =E73 -> 61.93333333 | AQ73: =IF($A$63>=E72,AVERAGE(F73,F72),0) -> 0 | AR73: =IF($A$63>E73, (1+(AQ73/$A$61))^-$A$62,0) -> 0 | AS73: =AJ73/100 -> 0 | AT73: 0 | AU73: 0 | AV73: =AU73*MIN(AF73,$A$67) -> 0 | AW73: 0 | AX73: =AT73*$AX$7 -> 0 | AY73: =IF(AND(AE73-AX73>0,Z73>AX73/2),AX73/2,IF(AND(AE73-AX73>0,Z73<=AX73/2),AX73-Z73,IF(AE73<=AX73,AE73))) -> 0 | AZ73: =IF(OR(Z73=0,AX73=0,AX73<AY73),0,AX73-AY73) -> 0 | BA73: -61.93333333 | BB73: 0 | BC73: 0 | BD73: 0 | BE73: 0 | BF73: =AK73-AZ73 -> 0 | BG73: 20.47647611 | BH73: 1 | BI73: 20.47647611 | BJ73: 61.93333333 | BK73: Saturated zone | BL73: =('Climate-inputs'!C69+'Climate-inputs'!D69)/2 -> 23.34722222 | BW73: 0 | BX73: 0 | BZ73: 0 | CA73: 0 | CC73: 0 | CD73: 0 | CF73: 0 | CG73: 0 | CM73: 0 | CN73: 1 | CO73: =IF(CO72>=$CL$12,MAX(CO72*EXP(-DA72*CN73*U73),$CL$13),IF(AND(CO72>$CL$13,CO72<$CL$12),MAX(CO72*EXP(-DB72*CN73*U73),$CL$13),CO72*EXP(-DC72*CN73*U73))) -> 1.860987189 | CP73: =CO73 - CO74 -> 0.08236761708 | CQ73: =IF($CL$7>0,CO73/$CL$7,0) -> 0.07443948757 | CR73: 1.936482845 | CS73: 1.032800267 | CT73: 0.05373492122 | CV73: 61.93333333 | CW73: 0.9476832839 | CY73: 1 | CZ73: 0.9670742525 | DA73: 0.4835371263 | DB73: 0.2901222758 | DC73: 0.2417685631
A74: 0.7210583252 | B74: w' | D74: 16 | E74: 62.9 | F74: -58.15323849 | G74: 0.3874 | H74: 1 | I74: 0.9666666667 | J74: 5.162622612 | K74: 1 | L74: 0.9453279471 | M74: 1 | N74: 0 | O74: 0 | P74: 0.9142023178 | Q74: 0.35 | R74: 1.005770029 | S74: 0 | T74: 0.05485213907 | U74: 0.1872433333 | V74: =IF(OR($A$7<0.2,$A$19<0.5,Z73<$A$49),(X74*EXP(-U74*S74*R74)-Z74-CG74),Z74+$A$24*LN(Z74+$A$49)-((X74+($A$24*LN(X74+$A$49))-(R74*S74*U74)-(CG74)))) -> 1.039840531 | X74: =IF(Z73<$A$49,$A$49,Z73) -> 125 | Z74: 126 | AB74: =IF(OR($A$7<0.2,AE73<$A$50),(AD74*EXP(-U74*T74*$A$48)-AE74-CF74),AE74+$A$33*LN(AE74+$A$50)-((AD74+($A$33*LN(AD74+$A$50))-($A$48*T74*U74)-(CF74)))) -> 0.01027069736 | AC74: 0 | AD74: =AE73+AC74 -> 0.1 | AE74: 0.1 | AF74: 126.1 | AG74: 2.101316447 | AH74: 2.522 | AI74: 0 | AP74: 62.9 | AQ74: 0 | AR74: 0 | AS74: 0 | AT74: 0 | AU74: 0 | AV74: 0 | AW74: 0 | AX74: 0 | AY74: 0 | AZ74: 0 | BA74: -62.9 | BB74: 0 | BC74: 0 | BD74: 0 | BE74: 0 | BF74: 0 | BG74: 20.47647611 | BH74: 1 | BI74: 20.47647611 | BJ74: 62.9 | BK74: Saturated zone | BL74: =('Climate-inputs'!C70+'Climate-inputs'!D70)/2 -> 13.11388889 | BW74: 0 | BX74: 0 | BZ74: 0 | CA74: 0 | CC74: 0 | CD74: 0 | CF74: 0 | CG74: 0 | CM74: 0 | CN74: 1 | CO74: 1.778619572 | CP74: 0.078722012 | CQ74: 0.07114478289 | CR74: 1.925838449 | CS74: 1.038508708 | CT74: 0.0562233777 | CV74: 62.9 | CW74: 0.9453279471 | CY74: 1 | CZ74: 0.9670742525 | DA74: 0.4835371263 | DB74: 0.2901222758 | DC74: 0.2417685631
A75: 0.3991792935 | B75: ET | D75: 17 | E75: 63.86666667 | F75: -58.15323849 | G75: 0.3874 | H75: 1 | I75: 0.9666666667 | J75: 5.162622612 | K75: 1 | L75: 0.9428698015 | M75: 1 | N75: 0 | O75: 0 | P75: 0.9118251085 | Q75: 0.35 | R75: 1.005733072 | S75: 0 | T75: 0.05470950651 | U75: 0.1872433333 | V75: 1.039525585 | X75: 126 | Z75: 127 | AB75: 0.01024399036 | AC75: 0 | AD75: 0.1 | AE75: 0.1 | AF75: 127.1 | AG75: 2.117980337 | AH75: 2.542 | AI75: 0 | AP75: 63.86666667 | AQ75: 0 | AR75: 0 | AS75: 0 | AT75: 0 | AU75: 0 | AV75: 0 | AW75: 0 | AX75: 0 | AY75: 0 | AZ75: 0 | BA75: -63.86666667 | BB75: 0 | BC75: 0 | BD75: 0 | BE75: 0 | BF75: 0 | BG75: 20.47647611 | BH75: 1 | BI75: 20.47647611 | BJ75: 63.86666667 | BK75: Saturated zone | BL75: =('Climate-inputs'!C71+'Climate-inputs'!D71)/2 -> 12.00833333 | BW75: 0 | BX75: 0 | BZ75: 0 | CA75: 0 | CC75: 0 | CD75: 0 | CF75: 0 | CG75: 0 | CM75: 0 | CN75: 1 | CO75: 1.69989756 | CP75: 0.07523776204 | CQ75: 0.06799590241 | CR75: 1.916024216 | CS75: 1.043828143 | CT75: 0.05882707426 | CV75: 63.86666667 | CW75: 0.9428698015 | CY75: 1 | CZ75: 0.9670742525 | DA75: 0.4835371263 | DB75: 0.2901222758 | DC75: 0.2417685631
A76: 0 | B76: Pa | E76: 64.83333333 | F76: -58.15323849 | G76: 0.3874 | H76: 1 | I76: 0.9666666667 | J76: 5.162622612 | K76: 1 | L76: 0.9403046621 | M76: 1 | N76: 0 | O76: 0 | P76: 0.9093444282 | Q76: 0.35 | R76: 1.005696642 | S76: 0 | T76: 0.05456066569 | U76: 0.1872433333 | V76: 1.03921558 | X76: 127 | Z76: 128 | AB76: 0.01021612091 | AC76: 0 | AD76: 0.1 | AE76: 0.1 | AF76: 128.1 | AG76: 2.134644226 | AH76: 2.562 | AI76: 0 | AP76: 64.83333333 | AQ76: 0 | AR76: 0 | AS76: 0 | AT76: 0 | AU76: 0 | AV76: 0 | AW76: 0 | AX76: 0 | AY76: 0 | AZ76: 0 | BA76: -64.83333333 | BB76: =IF(BB75-$A$43>0,BB75-$A$43,0) -> 0 | BC76: 0 | BD76: 0 | BE76: 0 | BF76: 0 | BG76: 20.47647611 | BH76: 1 | BI76: 20.47647611 | BJ76: 64.83333333 | BK76: Saturated zone | BL76: =('Climate-inputs'!C72+'Climate-inputs'!D72)/2 -> 17.325 | BW76: 0 | BX76: 0 | BZ76: 0 | CA76: 0 | CC76: 0 | CD76: 0 | CF76: 0 | CG76: 0 | CM76: 0 | CN76: 1 | CO76: 1.624659798 | CP76: 0.07190772559 | CQ76: 0.06498639193 | CR76: 1.906975403 | CS76: 1.048781225 | CT76: 0.06155134762 | CV76: 64.83333333 | CW76: 0.9403046621 | CY76: 1 | CZ76: 0.9670742525 | DA76: 0.4835371263 | DB76: 0.2901222758 | DC76: 0.2417685631
A77: 0 | B77: Ap | E77: =E76+ $A$43 -> 65.8 | F77: =IF(E77<=$I$3,(1/$A$8)*LN(EXP($A$8*(F78-$A$43))+($A$7/$A$10)*(1-EXP(-$A$8*$A$43)))*$A$18,IF(AND(E77>$I$3,E77<$I$4),(1/$C$8)*LN(EXP($C$8*(F78-$A$43))+($A$7/$C$10)*(1-EXP(-$C$8*$A$43)))*$C$18,(1/$D$8)*LN(EXP($D$8*(F78-$A$43))+($A$7/$D$10)*(1-EXP(-$D$8*$A$43)))*$D$18)) -> -58.15323849 | G77: 0.3874 | H77: 1 | I77: =IF(Q66=2,IF(E77<=$I$3,$A$43*EXP($A$8*F77),IF(AND(E72>$I$3,E72<$I$4),$A$43*EXP($A$8*F77),$A$43*EXP($A$8*F77))),IF(E77<=$I$3,$A$43*EXP($A$8*BC77),IF(AND(E72>$I$3,E72<$I$4),$A$43*EXP($A$8*BC77),$A$43*EXP($A$8*BC77)))) -> 0.9666666667 | J77: 5.162622612 | K77: 1 | L77: 0.937628202 | M77: 1 | N77: 0 | O77: 0 | P77: 0.9067560926 | Q77: 0.35 | R77: 1.005660729 | S77: 0 | T77: 0.05440536556 | U77: =$A$43/J77 -> 0.1872433333 | V77: 1.038910399 | X77: 128 | Z77: 129 | AB77: 0.010187042 | AC77: 0 | AD77: 0.1 | AE77: 0.1 | AF77: 129.1 | AG77: 2.151308115 | AH77: 2.582 | AI77: 0 | AP77: 65.8 | AQ77: 0 | AR77: 0 | AS77: 0 | AT77: 0 | AU77: 0 | AV77: 0 | AW77: 0 | AX77: 0 | AY77: 0 | AZ77: 0 | BA77: -65.8 | BB77: 0 | BC77: 0 | BD77: 0 | BE77: 0 | BF77: 0 | BG77: 20.47647611 | BH77: 1 | BI77: 20.47647611 | BJ77: 65.8 | BK77: =IF(AND(E77>$P$2,$N$2="Shallow"),"Saturated zone",IF(AND($N$2="Shallow",$B$2<E77,E77<$P$2+$J$2),"vadose zone",IF(AND($N$2="Shallow",$B$2<E77,E77>$P$2+$J$2),"capillary zone",IF($N$2="Deep","vadose zone")))) -> Saturated zone | BL77: =('Climate-inputs'!C73+'Climate-inputs'!D73)/2 -> 20.83055556 | BW77: 0 | BX77: 0 | BZ77: 0 | CA77: 0 | CC77: 0 | CD77: 0 | CF77: 0 | CG77: 0 | CM77: 0 | CN77: 1 | CO77: 1.552752073 | CP77: 0.06872507713 | CQ77: 0.0621100829 | CR77: 1.898632314 | CS77: 1.053389846 | CT77: 0.06440178169 | CV77: 65.8 | CW77: 0.937628202 | CY77: 1 | CZ77: 0.9670742525 | DA77: 0.4835371263 | DB77: 0.2901222758 | DC77: 0.2417685631
A78: 0.934736 | B78: p | E78: 66.76666667 | F78: -58.15323849 | G78: 0.3874 | H78: 1 | I78: 0.9666666667 | J78: 5.162622612 | K78: 1 | L78: 0.9348359506 | M78: 1 | N78: 0 | O78: 0 | P78: 0.9040557782 | Q78: 0.35 | R78: 1.005625322 | S78: 0 | T78: 0.05424334669 | U78: 0.1872433333 | V78: 1.038609932 | X78: 129 | Z78: 130 | AB78: 0.01015670505 | AC78: 0 | AD78: 0.1 | AE78: 0.1 | AF78: 130.1 | AG78: 2.167972005 | AH78: 2.602 | AI78: 0 | AP78: 66.76666667 | AQ78: 0 | AR78: 0 | AS78: 0 | AT78: 0 | AU78: 0 | AV78: 0 | AW78: 0 | AX78: 0 | AY78: 0 | AZ78: 0 | BA78: -66.76666667 | BB78: 0 | BC78: 0 | BD78: 0 | BE78: 0 | BF78: 0 | BG78: 20.47647611 | BH78: 1 | BI78: 20.47647611 | BJ78: 66.76666667 | BK78: Saturated zone | BL78: =('Climate-inputs'!C74+'Climate-inputs'!D74)/2 -> 18.275 | BW78: 0 | BX78: 0 | BZ78: 0 | CA78: 0 | CC78: 0 | CD78: 0 | CF78: 0 | CG78: 0 | CM78: 0 | CN78: 1 | CO78: 1.484026995 | CP78: 0.06568329325 | CQ78: 0.05936107982 | CR78: 1.890939908 | CS78: 1.05767507 | CT78: 0.06738421896 | CV78: 66.76666667 | CW78: 0.9348359506 | CY78: 1 | CZ78: 0.9670742525 | DA78: 0.4835371263 | DB78: 0.2901222758 | DC78: 0.2417685631
A79: 0 | B79: Aa | D79: =E79-E78 -> 0.9666666667 | E79: 67.73333333 | F79: -58.15323849 | G79: 0.3874 | H79: 1 | I79: 0.9666666667 | J79: 5.162622612 | K79: 1 | L79: 0.9319232919 | M79: 1 | N79: 0 | O79: 0 | P79: 0.901239021 | Q79: 0.35 | R79: 1.005590409 | S79: 0 | T79: 0.05407434126 | U79: 0.1872433333 | V79: 1.03831407 | X79: 130 | Z79: 131 | AB79: 0.0101250599 | AC79: 0 | AD79: 0.1 | AE79: 0.1 | AF79: 131.1 | AG79: 2.184635894 | AH79: 2.622 | AI79: 0 | AP79: 67.73333333 | AQ79: 0 | AR79: 0 | AS79: 0 | AT79: 0 | AU79: 0 | AV79: 0 | AW79: 0 | AX79: 0 | AY79: 0 | AZ79: 0 | BA79: -67.73333333 | BB79: 0 | BC79: 0 | BD79: 0 | BE79: 0 | BF79: 0 | BG79: 20.47647611 | BH79: 1 | BI79: 20.47647611 | BJ79: 67.73333333 | BK79: Saturated zone | BL79: =('Climate-inputs'!C75+'Climate-inputs'!D75)/2 -> 17.025 | BW79: 0 | BX79: 0 | BZ79: 0 | CA79: 0 | CC79: 0 | CD79: 0 | CF79: 0 | CG79: 0 | CM79: 0 | CN79: 1 | CO79: 1.418343702 | CP79: 0.06277613925 | CQ79: 0.05673374809 | CR79: 1.883847438 | CS79: 1.061657096 | CT79: 0.07050477247 | CV79: 67.73333333 | CW79: 0.9319232919 | CY79: 1 | CZ79: 0.9670742525 | DA79: 0.4835371263 | DB79: 0.2901222758 | DC79: 0.2417685631
A80: 0.934736 | B80: p' | E80: 68.7 | F80: -58.15323849 | G80: 0.3874 | H80: 1 | I80: 0.9666666667 | J80: 5.162622612 | K80: 1 | L80: 0.928885463 | M80: 1 | N80: 0 | O80: 0 | P80: 0.8983012149 | Q80: 0.35 | R80: 1.00555598 | S80: 0 | T80: 0.05389807289 | U80: 0.1872433333 | V80: 1.038022708 | X80: 131 | Z80: 132 | AB80: 0.01009205483 | AC80: 0 | AD80: 0.1 | AE80: 0.1 | AF80: 132.1 | AG80: 2.201299783 | AH80: 2.642 | AI80: 0 | AP80: 68.7 | AQ80: 0 | AR80: 0 | AS80: 0 | AT80: 0 | AU80: 0 | AV80: 0 | AW80: 0 | AX80: 0 | AY80: 0 | AZ80: 0 | BA80: -68.7 | BB80: 0 | BC80: 0 | BD80: 0 | BE80: 0 | BF80: 0 | BG80: 20.47647611 | BH80: 1 | BI80: 20.47647611 | BJ80: 68.7 | BK80: Saturated zone | BL80: =('Climate-inputs'!C76+'Climate-inputs'!D76)/2 -> 17.71944444 | BW80: 0 | BX80: 0 | BZ80: 0 | CA80: 0 | CC80: 0 | CD80: 0 | CF80: 0 | CG80: 0 | CM80: 0 | CN80: 1 | CO80: 1.355567563 | CP80: 0.0599976564 | CQ80: 0.05422270252 | CR80: 1.877308115 | CS80: 1.06535522 | CT80: 0.07376983836 | CV80: 68.7 | CW80: 0.928885463 | CY80: 1 | CZ80: 0.9670742525 | DA80: 0.4835371263 | DB80: 0.2901222758 | DC80: 0.2417685631
A81: 0 | B81: Aac | E81: 69.66666667 | F81: -58.15323849 | G81: 0.3874 | H81: 1 | I81: 0.9666666667 | J81: 5.162622612 | K81: 1 | L81: 0.9257175532 | M81: 1 | N81: 0 | O81: 0 | P81: 0.8952376108 | Q81: 0.35 | R81: 1.005522025 | S81: 0 | T81: 0.05371425665 | U81: 0.1872433333 | V81: 1.037735743 | X81: 132 | Z81: 133 | AB81: 0.01005763646 | AC81: 0 | AD81: 0.1 | AE81: 0.1 | AF81: 133.1 | AG81: 2.217963673 | AH81: 2.662 | AI81: 0 | AP81: 69.66666667 | AQ81: 0 | AR81: 0 | AS81: 0 | AT81: 0 | AU81: 0 | AV81: 0 | AW81: 0 | AX81: 0 | AY81: 0 | AZ81: 0 | BA81: -69.66666667 | BB81: 0 | BC81: 0 | BD81: 0 | BE81: 0 | BF81: 0 | BG81: 20.47647611 | BH81: 1 | BI81: 20.47647611 | BJ81: 69.66666667 | BK81: Saturated zone | BL81: =('Climate-inputs'!C77+'Climate-inputs'!D77)/2 -> 21.65 | BW81: 0 | BX81: 0 | BZ81: 0 | CA81: 0 | CC81: 0 | CD81: 0 | CF81: 0 | CG81: 0 | CM81: 0 | CN81: 1 | CO81: 1.295569907 | CP81: 0.05734214968 | CQ81: 0.05182279626 | CR81: 1.871278799 | CS81: 1.068787826 | CT81: 0.07718610898 | CV81: 69.66666667 | CW81: 0.9257175532 | CY81: 1 | CZ81: 0.9670742525 | DA81: 0.4835371263 | DB81: 0.2901222758 | DC81: 0.2417685631
A82: 0 | B82: Total | E82: 70.63333333 | F82: -58.15323849 | G82: 0.3874 | H82: 1 | I82: 0.9666666667 | J82: 5.162622612 | K82: 1 | L82: 0.9224145034 | M82: 1 | N82: 0 | O82: 0 | P82: 0.8920433164 | Q82: 0.35 | R82: 1.005488532 | S82: 0 | T82: 0.05352259898 | U82: 0.1872433333 | V82: 1.037453078 | X82: 133 | Z82: 134 | AB82: 0.01002174984 | AC82: 0 | AD82: 0.1 | AE82: 0.1 | AF82: 134.1 | AG82: 2.234627562 | AH82: 2.682 | AI82: 0 | AP82: 70.63333333 | AQ82: 0 | AR82: 0 | AS82: 0 | AT82: 0 | AU82: 0 | AV82: 0 | AW82: 0 | AX82: 0 | AY82: 0 | AZ82: 0 | BA82: -70.63333333 | BB82: 0 | BC82: 0 | BD82: 0 | BE82: 0 | BF82: 0 | BG82: 20.47647611 | BH82: 1 | BI82: 20.47647611 | BJ82: 70.63333333 | BK82: Saturated zone | BL82: =('Climate-inputs'!C78+'Climate-inputs'!D78)/2 -> 23.59722222 | BW82: 0 | BX82: 0 | BZ82: 0 | CA82: 0 | CC82: 0 | CD82: 0 | CF82: 0 | CG82: 0 | CM82: 0 | CN82: 1 | CO82: 1.238227757 | CP82: 0.05480417615 | CQ82: 0.04952911027 | CR82: 1.865719713 | CS82: 1.071972379 | CT82: 0.08076058661 | CV82: 70.63333333 | CW82: 0.9224145034 | CY82: 1 | CZ82: 0.9670742525 | DA82: 0.4835371263 | DB82: 0.2901222758 | DC82: 0.2417685631
A83: =1-$AT$3 -> 0.05701236668 | E83: 71.6 | F83: -58.15323849 | G83: 0.3874 | H83: 1 | I83: 0.9666666667 | J83: 5.162622612 | K83: 1 | L83: 0.918971106 | M83: 1 | N83: 0 | O83: 0 | P83: 0.8887132955 | Q83: 0.35 | R83: 1.005455494 | S83: 0 | T83: 0.05332279773 | U83: 0.1872433333 | V83: 1.037174616 | X83: 134 | Z83: 135 | AB83: 0.009984338389 | AC83: 0 | AD83: 0.1 | AE83: 0.1 | AF83: 135.1 | AG83: 2.251291451 | AH83: 2.702 | AI83: 0 | AP83: 71.6 | AQ83: 0 | AR83: 0 | AS83: 0 | AT83: 0 | AU83: 0 | AV83: 0 | AW83: 0 | AX83: 0 | AY83: 0 | AZ83: 0 | BA83: -71.6 | BB83: 0 | BC83: 0 | BD83: 0 | BE83: 0 | BF83: 0 | BG83: 20.47647611 | BH83: 1 | BI83: 20.47647611 | BJ83: 71.6 | BK83: Saturated zone | BL83: =('Climate-inputs'!C79+'Climate-inputs'!D79)/2 -> 22.28611111 | BW83: 0 | BX83: 0 | BZ83: 0 | CA83: 0 | CC83: 0 | CD83: 0 | CF83: 0 | CG83: 0 | CM83: 0 | CN83: 1 | CO83: 1.183423581 | CP83: 0.05237853377 | CQ83: 0.04733694323 | CR83: 1.860594185 | CS83: 1.074925428 | CT83: 0.08450059778 | CV83: 71.6 | CW83: 0.918971106 | CY83: 1 | CZ83: 0.9670742525 | DA83: 0.4835371263 | DB83: 0.2901222758 | DC83: 0.2417685631
A84: 0 | B84: C NH4 | E84: 72.56666667 | F84: -58.15323849 | G84: 0.3874 | H84: 1 | I84: 0.9666666667 | J84: 5.162622612 | K84: 1 | L84: 0.9153820056 | M84: 1 | N84: 0 | O84: 0 | P84: 0.8852423689 | Q84: 0.35 | R84: 1.005422899 | S84: 0 | T84: 0.05311454213 | U84: 0.1872433333 | V84: 1.036900264 | X84: 135 | Z84: 136 | AB84: 0.009945343917 | AC84: 0 | AD84: 0.1 | AE84: 0.1 | AF84: 136.1 | AG84: 2.267955341 | AH84: 2.722 | AI84: 0 | AP84: 72.56666667 | AQ84: 0 | AR84: 0 | AS84: 0 | AT84: 0 | AU84: 0 | AV84: 0 | AW84: 0 | AX84: 0 | AY84: 0 | AZ84: 0 | BA84: -72.56666667 | BB84: 0 | BC84: 0 | BD84: 0 | BE84: 0 | BF84: 0 | BG84: 20.47647611 | BH84: 1 | BI84: 20.47647611 | BJ84: 72.56666667 | BK84: Saturated zone | BL84: =('Climate-inputs'!C80+'Climate-inputs'!D80)/2 -> 21.88055556 | BW84: 0 | BX84: 0 | BZ84: 0 | CA84: 0 | CC84: 0 | CD84: 0 | CF84: 0 | CG84: 0 | CM84: 0 | CN84: 1 | CO84: 1.131045047 | CP84: 0.05006025074 | CQ84: 0.04524180188 | CR84: 1.8558684 | CS84: 1.077662619 | CT84: 0.08841380834 | CV84: 72.56666667 | CW84: 0.9153820056 | CY84: 1 | CZ84: 0.9670742525 | DA84: 0.4835371263 | DB84: 0.2901222758 | DC84: 0.2417685631
A85: 0.57 | B85: C/Co TN | E85: 73.53333333 | F85: -58.15323849 | G85: 0.3874 | H85: 1 | I85: 0.9666666667 | J85: 5.162622612 | K85: 1 | L85: 0.9116416998 | M85: 1 | N85: 0 | O85: 0 | P85: 0.8816252154 | Q85: 0.35 | R85: 1.00539074 | S85: 0 | T85: 0.05289751293 | U85: 0.1872433333 | V85: 1.036629932 | X85: 136 | Z85: 137 | AB85: 0.009904706645 | AC85: 0 | AD85: 0.1 | AE85: 0.1 | AF85: 137.1 | AG85: 2.28461923 | AH85: 2.742 | AI85: 0 | AP85: 73.53333333 | AQ85: 0 | AR85: 0 | AS85: 0 | AT85: 0 | AU85: 0 | AV85: 0 | AW85: 0 | AX85: 0 | AY85: 0 | AZ85: 0 | BA85: -73.53333333 | BB85: 0 | BC85: 0 | BD85: 0 | BE85: 0 | BF85: 0 | BG85: 20.47647611 | BH85: 1 | BI85: 20.47647611 | BJ85: 73.53333333 | BK85: Saturated zone | BL85: =('Climate-inputs'!C81+'Climate-inputs'!D81)/2 -> 23.73888889 | BW85: 0 | BX85: 0 | BZ85: 0 | CA85: 0 | CC85: 0 | CD85: 0 | CF85: 0 | CG85: 0 | CM85: 0 | CN85: 1 | CO85: 1.080984796 | CP85: 0.04784457533 | CQ85: 0.04323939185 | CR85: 1.851511183 | CS85: 1.080198715 | CT85: 0.09250823911 | CV85: 73.53333333 | CW85: 0.9116416998 | CY85: 1 | CZ85: 0.9670742525 | DA85: 0.4835371263 | DB85: 0.2901222758 | DC85: 0.2417685631
A86: 0 | B86: Trench D | E86: 74.5 | F86: -58.15323849 | G86: 0.3874 | H86: 1 | I86: 0.9666666667 | J86: 5.162622612 | K86: 1 | L86: 0.9077445411 | M86: 1 | N86: 0 | O86: 0 | P86: 0.8778563736 | Q86: 0.35 | R86: 1.005359006 | S86: 0 | T86: 0.05267138241 | U86: 0.1872433333 | V86: 1.036363532 | X86: 137 | Z86: 138 | AB86: 0.009862365214 | AC86: 0 | AD86: 0.1 | AE86: 0.1 | AF86: 138.1 | AG86: 2.301283119 | AH86: 2.762 | AI86: 0 | AP86: 74.5 | AQ86: 0 | AR86: 0 | AS86: 0 | AT86: 0 | AU86: 0 | AV86: 0 | AW86: 0 | AX86: 0 | AY86: 0 | AZ86: 0 | BA86: -74.5 | BB86: 0 | BC86: 0 | BD86: 0 | BE86: 0 | BF86: 0 | BG86: 20.47647611 | BH86: 1 | BI86: 20.47647611 | BJ86: 74.5 | BK86: Saturated zone | BL86: =('Climate-inputs'!C82+'Climate-inputs'!D82)/2 -> 18.30833333 | BW86: 0 | BX86: 0 | BZ86: 0 | CA86: 0 | CC86: 0 | CD86: 0 | CF86: 0 | CG86: 0 | CM86: 0 | CN86: 1 | CO86: 1.033140221 | CP86: 0.04572696609 | CQ86: 0.04132560883 | CR86: 1.847493788 | CS86: 1.082547618 | CT86: 0.09679228238 | CV86: 74.5 | CW86: 0.9077445411 | CY86: 1 | CZ86: 0.9670742525 | DA86: 0.4835371263 | DB86: 0.2901222758 | DC86: 0.2417685631
A87: -14.3 | C87: -39.7 | D87: -14.3 | E87: 75.46666667 | F87: -58.15323849 | G87: 0.3874 | H87: 1 | I87: 0.9666666667 | J87: 5.162622612 | K87: 1 | L87: 0.9036847393 | M87: 1 | N87: 0 | O87: 0 | P87: 0.8739302438 | Q87: 0.35 | R87: 1.00532769 | S87: 0 | T87: 0.05243581463 | U87: 0.1872433333 | V87: 1.036100979 | X87: 138 | Z87: 139 | AB87: 0.009818256717 | AC87: 0 | AD87: 0.1 | AE87: 0.1 | AF87: 139.1 | AG87: 2.317947009 | AH87: 2.782 | AI87: 0 | AP87: 75.46666667 | AQ87: 0 | AR87: 0 | AS87: 0 | AT87: 0 | AU87: 0 | AV87: 0 | AW87: 0 | AX87: 0 | AY87: 0 | AZ87: 0 | BA87: -75.46666667 | BB87: 0 | BC87: 0 | BD87: 0 | BE87: 0 | BF87: 0 | BG87: 20.47647611 | BH87: 1 | BI87: 20.47647611 | BJ87: 75.46666667 | BK87: Saturated zone | BL87: =('Climate-inputs'!C83+'Climate-inputs'!D83)/2 -> 18.84722222 | BW87: 0 | BX87: 0 | BZ87: 0 | CA87: 0 | CC87: 0 | CD87: 0 | CF87: 0 | CG87: 0 | CM87: 0 | CN87: 1 | CO87: 0.9874132548 | CP87: 0.04370308261 | CQ87: 0.03949653019 | CR87: 1.843789713 | CS87: 1.084722398 | CT87: 0.1012747191 | CV87: 75.46666667 | CW87: 0.9036847393 | CY87: 1 | CZ87: 0.9670742525 | DA87: 0.4835371263 | DB87: 0.2901222758 | DC87: 0.2417685631
A88: 0.57 | B88: M/Mo | E88: 76.43333333 | F88: -58.15323849 | G88: 0.3874 | H88: 1 | I88: 0.9666666667 | J88: 5.162622612 | K88: 1 | L88: 0.8994563652 | M88: 1 | N88: 0 | O88: 0 | P88: 0.8698410921 | Q88: 0.35 | R88: 1.005296782 | S88: 0 | T88: 0.05219046553 | U88: 0.1872433333 | V88: 1.03584219 | X88: 139 | Z88: 140 | AB88: 0.009772316733 | AC88: 0 | AD88: 0.1 | AE88: 0.1 | AF88: 140.1 | AG88: 2.334610898 | AH88: 2.802 | AI88: 0 | AP88: 76.43333333 | AQ88: 0 | AR88: 0 | AS88: 0 | AT88: 0 | AU88: 0 | AV88: 0 | AW88: 0 | AX88: 0 | AY88: 0 | AZ88: 0 | BA88: -76.43333333 | BB88: 0 | BC88: 0 | BD88: 0 | BE88: 0 | BF88: 0 | BG88: 20.47647611 | BH88: 1 | BI88: 20.47647611 | BJ88: 76.43333333 | BK88: Saturated zone | BL88: =('Climate-inputs'!C84+'Climate-inputs'!D84)/2 -> 17.975 | BW88: 0 | BX88: 0 | BZ88: 0 | CA88: 0 | CC88: 0 | CD88: 0 | CF88: 0 | CG88: 0 | CM88: 0 | CN88: 1 | CO88: 0.9437101722 | CP88: 0.04176877656 | CQ88: 0.03774840689 | CR88: 1.840374522 | CS88: 1.086735323 | CT88: 0.1059647368 | CV88: 76.43333333 | CW88: 0.8994563652 | CY88: 1 | CZ88: 0.9670742525 | DA88: 0.4835371263 | DB88: 0.2901222758 | DC88: 0.2417685631
A89: 1 | E89: 77.4 | F89: -58.15323849 | G89: 0.3874 | H89: 1 | I89: 0.9666666667 | J89: 5.162622612 | K89: 1 | L89: 0.8950533545 | M89: 1 | N89: 0 | O89: 0 | P89: 0.8655830538 | Q89: 0.35 | R89: 1.005266275 | S89: 0 | T89: 0.05193498323 | U89: 0.1872433333 | V89: 1.035587086 | X89: 140 | Z89: 141 | AB89: 0.009724479376 | AC89: 0 | AD89: 0.1 | AE89: 0.1 | AF89: 141.1 | AG89: 2.351274788 | AH89: 2.822 | AI89: 0 | AP89: 77.4 | AQ89: 0 | AR89: 0 | AS89: 0 | AT89: 0 | AU89: 0 | AV89: 0 | AW89: 0 | AX89: 0 | AY89: 0 | AZ89: 0 | BA89: -77.4 | BB89: 0 | BC89: 0 | BD89: 0 | BE89: 0 | BF89: 0 | BG89: 20.47647611 | BH89: 1 | BI89: 20.47647611 | BJ89: 77.4 | BK89: Saturated zone | BL89: =('Climate-inputs'!C85+'Climate-inputs'!D85)/2 -> 22.11388889 | BW89: 0 | BX89: 0 | BZ89: 0 | CA89: 0 | CC89: 0 | CD89: 0 | CF89: 0 | CG89: 0 | CM89: 0 | CN89: 1 | CO89: 0.9019413956 | CP89: 0.03992008324 | CQ89: 0.03607765582 | CR89: 1.837225683 | CS89: 1.088597889 | CT89: 0.1108719485 | CV89: 77.4 | CW89: 0.8950533545 | CY89: 1 | CZ89: 0.9670742525 | DA89: 0.4835371263 | DB89: 0.2901222758 | DC89: 0.2417685631
A90: 72 | E90: 78.36666667 | F90: -58.15323849 | G90: 0.3874 | H90: 1 | I90: 0.9666666667 | J90: 5.162622612 | K90: 1 | L90: 0.8904695131 | M90: 1 | N90: 0 | O90: 0 | P90: 0.8611501388 | Q90: 0.35 | R90: 1.00523616 | S90: 0 | T90: 0.05166900833 | U90: 0.1872433333 | V90: 1.035335586 | X90: 141 | Z90: 142 | AB90: 0.009674677349 | AC90: 0 | AD90: 0.1 | AE90: 0.1 | AF90: 142.1 | AG90: 2.367938677 | AH90: 2.842 | AI90: 0 | AP90: 78.36666667 | AQ90: 0 | AR90: 0 | AS90: 0 | AT90: 0 | AU90: 0 | AV90: 0 | AW90: 0 | AX90: 0 | AY90: 0 | AZ90: 0 | BA90: -78.36666667 | BB90: 0 | BC90: 0 | BD90: 0 | BE90: 0 | BF90: 0 | BG90: 20.47647611 | BH90: 1 | BI90: 20.47647611 | BJ90: 78.36666667 | BK90: Saturated zone | BL90: =('Climate-inputs'!C86+'Climate-inputs'!D86)/2 -> 15.72222222 | BW90: 0 | BX90: 0 | BZ90: 0 | CA90: 0 | CC90: 0 | CD90: 0 | CF90: 0 | CG90: 0 | CM90: 0 | CN90: 1 | CO90: 0.8620213124 | CP90: 0.0381532134 | CQ90: 0.03448085249 | CR90: 1.834322425 | CS90: 1.090320858 | CT90: 0.1160064126 | CV90: 78.36666667 | CW90: 0.8904695131 | CY90: 1 | CZ90: 0.9670742525 | DA90: 0.4835371263 | DB90: 0.2901222758 | DC90: 0.2417685631
A91: 3.89 | E91: 79.33333333 | F91: -58.15323849 | G91: 0.3874 | H91: 1 | I91: 0.9666666667 | J91: 5.162622612 | K91: 1 | L91: 0.8856985238 | M91: 1 | N91: 0 | O91: 0 | P91: 0.8565362379 | Q91: 0.35 | R91: 1.005206431 | S91: 0 | T91: 0.05139217427 | U91: 0.1872433333 | V91: 1.035087617 | X91: 142 | Z91: 143 | AB91: 0.009622842018 | AC91: 0 | AD91: 0.1 | AE91: 0.1 | AF91: 143.1 | AG91: 2.384602566 | AH91: 2.862 | AI91: 0 | AP91: 79.33333333 | AQ91: 0 | AR91: 0 | AS91: 0 | AT91: 0 | AU91: 0 | AV91: 0 | AW91: 0 | AX91: 0 | AY91: 0 | AZ91: 0 | BA91: -79.33333333 | BB91: 0 | BC91: 0 | BD91: 0 | BE91: 0 | BF91: 0 | BG91: 20.47647611 | BH91: 1 | BI91: 20.47647611 | BJ91: 79.33333333 | BK91: Saturated zone | BL91: =('Climate-inputs'!C87+'Climate-inputs'!D87)/2 -> 12.37222222 | BW91: 0 | BX91: 0 | BZ91: 0 | CA91: 0 | CC91: 0 | CD91: 0 | CF91: 0 | CG91: 0 | CM91: 0 | CN91: 1 | CO91: 0.823868099 | CP91: 0.03646454553 | CQ91: 0.03295472396 | CR91: 1.831645594 | CS91: 1.091914291 | CT91: 0.1213786529 | CV91: 79.33333333 | CW91: 0.8856985238 | CY91: 1 | CZ91: 0.9670742525 | DA91: 0.4835371263 | DB91: 0.2901222758 | DC91: 0.2417685631
A92: =$A$75/($A$63) -> 0.01330597645 | B92: ET/RD | E92: 80.3 | F92: -58.15323849 | G92: 0.3874 | H92: 1 | I92: 0.9666666667 | J92: 5.162622612 | K92: 1 | L92: 0.8807339537 | M92: 1 | N92: 0 | O92: 0 | P92: 0.8517351299 | Q92: 0.35 | R92: 1.005177078 | S92: 0 | T92: 0.05110410779 | U92: 0.1872433333 | V92: 1.034843104 | X92: 143 | Z92: 144 | AB92: 0.009568903491 | AC92: 0 | AD92: 0.1 | AE92: 0.1 | AF92: 144.1 | AG92: 2.401266456 | AH92: 2.882 | AI92: 0 | AP92: 80.3 | AQ92: 0 | AR92: 0 | AS92: 0 | AT92: 0 | AU92: 0 | AV92: 0 | AW92: 0 | AX92: 0 | AY92: 0 | AZ92: 0 | BA92: -80.3 | BB92: 0 | BC92: 0 | BD92: 0 | BE92: 0 | BF92: 0 | BG92: 20.47647611 | BH92: 1 | BI92: 20.47647611 | BJ92: 80.3 | BK92: Saturated zone | BL92: =('Climate-inputs'!C88+'Climate-inputs'!D88)/2 -> 16.375 | BW92: 0 | BX92: 0 | BZ92: 0 | CA92: 0 | CC92: 0 | CD92: 0 | CF92: 0 | CG92: 0 | CM92: 0 | CN92: 1 | CO92: 0.7874035534 | CP92: 0.0348506184 | CQ92: 0.03149614214 | CR92: 1.829177531 | CS92: 1.093387583 | CT92: 0.1269996809 | CV92: 80.3 | CW92: 0.8807339537 | CY92: 1 | CZ92: 0.9670742525 | DA92: 0.4835371263 | DB92: 0.2901222758 | DC92: 0.2417685631
A93: 0.72 | B93: kc | E93: 81.26666667 | F93: -58.15323849 | G93: 0.3874 | H93: 1 | I93: 0.9666666667 | J93: 5.162622612 | K93: 1 | L93: 0.875569263 | M93: 1 | N93: 0 | O93: 0 | P93: 0.8467404906 | Q93: 0.35 | R93: 1.005148095 | S93: 0 | T93: 0.05080442943 | U93: 0.1872433333 | V93: 1.034601975 | X93: 144 | Z93: 145 | AB93: 0.009512790715 | AC93: 0 | AD93: 0.1 | AE93: 0.1 | AF93: 145.1 | AG93: 2.417930345 | AH93: 2.902 | AI93: 0 | AP93: 81.26666667 | AQ93: 0 | AR93: 0 | AS93: 0 | AT93: 0 | AU93: 0 | AV93: 0 | AW93: 0 | AX93: 0 | AY93: 0 | AZ93: 0 | BA93: -81.26666667 | BB93: 0 | BC93: =IF(E92<=$I$3,IF(BB93>0,(1/$A$8)*LN(EXP($A$8*(BC94-$A$43))+($A$7/$A$10)*(1-EXP(-$A$8*$A$43)))*$A$18,0),IF(AND(E92>$I$3,E92<$I$4),IF(BB93>0,(1/$C$8)*LN(EXP($C$8*(BC94-$A$43))+($A$7/$C$10)*(1-EXP(-$C$8*$A$43)))*$C$18,0),IF(BB93>0,(1/$D$8)*LN(EXP($D$8*(BC94-$A$43))+($A$7/$D$10)*(1-EXP(-$D$8*$A$43)))*$D$18,0))) -> 0 | BD93: 0 | BE93: 0 | BF93: 0 | BG93: =$A$10*EXP($A$8*F93) -> 20.47647611 | BH93: 1 | BI93: 20.47647611 | BJ93: 81.26666667 | BK93: Saturated zone | BL93: =('Climate-inputs'!C89+'Climate-inputs'!D89)/2 -> 18.37222222 | BW93: 0 | BX93: 0 | BZ93: 0 | CA93: 0 | CC93: 0 | CD93: 0 | CF93: 0 | CG93: 0 | CM93: 0 | CN93: 1 | CO93: 0.752552935 | CP93: 0.03330812396 | CQ93: 0.0301021174 | CR93: 1.826901954 | CS93: 1.094749499 | CT93: 0.1328810179 | CV93: 81.26666667 | CW93: 0.875569263 | CY93: 1 | CZ93: 0.9670742525 | DA93: 0.4835371263 | DB93: 0.2901222758 | DC93: 0.2417685631
A94: -10.26 | E94: 82.23333333 | F94: -58.15323849 | G94: 0.3874 | H94: 1 | I94: 0.9666666667 | J94: 5.162622612 | K94: 1 | L94: 0.8701978158 | M94: 1 | N94: 0 | O94: 0 | P94: 0.8415459022 | Q94: 0.35 | R94: 1.005119474 | S94: 0 | T94: 0.05049275413 | U94: 0.1872433333 | V94: 1.03436416 | X94: 145 | Z94: 146 | AB94: 0.009454431593 | AC94: 0 | AD94: 0.1 | AE94: 0.1 | AF94: 146.1 | AG94: 2.434594234 | AH94: 2.922 | AI94: 0 | AP94: 82.23333333 | AQ94: 0 | AR94: 0 | AS94: 0 | AT94: 0 | AU94: 0 | AV94: 0 | AW94: 0 | AX94: 0 | AY94: 0 | AZ94: 0 | BA94: -82.23333333 | BB94: 0 | BC94: 0 | BD94: 0 | BE94: 0 | BF94: 0 | BG94: 20.47647611 | BH94: 1 | BI94: 20.47647611 | BJ94: 82.23333333 | BK94: Saturated zone | BL94: =('Climate-inputs'!C90+'Climate-inputs'!D90)/2 -> 13.4 | BW94: 0 | BX94: 0 | BZ94: 0 | CA94: 0 | CC94: 0 | CD94: 0 | CF94: 0 | CG94: 0 | CM94: 0 | CN94: 1 | CO94: 0.7192448111 | CP94: 0.03183390059 | CQ94: 0.02876979244 | CR94: 1.824803851 | CS94: 1.096008209 | CT94: 0.1390347187 | CV94: 82.23333333 | CW94: 0.8701978158 | CY94: 1 | CZ94: 0.9670742525 | DA94: 0.4835371263 | DB94: 0.2901222758 | DC94: 0.2417685631
A95: -0.13 | B95: k | E95: 83.2 | F95: -58.15323849 | G95: 0.3874 | H95: 1 | I95: 0.9666666667 | J95: 5.162622612 | K95: 1 | L95: 0.8646128914 | M95: 1 | N95: 0 | O95: 0 | P95: 0.8361448657 | Q95: 0.35 | R95: 1.00509121 | S95: 0 | T95: 0.05016869194 | U95: 0.1872433333 | V95: 1.034129592 | X95: 146 | Z95: 147 | AB95: 0.009393753108 | AC95: 0 | AD95: 0.1 | AE95: 0.1 | AF95: 147.1 | AG95: 2.451258124 | AH95: 2.942 | AI95: 0 | AP95: 83.2 | AQ95: 0 | AR95: 0 | AS95: 0 | AT95: 0 | AU95: 0 | AV95: 0 | AW95: 0 | AX95: 0 | AY95: 0 | AZ95: 0 | BA95: -83.2 | BB95: 0 | BC95: 0 | BD95: 0 | BE95: 0 | BF95: 0 | BG95: 20.47647611 | BH95: 1 | BI95: 20.47647611 | BJ95: 83.2 | BK95: Saturated zone | BL95: =('Climate-inputs'!C91+'Climate-inputs'!D91)/2 -> 23.4 | BW95: 0 | BX95: 0 | BZ95: 0 | CA95: 0 | CC95: 0 | CD95: 0 | CF95: 0 | CG95: 0 | CM95: 0 | CN95: 1 | CO95: 0.6874109105 | CP95: 0.03042492661 | CQ95: 0.02749643642 | CR95: 1.822869381 | CS95: 1.097171317 | CT95: 0.1454733966 | CV95: 83.2 | CW95: 0.8646128914 | CY95: 1 | CZ95: 0.9670742525 | DA95: 0.4835371263 | DB95: 0.2901222758 | DC95: 0.2417685631
A96: 0.06 | B96: n | E96: 84.16666667 | F96: -58.15323849 | G96: 0.3874 | H96: 1 | I96: 0.9666666667 | J96: 5.162622612 | K96: 1 | L96: 0.8588076986 | M96: 1 | N96: 0 | O96: 0 | P96: 0.8305308131 | Q96: 0.35 | R96: 1.005063293 | S96: 0 | T96: 0.04983184879 | U96: 0.1872433333 | V96: 1.033898205 | X96: 147 | Z96: 148 | AB96: 0.009330681473 | AC96: 0 | AD96: 0.1 | AE96: 0.1 | AF96: 148.1 | AG96: 2.467922013 | AH96: 2.962 | AI96: 0 | AP96: 84.16666667 | AQ96: 0 | AR96: 0 | AS96: 0 | AT96: 0 | AU96: 0 | AV96: 0 | AW96: 0 | AX96: 0 | AY96: 0 | AZ96: 0 | BA96: -84.16666667 | BB96: 0 | BC96: 0 | BD96: 0 | BE96: 0 | BF96: 0 | BG96: 20.47647611 | BH96: 1 | BI96: 20.47647611 | BJ96: 84.16666667 | BK96: Saturated zone | BL96: =('Climate-inputs'!C92+'Climate-inputs'!D92)/2 -> 23.025 | BW96: 0 | BX96: 0 | BZ96: 0 | CA96: 0 | CC96: 0 | CD96: 0 | CF96: 0 | CG96: 0 | CM96: 0 | CN96: 1 | CO96: 0.6569859839 | CP96: 0.02907831406 | CQ96: 0.02627943936 | CR96: 1.821085781 | CS96: 1.098245904 | CT96: 0.1522102487 | CV96: 84.16666667 | CW96: 0.8588076986 | CY96: 1 | CZ96: 0.9670742525 | DA96: 0.4835371263 | DB96: 0.2901222758 | DC96: 0.2417685631
A97: 100 | B97: WT' | E97: 85.13333333 | F97: -58.15323849 | G97: 0.3874 | H97: 1 | I97: 0.9666666667 | J97: 5.162622612 | K97: 1 | L97: 0.8527753903 | M97: 1 | N97: 0 | O97: 0 | P97: 0.8246971232 | Q97: 0.35 | R97: 1.005035719 | S97: 0 | T97: 0.04948182739 | U97: 0.1872433333 | V97: 1.033669934 | X97: 148 | Z97: 149 | AB97: 0.0092651423 | AC97: 0 | AD97: 0.1 | AE97: 0.1 | AF97: 149.1 | AG97: 2.484585902 | AH97: 2.982 | AI97: 0 | AP97: 85.13333333 | AQ97: 0 | AR97: 0 | AS97: 0 | AT97: 0 | AU97: 0 | AV97: 0 | AW97: 0 | AX97: 0 | AY97: 0 | AZ97: 0 | BA97: -85.13333333 | BB97: 0 | BC97: 0 | BD97: 0 | BE97: 0 | BF97: 0 | BG97: 20.47647611 | BH97: 1 | BI97: 20.47647611 | BJ97: 85.13333333 | BK97: Saturated zone | BL97: =('Climate-inputs'!C93+'Climate-inputs'!D93)/2 -> 22.95555556 | BW97: 0 | BX97: 0 | BZ97: 0 | CA97: 0 | CC97: 0 | CD97: 0 | CF97: 0 | CG97: 0 | CM97: 0 | CN97: 1 | CO97: 0.6279076698 | CP97: 0.02779130281 | CQ97: 0.02511630679 | CR97: 1.819441286 | CS97: 1.09923855 | CT97: 0.1592590835 | CV97: 85.13333333 | CW97: 0.8527753903 | CY97: 1 | CZ97: 0.9670742525 | DA97: 0.4835371263 | DB97: 0.2901222758 | DC97: 0.2417685631
A98: 11922 | E98: 86.1 | F98: -58.15323849 | G98: 0.3874 | H98: 1 | I98: 0.9666666667 | J98: 5.162622612 | K98: 1 | L98: 0.8465090818 | M98: 1 | N98: 0 | O98: 0 | P98: 0.8186371376 | Q98: 0.35 | R98: 1.005008481 | S98: 0 | T98: 0.04911822825 | U98: 0.1872433333 | V98: 1.033444717 | X98: 149 | Z98: 150 | AB98: 0.009197060786 | AC98: 0 | AD98: 0.1 | AE98: 0.1 | AF98: 150.1 | AG98: 2.501249792 | AH98: 3.002 | AI98: 0 | AP98: 86.1 | AQ98: 0 | AR98: 0 | AS98: 0 | AT98: 0 | AU98: 0 | AV98: 0 | AW98: 0 | AX98: 0 | AY98: 0 | AZ98: 0 | BA98: -86.1 | BB98: 0 | BC98: 0 | BD98: 0 | BE98: 0 | BF98: 0 | BG98: 20.47647611 | BH98: 1 | BI98: 20.47647611 | BJ98: 86.1 | BK98: Saturated zone | BL98: =('Climate-inputs'!C94+'Climate-inputs'!D94)/2 -> 23.08611111 | BW98: 0 | BX98: 0 | BZ98: 0 | CA98: 0 | CC98: 0 | CD98: 0 | CF98: 0 | CG98: 0 | CM98: 0 | CN98: 1 | CO98: 0.600116367 | CP98: 0.02656125491 | CQ98: 0.02400465468 | CR98: 1.817925046 | CS98: 1.100155369 | CT98: 0.1666343488 | CV98: 86.1 | CW98: 0.8465090818 | CY98: 1 | CZ98: 0.9670742525 | DA98: 0.4835371263 | DB98: 0.2901222758 | DC98: 0.2417685631
E99: 87.06666667 | F99: -58.15323849 | G99: 0.3874 | H99: 1 | I99: 0.9666666667 | J99: 5.162622612 | K99: 1 | L99: 0.8400018695 | M99: 1 | N99: 0 | O99: 0 | P99: 0.8123441801 | Q99: 0.35 | R99: 1.004981571 | S99: 0 | T99: 0.0487406508 | U99: 0.1872433333 | V99: 1.033222493 | X99: 150 | Z99: 151 | AB99: 0.009126361926 | AC99: 0 | AD99: 0.1 | AE99: 0.1 | AF99: 151.1 | AG99: 2.517913681 | AH99: 3.022 | AI99: 0 | AP99: 87.06666667 | AQ99: 0 | AR99: 0 | AS99: 0 | AT99: 0 | AU99: 0 | AV99: 0 | AW99: 0 | AX99: 0 | AY99: 0 | AZ99: 0 | BA99: -87.06666667 | BB99: 0 | BC99: 0 | BD99: 0 | BE99: 0 | BF99: 0 | BG99: 20.47647611 | BH99: 1 | BI99: 20.47647611 | BJ99: 87.06666667 | BK99: Saturated zone | BL99: =('Climate-inputs'!C95+'Climate-inputs'!D95)/2 -> 15.59444444 | BW99: 0 | BX99: 0 | BZ99: 0 | CA99: 0 | CC99: 0 | CD99: 0 | CF99: 0 | CG99: 0 | CM99: 0 | CN99: 1 | CO99: 0.5735551121 | CP99: 0.02538564914 | CQ99: 0.02294220448 | CR99: 1.816527058 | CS99: 1.101002042 | CT99: 0.1743511615 | CV99: 87.06666667 | CW99: 0.8400018695 | CY99: 1 | CZ99: 0.9670742525 | DA99: 0.4835371263 | DB99: 0.2901222758 | DC99: 0.2417685631
A100: 0 | E100: 88.03333333 | F100: -58.15323849 | G100: 0.3874 | H100: 1 | I100: 0.9666666667 | J100: 5.162622612 | K100: 1 | L100: 0.8332468528 | M100: 1 | N100: 0 | O100: 0 | P100: 0.8058115774 | Q100: 0.35 | R100: 1.004954985 | S100: 0 | T100: 0.04834869464 | U100: 0.1872433333 | V100: 1.033003202 | X100: 151 | Z100: 152 | AB100: 0.009052970747 | AC100: 0 | AD100: 0.1 | AE100: 0.1 | AF100: 152.1 | AG100: 2.53457757 | AH100: 3.042 | AI100: 0 | AP100: 88.03333333 | AQ100: 0 | AR100: 0 | AS100: 0 | AT100: 0 | AU100: 0 | AV100: 0 | AW100: 0 | AX100: 0 | AY100: 0 | AZ100: 0 | BA100: -88.03333333 | BB100: 0 | BC100: 0 | BD100: 0 | BE100: 0 | BF100: 0 | BG100: 20.47647611 | BH100: 1 | BI100: 20.47647611 | BJ100: 88.03333333 | BK100: Saturated zone | BL100: =('Climate-inputs'!C96+'Climate-inputs'!D96)/2 -> 15.53333333 | BW100: 0 | BX100: 0 | BZ100: 0 | CA100: 0 | CC100: 0 | CD100: 0 | CF100: 0 | CG100: 0 | CM100: 0 | CN100: 1 | CO100: 0.548169463 | CP100: 0.02426207589 | CQ100: 0.02192677852 | CR100: 1.815238101 | CS100: 1.101783837 | CT100: 0.1824253388 | CV100: 88.03333333 | CW100: 0.8332468528 | CY100: 1 | CZ100: 0.9670742525 | DA100: 0.4835371263 | DB100: 0.2901222758 | DC100: 0.2417685631
A101: 2 | E101: 89 | F101: -58.15323849 | G101: 0.3874 | H101: 1 | I101: 0.9666666667 | J101: 5.162622612 | K101: 1 | L101: 0.8262371583 | M101: 1 | N101: 0 | O101: 0 | P101: 0.7990326823 | Q101: 0.35 | R101: 1.004928716 | S101: 0 | T101: 0.04794196094 | U101: 0.1872433333 | V101: 1.032786788 | X101: 152 | Z101: 153 | AB101: 0.008976812573 | AC101: 0 | AD101: 0.1 | AE101: 0.1 | AF101: 153.1 | AG101: 2.55124146 | AH101: 3.062 | AI101: 0 | AP101: 89 | AQ101: 0 | AR101: 0 | AS101: 0 | AT101: 0 | AU101: 0 | AV101: 0 | AW101: 0 | AX101: 0 | AY101: 0 | AZ101: 0 | BA101: -89 | BB101: 0 | BC101: 0 | BD101: 0 | BE101: 0 | BF101: 0 | BG101: 20.47647611 | BH101: 1 | BI101: 20.47647611 | BJ101: 89 | BK101: Saturated zone | BL101: =('Climate-inputs'!C97+'Climate-inputs'!D97)/2 -> 13.45 | BW101: 0 | BX101: 0 | BZ101: 0 | CA101: 0 | CC101: 0 | CD101: 0 | CF101: 0 | CG101: 0 | CM101: 0 | CN101: 1 | CO101: 0.5239073871 | CP101: 0.02318823219 | CQ101: 0.02095629548 | CR101: 1.81404967 | CS101: 1.102505644 | CT101: 0.1908734301 | CV101: 89 | CW101: 0.8262371583 | CY101: 1 | CZ101: 0.9670742525 | DA101: 0.4835371263 | DB101: 0.2901222758 | DC101: 0.2417685631
A102: 0 | E102: 89.96666667 | F102: -58.15323849 | G102: 0.3874 | H102: 1 | I102: 0.9666666667 | J102: 5.162622612 | K102: 1 | L102: 0.8189659663 | M102: 1 | N102: 0 | O102: 0 | P102: 0.7920008997 | Q102: 0.35 | R102: 1.004902758 | S102: 0 | T102: 0.04752005398 | U102: 0.1872433333 | V102: 1.032573193 | X102: 153 | Z102: 154 | AB102: 0.008897813308 | AC102: 0 | AD102: 0.1 | AE102: 0.1 | AF102: 154.1 | AG102: 2.567905349 | AH102: 3.082 | AI102: 0 | AP102: 89.96666667 | AQ102: 0 | AR102: 0 | AS102: 0 | AT102: 0 | AU102: 0 | AV102: 0 | AW102: 0 | AX102: 0 | AY102: 0 | AZ102: 0 | BA102: -89.96666667 | BB102: 0 | BC102: 0 | BD102: 0 | BE102: 0 | BF102: 0 | BG102: 20.47647611 | BH102: 1 | BI102: 20.47647611 | BJ102: 89.96666667 | BK102: Saturated zone | BL102: =('Climate-inputs'!C98+'Climate-inputs'!D98)/2 -> 14.44166667 | BW102: 0 | BX102: 0 | BZ102: 0 | CA102: 0 | CC102: 0 | CD102: 0 | CF102: 0 | CG102: 0 | CM102: 0 | CN102: 1 | CO102: 0.5007191549 | CP102: 0.02216191699 | CQ102: 0.0200287662 | CR102: 1.812953926 | CS102: 1.103171995 | CT102: 0.1997127512 | CV102: 89.96666667 | CW102: 0.8189659663 | CY102: 1 | CZ102: 0.9670742525 | DA102: 0.4835371263 | DB102: 0.2901222758 | DC102: 0.2417685631
A103: 0 | E103: 90.93333333 | F103: -58.15323849 | G103: 0.3874 | H103: 1 | I103: 0.9666666667 | J103: 5.162622612 | K103: 1 | L103: 0.8114265398 | M103: 1 | N103: 0 | O103: 0 | P103: 0.7847097145 | Q103: 0.35 | R103: 1.004877106 | S103: 0 | T103: 0.04708258287 | U103: 0.1872433333 | V103: 1.032362363 | X103: 154 | Z103: 155 | AB103: 0.008815899758 | AC103: 0 | AD103: 0.1 | AE103: 0.1 | AF103: 155.1 | AG103: 2.584569238 | AH103: 3.102 | AI103: 0 | AP103: 90.93333333 | AQ103: 0 | AR103: 0 | AS103: 0 | AT103: 0 | AU103: 0 | AV103: 0 | AW103: 0 | AX103: 0 | AY103: 0 | AZ103: 0 | BA103: -90.93333333 | BB103: 0 | BC103: 0 | BD103: 0 | BE103: 0 | BF103: 0 | BG103: 20.47647611 | BH103: 1 | BI103: 20.47647611 | BJ103: 90.93333333 | BK103: Saturated zone | BL103: =('Climate-inputs'!C99+'Climate-inputs'!D99)/2 -> 16.66111111 | BW103: 0 | BX103: 0 | BZ103: 0 | CA103: 0 | CC103: 0 | CD103: 0 | CF103: 0 | CG103: 0 | CM103: 0 | CN103: 1 | CO103: 0.4785572379 | CP103: 0.02118102669 | CQ103: 0.01914228952 | CR103: 1.81194364 | CS103: 1.103787091 | CT103: 0.20896142 | CV103: 90.93333333 | CW103: 0.8114265398 | CY103: 1 | CZ103: 0.9670742525 | DA103: 0.4835371263 | DB103: 0.2901222758 | DC103: 0.2417685631
A104: 60 | E104: 91.9 | F104: -58.15323849 | G104: 0.3874 | H104: 1 | I104: 0.9666666667 | J104: 5.162622612 | K104: 1 | L104: 0.8036122571 | M104: 1 | N104: 0 | O104: 0 | P104: 0.7771527229 | Q104: 0.35 | R104: 1.004851754 | S104: 0 | T104: 0.04662916337 | U104: 0.1872433333 | V104: 1.032154245 | X104: 155 | Z104: 156 | AB104: 0.00873099998 | AC104: 0 | AD104: 0.1 | AE104: 0.1 | AF104: 156.1 | AG104: 2.601233128 | AH104: 3.122 | AI104: 0 | AP104: 91.9 | AQ104: 0 | AR104: 0 | AS104: 0 | AT104: 0 | AU104: 0 | AV104: 0 | AW104: 0 | AX104: 0 | AY104: 0 | AZ104: 0 | BA104: -91.9 | BB104: 0 | BC104: 0 | BD104: 0 | BE104: 0 | BF104: 0 | BG104: 20.47647611 | BH104: 1 | BI104: 20.47647611 | BJ104: 91.9 | BK104: Saturated zone | BL104: =('Climate-inputs'!C100+'Climate-inputs'!D100)/2 -> 19.43888889 | BW104: 0 | BX104: 0 | BZ104: 0 | CA104: 0 | CC104: 0 | CD104: 0 | CF104: 0 | CG104: 0 | CM104: 0 | CN104: 1 | CO104: 0.4573762112 | CP104: 0.02024355076 | CQ104: 0.01829504845 | CR104: 1.811012147 | CS104: 1.104354824 | CT104: 0.2186383934 | CV104: 91.9 | CW104: 0.8036122571 | CY104: 1 | CZ104: 0.9670742525 | DA104: 0.4835371263 | DB104: 0.2901222758 | DC104: 0.2417685631
A105: 1 | E105: 92.86666667 | F105: -58.15323849 | G105: 0.3874 | H105: 1 | I105: 0.9666666667 | J105: 5.162622612 | K105: 1 | L105: 0.7955166462 | M105: 1 | N105: 0 | O105: 0 | P105: 0.769323666 | Q105: 0.35 | R105: 1.004826697 | S105: 0 | T105: 0.04615941996 | U105: 0.1872433333 | V105: 1.031948786 | X105: 156 | Z105: 157 | AB105: 0.008643043658 | AC105: 0 | AD105: 0.1 | AE105: 0.1 | AF105: 157.1 | AG105: 2.617897017 | AH105: 3.142 | AI105: 0 | AP105: 92.86666667 | AQ105: 0 | AR105: 0 | AS105: 0 | AT105: 0 | AU105: 0 | AV105: 0 | AW105: 0 | AX105: 0 | AY105: 0 | AZ105: 0 | BA105: -92.86666667 | BB105: 0 | BC105: 0 | BD105: 0 | BE105: 0 | BF105: 0 | BG105: 20.47647611 | BH105: 1 | BI105: 20.47647611 | BJ105: 92.86666667 | BK105: Saturated zone | BL105: =('Climate-inputs'!C101+'Climate-inputs'!D101)/2 -> 21.01388889 | BW105: 0 | BX105: 0 | BZ105: 0 | CA105: 0 | CC105: 0 | CD105: 0 | CF105: 0 | CG105: 0 | CM105: 0 | CN105: 1 | CO105: 0.4371326604 | CP105: 0.01934756768 | CQ105: 0.01748530642 | CR105: 1.810153302 | CS105: 1.104878796 | CT105: 0.228763506 | CV105: 92.86666667 | CW105: 0.7955166462 | CY105: 1 | CZ105: 0.9670742525 | DA105: 0.4835371263 | DB105: 0.2901222758 | DC105: 0.2417685631
E106: 93.83333333 | F106: -58.15323849 | G106: 0.3874 | H106: 1 | I106: 0.9666666667 | J106: 5.162622612 | K106: 1 | L106: 0.7871334231 | M106: 1 | N106: 0 | O106: 0 | P106: 0.7612164668 | Q106: 0.35 | R106: 1.004801929 | S106: 0 | T106: 0.04567298801 | U106: 0.1872433333 | V106: 1.031745937 | X106: 157 | Z106: 158 | AB106: 0.008551962518 | AC106: 0 | AD106: 0.1 | AE106: 0.1 | AF106: 158.1 | AG106: 2.634560907 | AH106: 3.162 | AI106: 0 | AP106: 93.83333333 | AQ106: 0 | AR106: 0 | AS106: 0 | AT106: 0 | AU106: 0 | AV106: 0 | AW106: 0 | AX106: 0 | AY106: 0 | AZ106: 0 | BA106: -93.83333333 | BB106: 0 | BC106: 0 | BD106: 0 | BE106: 0 | BF106: 0 | BG106: 20.47647611 | BH106: 1 | BI106: 20.47647611 | BJ106: 93.83333333 | BK106: Saturated zone | BL106: =('Climate-inputs'!C102+'Climate-inputs'!D102)/2 -> 19.85277778 | BW106: 0 | BX106: 0 | BZ106: 0 | CA106: 0 | CC106: 0 | CD106: 0 | CF106: 0 | CG106: 0 | CM106: 0 | CN106: 1 | CO106: 0.4177850928 | CP106: 0.01849124096 | CQ106: 0.01671140371 | CR106: 1.809361438 | CS106: 1.105362344 | CT106: 0.2393575111 | CV106: 93.83333333 | CW106: 0.7871334231 | CY106: 1 | CZ106: 0.9670742525 | DA106: 0.4835371263 | DB106: 0.2901222758 | DC106: 0.2417685631
E107: 94.8 | F107: -58.15323849 | G107: 0.3874 | H107: 1 | I107: 0.9666666667 | J107: 5.162622612 | K107: 1 | L107: 0.7784565333 | M107: 1 | N107: 0 | O107: 0 | P107: 0.7528252701 | Q107: 0.35 | R107: 1.004777444 | S107: 0 | T107: 0.04516951621 | U107: 0.1872433333 | V107: 1.031545647 | X107: 158 | Z107: 159 | AB107: 0.008457690779 | AC107: 0 | AD107: 0.1 | AE107: 0.1 | AF107: 159.1 | AG107: 2.651224796 | AH107: 3.182 | AI107: 0 | AP107: 94.8 | AQ107: 0 | AR107: 0 | AS107: 0 | AT107: 0 | AU107: 0 | AV107: 0 | AW107: 0 | AX107: 0 | AY107: 0 | AZ107: 0 | BA107: -94.8 | BB107: 0 | BC107: 0 | BD107: 0 | BE107: 0 | BF107: 0 | BG107: 20.47647611 | BH107: 1 | BI107: 20.47647611 | BJ107: 94.8 | BK107: Saturated zone | BL107: =('Climate-inputs'!C103+'Climate-inputs'!D103)/2 -> 19.2 | BW107: 0 | BX107: 0 | BZ107: 0 | CA107: 0 | CC107: 0 | CD107: 0 | CF107: 0 | CG107: 0 | CM107: 0 | CN107: 1 | CO107: 0.3992938518 | CP107: 0.01767281542 | CQ107: 0.01597175407 | CR107: 1.808631333 | CS107: 1.105808555 | CT107: 0.2504421231 | CV107: 94.8 | CW107: 0.7784565333 | CY107: 1 | CZ107: 0.9670742525 | DA107: 0.4835371263 | DB107: 0.2901222758 | DC107: 0.2417685631
A108: 42.59 | E108: 95.76666667 | F108: -58.15323849 | G108: 0.3874 | H108: 1 | I108: 0.9666666667 | J108: 5.162622612 | K108: 1 | L108: 0.7694801963 | M108: 1 | N108: 0 | O108: 0 | P108: 0.7441444856 | Q108: 0.35 | R108: 1.00475324 | S108: 0 | T108: 0.04464866914 | U108: 0.1872433333 | V108: 1.031347869 | X108: 159 | Z108: 160 | AB108: 0.008360165638 | AC108: 0 | AD108: 0.1 | AE108: 0.1 | AF108: 160.1 | AG108: 2.667888685 | AH108: 3.202 | AI108: 0 | AP108: 95.76666667 | AQ108: 0 | AR108: 0 | AS108: 0 | AT108: 0 | AU108: 0 | AV108: 0 | AW108: 0 | AX108: 0 | AY108: 0 | AZ108: 0 | BA108: -95.76666667 | BB108: 0 | BC108: 0 | BD108: 0 | BE108: 0 | BF108: 0 | BG108: 20.47647611 | BH108: 1 | BI108: 20.47647611 | BJ108: 95.76666667 | BK108: Saturated zone | BL108: =('Climate-inputs'!C104+'Climate-inputs'!D104)/2 -> 20.81944444 | BW108: 0 | BX108: 0 | BZ108: 0 | CA108: 0 | CC108: 0 | CD108: 0 | CF108: 0 | CG108: 0 | CM108: 0 | CN108: 1 | CO108: 0.3816210364 | CP108: 0.01689061353 | CQ108: 0.01526484146 | CR108: 1.807958169 | CS108: 1.106220285 | CT108: 0.2620400619 | CV108: 95.76666667 | CW108: 0.7694801963 | CY108: 1 | CZ108: 0.9670742525 | DA108: 0.4835371263 | DB108: 0.2901222758 | DC108: 0.2417685631
A109: 1.46 | E109: 96.73333333 | F109: -58.15323849 | G109: 0.3874 | H109: 1 | I109: 0.9666666667 | J109: 5.162622612 | K109: 1 | L109: 0.7601989531 | M109: 1 | N109: 0 | O109: 0 | P109: 0.7351688343 | Q109: 0.35 | R109: 1.004729309 | S109: 0 | T109: 0.04411013006 | U109: 0.1872433333 | V109: 1.031152555 | X109: 160 | Z109: 161 | AB109: 0.008259327786 | AC109: 0 | AD109: 0.1 | AE109: 0.1 | AF109: 161.1 | AG109: 2.684552575 | AH109: 3.222 | AI109: 0 | AP109: 96.73333333 | AQ109: 0 | AR109: 0 | AS109: 0 | AT109: 0 | AU109: 0 | AV109: 0 | AW109: 0 | AX109: 0 | AY109: 0 | AZ109: 0 | BA109: -96.73333333 | BB109: 0 | BC109: 0 | BD109: 0 | BE109: 0 | BF109: 0 | BG109: 20.47647611 | BH109: 1 | BI109: 20.47647611 | BJ109: 96.73333333 | BK109: Saturated zone | BL109: =('Climate-inputs'!C105+'Climate-inputs'!D105)/2 -> 19.60833333 | BW109: 0 | BX109: 0 | BZ109: 0 | CA109: 0 | CC109: 0 | CD109: 0 | CF109: 0 | CG109: 0 | CM109: 0 | CN109: 1 | CO109: 0.3647304229 | CP109: 0.01614303203 | CQ109: 0.01458921691 | CR109: 1.807337505 | CS109: 1.106600175 | CT109: 0.2741750996 | CV109: 96.73333333 | CW109: 0.7601989531 | CY109: 1 | CZ109: 0.9670742525 | DA109: 0.4835371263 | DB109: 0.2901222758 | DC109: 0.2417685631
A110: 0.15 | E110: 97.7 | F110: -58.15323849 | G110: 0.3874 | H110: 1 | I110: 0.9666666667 | J110: 5.162622612 | K110: 1 | L110: 0.7506077186 | M110: 1 | N110: 0 | O110: 0 | P110: 0.7258933984 | Q110: 0.35 | R110: 1.004705647 | S110: 0 | T110: 0.04355360391 | U110: 0.1872433333 | V110: 1.03095966 | X110: 161 | Z110: 162 | AB110: 0.008155121974 | AC110: 0 | AD110: 0.1 | AE110: 0.1 | AF110: 162.1 | AG110: 2.701216464 | AH110: 3.242 | AI110: 0 | AP110: 97.7 | AQ110: 0 | AR110: 0 | AS110: 0 | AT110: 0 | AU110: 0 | AV110: 0 | AW110: 0 | AX110: 0 | AY110: 0 | AZ110: 0 | BA110: -97.7 | BB110: 0 | BC110: 0 | BD110: 0 | BE110: 0 | BG110: 20.47647611 | BH110: 1 | BI110: 20.47647611 | BJ110: 97.7 | BK110: Saturated zone | BL110: =('Climate-inputs'!C106+'Climate-inputs'!D106)/2 -> 22.60555556 | BW110: 0 | BX110: 0 | BZ110: 0 | CA110: 0 | CC110: 0 | CD110: 0 | CF110: 0 | CG110: 0 | CM110: 0 | CN110: 1 | CO110: 0.3485873908 | CP110: 0.01542853862 | CQ110: 0.01394349563 | CR110: 1.806765248 | CS110: 1.106950669 | CT110: 0.2868721091 | CV110: 97.7 | CW110: 0.7506077186 | CY110: 1 | CZ110: 0.9670742525 | DA110: 0.4835371263 | DB110: 0.2901222758 | DC110: 0.2417685631
A111: 0.46 | E111: 98.66666667 | F111: -58.15323849 | G111: 0.3874 | H111: 1 | I111: 0.9666666667 | J111: 5.162622612 | K111: 1 | L111: 0.740701836 | M111: 1 | N111: 0 | O111: 0 | P111: 0.7163136744 | Q111: 0.35 | R111: 1.004682251 | S111: 0 | T111: 0.04297882046 | U111: 0.1872433333 | V111: 1.030769139 | X111: 162 | Z111: 163 | AB111: 0.008047497606 | AC111: 0 | AD111: 0.1 | AE111: 0.1 | AF111: 163.1 | AG111: 2.717880353 | AH111: 3.262 | AI111: 0 | AP111: 98.66666667 | AQ111: 0 | AR111: 0 | AS111: 0 | AT111: 0 | AU111: 0 | AV111: 0 | AW111: 0 | AX111: 0 | AY111: 0 | AZ111: 0 | BA111: -98.66666667 | BB111: 0 | BC111: 0 | BD111: 0 | BE111: 0 | BG111: 20.47647611 | BH111: 1 | BI111: 20.47647611 | BJ111: 98.66666667 | BK111: Saturated zone | BL111: =('Climate-inputs'!C107+'Climate-inputs'!D107)/2 -> 22.99722222 | BW111: 0 | BX111: 0 | BZ111: 0 | CA111: 0 | CC111: 0 | CD111: 0 | CF111: 0 | CG111: 0 | CM111: 0 | CN111: 1 | CO111: 0.3331588522 | CP111: 0.01474566882 | CQ111: 0.01332635409 | CR111: 1.806237621 | CS111: 1.107274024 | CT111: 0.3001571152 | CV111: 98.66666667 | CW111: 0.740701836 | CY111: 1 | CZ111: 0.9670742525 | DA111: 0.4835371263 | DB111: 0.2901222758 | DC111: 0.2417685631
A112: 1.5 | E112: 99.63333333 | F112: -58.15323849 | G112: 0.3874 | H112: 1 | I112: 0.9666666667 | J112: 5.162622612 | K112: 1 | L112: 0.7304771354 | M112: 1 | N112: 0 | O112: 0 | P112: 0.7064256297 | Q112: 0.35 | R112: 1.004659114 | S112: 0 | T112: 0.04238553778 | U112: 0.1872433333 | V112: 1.030580948 | X112: 163 | Z112: 164 | AB112: 0.00793640938 | AC112: 0 | AD112: 0.1 | AE112: 0.1 | AF112: 164.1 | AG112: 2.734544243 | AH112: 3.282 | AI112: 0 | AP112: 99.63333333 | AQ112: 0 | AR112: 0 | AS112: 0 | AT112: 0 | AU112: 0 | AV112: 0 | AW112: 0 | AX112: 0 | AY112: 0 | AZ112: 0 | BA112: -99.63333333 | BB112: 0 | BC112: 0 | BD112: 0 | BE112: 0 | BG112: 20.47647611 | BH112: 1 | BI112: 20.47647611 | BJ112: 99.63333333 | BK112: Saturated zone | BL112: =('Climate-inputs'!C108+'Climate-inputs'!D108)/2 -> 21.96388889 | BW112: 0 | BX112: 0 | BZ112: 0 | CA112: 0 | CC112: 0 | CD112: 0 | CF112: 0 | CG112: 0 | CM112: 0 | CN112: 1 | CO112: 0.3184131834 | CP112: 0.01409302295 | CQ112: 0.01273652734 | CR112: 1.805751145 | CS112: 1.107572328 | CT112: 0.3140573482 | CV112: 99.63333333 | CW112: 0.7304771354 | CY112: 1 | CZ112: 0.9670742525 | DA112: 0.4835371263 | DB112: 0.2901222758 | DC112: 0.2417685631
A113: 1 | E113: 100.6 | F113: -58.15323849 | G113: 0.3874 | H113: 1 | I113: 0.9666666667 | J113: 5.162622612 | K113: 1 | L113: 0.7199299964 | M113: 1 | N113: 0 | O113: 0 | P113: 0.6962257632 | Q113: 0.35 | R113: 1.004636233 | S113: 0 | T113: 0.04177354579 | U113: 0.1872433333 | V113: 1.030395046 | X113: 164 | Z113: 165 | AB113: 0.007821817959 | AC113: 0 | AD113: 0.1 | AE113: 0.1 | AF113: 165.1 | AG113: 2.751208132 | AH113: 3.302 | AI113: 0 | AP113: 100.6 | AQ113: 0 | AR113: 0 | AS113: 0 | AT113: 0 | AU113: 0 | AV113: 0 | AW113: 0 | AX113: 0 | AY113: 0 | AZ113: 0 | BA113: -100.6 | BB113: 0 | BC113: 0 | BD113: 0 | BE113: 0 | BG113: 20.47647611 | BH113: 1 | BI113: 20.47647611 | BJ113: 100.6 | BK113: Saturated zone | BL113: =('Climate-inputs'!C109+'Climate-inputs'!D109)/2 -> 22.275 | BW113: 0 | BX113: 0 | BZ113: 0 | CA113: 0 | CC113: 0 | CD113: 0 | CF113: 0 | CG113: 0 | CM113: 0 | CN113: 1 | CO113: 0.3043201604 | CP113: 0.0134692633 | CQ113: 0.01217280642 | CR113: 1.805302609 | CS113: 1.10784751 | CT113: 0.3286012989 | CV113: 100.6 | CW113: 0.7199299964 | CY113: 1 | CZ113: 0.9670742525 | DA113: 0.4835371263 | DB113: 0.2901222758 | DC113: 0.2417685631
A114: 100 | E114: 101.5666667 | F114: -58.15323849 | G114: 0.3874 | H114: 1 | I114: 0.9666666667 | J114: 5.162622612 | K114: 1 | L114: 0.7090574133 | M114: 1 | N114: 0 | O114: 0 | P114: 0.685711168 | Q114: 0.35 | R114: 1.004613604 | S114: 0 | T114: 0.04114267008 | U114: 0.1872433333 | V114: 1.03021139 | X114: 165 | Z114: 166 | AB114: 0.007703690688 | AC114: 0 | AD114: 0.1 | AE114: 0.1 | AF114: 166.1 | AG114: 2.767872021 | AH114: 3.322 | AI114: 0 | AP114: 101.5666667 | AQ114: 0 | AR114: 0 | AS114: 0 | AT114: 0 | AU114: 0 | AV114: 0 | AW114: 0 | AX114: 0 | AY114: 0 | AZ114: 0 | BA114: -101.5666667 | BB114: 0 | BC114: 0 | BD114: 0 | BE114: 0 | BG114: 20.47647611 | BH114: 1 | BI114: 20.47647611 | BJ114: 101.5666667 | BK114: Saturated zone | BL114: =('Climate-inputs'!C110+'Climate-inputs'!D110)/2 -> 24.175 | BW114: 0 | BX114: 0 | BZ114: 0 | CA114: 0 | CC114: 0 | CD114: 0 | CF114: 0 | CG114: 0 | CM114: 0 | CN114: 1 | CO114: 0.2908508972 | CP114: 0.01287311136 | CQ114: 0.01163403589 | CR114: 1.804889055 | CS114: 1.108101351 | CT114: 0.3438187779 | CV114: 101.5666667 | CW114: 0.7090574133 | CY114: 1 | CZ114: 0.9670742525 | DA114: 0.4835371263 | DB114: 0.2901222758 | DC114: 0.2417685631
A115: 0.0001 | E115: 102.5333333 | F115: -58.15323849 | G115: 0.3874 | H115: 1 | I115: 0.9666666667 | J115: 5.162622612 | K115: 1 | L115: 0.6978570643 | M115: 1 | N115: 0 | O115: 0 | P115: 0.6748795988 | Q115: 0.35 | R115: 1.004591221 | S115: 0 | T115: 0.04049277593 | U115: 0.1872433333 | V115: 1.03002994 | X115: 166 | Z115: 167 | AB115: 0.007582002341 | AC115: 0 | AD115: 0.1 | AE115: 0.1 | AF115: 167.1 | AG115: 2.784535911 | AH115: 3.342 | AI115: 0 | AP115: 102.5333333 | AQ115: 0 | AR115: 0 | AS115: 0 | AT115: 0 | AU115: 0 | AV115: 0 | AW115: 0 | AX115: 0 | AY115: 0 | AZ115: 0 | BA115: -102.5333333 | BB115: 0 | BC115: 0 | BD115: 0 | BE115: 0 | BG115: 20.47647611 | BH115: 1 | BI115: 20.47647611 | BJ115: 102.5333333 | BK115: Saturated zone | BL115: =('Climate-inputs'!C111+'Climate-inputs'!D111)/2 -> 19.46111111 | BW115: 0 | BX115: 0 | BZ115: 0 | CA115: 0 | CC115: 0 | CD115: 0 | CF115: 0 | CG115: 0 | CM115: 0 | CN115: 1 | CO115: 0.2779777858 | CP115: 0.01230334521 | CQ115: 0.01111911143 | CR115: 1.804507754 | CS115: 1.108335498 | CT115: 0.3597409761 | CV115: 102.5333333 | CW115: 0.6978570643 | CY115: 1 | CZ115: 0.9670742525 | DA115: 0.4835371263 | DB115: 0.2901222758 | DC115: 0.2417685631
A116: 0.0001 | E116: 103.5 | F116: -58.15323849 | G116: 0.3874 | H116: 1 | I116: 0.9666666667 | J116: 5.162622612 | K116: 1 | L116: 0.6863273839 | M116: 1 | N116: 0 | O116: 0 | P116: 0.6637295418 | Q116: 0.35 | R116: 1.004569081 | S116: 0 | T116: 0.03982377251 | U116: 0.1872433333 | V116: 1.029850657 | X116: 167 | Z116: 168 | AB116: 0.00745673591 | AC116: 0 | AD116: 0.1 | AE116: 0.1 | AF116: 168.1 | AG116: 2.8011998 | AH116: 3.362 | AI116: 0 | AP116: 103.5 | AQ116: 0 | AR116: 0 | AS116: 0 | AT116: 0 | AU116: 0 | AV116: 0 | AW116: 0 | AX116: 0 | AY116: 0 | AZ116: 0 | BA116: -103.5 | BB116: 0 | BC116: 0 | BD116: 0 | BE116: 0 | BG116: 20.47647611 | BH116: 1 | BI116: 20.47647611 | BJ116: 103.5 | BK116: Saturated zone | BL116: =('Climate-inputs'!C112+'Climate-inputs'!D112)/2 -> 19.72777778 | BW116: 0 | BX116: 0 | BZ116: 0 | CA116: 0 | CC116: 0 | CD116: 0 | CF116: 0 | CG116: 0 | CM116: 0 | CN116: 1 | CO116: 0.2656744406 | CP116: 0.01175879701 | CQ116: 0.01062697762 | CR116: 1.804156191 | CS116: 1.108551472 | CT116: 0.3764005291 | CV116: 103.5 | CW116: 0.6863273839 | CY116: 1 | CZ116: 0.9670742525 | DA116: 0.4835371263 | DB116: 0.2901222758 | DC116: 0.2417685631
E117: 104.4666667 | F117: -58.15323849 | G117: 0.3874 | H117: 1 | I117: 0.9666666667 | J117: 5.162622612 | K117: 1 | L117: 0.6744676381 | M117: 1 | N117: 0 | O117: 0 | P117: 0.652260287 | Q117: 0.35 | R117: 1.004547181 | S117: 0 | T117: 0.03913561722 | U117: 0.1872433333 | V117: 1.029673501 | X117: 168 | Z117: 169 | AB117: 0.00732788342 | AC117: 0 | AD117: 0.1 | AE117: 0.1 | AF117: 169.1 | AG117: 2.817863689 | AH117: 3.382 | AI117: 0 | AP117: 104.4666667 | AQ117: 0 | AR117: 0 | AS117: 0 | AT117: 0 | AU117: 0 | AV117: 0 | AW117: 0 | AX117: 0 | AY117: 0 | AZ117: 0 | BA117: -104.4666667 | BB117: 0 | BC117: 0 | BD117: 0 | BE117: 0 | BG117: 20.47647611 | BH117: 1 | BI117: 20.47647611 | BJ117: 104.4666667 | BK117: Saturated zone | BL117: =('Climate-inputs'!C113+'Climate-inputs'!D113)/2 -> 20.40833333 | BW117: 0 | BX117: 0 | BZ117: 0 | CA117: 0 | CC117: 0 | CD117: 0 | CF117: 0 | CG117: 0 | CM117: 0 | CN117: 1 | CO117: 0.2539156436 | CP117: 0.0112383506 | CQ117: 0.01015662574 | CR117: 1.803832046 | CS117: 1.108750676 | CT117: 0.3938315836 | CV117: 104.4666667 | CW117: 0.6744676381 | CY117: 1 | CZ117: 0.9670742525 | DA117: 0.4835371263 | DB117: 0.2901222758 | DC117: 0.2417685631
E118: 105.4333333 | F118: -58.15323849 | G118: 0.3874 | H118: 1 | I118: 0.9666666667 | J118: 5.162622612 | K118: 1 | L118: 0.6622780026 | M118: 1 | N118: 0 | O118: 0 | P118: 0.6404720044 | Q118: 0.35 | R118: 1.004525514 | S118: 0 | T118: 0.03842832026 | U118: 0.1872433333 | V118: 1.029498437 | X118: 169 | Z118: 170 | AB118: 0.00719544678 | AC118: 0 | AD118: 0.1 | AE118: 0.1 | AF118: 170.1 | AG118: 2.834527579 | AH118: 3.402 | AI118: 0 | AP118: 105.4333333 | AQ118: 0 | AR118: 0 | AS118: 0 | AT118: 0 | AU118: 0 | AV118: 0 | AW118: 0 | AX118: 0 | AY118: 0 | AZ118: 0 | BA118: -105.4333333 | BB118: 0 | BC118: 0 | BD118: 0 | BE118: 0 | BG118: 20.47647611 | BH118: 1 | BI118: 20.47647611 | BJ118: 105.4333333 | BK118: Saturated zone | BL118: =('Climate-inputs'!C114+'Climate-inputs'!D114)/2 -> 21.58611111 | BW118: 0 | BX118: 0 | BZ118: 0 | CA118: 0 | CC118: 0 | CD118: 0 | CF118: 0 | CG118: 0 | CM118: 0 | CN118: 1 | CO118: 0.242677293 | CP118: 0.01074093925 | CQ118: 0.009707091719 | CR118: 1.803533182 | CS118: 1.108934407 | CT118: 0.4120698677 | CV118: 105.4333333 | CW118: 0.6622780026 | CY118: 1 | CZ118: 0.9670742525 | DA118: 0.4835371263 | DB118: 0.2901222758 | DC118: 0.2417685631
E119: 106.4 | F119: -58.15323849 | G119: 0.3874 | H119: 1 | I119: 0.9666666667 | J119: 5.162622612 | K119: 1 | L119: 0.6497596433 | M119: 1 | N119: 0 | O119: 0 | P119: 0.6283658213 | Q119: 0.35 | R119: 1.004504079 | S119: 0 | T119: 0.03770194928 | U119: 0.1872433333 | V119: 1.029325425 | X119: 170 | Z119: 171 | AB119: 0.007059438656 | AC119: 0 | AD119: 0.1 | AE119: 0.1 | AF119: 171.1 | AG119: 2.851191468 | AH119: 3.422 | AI119: 0 | AP119: 106.4 | AQ119: 0 | AR119: 0 | AS119: 0 | AT119: 0 | AU119: 0 | AV119: 0 | AW119: 0 | AX119: 0 | AY119: 0 | AZ119: 0 | BA119: -106.4 | BB119: 0 | BC119: 0 | BD119: 0 | BE119: 0 | BG119: 20.47647611 | BH119: 1 | BI119: 20.47647611 | BJ119: 106.4 | BK119: Saturated zone | BL119: =('Climate-inputs'!C115+'Climate-inputs'!D115)/2 -> 23.13888889 | BW119: 0 | BX119: 0 | BZ119: 0 | CA119: 0 | CC119: 0 | CD119: 0 | CF119: 0 | CG119: 0 | CM119: 0 | CN119: 1 | CO119: 0.2319363537 | CP119: 0.01026554341 | CQ119: 0.009277454149 | CR119: 1.803257627 | CS119: 1.109103863 | CT119: 0.4311527641 | CV119: 106.4 | CW119: 0.6497596433 | CY119: 1 | CZ119: 0.9670742525 | DA119: 0.4835371263 | DB119: 0.2901222758 | DC119: 0.2417685631
A120: 1 | E120: 107.3666667 | F120: -58.15323849 | G120: 0.3874 | H120: 1 | I120: 0.9666666667 | J120: 5.162622612 | K120: 1 | L120: 0.6369147985 | M120: 1 | N120: 0 | O120: 0 | P120: 0.6159439027 | Q120: 0.35 | R120: 1.004482871 | S120: 0 | T120: 0.03695663416 | U120: 0.1872433333 | V120: 1.029154432 | X120: 171 | Z120: 172 | AB120: 0.006919883369 | AC120: 0 | AD120: 0.1 | AE120: 0.1 | AF120: 172.1 | AG120: 2.867855357 | AH120: 3.442 | AI120: 0 | AP120: 107.3666667 | AQ120: 0 | AR120: 0 | AS120: 0 | AT120: 0 | AU120: 0 | AV120: 0 | AW120: 0 | AX120: 0 | AY120: 0 | AZ120: 0 | BA120: -107.3666667 | BB120: 0 | BC120: 0 | BE120: 0 | BG120: 20.47647611 | BH120: 1 | BI120: 20.47647611 | BJ120: 107.3666667 | BK120: Saturated zone | BL120: =('Climate-inputs'!C116+'Climate-inputs'!D116)/2 -> 23.46111111 | BW120: 0 | BX120: 0 | BZ120: 0 | CA120: 0 | CC120: 0 | CD120: 0 | CF120: 0 | CG120: 0 | CM120: 0 | CN120: 1 | CO120: 0.2216708103 | CP120: 0.009811188668 | CQ120: 0.008866832413 | CR120: 1.803003562 | CS120: 1.109260149 | CT120: 0.4511193867 | CV120: 107.3666667 | CW120: 0.6369147985 | CY120: 1 | CZ120: 0.9670742525 | DA120: 0.4835371263 | DB120: 0.2901222758 | DC120: 0.2417685631
E121: 108.3333333 | F121: -58.15323849 | G121: 0.3874 | H121: 1 | I121: 0.9666666667 | J121: 5.162622612 | K121: 1 | L121: 0.6237468633 | M121: 1 | N121: 0 | O121: 0 | P121: 0.6032095316 | Q121: 0.35 | R121: 1.004461886 | S121: 0 | T121: 0.03619257189 | U121: 0.1872433333 | V121: 1.02898542 | X121: 172 | Z121: 173 | AB121: 0.006776817803 | AC121: 0 | AD121: 0.1 | AE121: 0.1 | AF121: 173.1 | AG121: 2.884519247 | AH121: 3.462 | AI121: 0 | AP121: 108.3333333 | AQ121: 0 | AR121: 0 | AS121: 0 | AT121: 0 | AU121: 0 | AV121: 0 | AW121: 0 | AX121: 0 | AY121: 0 | AZ121: 0 | BA121: -108.3333333 | BB121: 0 | BC121: 0 | BE121: 0 | BG121: 20.47647611 | BH121: 1 | BI121: 20.47647611 | BJ121: 108.3333333 | BK121: Saturated zone | BL121: =('Climate-inputs'!C117+'Climate-inputs'!D117)/2 -> 22.99444444 | BW121: 0 | BX121: 0 | BZ121: 0 | CA121: 0 | CC121: 0 | CD121: 0 | CF121: 0 | CG121: 0 | CM121: 0 | CN121: 1 | CO121: 0.2118596217 | CP121: 0.009376943749 | CQ121: 0.008474384866 | CR121: 1.802769312 | CS121: 1.109404285 | CT121: 0.4720106607 | CV121: 108.3333333 | CW121: 0.6237468633 | CY121: 1 | CZ121: 0.9670742525 | DA121: 0.4835371263 | DB121: 0.2901222758 | DC121: 0.2417685631
E122: 109.3 | F122: -58.15323849 | G122: 0.3874 | H122: 1 | I122: 0.9666666667 | J122: 5.162622612 | K122: 1 | L122: 0.6102604738 | M122: 1 | N122: 0 | O122: 0 | P122: 0.5901671916 | Q122: 0.35 | R122: 1.004441121 | S122: 0 | T122: 0.03541003149 | U122: 0.1872433333 | V122: 1.028818357 | X122: 173 | Z122: 174 | AB122: 0.00663029233 | AC122: 0 | AD122: 0.1 | AE122: 0.1 | AF122: 174.1 | AG122: 2.901183136 | AH122: 3.482 | AI122: 0 | AP122: 109.3 | AQ122: 0 | AR122: 0 | AS122: 0 | AT122: 0 | AU122: 0 | AV122: 0 | AW122: 0 | AX122: 0 | AY122: 0 | AZ122: 0 | BA122: -109.3 | BB122: 0 | BC122: 0 | BE122: 0 | BG122: 20.47647611 | BH122: 1 | BI122: 20.47647611 | BJ122: 109.3 | BK122: Saturated zone | BL122: =('Climate-inputs'!C118+'Climate-inputs'!D118)/2 -> 23.66944444 | BW122: 0 | BX122: 0 | BZ122: 0 | CA122: 0 | CC122: 0 | CD122: 0 | CF122: 0 | CG122: 0 | CM122: 0 | CN122: 1 | CO122: 0.2024826779 | CP122: 0.008961918585 | CQ122: 0.008099307116 | CR122: 1.802553331 | CS122: 1.109537213 | CT122: 0.4938694067 | CV122: 109.3 | CW122: 0.6102604738 | CY122: 1 | CZ122: 0.9670742525 | DA122: 0.4835371263 | DB122: 0.2901222758 | DC122: 0.2417685631
E123: 110.2666667 | F123: -58.15323849 | G123: 0.3874 | H123: 1 | I123: 0.9666666667 | J123: 5.162622612 | K123: 1 | L123: 0.5964615923 | M123: 1 | N123: 0 | O123: 0 | P123: 0.5768226485 | Q123: 0.35 | R123: 1.004420572 | S123: 0 | T123: 0.03460935891 | U123: 0.1872433333 | V123: 1.028653209 | X123: 174 | Z123: 175 | AB123: 0.006480371727 | AC123: 0 | AD123: 0.1 | AE123: 0.1 | AF123: 175.1 | AG123: 2.917847025 | AH123: 3.502 | AI123: 0 | AP123: 110.2666667 | AQ123: 0 | AR123: 0 | AS123: 0 | AT123: 0 | AU123: 0 | AV123: 0 | AW123: 0 | AX123: 0 | AY123: 0 | AZ123: 0 | BA123: -110.2666667 | BB123: 0 | BC123: 0 | BE123: 0 | BG123: 20.47647611 | BH123: 1 | BI123: 20.47647611 | BJ123: 110.2666667 | BK123: Saturated zone | BL123: =('Climate-inputs'!C119+'Climate-inputs'!D119)/2 -> 24.11944444 | BW123: 0 | BX123: 0 | BZ123: 0 | CA123: 0 | CC123: 0 | CD123: 0 | CF123: 0 | CG123: 0 | CM123: 0 | CN123: 1 | CO123: 0.1935207593 | CP123: 0.008565262508 | CQ123: 0.007740830373 | CR123: 1.802354195 | CS123: 1.109659802 | CT123: 0.516740428 | CV123: 110.2666667 | CW123: 0.5964615923 | CY123: 1 | CZ123: 0.9670742525 | DA123: 0.4835371263 | DB123: 0.2901222758 | DC123: 0.2417685631
E124: 111.2333333 | F124: -58.15323849 | G124: 0.3874 | H124: 1 | I124: 0.9666666667 | J124: 5.162622612 | K124: 1 | L124: 0.5823575906 | M124: 1 | N124: 0 | O124: 0 | P124: 0.5631830317 | Q124: 0.35 | R124: 1.004400236 | S124: 0 | T124: 0.0337909819 | U124: 0.1872433333 | V124: 1.028489943 | X124: 175 | Z124: 176 | AB124: 0.006327136087 | AC124: 0 | AD124: 0.1 | AE124: 0.1 | AF124: 176.1 | AG124: 2.934510915 | AH124: 3.522 | AI124: 0 | AP124: 111.2333333 | AQ124: 0 | AR124: 0 | AS124: 0 | AT124: 0 | AU124: 0 | AV124: 0 | AW124: 0 | AX124: 0 | AY124: 0 | AZ124: 0 | BA124: -111.2333333 | BB124: 0 | BC124: 0 | BE124: 0 | BG124: 20.47647611 | BH124: 1 | BI124: 20.47647611 | BJ124: 111.2333333 | BK124: Saturated zone | BL124: =('Climate-inputs'!C120+'Climate-inputs'!D120)/2 -> 24.39166667 | BW124: 0 | BX124: 0 | BZ124: 0 | CA124: 0 | CC124: 0 | CD124: 0 | CF124: 0 | CG124: 0 | CM124: 0 | CN124: 1 | CO124: 0.1849554968 | CP124: 0.008186162498 | CQ124: 0.007398219873 | CR124: 1.80217059 | CS124: 1.109772855 | CT124: 0.540670603 | CV124: 111.2333333 | CW124: 0.5823575906 | CY124: 1 | CZ124: 0.9670742525 | DA124: 0.4835371263 | DB124: 0.2901222758 | DC124: 0.2417685631
E125: 112.2 | F125: -58.15323849 | G125: 0.3874 | H125: 1 | I125: 0.9666666667 | J125: 5.162622612 | K125: 1 | L125: 0.567957333 | M125: 1 | N125: 0 | O125: 0 | P125: 0.5492569133 | Q125: 0.35 | R125: 1.004380109 | S125: 0 | T125: 0.0329554148 | U125: 0.1872433333 | V125: 1.028328527 | X125: 176 | Z125: 177 | AB125: 0.006170681718 | AC125: 0 | AD125: 0.1 | AE125: 0.1 | AF125: 177.1 | AG125: 2.951174804 | AH125: 3.542 | AI125: 0 | AP125: 112.2 | AQ125: 0 | AR125: 0 | AS125: 0 | AT125: 0 | AU125: 0 | AV125: 0 | AW125: 0 | AX125: 0 | AY125: 0 | AZ125: 0 | BA125: -112.2 | BB125: 0 | BC125: 0 | BE125: 0 | BG125: 20.47647611 | BH125: 1 | BI125: 20.47647611 | BJ125: 112.2 | BK125: Saturated zone | BL125: =('Climate-inputs'!C121+'Climate-inputs'!D121)/2 -> 25.475 | BW125: 0 | BX125: 0 | BZ125: 0 | CA125: 0 | CC125: 0 | CD125: 0 | CF125: 0 | CG125: 0 | CM125: 0 | CN125: 1 | CO125: 0.1767693343 | CP125: 0.00782384152 | CQ125: 0.007070773373 | CR125: 1.802001304 | CS125: 1.10987711 | CT125: 0.5657089811 | CV125: 112.2 | CW125: 0.567957333 | CY125: 1 | CZ125: 0.9670742525 | DA125: 0.4835371263 | DB125: 0.2901222758 | DC125: 0.2417685631
E126: 113.1666667 | F126: -58.15323849 | G126: 0.3874 | H126: 1 | I126: 0.9666666667 | J126: 5.162622612 | K126: 1 | L126: 0.5532712548 | M126: 1 | N126: 0 | O126: 0 | P126: 0.5350543851 | Q126: 0.35 | R126: 1.004360188 | S126: 0 | T126: 0.03210326311 | U126: 0.1872433333 | V126: 1.02816893 | X126: 177 | Z126: 178 | AB126: 0.006011121995 | AC126: 0 | AD126: 0.1 | AE126: 0.1 | AF126: 178.1 | AG126: 2.967838694 | AH126: 3.562 | AI126: 0 | AP126: 113.1666667 | AQ126: 0 | AR126: 0 | AS126: 0 | AT126: 0 | AU126: 0 | AV126: 0 | AW126: 0 | AX126: 0 | AY126: 0 | AZ126: 0 | BA126: -113.1666667 | BB126: 0 | BC126: 0 | BE126: 0 | BG126: 20.47647611 | BH126: 1 | BI126: 20.47647611 | BJ126: 113.1666667 | BK126: Saturated zone | BL126: =('Climate-inputs'!C122+'Climate-inputs'!D122)/2 -> 26.52777778 | BW126: 0 | BX126: 0 | BZ126: 0 | CA126: 0 | CC126: 0 | CD126: 0 | CF126: 0 | CG126: 0 | CM126: 0 | CN126: 1 | CO126: 0.1689454928 | CP126: 0.007477556932 | CQ126: 0.006757819712 | CR126: 1.801845221 | CS126: 1.109973252 | CT126: 0.5919068828 | CV126: 113.1666667 | CW126: 0.5532712548 | CY126: 1 | CZ126: 0.9670742525 | DA126: 0.4835371263 | DB126: 0.2901222758 | DC126: 0.2417685631
E127: 114.1333333 | F127: -58.15323849 | G127: 0.3874 | H127: 1 | I127: 0.9666666667 | J127: 5.162622612 | K127: 1 | L127: 0.5383114378 | M127: 1 | N127: 0 | O127: 0 | P127: 0.5205871314 | Q127: 0.35 | R127: 1.00434047 | S127: 0 | T127: 0.03123522788 | U127: 0.1872433333 | V127: 1.028011121 | X127: 178 | Z127: 179 | AB127: 0.005848588186 | AC127: 0 | AD127: 0.1 | AE127: 0.1 | AF127: 179.1 | AG127: 2.984502583 | AH127: 3.582 | AI127: 0 | AP127: 114.1333333 | AQ127: 0 | AR127: 0 | AS127: 0 | AT127: 0 | AU127: 0 | AV127: 0 | AW127: 0 | AX127: 0 | AY127: 0 | AZ127: 0 | BA127: -114.1333333 | BB127: 0 | BC127: 0 | BE127: 0 | BG127: 20.47647611 | BH127: 1 | BI127: 20.47647611 | BJ127: 114.1333333 | BK127: Saturated zone | BL127: =('Climate-inputs'!C123+'Climate-inputs'!D123)/2 -> 26.2 | BW127: 0 | BX127: 0 | BZ127: 0 | CA127: 0 | CC127: 0 | CD127: 0 | CF127: 0 | CG127: 0 | CM127: 0 | CN127: 1 | CO127: 0.1614679359 | CP127: 0.00714659896 | CQ127: 0.006458717435 | CR127: 1.801701311 | CS127: 1.110061911 | CT127: 0.6193180055 | CV127: 114.1333333 | CW127: 0.5383114378 | CY127: 1 | CZ127: 0.9670742525 | DA127: 0.4835371263 | DB127: 0.2901222758 | DC127: 0.2417685631
E128: 115.1 | F128: -58.15323849 | G128: 0.3874 | H128: 1 | I128: 0.9666666667 | J128: 5.162622612 | K128: 1 | L128: 0.5230916802 | M128: 1 | N128: 0 | O128: 0 | P128: 0.5058684957 | Q128: 0.35 | R128: 1.004320951 | S128: 0 | T128: 0.03035210974 | U128: 0.1872433333 | V128: 1.02785507 | X128: 179 | Z128: 180 | AB128: 0.005683230201 | AC128: 0 | AD128: 0.1 | AE128: 0.1 | AF128: 180.1 | AG128: 3.001166472 | AH128: 3.602 | AI128: 0 | AP128: 115.1 | AQ128: 0 | AR128: 0 | AS128: 0 | AT128: 0 | AU128: 0 | AV128: 0 | AW128: 0 | AX128: 0 | AY128: 0 | AZ128: 0 | BA128: -115.1 | BB128: 0 | BC128: 0 | BE128: 0 | BG128: 20.47647611 | BH128: 1 | BI128: 20.47647611 | BJ128: 115.1 | BK128: Saturated zone | BL128: =('Climate-inputs'!C124+'Climate-inputs'!D124)/2 -> 21.5 | BW128: 0 | BX128: 0 | BZ128: 0 | CA128: 0 | CC128: 0 | CD128: 0 | CF128: 0 | CG128: 0 | CM128: 0 | CN128: 1 | CO128: 0.1543213369 | CP128: 0.006830289246 | CQ128: 0.006172853476 | CR128: 1.801568624 | CS128: 1.110143668 | CT128: 0.6479985335 | CV128: 115.1 | CW128: 0.5230916802 | CY128: 1 | CZ128: 0.9670742525 | DA128: 0.4835371263 | DB128: 0.2901222758 | DC128: 0.2417685631
E129: 116.0666667 | F129: -58.15323849 | G129: 0.3874 | H129: 1 | I129: 0.9666666667 | J129: 5.162622612 | K129: 1 | L129: 0.5076275587 | M129: 1 | N129: 0 | O129: 0 | P129: 0.4909135418 | Q129: 0.35 | R129: 1.004301629 | S129: 0 | T129: 0.02945481251 | U129: 0.1872433333 | V129: 1.027700748 | X129: 180 | Z129: 181 | AB129: 0.005515217277 | AC129: 0 | AD129: 0.1 | AE129: 0.1 | AF129: 181.1 | AG129: 3.017830362 | AH129: 3.622 | AI129: 0 | AP129: 116.0666667 | AQ129: 0 | AR129: 0 | AS129: 0 | AT129: 0 | AU129: 0 | AV129: 0 | AW129: 0 | AX129: 0 | AY129: 0 | AZ129: 0 | BA129: -116.0666667 | BB129: 0 | BC129: 0 | BE129: 0 | BG129: 20.47647611 | BH129: 1 | BI129: 20.47647611 | BJ129: 116.0666667 | BK129: Saturated zone | BL129: =('Climate-inputs'!C125+'Climate-inputs'!D125)/2 -> 22.175 | BW129: 0 | BX129: 0 | BZ129: 0 | CA129: 0 | CC129: 0 | CD129: 0 | CF129: 0 | CG129: 0 | CM129: 0 | CN129: 1 | CO129: 0.1474910477 | CP129: 0.006527979454 | CQ129: 0.005899641906 | CR129: 1.801446286 | CS129: 1.110219059 | CT129: 0.6780072526 | CV129: 116.0666667 | CW129: 0.5076275587 | CY129: 1 | CZ129: 0.9670742525 | DA129: 0.4835371263 | DB129: 0.2901222758 | DC129: 0.2417685631
E130: 117.0333333 | F130: -58.15323849 | G130: 0.3874 | H130: 1 | I130: 0.9666666667 | J130: 5.162622612 | K130: 1 | L130: 0.4919364827 | M130: 1 | N130: 0 | O130: 0 | P130: 0.4757391063 | Q130: 0.35 | R130: 1.0042825 | S130: 0 | T130: 0.02854434638 | U130: 0.1872433333 | V130: 1.027548127 | X130: 181 | Z130: 182 | AB130: 0.005344738563 | AC130: 0 | AD130: 0.1 | AE130: 0.1 | AF130: 182.1 | AG130: 3.034494251 | AH130: 3.642 | AI130: 0 | AP130: 117.0333333 | AQ130: 0 | AR130: 0 | AS130: 0 | AT130: 0 | AU130: 0 | AV130: 0 | AW130: 0 | AX130: 0 | AY130: 0 | AZ130: 0 | BA130: -117.0333333 | BB130: 0 | BC130: 0 | BE130: 0 | BG130: 20.47647611 | BH130: 1 | BI130: 20.47647611 | BJ130: 117.0333333 | BK130: Saturated zone | BL130: =('Climate-inputs'!C126+'Climate-inputs'!D126)/2 -> 23.74444444 | BW130: 0 | BX130: 0 | BZ130: 0 | CA130: 0 | CC130: 0 | CD130: 0 | CF130: 0 | CG130: 0 | CM130: 0 | CN130: 1 | CO130: 0.1409630682 | CP130: 0.006239049947 | CQ130: 0.005638522728 | CR130: 1.801333489 | CS130: 1.110288579 | CT130: 0.7094056711 | CV130: 117.0333333 | CW130: 0.4919364827 | CY130: 1 | CZ130: 0.9670742525 | DA130: 0.4835371263 | DB130: 0.2901222758 | DC130: 0.2417685631
E131: 118 | F131: -58.15323849 | G131: 0.3874 | H131: 1 | I131: 0.9666666667 | J131: 5.162622612 | K131: 1 | L131: 0.4760377382 | M131: 1 | N131: 0 | O131: 0 | P131: 0.4603638399 | Q131: 0.35 | R131: 1.004263561 | S131: 0 | T131: 0.02762183039 | U131: 0.1872433333 | V131: 1.027397179 | X131: 182 | Z131: 183 | AB131: 0.005172003595 | AC131: 0 | AD131: 0.1 | AE131: 0.1 | AF131: 183.1 | AG131: 3.05115814 | AH131: 3.662 | AI131: 0 | AP131: 118 | AQ131: 0 | AR131: 0 | AS131: 0 | AT131: 0 | AU131: 0 | AV131: 0 | AW131: 0 | AX131: 0 | AY131: 0 | AZ131: 0 | BA131: -118 | BB131: 0 | BC131: 0 | BE131: 0 | BG131: 20.47647611 | BH131: 1 | BI131: 20.47647611 | BJ131: 118 | BK131: Saturated zone | BL131: =('Climate-inputs'!C127+'Climate-inputs'!D127)/2 -> 23.68055556 | BW131: 0 | BX131: 0 | BZ131: 0 | CA131: 0 | CC131: 0 | CD131: 0 | CF131: 0 | CG131: 0 | CM131: 0 | CN131: 1 | CO131: 0.1347240183 | CP131: 0.005962908509 | CQ131: 0.00538896073 | CR131: 1.801229489 | CS131: 1.110352685 | CT131: 0.7422581459 | CV131: 118 | CW131: 0.4760377382 | CY131: 1 | CZ131: 0.9670742525 | DA131: 0.4835371263 | DB131: 0.2901222758 | DC131: 0.2417685631
C132: =2*30.4 -> 60.8 | E132: 118.9666667 | F132: -58.15323849 | G132: 0.3874 | H132: 1 | I132: 0.9666666667 | J132: 5.162622612 | K132: 1 | L132: 0.4599525191 | M132: 1 | N132: 0 | O132: 0 | P132: 0.4448082386 | Q132: 0.35 | R132: 1.00424481 | S132: 0 | T132: 0.02668849432 | U132: 0.1872433333 | V132: 1.027247875 | X132: 183 | Z132: 184 | AB132: 0.004997242638 | AC132: 0 | AD132: 0.1 | AE132: 0.1 | AF132: 184.1 | AG132: 3.06782203 | AH132: 3.682 | AI132: 0 | AP132: 118.9666667 | AQ132: 0 | AR132: 0 | AS132: 0 | AT132: 0 | AU132: 0 | AV132: 0 | AW132: 0 | AX132: 0 | AY132: 0 | AZ132: 0 | BA132: -118.9666667 | BB132: 0 | BC132: 0 | BE132: 0 | BG132: 20.47647611 | BH132: 1 | BI132: 20.47647611 | BJ132: 118.9666667 | BK132: Saturated zone | BL132: =('Climate-inputs'!C128+'Climate-inputs'!D128)/2 -> 25.075 | BW132: 0 | BX132: 0 | BZ132: 0 | CA132: 0 | CC132: 0 | CD132: 0 | CF132: 0 | CG132: 0 | CM132: 0 | CN132: 1 | CO132: 0.1287611097 | CP132: 0.00569898914 | CQ132: 0.00515044439 | CR132: 1.801133601 | CS132: 1.110411798 | CT132: 0.7766320141 | CV132: 118.9666667 | CW132: 0.4599525191 | CY132: 1 | CZ132: 0.9670742525 | DA132: 0.4835371263 | DB132: 0.2901222758 | DC132: 0.2417685631
E133: 119.9333333 | F133: -58.15323849 | G133: 0.3874 | H133: 1 | I133: 0.9666666667 | J133: 5.162622612 | K133: 1 | L133: 0.4437039443 | M133: 1 | N133: 0 | O133: 0 | P133: 0.4290946602 | Q133: 0.35 | R133: 1.004226243 | S133: 0 | T133: 0.02574567961 | U133: 0.1872433333 | V133: 1.02710019 | X133: 184 | Z133: 185 | AB133: 0.00482070687 | AC133: 0 | AD133: 0.1 | AE133: 0.1 | AF133: 185.1 | AG133: 3.084485919 | AH133: 3.702 | AI133: 0 | AP133: 119.9333333 | AQ133: 0 | AR133: 0 | AS133: 0 | AT133: 0 | AU133: 0 | AV133: 0 | AW133: 0 | AX133: 0 | AY133: 0 | AZ133: 0 | BA133: -119.9333333 | BB133: 0 | BC133: 0 | BE133: 0 | BG133: 20.47647611 | BH133: 1 | BI133: 20.47647611 | BJ133: 119.9333333 | BK133: Saturated zone | BL133: =('Climate-inputs'!C129+'Climate-inputs'!D129)/2 -> 25.68055556 | BW133: 0 | BX133: 0 | BZ133: 0 | CA133: 0 | CC133: 0 | CD133: 0 | CF133: 0 | CG133: 0 | CM133: 0 | CN133: 1 | CO133: 0.1230621206 | CP133: 0.005446750889 | CQ133: 0.004922484824 | CR133: 1.80104519 | CS133: 1.110466306 | CT133: 0.8125977312 | CV133: 119.9333333 | CW133: 0.4437039443 | CY133: 1 | CZ133: 0.9670742525 | DA133: 0.4835371263 | DB133: 0.2901222758 | DC133: 0.2417685631
E134: 120.9 | F134: -58.15323849 | G134: 0.3874 | H134: 1 | I134: 0.9666666667 | J134: 5.162622612 | K134: 1 | L134: 0.4273170585 | M134: 1 | N134: 0 | O134: 0 | P134: 0.413247325 | Q134: 0.35 | R134: 1.004207858 | S134: 0 | T134: 0.0247948395 | U134: 0.1872433333 | V134: 1.026954098 | X134: 185 | Z134: 186 | AB134: 0.004642668397 | AC134: 0 | AD134: 0.1 | AE134: 0.1 | AF134: 186.1 | AG134: 3.101149808 | AH134: 3.722 | AI134: 0 | AP134: 120.9 | AQ134: 0 | AR134: 0 | AS134: 0 | AT134: 0 | AU134: 0 | AV134: 0 | AW134: 0 | AX134: 0 | AY134: 0 | AZ134: 0 | BA134: -120.9 | BB134: 0 | BC134: 0 | BE134: 0 | BG134: 20.47647611 | BH134: 1 | BI134: 20.47647611 | BJ134: 120.9 | BK134: Saturated zone | BL134: =('Climate-inputs'!C130+'Climate-inputs'!D130)/2 -> 26.65555556 | BW134: 0 | BX134: 0 | BZ134: 0 | CA134: 0 | CC134: 0 | CD134: 0 | CF134: 0 | CG134: 0 | CM134: 0 | CN134: 1 | CO134: 0.1176153697 | CP134: 0.005205676746 | CQ134: 0.004704614789 | CR134: 1.800963675 | CS134: 1.110516568 | CT134: 0.8502290155 | CV134: 120.9 | CW134: 0.4273170585 | CY134: 1 | CZ134: 0.9670742525 | DA134: 0.4835371263 | DB134: 0.2901222758 | DC134: 0.2417685631
E135: 121.8666667 | F135: -58.15323849 | G135: 0.3874 | H135: 1 | I135: 0.9666666667 | J135: 5.162622612 | K135: 1 | L135: 0.4108188158 | M135: 1 | N135: 0 | O135: 0 | P135: 0.3972922992 | Q135: 0.35 | R135: 1.004189652 | S135: 0 | T135: 0.02383753795 | U135: 0.1872433333 | V135: 1.026809572 | X135: 186 | Z135: 187 | AB135: 0.004463420065 | AC135: 0 | AD135: 0.1 | AE135: 0.1 | AF135: 187.1 | AG135: 3.117813698 | AH135: 3.742 | AI135: 0 | AP135: 121.8666667 | AQ135: 0 | AR135: 0 | AS135: 0 | AT135: 0 | AU135: 0 | AV135: 0 | AW135: 0 | AX135: 0 | AY135: 0 | AZ135: 0 | BA135: -121.8666667 | BB135: 0 | BC135: 0 | BE135: 0 | BG135: 20.47647611 | BH135: 1 | BI135: 20.47647611 | BJ135: 121.8666667 | BK135: Saturated zone | BL135: =('Climate-inputs'!C131+'Climate-inputs'!D131)/2 -> 25.15833333 | BW135: 0 | BX135: 0 | BZ135: 0 | CA135: 0 | CC135: 0 | CD135: 0 | CF135: 0 | CG135: 0 | CM135: 0 | CN135: =1+($CL$9*$A$46/G135) -> 1 | CO135: 0.112409693 | CP135: 0.004975272586 | CQ135: 0.004496387719 | CR135: 1.800888517 | CS135: 1.110562914 | CT135: 0.8896029991 | CV135: 121.8666667 | CW135: 0.4108188158 | CY135: 1 | CZ135: 0.9670742525 | DA135: 0.4835371263 | DB135: 0.2901222758 | DC135: 0.2417685631
E136: 122.8333333 | F136: -58.15323849 | G136: 0.3874 | H136: 1 | I136: 0.9666666667 | J136: 5.162622612 | K136: 1 | L136: 0.3942380413 | M136: 1 | N136: 0 | O136: 0 | P136: 0.3812574591 | Q136: 0.35 | R136: 1.004171623 | S136: 0 | T136: 0.02287544755 | U136: 0.1872433333 | V136: 1.026666588 | X136: 187 | Z136: 188 | AB136: 0.00428327505 | AC136: 0 | AD136: 0.1 | AE136: 0.1 | AF136: =AE136+Z136+EW136 -> 188.1 | AG136: =AF136/($A$19+$A$20+0) -> 3.134477587 | AH136: =(AF136*$A$7)/100 -> 3.762 | AI136: =AJ136 -> 0 | AP136: 122.8333333 | AQ136: 0 | AR136: 0 | AS136: 0 | AT136: =IF(AND(($A$63-AP136)/$A$63>0,AP136<5),$AX$2*$AY$2*($A$63-AP136)/($A$63*(0.5*$A$63+0.5)),IF(AND(($A$63-AP136)/$A$63>0,AP136>=5),$AV$2*$AY$2*($A$63-AP136)/($A$63*(0.5*$A$63+0.5)),0)) -> 0 | AU136: =AR136*AT136 -> 0 | AV136: 0 | AW136: =AT136*(AF136-$A$68)/($A$69+AF136-$A$68) -> 0 | AX136: 0 | AY136: 0 | AZ136: 0 | BA136: =$E$2507-E136 -> -122.8333333 | BB136: 0 | BC136: 0 | BE136: =IF(E136<$A$63,1*AT136*$A$75/($A$13*$A$63),0) -> 0 | BG136: 20.47647611 | BH136: =1+((F136-F137)/$B$3) -> 1 | BI136: =BG136*BH136 -> 20.47647611 | BJ136: =E136 -> 122.8333333 | BK136: Saturated zone | BL136: =('Climate-inputs'!C132+'Climate-inputs'!D132)/2 -> 24.36111111 | BW136: =IF(E136<$A$86,0,AY136) -> 0 | BX136: =IF(E136<$A$86,0,AZ136) -> 0 | BZ136: =IF(OR(AND(E136<$A$86,BW136=0),E136=0),"-",BW136) -> 0 | CA136: =IF(OR(AND(E136<$A$86,BX136=0),E136=0),"-",BX136) -> 0 | CC136: 0 | CD136: 0 | CF136: 0 | CG136: 0 | CM136: =AJ136 -> 0 | CN136: 1 | CO136: 0.1074344204 | CP136: 0.004755066155 | CQ136: 0.004297376816 | CR136: =1.8+24.8*EXP(-0.084*E136) -> 1.800819221 | CS136: =$CL$8/CR136 -> 1.110605649 | CT136: =IF(E136<0,0,IF(CO136>$CL$13,$CL$16/CO136,$CL$17/CO136)) -> 0.9308003863 | CV136: =E136 -> 122.8333333 | CW136: =L136 -> 0.3942380413 | CY136: =((K136-$A$35)/(1-$A$35))^$CL$19 -> 1 | CZ136: =CY136*$A$44 -> 0.9670742525 | DA136: =$CL$10*CZ136 -> 0.4835371263 | DB136: =$CL$11*CZ136 -> 0.2901222758 | DC136: =$A$36*CZ136 -> 0.2417685631
E137: 123.8 | F137: -58.15323849 | G137: =IF(E137<=$I$3,IF($O$1=1,IF(F137>0,$A$13,IF($A$7=0,$A$12,$A$12-BE137+(($A$13-$A$12)/(1+(ABS($A$9*F137))^$A$14)^$A$15))),IF(BC137>0,$A$13,IF($A$7=0,$A$12,$A$12-BE137+(($A$13-$A$12)/(1+(ABS($A$9*BC137))^$A$14)^$A$15)))),IF(AND(E137>$I$3,E137<$I$4),IF($O$1=1,IF(F137>0,$C$13,IF($A$7=0,$C$12,$C$12-BE137+(($C$13-$C$12)/(1+(ABS($C$9*F137))^$C$14)^$C$15))),IF(BC137>0,$C$13,IF($A$7=0,$C$12,$C$12-BE137+(($C$13-$C$12)/(1+(ABS($C$9*BC137))^$C$14)^$C$15)))),IF($O$1=1,IF(F137>0,$D$13,IF($A$7=0,$D$12,$D$12-BE137+(($D$13-$D$12)/(1+(ABS($D$9*F137))^$D$14)^$D$15))),IF(BC137>0,$D$13,IF($A$7=0,$D$12,$D$12-BE137+(($D$13-$D$12)/(1+(ABS($D$9*BC137))^$D$14)^$D$15)))))) -> 0.3874 | H137: =IF(E137<=$I$3,(G137-$A$12)/($A$13-$A$12),IF(AND(E137>$I$3,E137<$I$4),(G137-$C$12)/($C$13-$C$12),(G137-$D$12)/($D$13-$D$12))) -> 1 | I137: 0.9666666667 | J137: =IF(E137<=$I$3,$A$7 /$A$13,IF(AND(E137>$I$3,E137<$I$4),$A$7 /$A$13,$A$7 /$A$13)) -> 5.162622612 | K137: =IF(E137<=$I$3,MAX(G137/$A$13,$A$28),IF(AND(E137>$I$3,E137<$I$4),MAX(G137/$C$13,$C$28),MAX(G137/$D$13,$D$28))) -> 1 | L137: =IF($CK$3=2,1,MAX(EXP(-CS137),EXP(-CT137))) -> 0.3776053718 | M137: =IF(E137<=$I$3,IF(K137<$A$35,0,((K137-$A$35)/(1-$A$35))^$A$31),IF(AND(E137>$I$3,E137<$I$4),IF(K137<$C$35,0,((K137-$C$35)/(1-$C$35))^$C$31),IF(K137<$D$35,0,((K137-$D$35)/(1-$D$35))^$D$31))) -> 1 | N137: =IF(E137<=$I$3,IF(AND($A$28<=K137,K137<$A$29),$A$27+(1-$A$27)*((K137-$A$28)/($A$29-$A$28))^$A$22,IF(AND($A$29<=K137,K137<=$A$30),1,IF(AND($A$30<K137,K137<=1),$A$26+(1-$A$26)*((1-K137)/(1-$A$30))^$A$21))),IF(AND(E137>$I$3,E137<$I$4),IF(AND($C$28<=K137,K137<$C$29),$C$27+(1-$C$27)*((K137-$C$28)/($C$29-$C$28))^$C$22,IF(AND($CB$29<=K137,K137<=$C$30),1,IF(AND($C$30<K137,K137<=1),$C$26+(1-$C$26)*((1-K137)/(1-$C$30))^$C$21))),IF(AND($D$28<=K137,K137<$D$29),$D$27+(1-$D$27)*((K137-$D$28)/($D$29-$D$28))^$D$22,IF(AND($DB$29<=K137,K137<=$D$30),1,IF(AND($D$30<K137,K137<=1),$D$26+(1-$D$26)*((1-K137)/(1-$D$30))^$D$21))))) -> 0 | O137: =$A$45*N137 -> 0 | P137: =$A$44*M137*L137 -> 0.3651724327 | Q137: =IF(E137<=$I$3,$A$38,IF(AND(E137>$I$3,E137<$I$4),$C$38,$D$38)) -> 0.35 | R137: =1+(($A$46*Q137*$A$39*X136^($A$39-1))/G137) -> 1.004153767 | S137: =IF(E137<=$I$3,$A$23*O137,IF(AND(E137>$I$3,E137<$I$4),$C$23*O137,$D$23*O137)) -> 0 | T137: =IF(E137<=$I$3,$A$32*P137,IF(AND(E137>$I$3,E137<$I$4),$C$32*P137,$C$32*P137)) -> 0.02191034596 | U137: 0.1872433333 | V137: 1.02652512 | X137: 188 | Z137: 189 | AB137: 0.004102566212 | AC137: =IF(X137-Z137<0,0,X137-Z137) -> 0 | AD137: 0.1 | AE137: 0.1 | AF137: 189.1 | AG137: 3.151141476 | AH137: 3.782 | AI137: 0 | AP137: =E137 -> 123.8 | AQ137: =IF($A$63>=E136,AVERAGE(F137,F136),0) -> 0 | AR137: =IF($A$63>E137, (1+(AQ137/$A$61))^-$A$62,0) -> 0 | AS137: =AJ137/100 -> 0 | AT137: 0 | AU137: 0 | AV137: =AU137*MIN(AF137,$A$67) -> 0 | AW137: 0 | AX137: =AT137*$AX$7 -> 0 | AY137: =IF(AND(AE137-AX137>0,Z137>AX137/2),AX137/2,IF(AND(AE137-AX137>0,Z137<=AX137/2),AX137-Z137,IF(AE137<=AX137,AE137))) -> 0 | AZ137: =IF(OR(Z137=0,AX137=0,AX137<AY137),0,AX137-AY137) -> 0 | BA137: -123.8 | BB137: 0 | BC137: 0 | BE137: 0 | BG137: 20.47647611 | BH137: 1 | BI137: 20.47647611 | BJ137: 123.8 | BK137: Saturated zone | BL137: =('Climate-inputs'!C133+'Climate-inputs'!D133)/2 -> 26.51388889 | BW137: 0 | BX137: 0 | BZ137: 0 | CA137: 0 | CC137: 0 | CD137: 0 | CF137: 0 | CG137: 0 | CM137: 0 | CN137: 1 | CO137: =IF(CO136>=$CL$12,MAX(CO136*EXP(-DA136*CN137*U137),$CL$13),IF(AND(CO136>$CL$13,CO136<$CL$12),MAX(CO136*EXP(-DB136*CN137*U137),$CL$13),CO136*EXP(-DC136*CN137*U137))) -> 0.1026793542 | CP137: =CO137 - CO138 -> 0.004544606099 | CQ137: =IF($CL$7>0,CO137/$CL$7,0) -> 0.004107174169 | CR137: 1.80075533 | CS137: 1.110645054 | CT137: 0.9739056186 | CV137: 123.8 | CW137: 0.3776053718 | CY137: 1 | CZ137: 0.9670742525 | DA137: 0.4835371263 | DB137: 0.2901222758 | DC137: 0.2417685631
E138: 124.7666667 | F138: -58.15323849 | G138: 0.3874 | H138: 1 | I138: 0.9666666667 | J138: 5.162622612 | K138: 1 | L138: 0.3609531715 | M138: 1 | N138: 0 | O138: 0 | P138: 0.3490685185 | Q138: 0.35 | R138: 1.004136082 | S138: 0 | T138: 0.02094411111 | U138: 0.1872433333 | V138: =IF(OR($A$7<0.2,$A$19<0.5,Z137<$A$49),(X138*EXP(-U138*S138*R138)-Z138-CG138),Z138+$A$24*LN(Z138+$A$49)-((X138+($A$24*LN(X138+$A$49))-(R138*S138*U138)-(CG138)))) -> 1.026385146 | X138: =IF(Z137<$A$49,$A$49,Z137) -> 189 | Z138: 190 | AB138: =IF(OR($A$7<0.2,AE137<$A$50),(AD138*EXP(-U138*T138*$A$48)-AE138-CF138),AE138+$A$33*LN(AE138+$A$50)-((AD138+($A$33*LN(AD138+$A$50))-($A$48*T138*U138)-(CF138)))) -> 0.003921645178 | AC138: 0 | AD138: =AE137+AC138 -> 0.1 | AE138: 0.1 | AF138: 190.1 | AG138: 3.167805366 | AH138: 3.802 | AI138: 0 | AP138: 124.7666667 | AQ138: 0 | AR138: 0 | AS138: 0 | AT138: 0 | AU138: 0 | AV138: 0 | AW138: 0 | AX138: 0 | AY138: 0 | AZ138: 0 | BA138: -124.7666667 | BB138: 0 | BC138: 0 | BE138: 0 | BG138: 20.47647611 | BH138: 1 | BI138: 20.47647611 | BJ138: 124.7666667 | BK138: Saturated zone | BL138: =('Climate-inputs'!C134+'Climate-inputs'!D134)/2 -> 26.23055556 | BW138: 0 | BX138: 0 | BZ138: 0 | CA138: 0 | CC138: 0 | CD138: 0 | CF138: 0 | CG138: 0 | CM138: 0 | CN138: 1 | CO138: 0.09813474813 | CP138: 0.004343461042 | CQ138: 0.003925389925 | CR138: 1.800696421 | CS138: 1.110681388 | CT138: 1.019007048 | CV138: 124.7666667 | CW138: 0.3609531715 | CY138: 1 | CZ138: 0.9670742525 | DA138: 0.4835371263 | DB138: 0.2901222758 | DC138: 0.2417685631
E139: 125.7333333 | F139: -58.15323849 | G139: 0.3874 | H139: 1 | I139: 0.9666666667 | J139: 5.162622612 | K139: 1 | L139: 0.3443154217 | M139: 1 | N139: 0 | O139: 0 | P139: 0.3329785791 | Q139: 0.35 | R139: 1.004118565 | S139: 0 | T139: 0.01997871475 | U139: 0.1872433333 | V139: 1.026246642 | X139: 190 | Z139: 191 | AB139: 0.003740881145 | AC139: 0 | AD139: 0.1 | AE139: 0.1 | AF139: 191.1 | AG139: 3.184469255 | AH139: 3.822 | AI139: 0 | AP139: 125.7333333 | AQ139: 0 | AR139: 0 | AS139: 0 | AT139: 0 | AU139: 0 | AV139: 0 | AW139: 0 | AX139: 0 | AY139: 0 | AZ139: 0 | BA139: -125.7333333 | BB139: 0 | BC139: 0 | BE139: 0 | BG139: 20.47647611 | BH139: 1 | BI139: 20.47647611 | BJ139: 125.7333333 | BK139: Saturated zone | BL139: =('Climate-inputs'!C135+'Climate-inputs'!D135)/2 -> 27.06944444 | BW139: 0 | BX139: 0 | BZ139: 0 | CA139: 0 | CC139: 0 | CD139: 0 | CF139: 0 | CG139: 0 | CM139: 0 | CN139: 1 | CO139: 0.09379128709 | CP139: 0.0041512187 | CQ139: 0.003751651484 | CR139: 1.800642107 | CS139: 1.11071489 | CT139: 1.066197118 | CV139: 125.7333333 | CW139: 0.3443154217 | CY139: 1 | CZ139: 0.9670742525 | DA139: 0.4835371263 | DB139: 0.2901222758 | DC139: 0.2417685631
E140: 126.7 | F140: -58.15323849 | G140: 0.3874 | H140: 1 | I140: 0.9666666667 | J140: 5.162622612 | K140: 1 | L140: 0.3293132736 | M140: 1 | N140: 0 | O140: 0 | P140: 0.3184703879 | Q140: 0.35 | R140: 1.004101215 | S140: 0 | T140: 0.01910822328 | U140: 0.1872433333 | V140: 1.026109584 | X140: 191 | Z140: 192 | AB140: 0.00357788742 | AC140: 0 | AD140: 0.1 | AE140: 0.1 | AF140: 192.1 | AG140: 3.201133144 | AH140: 3.842 | AI140: 0 | AP140: 126.7 | AQ140: 0 | AR140: 0 | AS140: 0 | AT140: 0 | AU140: 0 | AV140: 0 | AW140: 0 | AX140: 0 | AY140: 0 | AZ140: 0 | BA140: -126.7 | BB140: =IF(BB139-$A$43>0,BB139-$A$43,0) -> 0 | BC140: 0 | BE140: 0 | BG140: 20.47647611 | BH140: 1 | BI140: 20.47647611 | BJ140: 126.7 | BK140: Saturated zone | BL140: =('Climate-inputs'!C136+'Climate-inputs'!D136)/2 -> 26.41944444 | BW140: 0 | BX140: 0 | BZ140: 0 | CA140: 0 | CC140: 0 | CD140: 0 | CF140: 0 | CG140: 0 | CM140: 0 | CN140: 1 | CO140: 0.08964006839 | CP140: 0.003967485037 | CQ140: 0.003585602736 | CR140: 1.800592028 | CS140: 1.110745782 | CT140: 1.115572554 | CV140: 126.7 | CW140: 0.3293132736 | CY140: 1 | CZ140: 0.9670742525 | DA140: 0.4835371263 | DB140: 0.2901222758 | DC140: 0.2417685631
E141: =E140+ $A$43 -> 127.6666667 | F141: =IF(E141<=$I$3,(1/$A$8)*LN(EXP($A$8*(F142-$A$43))+($A$7/$A$10)*(1-EXP(-$A$8*$A$43)))*$A$18,IF(AND(E141>$I$3,E141<$I$4),(1/$C$8)*LN(EXP($C$8*(F142-$A$43))+($A$7/$C$10)*(1-EXP(-$C$8*$A$43)))*$C$18,(1/$D$8)*LN(EXP($D$8*(F142-$A$43))+($A$7/$D$10)*(1-EXP(-$D$8*$A$43)))*$D$18)) -> -58.15323849 | G141: 0.3874 | H141: 1 | I141: =IF(Q130=2,IF(E141<=$I$3,$A$43*EXP($A$8*F141),IF(AND(E136>$I$3,E136<$I$4),$A$43*EXP($A$8*F141),$A$43*EXP($A$8*F141))),IF(E141<=$I$3,$A$43*EXP($A$8*BC141),IF(AND(E136>$I$3,E136<$I$4),$A$43*EXP($A$8*BC141),$A$43*EXP($A$8*BC141)))) -> 0.9666666667 | J141: 5.162622612 | K141: 1 | L141: 0.3293038937 | M141: 1 | N141: 0 | O141: 0 | P141: 0.3184613169 | Q141: 0.35 | R141: 1.004084028 | S141: 0 | T141: 0.01910767901 | U141: =$A$43/J141 -> 0.1872433333 | V141: 1.025973949 | X141: 192 | Z141: 193 | AB141: 0.00357778551 | AC141: 0 | AD141: 0.1 | AE141: 0.1 | AF141: 193.1 | AG141: 3.217797034 | AH141: 3.862 | AI141: 0 | AP141: 127.6666667 | AQ141: 0 | AR141: 0 | AS141: 0 | AT141: 0 | AU141: 0 | AV141: 0 | AW141: 0 | AX141: 0 | AY141: 0 | AZ141: 0 | BA141: -127.6666667 | BB141: 0 | BC141: 0 | BE141: 0 | BG141: 20.47647611 | BH141: 1 | BI141: 20.47647611 | BJ141: 127.6666667 | BK141: =IF(AND(E141>$P$2,$N$2="Shallow"),"Saturated zone",IF(AND($N$2="Shallow",$B$2<E141,E141<$P$2+$J$2),"vadose zone",IF(AND($N$2="Shallow",$B$2<E141,E141>$P$2+$J$2),"capillary zone",IF($N$2="Deep","vadose zone")))) -> Saturated zone | BL141: =('Climate-inputs'!C137+'Climate-inputs'!D137)/2 -> 26.74444444 | BW141: 0 | BX141: 0 | BZ141: 0 | CA141: 0 | CC141: 0 | CD141: 0 | CF141: 0 | CG141: 0 | CM141: 0 | CN141: 1 | CO141: 0.08567258335 | CP141: 0.003791883459 | CQ141: 0.003426903334 | CR141: 1.800545855 | CS141: 1.110774265 | CT141: 1.167234558 | CV141: 127.6666667 | CW141: 0.3293038937 | CY141: 1 | CZ141: 0.9670742525 | DA141: 0.4835371263 | DB141: 0.2901222758 | DC141: 0.2417685631
E142: 128.6333333 | F142: -58.15323849 | G142: 0.3874 | H142: 1 | I142: 0.9666666667 | J142: 5.162622612 | K142: 1 | L142: 0.3292952452 | M142: 1 | N142: 0 | O142: 0 | P142: 0.3184529531 | Q142: 0.35 | R142: 1.004067002 | S142: 0 | T142: 0.01910717718 | U142: 0.1872433333 | V142: 1.025839717 | X142: 193 | Z142: 194 | AB142: 0.003577691547 | AC142: 0 | AD142: 0.1 | AE142: 0.1 | AF142: 194.1 | AG142: 3.234460923 | AH142: 3.882 | AI142: 0 | AP142: 128.6333333 | AQ142: 0 | AR142: 0 | AS142: 0 | AT142: 0 | AU142: 0 | AV142: 0 | AW142: 0 | AX142: 0 | AY142: 0 | AZ142: 0 | BA142: -128.6333333 | BB142: 0 | BC142: 0 | BE142: 0 | BG142: 20.47647611 | BH142: 1 | BI142: 20.47647611 | BJ142: 128.6333333 | BK142: Saturated zone | BL142: =('Climate-inputs'!C138+'Climate-inputs'!D138)/2 -> 22.875 | BW142: 0 | BX142: 0 | BZ142: 0 | CA142: 0 | CC142: 0 | CD142: 0 | CF142: 0 | CG142: 0 | CM142: 0 | CN142: 1 | CO142: 0.0818806999 | CP142: 0.003624054036 | CQ142: 0.003275227996 | CR142: 1.800503284 | CS142: 1.110800529 | CT142: 1.221289023 | CV142: 128.6333333 | CW142: 0.3292952452 | CY142: 1 | CZ142: 0.9670742525 | DA142: 0.4835371263 | DB142: 0.2901222758 | DC142: 0.2417685631
E143: 129.6 | F143: -58.15323849 | G143: 0.3874 | H143: 1 | I143: 0.9666666667 | J143: 5.162622612 | K143: 1 | L143: 0.3292872709 | M143: 1 | N143: 0 | O143: 0 | P143: 0.3184452414 | Q143: 0.35 | R143: 1.004050135 | S143: 0 | T143: 0.01910671448 | U143: 0.1872433333 | V143: 1.025706865 | X143: 194 | Z143: 195 | AB143: 0.003577604909 | AC143: 0 | AD143: 0.1 | AE143: 0.1 | AF143: 195.1 | AG143: 3.251124813 | AH143: 3.902 | AI143: 0 | AP143: 129.6 | AQ143: 0 | AR143: 0 | AS143: 0 | AT143: 0 | AU143: 0 | AV143: 0 | AW143: 0 | AX143: 0 | AY143: 0 | AZ143: 0 | BA143: -129.6 | BB143: 0 | BC143: 0 | BE143: 0 | BG143: 20.47647611 | BH143: 1 | BI143: 20.47647611 | BJ143: 129.6 | BK143: Saturated zone | BL143: =('Climate-inputs'!C139+'Climate-inputs'!D139)/2 -> 23.9 | BW143: 0 | BX143: 0 | BZ143: 0 | CA143: 0 | CC143: 0 | CD143: 0 | CF143: 0 | CG143: 0 | CM143: 0 | CN143: 1 | CO143: 0.07825664586 | CP143: 0.003463652774 | CQ143: 0.003130265834 | CR143: 1.800464032 | CS143: 1.110824745 | CT143: 1.277846743 | CV143: 129.6 | CW143: 0.3292872709 | CY143: 1 | CZ143: 0.9670742525 | DA143: 0.4835371263 | DB143: 0.2901222758 | DC143: 0.2417685631
E144: 130.5666667 | F144: -58.15323849 | G144: 0.3874 | H144: 1 | I144: 0.9666666667 | J144: 5.162622612 | K144: 1 | L144: 0.3292799185 | M144: 1 | N144: 0 | O144: 0 | P144: 0.3184381311 | Q144: 0.35 | R144: 1.004033425 | S144: 0 | T144: 0.01910628786 | U144: 0.1872433333 | V144: 1.025575373 | X144: 195 | Z144: 196 | AB144: 0.003577525027 | AC144: 0 | AD144: 0.1 | AE144: 0.1 | AF144: 196.1 | AG144: 3.267788702 | AH144: 3.922 | AI144: 0 | AP144: 130.5666667 | AQ144: 0 | AR144: 0 | AS144: 0 | AT144: 0 | AU144: 0 | AV144: 0 | AW144: 0 | AX144: 0 | AY144: 0 | AZ144: 0 | BA144: -130.5666667 | BB144: 0 | BC144: 0 | BE144: 0 | BG144: 20.47647611 | BH144: 1 | BI144: 20.47647611 | BJ144: 130.5666667 | BK144: Saturated zone | BL144: =('Climate-inputs'!C140+'Climate-inputs'!D140)/2 -> 25.16944444 | BW144: 0 | BX144: 0 | BZ144: 0 | CA144: 0 | CC144: 0 | CD144: 0 | CF144: 0 | CG144: 0 | CM144: 0 | CN144: 1 | CO144: 0.07479299309 | CP144: 0.003310350899 | CQ144: 0.002991719723 | CR144: 1.800427842 | CS144: 1.110847074 | CT144: 1.337023642 | CV144: 130.5666667 | CW144: 0.3292799185 | CY144: 1 | CZ144: 0.9670742525 | DA144: 0.4835371263 | DB144: 0.2901222758 | DC144: 0.2417685631
E145: 131.5333333 | F145: -58.15323849 | G145: 0.3874 | H145: 1 | I145: 0.9666666667 | J145: 5.162622612 | K145: 1 | L145: 0.3292731394 | M145: 1 | N145: 0 | O145: 0 | P145: 0.3184315751 | Q145: 0.35 | R145: 1.004016869 | S145: 0 | T145: 0.01910589451 | U145: 0.1872433333 | V145: 1.025445218 | X145: 196 | Z145: 197 | AB145: 0.003577451374 | AC145: 0 | AD145: 0.1 | AE145: 0.1 | AF145: 197.1 | AG145: 3.284452591 | AH145: 3.942 | AI145: 0 | AP145: 131.5333333 | AQ145: 0 | AR145: 0 | AS145: 0 | AT145: 0 | AU145: 0 | AV145: 0 | AW145: 0 | AX145: 0 | AY145: 0 | AZ145: 0 | BA145: -131.5333333 | BB145: 0 | BC145: 0 | BE145: 0 | BG145: 20.47647611 | BH145: 1 | BI145: 20.47647611 | BJ145: 131.5333333 | BK145: Saturated zone | BL145: =('Climate-inputs'!C141+'Climate-inputs'!D141)/2 -> 25.51388889 | BW145: 0 | BX145: 0 | BZ145: 0 | CA145: 0 | CC145: 0 | CD145: 0 | CF145: 0 | CG145: 0 | CM145: 0 | CN145: 1 | CO145: 0.07148264219 | CP145: 0.003163834191 | CQ145: 0.002859305687 | CR145: 1.800394474 | CS145: 1.110867662 | CT145: 1.398941015 | CV145: 131.5333333 | CW145: 0.3292731394 | CY145: 1 | CZ145: 0.9670742525 | DA145: 0.4835371263 | DB145: 0.2901222758 | DC145: 0.2417685631
E146: 132.5 | F146: -58.15323849 | G146: 0.3874 | H146: 1 | I146: 0.9666666667 | J146: 5.162622612 | K146: 1 | L146: 0.3292668889 | M146: 1 | N146: 0 | O146: 0 | P146: 0.3184255304 | Q146: 0.35 | R146: 1.004000465 | S146: 0 | T146: 0.01910553183 | U146: 0.1872433333 | V146: 1.025316382 | X146: 197 | Z146: 198 | AB146: 0.003577383464 | AC146: 0 | AD146: 0.1 | AE146: 0.1 | AF146: 198.1 | AG146: 3.301116481 | AH146: 3.962 | AI146: 0 | AP146: 132.5 | AQ146: 0 | AR146: 0 | AS146: 0 | AT146: 0 | AU146: 0 | AV146: 0 | AW146: 0 | AX146: 0 | AY146: 0 | AZ146: 0 | BA146: -132.5 | BB146: 0 | BC146: 0 | BE146: 0 | BG146: 20.47647611 | BH146: 1 | BI146: 20.47647611 | BJ146: 132.5 | BK146: Saturated zone | BL146: =('Climate-inputs'!C142+'Climate-inputs'!D142)/2 -> 26.28333333 | BW146: 0 | BX146: 0 | BZ146: 0 | CA146: 0 | CC146: 0 | CD146: 0 | CF146: 0 | CG146: 0 | CM146: 0 | CN146: 1 | CO146: 0.068318808 | CP146: 0.003023802339 | CQ146: 0.00273275232 | CR146: 1.800363709 | CS146: 1.110886645 | CT146: 1.463725772 | CV146: 132.5 | CW146: 0.3292668889 | CY146: 1 | CZ146: 0.9670742525 | DA146: 0.4835371263 | DB146: 0.2901222758 | DC146: 0.2417685631
E147: 133.4666667 | F147: -58.15323849 | G147: 0.3874 | H147: 1 | I147: 0.9666666667 | J147: 5.162622612 | K147: 1 | L147: 0.3292611257 | M147: 1 | N147: 0 | O147: 0 | P147: 0.3184199571 | Q147: 0.35 | R147: 1.003984212 | S147: 0 | T147: 0.01910519742 | U147: 0.1872433333 | V147: 1.025188843 | X147: 198 | Z147: 199 | AB147: 0.00357732085 | AC147: 0 | AD147: 0.1 | AE147: 0.1 | AF147: 199.1 | AG147: 3.31778037 | AH147: 3.982 | AI147: 0 | AP147: 133.4666667 | AQ147: 0 | AR147: 0 | AS147: 0 | AT147: 0 | AU147: 0 | AV147: 0 | AW147: 0 | AX147: 0 | AY147: 0 | AZ147: 0 | BA147: -133.4666667 | BB147: 0 | BC147: 0 | BE147: 0 | BG147: 20.47647611 | BH147: 1 | BI147: 20.47647611 | BJ147: 133.4666667 | BK147: Saturated zone | BL147: =('Climate-inputs'!C143+'Climate-inputs'!D143)/2 -> 27.525 | BW147: 0 | BX147: 0 | BZ147: 0 | CA147: 0 | CC147: 0 | CD147: 0 | CF147: 0 | CG147: 0 | CM147: 0 | CN147: 1 | CO147: 0.06529500566 | CP147: 0.002889968321 | CQ147: 0.002611800226 | CR147: 1.800335343 | CS147: 1.110904148 | CT147: 1.531510703 | CV147: 133.4666667 | CW147: 0.3292611257 | CY147: 1 | CZ147: 0.9670742525 | DA147: 0.4835371263 | DB147: 0.2901222758 | DC147: 0.2417685631
E148: 134.4333333 | F148: -58.15323849 | G148: 0.3874 | H148: 1 | I148: 0.9666666667 | J148: 5.162622612 | K148: 1 | L148: 0.329255812 | M148: 1 | N148: 0 | O148: 0 | P148: 0.3184148183 | Q148: 0.35 | R148: 1.003968106 | S148: 0 | T148: 0.0191048891 | U148: 0.1872433333 | V148: 1.025062583 | X148: 199 | Z148: 200 | AB148: 0.003577263118 | AC148: 0 | AD148: 0.1 | AE148: 0.1 | AF148: 200.1 | AG148: 3.334444259 | AH148: 4.002 | AI148: 0 | AP148: 134.4333333 | AQ148: 0 | AR148: 0 | AS148: 0 | AT148: 0 | AU148: 0 | AV148: 0 | AW148: 0 | AX148: 0 | AY148: 0 | AZ148: 0 | BA148: -134.4333333 | BB148: 0 | BC148: 0 | BE148: 0 | BG148: 20.47647611 | BH148: 1 | BI148: 20.47647611 | BJ148: 134.4333333 | BK148: Saturated zone | BL148: =('Climate-inputs'!C144+'Climate-inputs'!D144)/2 -> 28.08611111 | BW148: 0 | BX148: 0 | BZ148: 0 | CA148: 0 | CC148: 0 | CD148: 0 | CF148: 0 | CG148: 0 | CM148: 0 | CN148: 1 | CO148: 0.06240503734 | CP148: 0.00276205782 | CQ148: 0.002496201493 | CR148: 1.800309189 | CS148: 1.110920286 | CT148: 1.602434744 | CV148: 134.4333333 | CW148: 0.329255812 | CY148: 1 | CZ148: 0.9670742525 | DA148: 0.4835371263 | DB148: 0.2901222758 | DC148: 0.2417685631
E149: 135.4 | F149: -58.15323849 | G149: 0.3874 | H149: 1 | I149: 0.9666666667 | J149: 5.162622612 | K149: 1 | L149: 0.3292509127 | M149: 1 | N149: 0 | O149: 0 | P149: 0.3184100803 | Q149: 0.35 | R149: 1.003952145 | S149: 0 | T149: 0.01910460482 | U149: 0.1872433333 | V149: 1.024937583 | X149: 200 | Z149: 201 | AB149: 0.003577209888 | AC149: 0 | AD149: 0.1 | AE149: 0.1 | AF149: 201.1 | AG149: 3.351108149 | AH149: 4.022 | AI149: 0 | AP149: 135.4 | AQ149: 0 | AR149: 0 | AS149: 0 | AT149: 0 | AU149: 0 | AV149: 0 | AW149: 0 | AX149: 0 | AY149: 0 | AZ149: 0 | BA149: -135.4 | BB149: 0 | BC149: 0 | BE149: 0 | BG149: 20.47647611 | BH149: 1 | BI149: 20.47647611 | BJ149: 135.4 | BK149: Saturated zone | BL149: =('Climate-inputs'!C145+'Climate-inputs'!D145)/2 -> 27.08333333 | BW149: 0 | BX149: 0 | BZ149: 0 | CA149: 0 | CC149: 0 | CD149: 0 | CF149: 0 | CG149: 0 | CM149: 0 | CN149: 1 | CO149: 0.05964297952 | CP149: 0.00263980866 | CQ149: 0.002385719181 | CR149: 1.800285076 | CS149: 1.110935166 | CT149: 1.676643267 | CV149: 135.4 | CW149: 0.3292509127 | CY149: 1 | CZ149: 0.9670742525 | DA149: 0.4835371263 | DB149: 0.2901222758 | DC149: 0.2417685631
E150: 136.3666667 | F150: -58.15323849 | G150: 0.3874 | H150: 1 | I150: 0.9666666667 | J150: 5.162622612 | K150: 1 | L150: 0.3292463954 | M150: 1 | N150: 0 | O150: 0 | P150: 0.3184057117 | Q150: 0.35 | R150: 1.003936329 | S150: 0 | T150: 0.0191043427 | U150: 0.1872433333 | V150: 1.024813824 | X150: 201 | Z150: 202 | AB150: 0.003577160808 | AC150: 0 | AD150: 0.1 | AE150: 0.1 | AF150: 202.1 | AG150: 3.367772038 | AH150: 4.042 | AI150: 0 | AP150: 136.3666667 | AQ150: 0 | AR150: 0 | AS150: 0 | AT150: 0 | AU150: 0 | AV150: 0 | AW150: 0 | AX150: 0 | AY150: 0 | AZ150: 0 | BA150: -136.3666667 | BB150: 0 | BC150: 0 | BE150: 0 | BG150: 20.47647611 | BH150: 1 | BI150: 20.47647611 | BJ150: 136.3666667 | BK150: Saturated zone | BL150: =('Climate-inputs'!C146+'Climate-inputs'!D146)/2 -> 27.01944444 | BW150: 0 | BX150: 0 | BZ150: 0 | CA150: 0 | CC150: 0 | CD150: 0 | CF150: 0 | CG150: 0 | CM150: 0 | CN150: 1 | CO150: 0.05700317086 | CP150: 0.002522970269 | CQ150: 0.002280126834 | CR150: 1.800262842 | CS150: 1.110948886 | CT150: 1.754288376 | CV150: 136.3666667 | CW150: 0.3292463954 | CY150: 1 | CZ150: 0.9670742525 | DA150: 0.4835371263 | DB150: 0.2901222758 | DC150: 0.2417685631
E151: 137.3333333 | F151: -58.15323849 | G151: 0.3874 | H151: 1 | I151: 0.9666666667 | J151: 5.162622612 | K151: 1 | L151: 0.3292422303 | M151: 1 | N151: 0 | O151: 0 | P151: 0.3184016838 | Q151: 0.35 | R151: 1.003920654 | S151: 0 | T151: 0.01910410103 | U151: 0.1872433333 | V151: 1.024691286 | X151: 202 | Z151: 203 | AB151: 0.003577115557 | AC151: 0 | AD151: 0.1 | AE151: 0.1 | AF151: 203.1 | AG151: 3.384435927 | AH151: 4.062 | AI151: 0 | AP151: 137.3333333 | AQ151: 0 | AR151: 0 | AS151: 0 | AT151: 0 | AU151: 0 | AV151: 0 | AW151: 0 | AX151: 0 | AY151: 0 | AZ151: 0 | BA151: -137.3333333 | BB151: 0 | BC151: 0 | BE151: 0 | BG151: 20.47647611 | BH151: 1 | BI151: 20.47647611 | BJ151: 137.3333333 | BK151: Saturated zone | BL151: =('Climate-inputs'!C147+'Climate-inputs'!D147)/2 -> 28.2 | BW151: 0 | BX151: 0 | BZ151: 0 | CA151: 0 | CC151: 0 | CD151: 0 | CF151: 0 | CG151: 0 | CM151: 0 | CN151: 1 | CO151: 0.05448020059 | CP151: 0.002411303165 | CQ151: 0.002179208023 | CR151: 1.800242343 | CS151: 1.110961537 | CT151: 1.835529218 | CV151: 137.3333333 | CW151: 0.3292422303 | CY151: 1 | CZ151: 0.9670742525 | DA151: 0.4835371263 | DB151: 0.2901222758 | DC151: 0.2417685631
E152: 138.3 | F152: -58.15323849 | G152: 0.3874 | H152: 1 | I152: 0.9666666667 | J152: 5.162622612 | K152: 1 | L152: 0.3292383901 | M152: 1 | N152: 0 | O152: 0 | P152: 0.31839797 | Q152: 0.35 | R152: 1.003905119 | S152: 0 | T152: 0.0191038782 | U152: 0.1872433333 | V152: 1.024569953 | X152: 203 | Z152: 204 | AB152: 0.003577073833 | AC152: 0 | AD152: 0.1 | AE152: 0.1 | AF152: 204.1 | AG152: 3.401099817 | AH152: 4.082 | AI152: 0 | AP152: 138.3 | AQ152: 0 | AR152: 0 | AS152: 0 | AT152: 0 | AU152: 0 | AV152: 0 | AW152: 0 | AX152: 0 | AY152: 0 | AZ152: 0 | BA152: -138.3 | BB152: 0 | BC152: 0 | BE152: 0 | BG152: 20.47647611 | BH152: 1 | BI152: 20.47647611 | BJ152: 138.3 | BK152: Saturated zone | BL152: =('Climate-inputs'!C148+'Climate-inputs'!D148)/2 -> 28.45833333 | BW152: 0 | BX152: 0 | BZ152: 0 | CA152: 0 | CC152: 0 | CD152: 0 | CF152: 0 | CG152: 0 | CM152: 0 | CN152: 1 | CO152: 0.05206889742 | CP152: 0.002304578467 | CQ152: 0.002082755897 | CR152: 1.800223443 | CS152: 1.110973201 | CT152: 1.920532313 | CV152: 138.3 | CW152: 0.3292383901 | CY152: 1 | CZ152: 0.9670742525 | DA152: 0.4835371263 | DB152: 0.2901222758 | DC152: 0.2417685631
E153: 139.2666667 | F153: -58.15323849 | G153: 0.3874 | H153: 1 | I153: 0.9666666667 | J153: 5.162622612 | K153: 1 | L153: 0.3292348493 | M153: 1 | N153: 0 | O153: 0 | P153: 0.3183945458 | Q153: 0.35 | R153: 1.003889722 | S153: 0 | T153: 0.01910367275 | U153: 0.1872433333 | V153: 1.024449807 | X153: 204 | Z153: 205 | AB153: 0.003577035364 | AC153: 0 | AD153: 0.1 | AE153: 0.1 | AF153: 205.1 | AG153: 3.417763706 | AH153: 4.102 | AI153: 0 | AP153: 139.2666667 | AQ153: 0 | AR153: 0 | AS153: 0 | AT153: 0 | AU153: 0 | AV153: 0 | AW153: 0 | AX153: 0 | AY153: 0 | AZ153: 0 | BA153: -139.2666667 | BB153: 0 | BC153: 0 | BE153: 0 | BG153: 20.47647611 | BH153: 1 | BI153: 20.47647611 | BJ153: 139.2666667 | BK153: Saturated zone | BL153: =('Climate-inputs'!C149+'Climate-inputs'!D149)/2 -> 28.76944444 | BW153: 0 | BX153: 0 | BZ153: 0 | CA153: 0 | CC153: 0 | CD153: 0 | CF153: 0 | CG153: 0 | CM153: 0 | CN153: 1 | CO153: 0.04976431895 | CP153: 0.002202577423 | CQ153: 0.001990572758 | CR153: 1.800206016 | CS153: 1.110983955 | CT153: 2.009471889 | CV153: 139.2666667 | CW153: 0.3292348493 | CY153: 1 | CZ153: 0.9670742525 | DA153: 0.4835371263 | DB153: 0.2901222758 | DC153: 0.2417685631
E154: 140.2333333 | F154: -58.15323849 | G154: 0.3874 | H154: 1 | I154: 0.9666666667 | J154: 5.162622612 | K154: 1 | L154: 0.3292315846 | M154: 1 | N154: 0 | O154: 0 | P154: 0.3183913886 | Q154: 0.35 | R154: 1.00387446 | S154: 0 | T154: 0.01910348332 | U154: 0.1872433333 | V154: 1.02433083 | X154: 205 | Z154: 206 | AB154: 0.003576999895 | AC154: 0 | AD154: 0.1 | AE154: 0.1 | AF154: 206.1 | AG154: 3.434427595 | AH154: 4.122 | AI154: 0 | AP154: 140.2333333 | AQ154: 0 | AR154: 0 | AS154: 0 | AT154: 0 | AU154: 0 | AV154: 0 | AW154: 0 | AX154: 0 | AY154: 0 | AZ154: 0 | BA154: -140.2333333 | BB154: 0 | BC154: 0 | BE154: 0 | BG154: 20.47647611 | BH154: 1 | BI154: 20.47647611 | BJ154: 140.2333333 | BK154: Saturated zone | BL154: =('Climate-inputs'!C150+'Climate-inputs'!D150)/2 -> 28.14444444 | BW154: 0 | BX154: 0 | BZ154: 0 | CA154: 0 | CC154: 0 | CD154: 0 | CF154: 0 | CG154: 0 | CM154: 0 | CN154: 1 | CO154: 0.04756174153 | CP154: 0.002105090963 | CQ154: 0.001902469661 | CR154: 1.800189949 | CS154: 1.110993871 | CT154: 2.102530243 | CV154: 140.2333333 | CW154: 0.3292315846 | CY154: 1 | CZ154: 0.9670742525 | DA154: 0.4835371263 | DB154: 0.2901222758 | DC154: 0.2417685631
E155: 141.2 | F155: -58.15323849 | G155: 0.3874 | H155: 1 | I155: 0.9666666667 | J155: 5.162622612 | K155: 1 | L155: 0.3292285746 | M155: 1 | N155: 0 | O155: 0 | P155: 0.3183884777 | Q155: 0.35 | R155: 1.003859333 | S155: 0 | T155: 0.01910330866 | U155: 0.1872433333 | V155: 1.024213005 | X155: 206 | Z155: 207 | AB155: 0.003576967191 | AC155: 0 | AD155: 0.1 | AE155: 0.1 | AF155: 207.1 | AG155: 3.451091485 | AH155: 4.142 | AI155: 0 | AP155: 141.2 | AQ155: 0 | AR155: 0 | AS155: 0 | AT155: 0 | AU155: 0 | AV155: 0 | AW155: 0 | AX155: 0 | AY155: 0 | AZ155: 0 | BA155: -141.2 | BB155: 0 | BC155: 0 | BE155: 0 | BG155: 20.47647611 | BH155: 1 | BI155: 20.47647611 | BJ155: 141.2 | BK155: Saturated zone | BL155: =('Climate-inputs'!C151+'Climate-inputs'!D151)/2 -> 26.95277778 | BW155: 0 | BX155: 0 | BZ155: 0 | CA155: 0 | CC155: 0 | CD155: 0 | CF155: 0 | CG155: 0 | CM155: 0 | CN155: 1 | CO155: 0.04545665057 | CP155: 0.00201191927 | CQ155: 0.001818266023 | CR155: 1.800175134 | CS155: 1.111003014 | CT155: 2.199898117 | CV155: 141.2 | CW155: 0.3292285746 | CY155: 1 | CZ155: 0.9670742525 | DA155: 0.4835371263 | DB155: 0.2901222758 | DC155: 0.2417685631
E156: 142.1666667 | F156: -58.15323849 | G156: 0.3874 | H156: 1 | I156: 0.9666666667 | J156: 5.162622612 | K156: 1 | L156: 0.3292257992 | M156: 1 | N156: 0 | O156: 0 | P156: 0.3183857937 | Q156: 0.35 | R156: 1.003844338 | S156: 0 | T156: 0.01910314762 | U156: 0.1872433333 | V156: 1.024096316 | X156: 207 | Z156: 208 | AB156: 0.003576937038 | AC156: 0 | AD156: 0.1 | AE156: 0.1 | AF156: 208.1 | AG156: 3.467755374 | AH156: 4.162 | AI156: 0 | AP156: 142.1666667 | AQ156: 0 | AR156: 0 | AS156: 0 | AT156: 0 | AU156: 0 | AV156: 0 | AW156: 0 | AX156: 0 | AY156: 0 | AZ156: 0 | BA156: -142.1666667 | BB156: 0 | BC156: 0 | BE156: 0 | BG156: 20.47647611 | BH156: 1 | BI156: 20.47647611 | BJ156: 142.1666667 | BK156: Saturated zone | BL156: =('Climate-inputs'!C152+'Climate-inputs'!D152)/2 -> 26.39444444 | BW156: 0 | BX156: 0 | BZ156: 0 | CA156: 0 | CC156: 0 | CD156: 0 | CF156: 0 | CG156: 0 | CM156: 0 | CN156: 1 | CO156: 0.0434447313 | CP156: 0.001922871373 | CQ156: 0.001737789252 | CR156: 1.800161476 | CS156: 1.111011444 | CT156: 2.301775083 | CV156: 142.1666667 | CW156: 0.3292257992 | CY156: 1 | CZ156: 0.9670742525 | DA156: 0.4835371263 | DB156: 0.2901222758 | DC156: 0.2417685631
E157: 143.1333333 | F157: -58.15323849 | G157: 0.3874 | H157: 1 | I157: 0.9666666667 | J157: 5.162622612 | K157: 1 | L157: 0.3292232403 | M157: 1 | N157: 0 | O157: 0 | P157: 0.3183833191 | Q157: 0.35 | R157: 1.003829474 | S157: 0 | T157: 0.01910299914 | U157: 0.1872433333 | V157: 1.023980746 | X157: 208 | Z157: 209 | AB157: 0.003576909236 | AC157: 0 | AD157: 0.1 | AE157: 0.1 | AF157: 209.1 | AG157: 3.484419263 | AH157: 4.182 | AI157: 0 | AP157: 143.1333333 | AQ157: 0 | AR157: 0 | AS157: 0 | AT157: 0 | AU157: 0 | AV157: 0 | AW157: 0 | AX157: 0 | AY157: 0 | AZ157: 0 | BA157: -143.1333333 | BB157: 0 | BC157: =IF(E156<=$I$3,IF(BB157>0,(1/$A$8)*LN(EXP($A$8*(BC158-$A$43))+($A$7/$A$10)*(1-EXP(-$A$8*$A$43)))*$A$18,0),IF(AND(E156>$I$3,E156<$I$4),IF(BB157>0,(1/$C$8)*LN(EXP($C$8*(BC158-$A$43))+($A$7/$C$10)*(1-EXP(-$C$8*$A$43)))*$C$18,0),IF(BB157>0,(1/$D$8)*LN(EXP($D$8*(BC158-$A$43))+($A$7/$D$10)*(1-EXP(-$D$8*$A$43)))*$D$18,0))) -> 0 | BE157: 0 | BG157: =$A$10*EXP($A$8*F157) -> 20.47647611 | BH157: 1 | BI157: 20.47647611 | BJ157: 143.1333333 | BK157: Saturated zone | BL157: =('Climate-inputs'!C153+'Climate-inputs'!D153)/2 -> 27.11111111 | BW157: 0 | BX157: 0 | BZ157: 0 | CA157: 0 | CC157: 0 | CD157: 0 | CF157: 0 | CG157: 0 | CM157: 0 | CN157: 1 | CO157: 0.04152185993 | CP157: 0.001837764751 | CQ157: 0.001660874397 | CR157: 1.800148882 | CS157: 1.111019216 | CT157: 2.408369957 | CV157: 143.1333333 | CW157: 0.3292232403 | CY157: 1 | CZ157: 0.9670742525 | DA157: 0.4835371263 | DB157: 0.2901222758 | DC157: 0.2417685631
E158: 144.1 | F158: -58.15323849 | G158: 0.3874 | H158: 1 | I158: 0.9666666667 | J158: 5.162622612 | K158: 1 | L158: 0.329220881 | M158: 1 | N158: 0 | O158: 0 | P158: 0.3183810374 | Q158: 0.35 | R158: 1.003814738 | S158: 0 | T158: 0.01910286225 | U158: 0.1872433333 | V158: 1.02386628 | X158: 209 | Z158: 210 | AB158: 0.003576883603 | AC158: 0 | AD158: 0.1 | AE158: 0.1 | AF158: 210.1 | AG158: 3.501083153 | AH158: 4.202 | AI158: 0 | AP158: 144.1 | AQ158: 0 | AR158: 0 | AS158: 0 | AT158: 0 | AU158: 0 | AV158: 0 | AW158: 0 | AX158: 0 | AY158: 0 | AZ158: 0 | BA158: -144.1 | BB158: 0 | BC158: 0 | BE158: 0 | BG158: 20.47647611 | BH158: 1 | BI158: 20.47647611 | BJ158: 144.1 | BK158: Saturated zone | BL158: =('Climate-inputs'!C154+'Climate-inputs'!D154)/2 -> 26.38611111 | BW158: 0 | BX158: 0 | BZ158: 0 | CA158: 0 | CC158: 0 | CD158: 0 | CF158: 0 | CG158: 0 | CM158: 0 | CN158: 1 | CO158: 0.03968409517 | CP158: 0.001756424963 | CQ158: 0.001587363807 | CR158: 1.800137271 | CS158: 1.111026383 | CT158: 2.519901224 | CV158: 144.1 | CW158: 0.329220881 | CY158: 1 | CZ158: 0.9670742525 | DA158: 0.4835371263 | DB158: 0.2901222758 | DC158: 0.2417685631
E159: 145.0666667 | F159: -58.15323849 | G159: 0.3874 | H159: 1 | I159: 0.9666666667 | J159: 5.162622612 | K159: 1 | L159: 0.3292187057 | M159: 1 | N159: 0 | O159: 0 | P159: 0.3183789337 | Q159: 0.35 | R159: 1.003800129 | S159: 0 | T159: 0.01910273602 | U159: 0.1872433333 | V159: 1.023752901 | X159: 210 | Z159: 211 | AB159: 0.003576859969 | AC159: 0 | AD159: 0.1 | AE159: 0.1 | AF159: 211.1 | AG159: 3.517747042 | AH159: 4.222 | AI159: 0 | AP159: 145.0666667 | AQ159: 0 | AR159: 0 | AS159: 0 | AT159: 0 | AU159: 0 | AV159: 0 | AW159: 0 | AX159: 0 | AY159: 0 | AZ159: 0 | BA159: -145.0666667 | BB159: 0 | BC159: 0 | BE159: 0 | BG159: 20.47647611 | BH159: 1 | BI159: 20.47647611 | BJ159: 145.0666667 | BK159: Saturated zone | BL159: =('Climate-inputs'!C155+'Climate-inputs'!D155)/2 -> 27.175 | BW159: 0 | BX159: 0 | BZ159: 0 | CA159: 0 | CC159: 0 | CD159: 0 | CF159: 0 | CG159: 0 | CM159: 0 | CN159: 1 | CO159: 0.03792767021 | CP159: 0.001678685288 | CQ159: 0.001517106808 | CR159: 1.800126565 | CS159: 1.11103299 | CT159: 2.636597488 | CV159: 145.0666667 | CW159: 0.3292187057 | CY159: 1 | CZ159: 0.9670742525 | DA159: 0.4835371263 | DB159: 0.2901222758 | DC159: 0.2417685631
E160: 146.0333333 | F160: -58.15323849 | G160: 0.3874 | H160: 1 | I160: 0.9666666667 | J160: 5.162622612 | K160: 1 | L160: 0.3292167 | M160: 1 | N160: 0 | O160: 0 | P160: 0.318376994 | Q160: 0.35 | R160: 1.003785645 | S160: 0 | T160: 0.01910261964 | U160: 0.1872433333 | V160: 1.023640594 | X160: 211 | Z160: 212 | AB160: 0.003576838177 | AC160: 0 | AD160: 0.1 | AE160: 0.1 | AF160: 212.1 | AG160: 3.534410932 | AH160: 4.242 | AI160: 0 | AP160: 146.0333333 | AQ160: 0 | AR160: 0 | AS160: 0 | AT160: 0 | AU160: 0 | AV160: 0 | AW160: 0 | AX160: 0 | AY160: 0 | AZ160: 0 | BA160: -146.0333333 | BB160: 0 | BC160: 0 | BE160: 0 | BG160: 20.47647611 | BH160: 1 | BI160: 20.47647611 | BJ160: 146.0333333 | BK160: Saturated zone | BL160: =('Climate-inputs'!C156+'Climate-inputs'!D156)/2 -> 26.31944444 | BW160: 0 | BX160: 0 | BZ160: 0 | CA160: 0 | CC160: 0 | CD160: 0 | CF160: 0 | CG160: 0 | CM160: 0 | CN160: 1 | CO160: 0.03624898492 | CP160: 0.001604386385 | CQ160: 0.001449959397 | CR160: 1.800116694 | CS160: 1.111039083 | CT160: 2.758697939 | CV160: 146.0333333 | CW160: 0.3292167 | CY160: 1 | CZ160: 0.9670742525 | DA160: 0.4835371263 | DB160: 0.2901222758 | DC160: 0.2417685631
E161: 147 | F161: -58.15323849 | G161: 0.3874 | H161: 1 | I161: 0.9666666667 | J161: 5.162622612 | K161: 1 | L161: 0.3292148507 | M161: 1 | N161: 0 | O161: 0 | P161: 0.3183752057 | Q161: 0.35 | R161: 1.003771285 | S161: 0 | T161: 0.01910251234 | U161: 0.1872433333 | V161: 1.023529344 | X161: 212 | Z161: 213 | AB161: 0.003576818085 | AC161: 0 | AD161: 0.1 | AE161: 0.1 | AF161: 213.1 | AG161: 3.551074821 | AH161: 4.262 | AI161: 0 | AP161: 147 | AQ161: 0 | AR161: 0 | AS161: 0 | AT161: 0 | AU161: 0 | AV161: 0 | AW161: 0 | AX161: 0 | AY161: 0 | AZ161: 0 | BA161: -147 | BB161: 0 | BC161: 0 | BE161: 0 | BG161: 20.47647611 | BH161: 1 | BI161: 20.47647611 | BJ161: 147 | BK161: Saturated zone | BL161: =('Climate-inputs'!C157+'Climate-inputs'!D157)/2 -> 27.14444444 | BW161: 0 | BX161: 0 | BZ161: 0 | CA161: 0 | CC161: 0 | CD161: 0 | CF161: 0 | CG161: 0 | CM161: 0 | CN161: 1 | CO161: 0.03464459854 | CP161: 0.001533375964 | CQ161: 0.001385783941 | CR161: 1.800107593 | CS161: 1.1110447 | CT161: 2.886452845 | CV161: 147 | CW161: 0.3292148507 | CY161: 1 | CZ161: 0.9670742525 | DA161: 0.4835371263 | DB161: 0.2901222758 | DC161: 0.2417685631
E162: 147.9666667 | F162: -58.15323849 | G162: 0.3874 | H162: 1 | I162: 0.9666666667 | J162: 5.162622612 | K162: 1 | L162: 0.3292131456 | M162: 1 | N162: 0 | O162: 0 | P162: 0.3183735567 | Q162: 0.35 | R162: 1.003757047 | S162: 0 | T162: 0.0191024134 | U162: 0.1872433333 | V162: 1.023419137 | X162: 213 | Z162: 214 | AB162: 0.00357679956 | AC162: 0 | AD162: 0.1 | AE162: 0.1 | AF162: 214.1 | AG162: 3.56773871 | AH162: 4.282 | AI162: 0 | AP162: 147.9666667 | AQ162: 0 | AR162: 0 | AS162: 0 | AT162: 0 | AU162: 0 | AV162: 0 | AW162: 0 | AX162: 0 | AY162: 0 | AZ162: 0 | BA162: -147.9666667 | BB162: 0 | BC162: 0 | BE162: 0 | BG162: 20.47647611 | BH162: 1 | BI162: 20.47647611 | BJ162: 147.9666667 | BK162: Saturated zone | BL162: =('Climate-inputs'!C158+'Climate-inputs'!D158)/2 -> 26.99722222 | BW162: 0 | BX162: 0 | BZ162: 0 | CA162: 0 | CC162: 0 | CD162: 0 | CF162: 0 | CG162: 0 | CM162: 0 | CN162: 1 | CO162: 0.03311122257 | CP162: 0.001465508477 | CQ162: 0.001324448903 | CR162: 1.800099202 | CS162: 1.111049879 | CT162: 3.020124062 | CV162: 147.9666667 | CW162: 0.3292131456 | CY162: 1 | CZ162: 0.9670742525 | DA162: 0.4835371263 | DB162: 0.2901222758 | DC162: 0.2417685631
E163: 148.9333333 | F163: -58.15323849 | G163: 0.3874 | H163: 1 | I163: 0.9666666667 | J163: 5.162622612 | K163: 1 | L163: 0.3292115735 | M163: 1 | N163: 0 | O163: 0 | P163: 0.3183720364 | Q163: 0.35 | R163: 1.00374293 | S163: 0 | T163: 0.01910232218 | U163: 0.1872433333 | V163: 1.023309957 | X163: 214 | Z163: 215 | AB163: 0.00357678248 | AC163: 0 | AD163: 0.1 | AE163: 0.1 | AF163: 215.1 | AG163: 3.5844026 | AH163: 4.302 | AI163: 0 | AP163: 148.9333333 | AQ163: 0 | AR163: 0 | AS163: 0 | AT163: 0 | AU163: 0 | AV163: 0 | AW163: 0 | AX163: 0 | AY163: 0 | AZ163: 0 | BA163: -148.9333333 | BB163: 0 | BC163: 0 | BE163: 0 | BG163: 20.47647611 | BH163: 1 | BI163: 20.47647611 | BJ163: 148.9333333 | BK163: Saturated zone | BL163: =('Climate-inputs'!C159+'Climate-inputs'!D159)/2 -> 25.20555556 | BW163: 0 | BX163: 0 | BZ163: 0 | CA163: 0 | CC163: 0 | CD163: 0 | CF163: 0 | CG163: 0 | CM163: 0 | CN163: 1 | CO163: 0.0316457141 | CP163: 0.001400644817 | CQ163: 0.001265828564 | CR163: 1.800091465 | CS163: 1.111054654 | CT163: 3.159985573 | CV163: 148.9333333 | CW163: 0.3292115735 | CY163: 1 | CZ163: 0.9670742525 | DA163: 0.4835371263 | DB163: 0.2901222758 | DC163: 0.2417685631
E164: 149.9 | F164: -58.15323849 | G164: 0.3874 | H164: 1 | I164: 0.9666666667 | J164: 5.162622612 | K164: 1 | L164: 0.3292101241 | M164: 1 | N164: 0 | O164: 0 | P164: 0.3183706346 | Q164: 0.35 | R164: 1.003728931 | S164: 0 | T164: 0.01910223808 | U164: 0.1872433333 | V164: 1.02320179 | X164: 215 | Z164: 216 | AB164: 0.003576766732 | AC164: 0 | AD164: 0.1 | AE164: 0.1 | AF164: 216.1 | AG164: 3.601066489 | AH164: 4.322 | AI164: 0 | AP164: 149.9 | AQ164: 0 | AR164: 0 | AS164: 0 | AT164: 0 | AU164: 0 | AV164: 0 | AW164: 0 | AX164: 0 | AY164: 0 | AZ164: 0 | BA164: -149.9 | BB164: 0 | BC164: 0 | BE164: 0 | BG164: 20.47647611 | BH164: 1 | BI164: 20.47647611 | BJ164: 149.9 | BK164: Saturated zone | BL164: =('Climate-inputs'!C160+'Climate-inputs'!D160)/2 -> 26.46944444 | BW164: 0 | BX164: 0 | BZ164: 0 | CA164: 0 | CC164: 0 | CD164: 0 | CF164: 0 | CG164: 0 | CM164: 0 | CN164: 1 | CO164: 0.03024506928 | CP164: 0.001338652033 | CQ164: 0.001209802771 | CR164: 1.800084331 | CS164: 1.111059057 | CT164: 3.306324052 | CV164: 149.9 | CW164: 0.3292101241 | CY164: 1 | CZ164: 0.9670742525 | DA164: 0.4835371263 | DB164: 0.2901222758 | DC164: 0.2417685631
E165: 150.8666667 | F165: -58.15323849 | G165: 0.3874 | H165: 1 | I165: 0.9666666667 | J165: 5.162622612 | K165: 1 | L165: 0.3292087876 | M165: 1 | N165: 0 | O165: 0 | P165: 0.3183693422 | Q165: 0.35 | R165: 1.003715049 | S165: 0 | T165: 0.01910216053 | U165: 0.1872433333 | V165: 1.023094623 | X165: 216 | Z165: 217 | AB165: 0.003576752212 | AC165: 0 | AD165: 0.1 | AE165: 0.1 | AF165: 217.1 | AG165: 3.617730378 | AH165: 4.342 | AI165: 0 | AP165: 150.8666667 | AQ165: 0 | AR165: 0 | AS165: 0 | AT165: 0 | AU165: 0 | AV165: 0 | AW165: 0 | AX165: 0 | AY165: 0 | AZ165: 0 | BA165: -150.8666667 | BB165: 0 | BC165: 0 | BE165: 0 | BG165: 20.47647611 | BH165: 1 | BI165: 20.47647611 | BJ165: 150.8666667 | BK165: Saturated zone | BL165: =('Climate-inputs'!C161+'Climate-inputs'!D161)/2 -> 27.6 | BW165: 0 | BX165: 0 | BZ165: 0 | CA165: 0 | CC165: 0 | CD165: 0 | CF165: 0 | CG165: 0 | CM165: 0 | CN165: 1 | CO165: 0.02890641725 | CP165: 0.001279403061 | CQ165: 0.00115625669 | CR165: 1.800077754 | CS165: 1.111063117 | CT165: 3.459439444 | CV165: 150.8666667 | CW165: 0.3292087876 | CY165: 1 | CZ165: 0.9670742525 | DA165: 0.4835371263 | DB165: 0.2901222758 | DC165: 0.2417685631
E166: 151.8333333 | F166: -58.15323849 | G166: 0.3874 | H166: 1 | I166: 0.9666666667 | J166: 5.162622612 | K166: 1 | L166: 0.3292075554 | M166: 1 | N166: 0 | O166: 0 | P166: 0.3183681506 | Q166: 0.35 | R166: 1.003701284 | S166: 0 | T166: 0.01910208903 | U166: 0.1872433333 | V166: 1.022988441 | X166: 217 | Z166: 218 | AB166: 0.003576738824 | AC166: 0 | AD166: 0.1 | AE166: 0.1 | AF166: 218.1 | AG166: 3.634394268 | AH166: 4.362 | AI166: 0 | AP166: 151.8333333 | AQ166: 0 | AR166: 0 | AS166: 0 | AT166: 0 | AU166: 0 | AV166: 0 | AW166: 0 | AX166: 0 | AY166: 0 | AZ166: 0 | BA166: -151.8333333 | BB166: 0 | BC166: 0 | BE166: 0 | BG166: 20.47647611 | BH166: 1 | BI166: 20.47647611 | BJ166: 151.8333333 | BK166: Saturated zone | BL166: =('Climate-inputs'!C162+'Climate-inputs'!D162)/2 -> 26.60833333 | BW166: 0 | BX166: 0 | BZ166: 0 | CA166: 0 | CC166: 0 | CD166: 0 | CF166: 0 | CG166: 0 | CM166: 0 | CN166: 1 | CO166: 0.02762701418 | CP166: 0.001222776459 | CQ166: 0.001105080567 | CR166: 1.80007169 | CS166: 1.11106686 | CT166: 3.619645588 | CV166: 151.8333333 | CW166: 0.3292075554 | CY166: 1 | CZ166: 0.9670742525 | DA166: 0.4835371263 | DB166: 0.2901222758 | DC166: 0.2417685631
E167: 152.8 | F167: -58.15323849 | G167: 0.3874 | H167: 1 | I167: 0.9666666667 | J167: 5.162622612 | K167: 1 | L167: 0.3292064193 | M167: 1 | N167: 0 | O167: 0 | P167: 0.3183670519 | Q167: 0.35 | R167: 1.003687632 | S167: 0 | T167: 0.01910202311 | U167: 0.1872433333 | V167: 1.02288323 | X167: 218 | Z167: 219 | AB167: 0.003576726481 | AC167: 0 | AD167: 0.1 | AE167: 0.1 | AF167: 219.1 | AG167: 3.651058157 | AH167: 4.382 | AI167: 0 | AP167: 152.8 | AQ167: 0 | AR167: 0 | AS167: 0 | AT167: 0 | AU167: 0 | AV167: 0 | AW167: 0 | AX167: 0 | AY167: 0 | AZ167: 0 | BA167: -152.8 | BB167: 0 | BC167: 0 | BE167: 0 | BG167: 20.47647611 | BH167: 1 | BI167: 20.47647611 | BJ167: 152.8 | BK167: Saturated zone | BL167: =('Climate-inputs'!C163+'Climate-inputs'!D163)/2 -> 26.85 | BW167: 0 | BX167: 0 | BZ167: 0 | CA167: 0 | CC167: 0 | CD167: 0 | CF167: 0 | CG167: 0 | CM167: 0 | CN167: 1 | CO167: 0.02640423773 | CP167: 0.00116865616 | CQ167: 0.001056169509 | CR167: 1.800066099 | CS167: 1.111070311 | CT167: 3.787270855 | CV167: 152.8 | CW167: 0.3292064193 | CY167: 1 | CZ167: 0.9670742525 | DA167: 0.4835371263 | DB167: 0.2901222758 | DC167: 0.2417685631
E168: 153.7666667 | F168: -58.15323849 | G168: 0.3874 | H168: 1 | I168: 0.9666666667 | J168: 5.162622612 | K168: 1 | L168: 0.3292053718 | M168: 1 | N168: 0 | O168: 0 | P168: 0.3183660388 | Q168: 0.35 | R168: 1.003674093 | S168: 0 | T168: 0.01910196233 | U168: 0.1872433333 | V168: 1.022778979 | X168: 219 | Z168: 220 | AB168: 0.0035767151 | AC168: 0 | AD168: 0.1 | AE168: 0.1 | AF168: 220.1 | AG168: 3.667722046 | AH168: 4.402 | AI168: 0 | AP168: 153.7666667 | AQ168: 0 | AR168: 0 | AS168: 0 | AT168: 0 | AU168: 0 | AV168: 0 | AW168: 0 | AX168: 0 | AY168: 0 | AZ168: 0 | BA168: -153.7666667 | BB168: 0 | BC168: 0 | BE168: 0 | BG168: 20.47647611 | BH168: 1 | BI168: 20.47647611 | BJ168: 153.7666667 | BK168: Saturated zone | BL168: =('Climate-inputs'!C164+'Climate-inputs'!D164)/2 -> 25.10833333 | BW168: 0 | BX168: 0 | BZ168: 0 | CA168: 0 | CC168: 0 | CD168: 0 | CF168: 0 | CG168: 0 | CM168: 0 | CN168: 1 | CO168: 0.02523558157 | CP168: 0.001116931235 | CQ168: 0.001009423263 | CR168: 1.800060944 | CS168: 1.111073493 | CT168: 3.962658825 | CV168: 153.7666667 | CW168: 0.3292053718 | CY168: 1 | CZ168: 0.9670742525 | DA168: 0.4835371263 | DB168: 0.2901222758 | DC168: 0.2417685631
E169: 154.7333333 | F169: -58.15323849 | G169: 0.3874 | H169: 1 | I169: 0.9666666667 | J169: 5.162622612 | K169: 1 | L169: 0.3292044059 | M169: 1 | N169: 0 | O169: 0 | P169: 0.3183651048 | Q169: 0.35 | R169: 1.003660666 | S169: 0 | T169: 0.01910190629 | U169: 0.1872433333 | V169: 1.022675673 | X169: 220 | Z169: 221 | AB169: 0.003576704606 | AC169: 0 | AD169: 0.1 | AE169: 0.1 | AF169: 221.1 | AG169: 3.684385936 | AH169: 4.422 | AI169: 0 | AP169: 154.7333333 | AQ169: 0 | AR169: 0 | AS169: 0 | AT169: 0 | AU169: 0 | AV169: 0 | AW169: 0 | AX169: 0 | AY169: 0 | AZ169: 0 | BA169: -154.7333333 | BB169: 0 | BC169: 0 | BE169: 0 | BG169: 20.47647611 | BH169: 1 | BI169: 20.47647611 | BJ169: 154.7333333 | BK169: Saturated zone | BL169: =('Climate-inputs'!C165+'Climate-inputs'!D165)/2 -> 25.23055556 | BW169: 0 | BX169: 0 | BZ169: 0 | CA169: 0 | CC169: 0 | CD169: 0 | CF169: 0 | CG169: 0 | CM169: 0 | CN169: 1 | CO169: 0.02411865033 | CP169: 0.001067495664 | CQ169: 0.0009647460132 | CR169: 1.800056191 | CS169: 1.111076426 | CT169: 4.146168987 | CV169: 154.7333333 | CW169: 0.3292044059 | CY169: 1 | CZ169: 0.9670742525 | DA169: 0.4835371263 | DB169: 0.2901222758 | DC169: 0.2417685631
E170: 155.7 | F170: -58.15323849 | G170: 0.3874 | H170: 1 | I170: 0.9666666667 | J170: 5.162622612 | K170: 1 | L170: 0.3292035154 | M170: 1 | N170: 0 | O170: 0 | P170: 0.3183642436 | Q170: 0.35 | R170: 1.003647348 | S170: 0 | T170: 0.01910185462 | U170: 0.1872433333 | V170: 1.0225733 | X170: 221 | Z170: 222 | AB170: 0.003576694931 | AC170: 0 | AD170: 0.1 | AE170: 0.1 | AF170: 222.1 | AG170: 3.701049825 | AH170: 4.442 | AI170: 0 | AP170: 155.7 | AQ170: 0 | AR170: 0 | AS170: 0 | AT170: 0 | AU170: 0 | AV170: 0 | AW170: 0 | AX170: 0 | AY170: 0 | AZ170: 0 | BA170: -155.7 | BB170: 0 | BC170: 0 | BE170: 0 | BG170: 20.47647611 | BH170: 1 | BI170: 20.47647611 | BJ170: 155.7 | BK170: Saturated zone | BL170: =('Climate-inputs'!C166+'Climate-inputs'!D166)/2 -> 26.38055556 | BW170: 0 | BX170: 0 | BZ170: 0 | CA170: 0 | CC170: 0 | CD170: 0 | CF170: 0 | CG170: 0 | CM170: 0 | CN170: 1 | CO170: 0.02305115467 | CP170: 0.00102024812 | CQ170: 0.0009220461867 | CR170: 1.800051808 | CS170: 1.111079131 | CT170: 4.338177477 | CV170: 155.7 | CW170: 0.3292035154 | CY170: 1 | CZ170: 0.9670742525 | DA170: 0.4835371263 | DB170: 0.2901222758 | DC170: 0.2417685631
E171: 156.6666667 | F171: -58.15323849 | G171: 0.3874 | H171: 1 | I171: 0.9666666667 | J171: 5.162622612 | K171: 1 | L171: 0.3292026944 | M171: 1 | N171: 0 | O171: 0 | P171: 0.3183634496 | Q171: 0.35 | R171: 1.003634139 | S171: 0 | T171: 0.01910180698 | U171: 0.1872433333 | V171: 1.022471847 | X171: 222 | Z171: 223 | AB171: 0.003576686011 | AC171: 0 | AD171: 0.1 | AE171: 0.1 | AF171: 223.1 | AG171: 3.717713714 | AH171: 4.462 | AI171: 0 | AP171: 156.6666667 | AQ171: 0 | AR171: 0 | AS171: 0 | AT171: 0 | AU171: 0 | AV171: 0 | AW171: 0 | AX171: 0 | AY171: 0 | AZ171: 0 | BA171: -156.6666667 | BB171: 0 | BC171: 0 | BE171: 0 | BG171: 20.47647611 | BH171: 1 | BI171: 20.47647611 | BJ171: 156.6666667 | BK171: Saturated zone | BL171: =('Climate-inputs'!C167+'Climate-inputs'!D167)/2 -> 27.26388889 | BW171: 0 | BX171: 0 | BZ171: 0 | CA171: 0 | CC171: 0 | CD171: 0 | CF171: 0 | CG171: 0 | CM171: 0 | CN171: 1 | CO171: 0.02203090655 | CP171: 0.0009750917603 | CQ171: 0.0008812362619 | CR171: 1.800047768 | CS171: 1.111081626 | CT171: 4.539077853 | CV171: 156.6666667 | CW171: 0.3292026944 | CY171: 1 | CZ171: 0.9670742525 | DA171: 0.4835371263 | DB171: 0.2901222758 | DC171: 0.2417685631
E172: 157.6333333 | F172: -58.15323849 | G172: 0.3874 | H172: 1 | I172: 0.9666666667 | J172: 5.162622612 | K172: 1 | L172: 0.3292019374 | M172: 1 | N172: 0 | O172: 0 | P172: 0.3183627175 | Q172: 0.35 | R172: 1.003621037 | S172: 0 | T172: 0.01910176305 | U172: 0.1872433333 | V172: 1.022371302 | X172: 223 | Z172: 224 | AB172: 0.003576677786 | AC172: 0 | AD172: 0.1 | AE172: 0.1 | AF172: 224.1 | AG172: 3.734377604 | AH172: 4.482 | AI172: 0 | AP172: 157.6333333 | AQ172: 0 | AR172: 0 | AS172: 0 | AT172: 0 | AU172: 0 | AV172: 0 | AW172: 0 | AX172: 0 | AY172: 0 | AZ172: 0 | BA172: -157.6333333 | BB172: 0 | BC172: 0 | BE172: 0 | BG172: 20.47647611 | BH172: 1 | BI172: 20.47647611 | BJ172: 157.6333333 | BK172: Saturated zone | BL172: =('Climate-inputs'!C168+'Climate-inputs'!D168)/2 -> 26.8 | BW172: 0 | BX172: 0 | BZ172: 0 | CA172: 0 | CC172: 0 | CD172: 0 | CF172: 0 | CG172: 0 | CM172: 0 | CN172: 1 | CO172: 0.02105581479 | CP172: 0.0009319340292 | CQ172: 0.0008422325915 | CR172: 1.800044042 | CS172: 1.111083925 | CT172: 4.749281897 | CV172: 157.6333333 | CW172: 0.3292019374 | CY172: 1 | CZ172: 0.9670742525 | DA172: 0.4835371263 | DB172: 0.2901222758 | DC172: 0.2417685631
E173: 158.6 | F173: -58.15323849 | G173: 0.3874 | H173: 1 | I173: 0.9666666667 | J173: 5.162622612 | K173: 1 | L173: 0.3292012394 | M173: 1 | N173: 0 | O173: 0 | P173: 0.3183620425 | Q173: 0.35 | R173: 1.003608041 | S173: 0 | T173: 0.01910172255 | U173: 0.1872433333 | V173: 1.022271653 | X173: 224 | Z173: 225 | AB173: 0.003576670203 | AC173: 0 | AD173: 0.1 | AE173: 0.1 | AF173: 225.1 | AG173: 3.751041493 | AH173: 4.502 | AI173: 0 | AP173: 158.6 | AQ173: 0 | AR173: 0 | AS173: 0 | AT173: 0 | AU173: 0 | AV173: 0 | AW173: 0 | AX173: 0 | AY173: 0 | AZ173: 0 | BA173: -158.6 | BB173: 0 | BC173: 0 | BE173: 0 | BG173: 20.47647611 | BH173: 1 | BI173: 20.47647611 | BJ173: 158.6 | BK173: Saturated zone | BL173: =('Climate-inputs'!C169+'Climate-inputs'!D169)/2 -> 25.41944444 | BW173: 0 | BX173: 0 | BZ173: 0 | CA173: 0 | CC173: 0 | CD173: 0 | CF173: 0 | CG173: 0 | CM173: 0 | CN173: 1 | CO173: 0.02012388076 | CP173: 0.0008906864668 | CQ173: 0.0008049552303 | CR173: 1.800040608 | CS173: 1.111086045 | CT173: 4.96922046 | CV173: 158.6 | CW173: 0.3292012394 | CY173: 1 | CZ173: 0.9670742525 | DA173: 0.4835371263 | DB173: 0.2901222758 | DC173: 0.2417685631
E174: 159.5666667 | F174: -58.15323849 | G174: 0.3874 | H174: 1 | I174: 0.9666666667 | J174: 5.162622612 | K174: 1 | L174: 0.3292005959 | M174: 1 | N174: 0 | O174: 0 | P174: 0.3183614202 | Q174: 0.35 | R174: 1.00359515 | S174: 0 | T174: 0.01910168521 | U174: 0.1872433333 | V174: 1.022172887 | X174: 225 | Z174: 226 | AB174: 0.003576663211 | AC174: 0 | AD174: 0.1 | AE174: 0.1 | AF174: 226.1 | AG174: 3.767705382 | AH174: 4.522 | AI174: 0 | AP174: 159.5666667 | AQ174: 0 | AR174: 0 | AS174: 0 | AT174: 0 | AU174: 0 | AV174: 0 | AW174: 0 | AX174: 0 | AY174: 0 | AZ174: 0 | BA174: -159.5666667 | BB174: 0 | BC174: 0 | BE174: 0 | BG174: 20.47647611 | BH174: 1 | BI174: 20.47647611 | BJ174: 159.5666667 | BK174: Saturated zone | BL174: =('Climate-inputs'!C170+'Climate-inputs'!D170)/2 -> 26.775 | BW174: 0 | BX174: 0 | BZ174: 0 | CA174: 0 | CC174: 0 | CD174: 0 | CF174: 0 | CG174: 0 | CM174: 0 | CN174: 1 | CO174: 0.01923319429 | CP174: 0.0008512645287 | CQ174: 0.0007693277716 | CR174: 1.800037441 | CS174: 1.111088 | CT174: 5.199344346 | CV174: 159.5666667 | CW174: 0.3292005959 | CY174: 1 | CZ174: 0.9670742525 | DA174: 0.4835371263 | DB174: 0.2901222758 | DC174: 0.2417685631
E175: 160.5333333 | F175: -58.15323849 | G175: 0.3874 | H175: 1 | I175: 0.9666666667 | J175: 5.162622612 | K175: 1 | L175: 0.3292000025 | M175: 1 | N175: 0 | O175: 0 | P175: 0.3183608464 | Q175: 0.35 | R175: 1.003582361 | S175: 0 | T175: 0.01910165078 | U175: 0.1872433333 | V175: 1.022074994 | X175: 226 | Z175: 227 | AB175: 0.003576656765 | AC175: 0 | AD175: 0.1 | AE175: 0.1 | AF175: 227.1 | AG175: 3.784369272 | AH175: 4.542 | AI175: 0 | AP175: 160.5333333 | AQ175: 0 | AR175: 0 | AS175: 0 | AT175: 0 | AU175: 0 | AV175: 0 | AW175: 0 | AX175: 0 | AY175: 0 | AZ175: 0 | BA175: -160.5333333 | BB175: 0 | BC175: 0 | BE175: 0 | BG175: 20.47647611 | BH175: 1 | BI175: 20.47647611 | BJ175: 160.5333333 | BK175: Saturated zone | BL175: =('Climate-inputs'!C171+'Climate-inputs'!D171)/2 -> 27.86944444 | BW175: 0 | BX175: 0 | BZ175: 0 | CA175: 0 | CC175: 0 | CD175: 0 | CF175: 0 | CG175: 0 | CM175: 0 | CN175: 1 | CO175: 0.01838192976 | CP175: 0.0008135874124 | CQ175: 0.0007352771905 | CR175: 1.800034521 | CS175: 1.111089803 | CT175: 5.440125237 | CV175: 160.5333333 | CW175: 0.3292000025 | CY175: 1 | CZ175: 0.9670742525 | DA175: 0.4835371263 | DB175: 0.2901222758 | DC175: 0.2417685631
E176: 161.5 | F176: -58.15323849 | G176: 0.3874 | H176: 1 | I176: 0.9666666667 | J176: 5.162622612 | K176: 1 | L176: 0.3291994554 | M176: 1 | N176: 0 | O176: 0 | P176: 0.3183603173 | Q176: 0.35 | R176: 1.003569675 | S176: 0 | T176: 0.01910161904 | U176: 0.1872433333 | V176: 1.021977961 | X176: 227 | Z176: 228 | AB176: 0.003576650821 | AC176: 0 | AD176: 0.1 | AE176: 0.1 | AF176: 228.1 | AG176: 3.801033161 | AH176: 4.562 | AI176: 0 | AP176: 161.5 | AQ176: 0 | AR176: 0 | AS176: 0 | AT176: 0 | AU176: 0 | AV176: 0 | AW176: 0 | AX176: 0 | AY176: 0 | AZ176: 0 | BA176: -161.5 | BB176: 0 | BC176: 0 | BE176: 0 | BG176: 20.47647611 | BH176: 1 | BI176: 20.47647611 | BJ176: 161.5 | BK176: Saturated zone | BL176: =('Climate-inputs'!C172+'Climate-inputs'!D172)/2 -> 27.18055556 | BW176: 0 | BX176: 0 | BZ176: 0 | CA176: 0 | CC176: 0 | CD176: 0 | CF176: 0 | CG176: 0 | CM176: 0 | CN176: 1 | CO176: 0.01756834235 | CP176: 0.0007775778918 | CQ176: 0.000702733694 | CR176: 1.800031828 | CS176: 1.111091464 | CT176: 5.692056655 | CV176: 161.5 | CW176: 0.3291994554 | CY176: 1 | CZ176: 0.9670742525 | DA176: 0.4835371263 | DB176: 0.2901222758 | DC176: 0.2417685631
E177: 162.4666667 | F177: -58.15323849 | G177: 0.3874 | H177: 1 | I177: 0.9666666667 | J177: 5.162622612 | K177: 1 | L177: 0.329198951 | M177: 1 | N177: 0 | O177: 0 | P177: 0.3183598295 | Q177: 0.35 | R177: 1.003557089 | S177: 0 | T177: 0.01910158977 | U177: 0.1872433333 | V177: 1.021881777 | X177: 228 | Z177: 229 | AB177: 0.00357664534 | AC177: 0 | AD177: 0.1 | AE177: 0.1 | AF177: 229.1 | AG177: 3.81769705 | AH177: 4.582 | AI177: 0 | AP177: 162.4666667 | AQ177: 0 | AR177: 0 | AS177: 0 | AT177: 0 | AU177: 0 | AV177: 0 | AW177: 0 | AX177: 0 | AY177: 0 | AZ177: 0 | BA177: -162.4666667 | BB177: 0 | BC177: 0 | BE177: 0 | BG177: 20.47647611 | BH177: 1 | BI177: 20.47647611 | BJ177: 162.4666667 | BK177: Saturated zone | BL177: =('Climate-inputs'!C173+'Climate-inputs'!D173)/2 -> 27.61111111 | BW177: 0 | BX177: 0 | BZ177: 0 | CA177: 0 | CC177: 0 | CD177: 0 | CF177: 0 | CG177: 0 | CM177: 0 | CN177: 1 | CO177: 0.01679076446 | CP177: 0.0007431621589 | CQ177: 0.0006716305783 | CR177: 1.800029346 | CS177: 1.111092997 | CT177: 5.955654982 | CV177: 162.4666667 | CW177: 0.329198951 | CY177: 1 | CZ177: 0.9670742525 | DA177: 0.4835371263 | DB177: 0.2901222758 | DC177: 0.2417685631
E178: 163.4333333 | F178: -58.15323849 | G178: 0.3874 | H178: 1 | I178: 0.9666666667 | J178: 5.162622612 | K178: 1 | L178: 0.329198486 | M178: 1 | N178: 0 | O178: 0 | P178: 0.3183593797 | Q178: 0.35 | R178: 1.003544602 | S178: 0 | T178: 0.01910156278 | U178: 0.1872433333 | V178: 1.021786432 | X178: 229 | Z178: 230 | AB178: 0.003576640288 | AC178: 0 | AD178: 0.1 | AE178: 0.1 | AF178: 230.1 | AG178: 3.83436094 | AH178: 4.602 | AI178: 0 | AP178: 163.4333333 | AQ178: 0 | AR178: 0 | AS178: 0 | AT178: 0 | AU178: 0 | AV178: 0 | AW178: 0 | AX178: 0 | AY178: 0 | AZ178: 0 | BA178: -163.4333333 | BB178: 0 | BC178: 0 | BE178: 0 | BG178: 20.47647611 | BH178: 1 | BI178: 20.47647611 | BJ178: 163.4333333 | BK178: Saturated zone | BL178: =('Climate-inputs'!C174+'Climate-inputs'!D174)/2 -> 26.625 | BW178: 0 | BX178: 0 | BZ178: 0 | CA178: 0 | CC178: 0 | CD178: 0 | CF178: 0 | CG178: 0 | CM178: 0 | CN178: 1 | CO178: 0.0160476023 | CP178: 0.0007102696724 | CQ178: 0.000641904092 | CR178: 1.800027057 | CS178: 1.111094409 | CT178: 6.231460509 | CV178: 163.4333333 | CW178: 0.329198486 | CY178: 1 | CZ178: 0.9670742525 | DA178: 0.4835371263 | DB178: 0.2901222758 | DC178: 0.2417685631
E179: 164.4 | F179: -58.15323849 | G179: 0.3874 | H179: 1 | I179: 0.9666666667 | J179: 5.162622612 | K179: 1 | L179: 0.3291980571 | M179: 1 | N179: 0 | O179: 0 | P179: 0.318358965 | Q179: 0.35 | R179: 1.003532214 | S179: 0 | T179: 0.0191015379 | U179: 0.1872433333 | V179: 1.021691914 | X179: 230 | Z179: 231 | AB179: 0.003576635629 | AC179: 0 | AD179: 0.1 | AE179: 0.1 | AF179: 231.1 | AG179: 3.851024829 | AH179: 4.622 | AI179: 0 | AP179: 164.4 | AQ179: 0 | AR179: 0 | AS179: 0 | AT179: 0 | AU179: 0 | AV179: 0 | AW179: 0 | AX179: 0 | AY179: 0 | AZ179: 0 | BA179: -164.4 | BB179: 0 | BC179: 0 | BE179: 0 | BG179: 20.47647611 | BH179: 1 | BI179: 20.47647611 | BJ179: 164.4 | BK179: Saturated zone | BL179: =('Climate-inputs'!C175+'Climate-inputs'!D175)/2 -> 26.14166667 | BW179: 0 | BX179: 0 | BZ179: 0 | CA179: 0 | CC179: 0 | CD179: 0 | CF179: 0 | CG179: 0 | CM179: 0 | CN179: 1 | CO179: 0.01533733263 | CP179: 0.000678833013 | CQ179: 0.0006134933051 | CR179: 1.800024947 | CS179: 1.111095712 | CT179: 6.520038551 | CV179: 164.4 | CW179: 0.3291980571 | CY179: 1 | CZ179: 0.9670742525 | DA179: 0.4835371263 | DB179: 0.2901222758 | DC179: 0.2417685631
E180: 165.3666667 | F180: -58.15323849 | G180: 0.3874 | H180: 1 | I180: 0.9666666667 | J180: 5.162622612 | K180: 1 | L180: 0.3291976618 | M180: 1 | N180: 0 | O180: 0 | P180: 0.3183585827 | Q180: 0.35 | R180: 1.003519923 | S180: 0 | T180: 0.01910151496 | U180: 0.1872433333 | V180: 1.021598212 | X180: 231 | Z180: 232 | AB180: 0.003576631333 | AC180: 0 | AD180: 0.1 | AE180: 0.1 | AF180: 232.1 | AG180: 3.867688719 | AH180: 4.642 | AI180: 0 | AP180: 165.3666667 | AQ180: 0 | AR180: 0 | AS180: 0 | AT180: 0 | AU180: 0 | AV180: 0 | AW180: 0 | AX180: 0 | AY180: 0 | AZ180: 0 | BA180: -165.3666667 | BB180: 0 | BC180: 0 | BE180: 0 | BG180: 20.47647611 | BH180: 1 | BI180: 20.47647611 | BJ180: 165.3666667 | BK180: Saturated zone | BL180: =('Climate-inputs'!C176+'Climate-inputs'!D176)/2 -> 26.08888889 | BW180: 0 | BX180: 0 | BZ180: 0 | CA180: 0 | CC180: 0 | CD180: 0 | CF180: 0 | CG180: 0 | CM180: 0 | CN180: 1 | CO180: 0.01465849961 | CP180: 0.0006487877456 | CQ180: 0.0005863399846 | CR180: 1.800023001 | CS180: 1.111096913 | CT180: 6.821980601 | CV180: 165.3666667 | CW180: 0.3291976618 | CY180: 1 | CZ180: 0.9670742525 | DA180: 0.4835371263 | DB180: 0.2901222758 | DC180: 0.2417685631
E181: 166.3333333 | F181: -58.15323849 | G181: 0.3874 | H181: 1 | I181: 0.9666666667 | J181: 5.162622612 | K181: 1 | L181: 0.3291972973 | M181: 1 | N181: 0 | O181: 0 | P181: 0.3183582302 | Q181: 0.35 | R181: 1.003507727 | S181: 0 | T181: 0.01910149381 | U181: 0.1872433333 | V181: 1.021505317 | X181: 232 | Z181: 233 | AB181: 0.003576627373 | AC181: 0 | AD181: 0.1 | AE181: 0.1 | AF181: 233.1 | AG181: 3.884352608 | AH181: 4.662 | AI181: 0 | AP181: 166.3333333 | AQ181: 0 | AR181: 0 | AS181: 0 | AT181: 0 | AU181: 0 | AV181: 0 | AW181: 0 | AX181: 0 | AY181: 0 | AZ181: 0 | BA181: -166.3333333 | BB181: 0 | BC181: 0 | BE181: 0 | BG181: 20.47647611 | BH181: 1 | BI181: 20.47647611 | BJ181: 166.3333333 | BK181: Saturated zone | BL181: =('Climate-inputs'!C177+'Climate-inputs'!D177)/2 -> 26.80833333 | BW181: 0 | BX181: 0 | BZ181: 0 | CA181: 0 | CC181: 0 | CD181: 0 | CF181: 0 | CG181: 0 | CM181: 0 | CN181: 1 | CO181: 0.01400971187 | CP181: 0.000620072287 | CQ181: 0.0005603884747 | CR181: 1.800021207 | CS181: 1.11109802 | CT181: 7.137905543 | CV181: 166.3333333 | CW181: 0.3291972973 | CY181: 1 | CZ181: 0.9670742525 | DA181: 0.4835371263 | DB181: 0.2901222758 | DC181: 0.2417685631
E182: 167.3 | F182: -58.15323849 | G182: 0.3874 | H182: 1 | I182: 0.9666666667 | J182: 5.162622612 | K182: 1 | L182: 0.3291969612 | M182: 1 | N182: 0 | O182: 0 | P182: 0.3183579052 | Q182: 0.35 | R182: 1.003495626 | S182: 0 | T182: 0.01910147431 | U182: 0.1872433333 | V182: 1.021413217 | X182: 233 | Z182: 234 | AB182: 0.003576623721 | AC182: 0 | AD182: 0.1 | AE182: 0.1 | AF182: 234.1 | AG182: 3.901016497 | AH182: 4.682 | AI182: 0 | AP182: 167.3 | AQ182: 0 | AR182: 0 | AS182: 0 | AT182: 0 | AU182: 0 | AV182: 0 | AW182: 0 | AX182: 0 | AY182: 0 | AZ182: 0 | BA182: -167.3 | BB182: 0 | BC182: 0 | BE182: 0 | BG182: 20.47647611 | BH182: 1 | BI182: 20.47647611 | BJ182: 167.3 | BK182: Saturated zone | BL182: =('Climate-inputs'!C178+'Climate-inputs'!D178)/2 -> 27.44444444 | BW182: 0 | BX182: 0 | BZ182: 0 | CA182: 0 | CC182: 0 | CD182: 0 | CF182: 0 | CG182: 0 | CM182: 0 | CN182: 1 | CO182: 0.01338963958 | CP182: 0.0005926277796 | CQ182: 0.0005355855833 | CR182: 1.800019553 | CS182: 1.111099041 | CT182: 7.468460924 | CV182: 167.3 | CW182: 0.3291969612 | CY182: 1 | CZ182: 0.9670742525 | DA182: 0.4835371263 | DB182: 0.2901222758 | DC182: 0.2417685631
E183: 168.2666667 | F183: -58.15323849 | G183: 0.3874 | H183: 1 | I183: 0.9666666667 | J183: 5.162622612 | K183: 1 | L183: 0.3291966513 | M183: 1 | N183: 0 | O183: 0 | P183: 0.3183576055 | Q183: 0.35 | R183: 1.003483619 | S183: 0 | T183: 0.01910145633 | U183: 0.1872433333 | V183: 1.021321903 | X183: 234 | Z183: 235 | AB183: 0.003576620354 | AC183: 0 | AD183: 0.1 | AE183: 0.1 | AF183: 235.1 | AG183: 3.917680387 | AH183: 4.702 | AI183: 0 | AP183: 168.2666667 | AQ183: 0 | AR183: 0 | AS183: 0 | AT183: 0 | AU183: 0 | AV183: 0 | AW183: 0 | AX183: 0 | AY183: 0 | AZ183: 0 | BA183: -168.2666667 | BB183: 0 | BC183: 0 | BE183: 0 | BG183: 20.47647611 | BH183: 1 | BI183: 20.47647611 | BJ183: 168.2666667 | BK183: Saturated zone | BL183: =('Climate-inputs'!C179+'Climate-inputs'!D179)/2 -> 27.21111111 | BW183: 0 | BX183: 0 | BZ183: 0 | CA183: 0 | CC183: 0 | CD183: 0 | CF183: 0 | CG183: 0 | CM183: 0 | CN183: 1 | CO183: 0.0127970118 | CP183: 0.0005663979709 | CQ183: 0.0005118804721 | CR183: 1.800018029 | CS183: 1.111099983 | CT183: 7.814324277 | CV183: 168.2666667 | CW183: 0.3291966513 | CY183: 1 | CZ183: 0.9670742525 | DA183: 0.4835371263 | DB183: 0.2901222758 | DC183: 0.2417685631
E184: 169.2333333 | F184: -58.15323849 | G184: 0.3874 | H184: 1 | I184: 0.9666666667 | J184: 5.162622612 | K184: 1 | L184: 0.3291963656 | M184: 1 | N184: 0 | O184: 0 | P184: 0.3183573292 | Q184: 0.35 | R184: 1.003471704 | S184: 0 | T184: 0.01910143975 | U184: 0.1872433333 | V184: 1.021231364 | X184: 235 | Z184: 236 | AB184: 0.00357661725 | AC184: 0 | AD184: 0.1 | AE184: 0.1 | AF184: 236.1 | AG184: 3.934344276 | AH184: 4.722 | AI184: 0 | AP184: 169.2333333 | AQ184: 0 | AR184: 0 | AS184: 0 | AT184: 0 | AU184: 0 | AV184: 0 | AW184: 0 | AX184: 0 | AY184: 0 | AZ184: 0 | BA184: -169.2333333 | BB184: 0 | BC184: 0 | BE184: 0 | BG184: 20.47647611 | BH184: 1 | BI184: 20.47647611 | BJ184: 169.2333333 | BK184: Saturated zone | BL184: =('Climate-inputs'!C180+'Climate-inputs'!D180)/2 -> 27.00833333 | BW184: 0 | BX184: 0 | BZ184: 0 | CA184: 0 | CC184: 0 | CD184: 0 | CF184: 0 | CG184: 0 | CM184: 0 | CN184: 1 | CO184: 0.01223061383 | CP184: 0.000541329098 | CQ184: 0.0004892245532 | CR184: 1.800016622 | CS184: 1.11110085 | CT184: 8.176204513 | CV184: 169.2333333 | CW184: 0.3291963656 | CY184: 1 | CZ184: 0.9670742525 | DA184: 0.4835371263 | DB184: 0.2901222758 | DC184: 0.2417685631
E185: 170.2 | F185: -58.15323849 | G185: 0.3874 | H185: 1 | I185: 0.9666666667 | J185: 5.162622612 | K185: 1 | L185: 0.3291961021 | M185: 1 | N185: 0 | O185: 0 | P185: 0.3183570744 | Q185: 0.35 | R185: 1.00345988 | S185: 0 | T185: 0.01910142446 | U185: 0.1872433333 | V185: 1.021141591 | X185: 236 | Z185: 237 | AB185: 0.003576614388 | AC185: 0 | AD185: 0.1 | AE185: 0.1 | AF185: 237.1 | AG185: 3.951008165 | AH185: 4.742 | AI185: 0 | AP185: 170.2 | AQ185: 0 | AR185: 0 | AS185: 0 | AT185: 0 | AU185: 0 | AV185: 0 | AW185: 0 | AX185: 0 | AY185: 0 | AZ185: 0 | BA185: -170.2 | BB185: 0 | BC185: 0 | BE185: 0 | BG185: 20.47647611 | BH185: 1 | BI185: 20.47647611 | BJ185: 170.2 | BK185: Saturated zone | BL185: =('Climate-inputs'!C181+'Climate-inputs'!D181)/2 -> 26.65555556 | BW185: 0 | BX185: 0 | BZ185: 0 | CA185: 0 | CC185: 0 | CD185: 0 | CF185: 0 | CG185: 0 | CM185: 0 | CN185: 1 | CO185: 0.01168928473 | CP185: 0.0005173697779 | CQ185: 0.0004675713893 | CR185: 1.800015326 | CS185: 1.111101651 | CT185: 8.55484337 | CV185: 170.2 | CW185: 0.3291961021 | CY185: 1 | CZ185: 0.9670742525 | DA185: 0.4835371263 | DB185: 0.2901222758 | DC185: 0.2417685631
E186: 171.1666667 | F186: -58.15323849 | G186: 0.3874 | H186: 1 | I186: 0.9666666667 | J186: 5.162622612 | K186: 1 | L186: 0.3291958592 | M186: 1 | N186: 0 | O186: 0 | P186: 0.3183568395 | Q186: 0.35 | R186: 1.003448147 | S186: 0 | T186: 0.01910141037 | U186: 0.1872433333 | V186: 1.021052574 | X186: 237 | Z186: 238 | AB186: 0.003576611749 | AC186: 0 | AD186: 0.1 | AE186: 0.1 | AF186: 238.1 | AG186: 3.967672055 | AH186: 4.762 | AI186: 0 | AP186: 171.1666667 | AQ186: 0 | AR186: 0 | AS186: 0 | AT186: 0 | AU186: 0 | AV186: 0 | AW186: 0 | AX186: 0 | AY186: 0 | AZ186: 0 | BA186: -171.1666667 | BB186: 0 | BC186: 0 | BE186: 0 | BG186: 20.47647611 | BH186: 1 | BI186: 20.47647611 | BJ186: 171.1666667 | BK186: Saturated zone | BL186: =('Climate-inputs'!C182+'Climate-inputs'!D182)/2 -> 27.76388889 | BW186: 0 | BX186: 0 | BZ186: 0 | CA186: 0 | CC186: 0 | CD186: 0 | CF186: 0 | CG186: 0 | CM186: 0 | CN186: 1 | CO186: 0.01117191496 | CP186: 0.0004944709014 | CQ186: 0.0004468765982 | CR186: 1.800014131 | CS186: 1.111102388 | CT186: 8.951016939 | CV186: 171.1666667 | CW186: 0.3291958592 | CY186: 1 | CZ186: 0.9670742525 | DA186: 0.4835371263 | DB186: 0.2901222758 | DC186: 0.2417685631
E187: 172.1333333 | F187: -58.15323849 | G187: 0.3874 | H187: 1 | I187: 0.9666666667 | J187: 5.162622612 | K187: 1 | L187: 0.3291956353 | M187: 1 | N187: 0 | O187: 0 | P187: 0.3183566229 | Q187: 0.35 | R187: 1.003436503 | S187: 0 | T187: 0.01910139738 | U187: 0.1872433333 | V187: 1.020964303 | X187: 238 | Z187: 239 | AB187: 0.003576609316 | AC187: 0 | AD187: 0.1 | AE187: 0.1 | AF187: 239.1 | AG187: 3.984335944 | AH187: 4.782 | AI187: 0 | AP187: 172.1333333 | AQ187: 0 | AR187: 0 | AS187: 0 | AT187: 0 | AU187: 0 | AV187: 0 | AW187: 0 | AX187: 0 | AY187: 0 | AZ187: 0 | BA187: -172.1333333 | BB187: 0 | BC187: 0 | BE187: 0 | BG187: 20.47647611 | BH187: 1 | BI187: 20.47647611 | BJ187: 172.1333333 | BK187: Saturated zone | BL187: =('Climate-inputs'!C183+'Climate-inputs'!D183)/2 -> 27.78611111 | BW187: 0 | BX187: 0 | BZ187: 0 | CA187: 0 | CC187: 0 | CD187: 0 | CF187: 0 | CG187: 0 | CM187: 0 | CN187: 1 | CO187: 0.01067744405 | CP187: 0.0004725855332 | CQ187: 0.0004270977621 | CR187: 1.800013029 | CS187: 1.111103069 | CT187: 9.365537248 | CV187: 172.1333333 | CW187: 0.3291956353 | CY187: 1 | CZ187: 0.9670742525 | DA187: 0.4835371263 | DB187: 0.2901222758 | DC187: 0.2417685631
E188: 173.1 | F188: -58.15323849 | G188: 0.3874 | H188: 1 | I188: 0.9666666667 | J188: 5.162622612 | K188: 1 | L188: 0.3291954288 | M188: 1 | N188: 0 | O188: 0 | P188: 0.3183564233 | Q188: 0.35 | R188: 1.003424947 | S188: 0 | T188: 0.0191013854 | U188: 0.1872433333 | V188: 1.02087677 | X188: 239 | Z188: 240 | AB188: 0.003576607073 | AC188: 0 | AD188: 0.1 | AE188: 0.1 | AF188: 240.1 | AG188: 4.000999833 | AH188: 4.802 | AI188: 0 | AP188: 173.1 | AQ188: 0 | AR188: 0 | AS188: 0 | AT188: 0 | AU188: 0 | AV188: 0 | AW188: 0 | AX188: 0 | AY188: 0 | AZ188: 0 | BA188: -173.1 | BB188: 0 | BC188: 0 | BE188: 0 | BG188: 20.47647611 | BH188: 1 | BI188: 20.47647611 | BJ188: 173.1 | BK188: Saturated zone | BL188: =('Climate-inputs'!C184+'Climate-inputs'!D184)/2 -> 28.63888889 | BW188: 0 | BX188: 0 | BZ188: 0 | CA188: 0 | CC188: 0 | CD188: 0 | CF188: 0 | CG188: 0 | CM188: 0 | CN188: 1 | CO188: 0.01020485852 | CP188: 0.0004516688152 | CQ188: 0.0004081943408 | CR188: 1.800012013 | CS188: 1.111103696 | CT188: 9.799253934 | CV188: 173.1 | CW188: 0.3291954288 | CY188: 1 | CZ188: 0.9670742525 | DA188: 0.4835371263 | DB188: 0.2901222758 | DC188: 0.2417685631
E189: 174.0666667 | F189: -58.15323849 | G189: 0.3874 | H189: 1 | I189: 0.9666666667 | J189: 5.162622612 | K189: 1 | L189: 0.3291952384 | M189: 1 | N189: 0 | O189: 0 | P189: 0.3183562392 | Q189: 0.35 | R189: 1.003413478 | S189: 0 | T189: 0.01910137435 | U189: 0.1872433333 | V189: 1.020789964 | X189: 240 | Z189: 241 | AB189: 0.003576605004 | AC189: 0 | AD189: 0.1 | AE189: 0.1 | AF189: 241.1 | AG189: 4.017663723 | AH189: 4.822 | AI189: 0 | AP189: 174.0666667 | AQ189: 0 | AR189: 0 | AS189: 0 | AT189: 0 | AU189: 0 | AV189: 0 | AW189: 0 | AX189: 0 | AY189: 0 | AZ189: 0 | BA189: -174.0666667 | BB189: 0 | BC189: 0 | BE189: 0 | BG189: 20.47647611 | BH189: 1 | BI189: 20.47647611 | BJ189: 174.0666667 | BK189: Saturated zone | BL189: =('Climate-inputs'!C185+'Climate-inputs'!D185)/2 -> 27.65 | BW189: 0 | BX189: 0 | BZ189: 0 | CA189: 0 | CC189: 0 | CD189: 0 | CF189: 0 | CG189: 0 | CM189: 0 | CN189: 1 | CO189: 0.009753189705 | CP189: 0.0004316778748 | CQ189: 0.0003901275882 | CR189: 1.800011076 | CS189: 1.111104274 | CT189: 10.25305598 | CV189: 174.0666667 | CW189: 0.3291952384 | CY189: 1 | CZ189: 0.9670742525 | DA189: 0.4835371263 | DB189: 0.2901222758 | DC189: 0.2417685631
E190: 175.0333333 | F190: -58.15323849 | G190: 0.3874 | H190: 1 | I190: 0.9666666667 | J190: 5.162622612 | K190: 1 | L190: 0.3291950629 | M190: 1 | N190: 0 | O190: 0 | P190: 0.3183560694 | Q190: 0.35 | R190: 1.003402095 | S190: 0 | T190: 0.01910136416 | U190: 0.1872433333 | V190: 1.020703878 | X190: 241 | Z190: 242 | AB190: 0.003576603097 | AC190: 0 | AD190: 0.1 | AE190: 0.1 | AF190: 242.1 | AG190: 4.034327612 | AH190: 4.842 | AI190: 0 | AP190: 175.0333333 | AQ190: 0 | AR190: 0 | AS190: 0 | AT190: 0 | AU190: 0 | AV190: 0 | AW190: 0 | AX190: 0 | AY190: 0 | AZ190: 0 | BA190: -175.0333333 | BB190: 0 | BC190: 0 | BE190: 0 | BG190: 20.47647611 | BH190: 1 | BI190: 20.47647611 | BJ190: 175.0333333 | BK190: Saturated zone | BL190: =('Climate-inputs'!C186+'Climate-inputs'!D186)/2 -> 26.1 | BW190: 0 | BX190: 0 | BZ190: 0 | CA190: 0 | CC190: 0 | CD190: 0 | CF190: 0 | CG190: 0 | CM190: 0 | CN190: 1 | CO190: 0.00932151183 | CP190: 0.0004125717369 | CQ190: 0.0003728604732 | CR190: 1.800010212 | CS190: 1.111104808 | CT190: 10.72787353 | CV190: 175.0333333 | CW190: 0.3291950629 | CY190: 1 | CZ190: 0.9670742525 | DA190: 0.4835371263 | DB190: 0.2901222758 | DC190: 0.2417685631
E191: 176 | F191: -58.15323849 | G191: 0.3874 | H191: 1 | I191: 0.9666666667 | J191: 5.162622612 | K191: 1 | L191: 0.3291949011 | M191: 1 | N191: 0 | O191: 0 | P191: 0.3183559129 | Q191: 0.35 | R191: 1.003390797 | S191: 0 | T191: 0.01910135477 | U191: 0.1872433333 | V191: 1.020618501 | X191: 242 | Z191: 243 | AB191: 0.003576601339 | AC191: 0 | AD191: 0.1 | AE191: 0.1 | AF191: 243.1 | AG191: 4.050991501 | AH191: 4.862 | AI191: 0 | AP191: 176 | AQ191: 0 | AR191: 0 | AS191: 0 | AT191: 0 | AU191: 0 | AV191: 0 | AW191: 0 | AX191: 0 | AY191: 0 | AZ191: 0 | BA191: -176 | BB191: 0 | BC191: 0 | BE191: 0 | BG191: 20.47647611 | BH191: 1 | BI191: 20.47647611 | BJ191: 176 | BK191: Saturated zone | BL191: =('Climate-inputs'!C187+'Climate-inputs'!D187)/2 -> 27.96666667 | BW191: 0 | BX191: 0 | BZ191: 0 | CA191: 0 | CC191: 0 | CD191: 0 | CF191: 0 | CG191: 0 | CM191: 0 | CN191: 1 | CO191: 0.008908940093 | CP191: 0.00039431124 | CQ191: 0.0003563576037 | CR191: 1.800009415 | CS191: 1.111105299 | CT191: 11.22467981 | CV191: 176 | CW191: 0.3291949011 | CY191: 1 | CZ191: 0.9670742525 | DA191: 0.4835371263 | DB191: 0.2901222758 | DC191: 0.2417685631
E192: 176.9666667 | F192: -58.15323849 | G192: 0.3874 | H192: 1 | I192: 0.9666666667 | J192: 5.162622612 | K192: 1 | L192: 0.3291947519 | M192: 1 | N192: 0 | O192: 0 | P192: 0.3183557686 | Q192: 0.35 | R192: 1.003379583 | S192: 0 | T192: 0.01910134612 | U192: 0.1872433333 | V192: 1.020533825 | X192: 243 | Z192: 244 | AB192: 0.003576599718 | AC192: 0 | AD192: 0.1 | AE192: 0.1 | AF192: 244.1 | AG192: 4.067655391 | AH192: 4.882 | AI192: 0 | AP192: 176.9666667 | AQ192: 0 | AR192: 0 | AS192: 0 | AT192: 0 | AU192: 0 | AV192: 0 | AW192: 0 | AX192: 0 | AY192: 0 | AZ192: 0 | BA192: -176.9666667 | BB192: 0 | BC192: 0 | BE192: 0 | BG192: 20.47647611 | BH192: 1 | BI192: 20.47647611 | BJ192: 176.9666667 | BK192: Saturated zone | BL192: =('Climate-inputs'!C188+'Climate-inputs'!D188)/2 -> 26.76388889 | BW192: 0 | BX192: 0 | BZ192: 0 | CA192: 0 | CC192: 0 | CD192: 0 | CF192: 0 | CG192: 0 | CM192: 0 | CN192: 1 | CO192: 0.008514628853 | CP192: 0.0003768589558 | CQ192: 0.0003405851541 | CR192: 1.800008681 | CS192: 1.111105752 | CT192: 11.74449312 | CV192: 176.9666667 | CW192: 0.3291947519 | CY192: 1 | CZ192: 0.9670742525 | DA192: 0.4835371263 | DB192: 0.2901222758 | DC192: 0.2417685631
E193: 177.9333333 | F193: -58.15323849 | G193: 0.3874 | H193: 1 | I193: 0.9666666667 | J193: 5.162622612 | K193: 1 | L193: 0.3291946143 | M193: 1 | N193: 0 | O193: 0 | P193: 0.3183556355 | Q193: 0.35 | R193: 1.003368452 | S193: 0 | T193: 0.01910133813 | U193: 0.1872433333 | V193: 1.020449843 | X193: 244 | Z193: 245 | AB193: 0.003576598223 | AC193: 0 | AD193: 0.1 | AE193: 0.1 | AF193: 245.1 | AG193: 4.08431928 | AH193: 4.902 | AI193: 0 | AP193: 177.9333333 | AQ193: 0 | AR193: 0 | AS193: 0 | AT193: 0 | AU193: 0 | AV193: 0 | AW193: 0 | AX193: 0 | AY193: 0 | AZ193: 0 | BA193: -177.9333333 | BB193: 0 | BC193: 0 | BE193: 0 | BG193: 20.47647611 | BH193: 1 | BI193: 20.47647611 | BJ193: 177.9333333 | BK193: Saturated zone | BL193: =('Climate-inputs'!C189+'Climate-inputs'!D189)/2 -> 24.93333333 | BW193: 0 | BX193: 0 | BZ193: 0 | CA193: 0 | CC193: 0 | CD193: 0 | CF193: 0 | CG193: 0 | CM193: 0 | CN193: 1 | CO193: 0.008137769898 | CP193: 0.0003601791128 | CQ193: 0.0003255107959 | CR193: 1.800008004 | CS193: 1.11110617 | CT193: 12.28837891 | CV193: 177.9333333 | CW193: 0.3291946143 | CY193: 1 | CZ193: 0.9670742525 | DA193: 0.4835371263 | DB193: 0.2901222758 | DC193: 0.2417685631
E194: 178.9 | F194: -58.15323849 | G194: 0.3874 | H194: 1 | I194: 0.9666666667 | J194: 5.162622612 | K194: 1 | L194: 0.3291944874 | M194: 1 | N194: 0 | O194: 0 | P194: 0.3183555129 | Q194: 0.35 | R194: 1.003357403 | S194: 0 | T194: 0.01910133077 | U194: 0.1872433333 | V194: 1.020366544 | X194: 245 | Z194: 246 | AB194: 0.003576596845 | AC194: 0 | AD194: 0.1 | AE194: 0.1 | AF194: 246.1 | AG194: 4.100983169 | AH194: 4.922 | AI194: 0 | AP194: 178.9 | AQ194: 0 | AR194: 0 | AS194: 0 | AT194: 0 | AU194: 0 | AV194: 0 | AW194: 0 | AX194: 0 | AY194: 0 | AZ194: 0 | BA194: -178.9 | BB194: 0 | BC194: 0 | BE194: 0 | BG194: 20.47647611 | BH194: 1 | BI194: 20.47647611 | BJ194: 178.9 | BK194: Saturated zone | BL194: =('Climate-inputs'!C190+'Climate-inputs'!D190)/2 -> 26.375 | BW194: 0 | BX194: 0 | BZ194: 0 | CA194: 0 | CC194: 0 | CD194: 0 | CF194: 0 | CG194: 0 | CM194: 0 | CN194: 1 | CO194: 0.007777590785 | CP194: 0.0003442375226 | CQ194: 0.0003111036314 | CR194: 1.80000738 | CS194: 1.111106556 | CT194: 12.85745198 | CV194: 178.9 | CW194: 0.3291944874 | CY194: 1 | CZ194: 0.9670742525 | DA194: 0.4835371263 | DB194: 0.2901222758 | DC194: 0.2417685631
